Workbook

Sheet AER Changes
A4: Issues | B4: Location | C4: Comment
A6: =A3+1 -> 1 | B6: DNSP Inputs General'!J20:N20 | C6: Actual O & M not consistent with Annual RIN Data
A8: =A6+1 -> 2 | B8: DNSP Inputs General'!D31:D35 | C8: Update for AER Draft Decision CPI Forecast
A10: =A8+1 -> 3 | B10: DNSP Inputs General'!B26:F26 | C10: Update for AER Draft Decision Real Pre Tax WACC
A13: =A10+1 -> 4 | B13: DNSP Inputs General'!E72:E75 | C13: Prices from "2020 AusNet Public Lighting Prices"
B14: DNSP Inputs General'!E116:E119
A17: =A13+1 -> 5 | B17: DNSP Inputs General'!Q128:U128 | C17: AER Draft Decision Real Labour Escalator
A19: =A17+1 -> 6 | B19: WACC!C14:D14 | C19: Update for CPI to be applied to prices in 2021/22
A22: =A19+1 -> 7 | B22: DNSP Inputs O & M'!D284:H284 | C22: Error in failure rates corrected (as per AusNet Info Request 58)
B23: DNSP Inputs O & M'!D330:H330
A26: =A22+1 -> 8 | B26: DNSP Inputs O & M'!E12:H13 | C26: Applied AER real labour escalation from 2022/23 onwards
A28: =A26+1 -> 9 | B28: DNSP Inputs O & M'!D14:H16 | C28: AER Draft Decision Elevated platform and Patrol vehicle costs
A31: =A28+1 -> 10 | B31: DNSP Inputs O & M'!D34:H36 | C31: AER Draft Decision Bulk lamp changes in a day
B32: DNSP Inputs O & M'!D193:H195
B33: DNSP Inputs O & M'!D242:H244
A36: =A31+1 -> 11 | B36: DNSP Inputs O & M'!D37:H39 | C36: AER Draft Decision Repairs in a day
B37: DNSP Inputs O & M'!D196:H198
B38: DNSP Inputs O & M'!D245:H247
A41: =A36+1 -> 12 | B41: DNSP Inputs O & M'!D294:H294 | C41: AER Draft Decision P LED Repairs in a day
B42: DNSP Inputs O & M'!D340:H340
A45: =A41+1 -> 13 | B45: DNSP Inputs O & M'!D286:H286 | C45: AER Draft Decision P LED Luminaire cost
B46: DNSP Inputs O & M'!D332:H332
A49: =A45+1 -> 14 | B49: DNSP Inputs O & M'!D378:H378 | C49: AER Draft Decision V LED Luminaire cost
B50: DNSP Inputs O & M'!D424:H424
B51: DNSP Inputs O & M'!D470:H470
A54: =A49+1 -> 15 | B54: DNSP Inputs General'!Q42:U42 | C54: MV Lights replaced with MV Lights
B55: DNSP Inputs General'!Q45:U48
B56: DNSP Inputs General'!Q52:U53
B57: DNSP Inputs General'!Q71:U71
B58: DNSP Inputs General'!Q73:U75
B59: DNSP Inputs General'!Q86:U86
B60: DNSP Inputs General'!Q89:U92
B61: DNSP Inputs General'!Q96:U97
B62: DNSP Inputs General'!Q115:U115
B63: DNSP Inputs General'!Q117:U119
B65: DNSP Inputs O & M'!D46:H46
B66: DNSP Inputs O & M'!D53:H53
B67: DNSP Inputs O & M'!D300:H300
B68: DNSP Inputs O & M'!D307:H307
B69: DNSP Inputs O & M'!D392:H392
B70: DNSP Inputs O & M'!D399:H399
B71: DNSP Inputs O & M'!D438:H438
B72: DNSP Inputs O & M'!D445:H445
B73: DNSP Inputs O & M'!D484:H484
B74: DNSP Inputs O & M'!D491:H491
B76: DNSP Inputs Capex'!D31:H33
B77: DNSP Inputs Capex'!D154:H156
B78: DNSP Inputs Capex'!D188:H190
B79: DNSP Inputs Capex'!D205:H207
B80: DNSP Inputs Capex'!D222:H224

Sheet Instructions
A1: ='DNSP Inputs O & M'!$A$3 -> AusNet
A3: Instructions
A5: This model is to be used for the setting of Public Lighting Tariffs for the Regulatory Period 2016 to 2020 based on forecast inflation rates and Real Pre Tax WACC.
A7: Distributor data input fields are shaded | C7: and located in tabs "DNSP Inputs General" , "DNSP Inputs O & M" and "DNSP Inputs Capex"
A8: NOTE : All Distributor data input fields have been populated with AER Preliminary Decision data in this model.
A12: This model will also to be used for the annual Public Lighting Tariff Approvals in the Regulatory Period 2016 to 2020 based on actual inflation rates and Real Pre Tax WACC.
H70: =G70 -> 0 | I70: =H70 -> 0 | J70: =I70 -> 0 | K70: =J70 -> 0 | L70: =K70 -> 0

Sheet Opt 1-replace all MV
A1: Option 1
A3: Table of requested volumes | N3: Table of change in volumes
C4: 2021-06-01 | D4: FY22 | E4: FY23 | F4: FY24 | G4: FY25 | H4: FY26 | O4: 2021-06-01 | P4: FY22 | Q4: FY23 | R4: FY24 | S4: FY25 | T4: FY26 | V4: Comments
A5: 1 | B5: MV 80W | C5: =G25+G61 -> 22963.37543 | D5: =I25+I61 -> 16402.41102 | E5: =K25+K61 -> 9841.446612 | F5: =M25+M61 -> 3280.982204 | G5: =O25+O61 -> 1 | H5: =Q25+Q61 -> 1 | K5: rows 23 and 59 | N5: MV 80W | P5: =D5-C5 -> -6560.964408 | Q5: =E5-D5 -> -6560.964408 | R5: -6560.464408 | S5: -3279.982204 | T5: 0 | V5: Minamata bulk changes and failed light replacements
A6: 2 | B6: MV 50W | C6: =G28+G64 -> 103.384828 | D6: =I28+I64 -> 73.84630571 | E6: =K28+K64 -> 44.30778342 | F6: =M28+M64 -> 14.76926114 | G6: =O28+O64 -> 0 | H6: =Q28+Q64 -> 0 | K6: rows 26 and 62 | N6: MV 50W | P6: =D6-C6 -> -29.53852228 | Q6: -29.53852228 | R6: -29.53852228 | S6: -14.76926114 | T6: 0 | V6: Minamata bulk changes and failed light replacements
A7: 3 | B7: MV 125W | C7: =G29+G65 -> 282.2927846 | D7: =I29+I65 -> 201.6377033 | E7: =K29+K65 -> 120.982622 | F7: =M29+M65 -> 40.32754066 | G7: =O29+O65 -> 0 | H7: =Q29+Q65 -> 0 | N7: MV 125W | P7: -80.65508132 | Q7: -80.65508132 | R7: -80.65508132 | S7: -40.32754066 | T7: 0 | V7: Minamata bulk changes and failed light replacements
A8: 4 | B8: MV 250W | C8: =G30+G66 -> 1260.257968 | D8: 900.1842631 | E8: 540.1105579 | F8: 180.0368526 | G8: 0 | H8: 0 | N8: MV 250W | P8: -360.0737053 | Q8: -360.0737053 | R8: -360.0737053 | S8: -180.0368526 | T8: 0 | V8: Minamata bulk changes and failed light replacements
A9: 5 | B9: MV 400W | C9: =G31+G67 -> 302.0158461 | D9: 215.7256043 | E9: 129.4353626 | F9: 43.14512086 | G9: 0 | H9: 0 | N9: MV 400W | P9: -86.29024173 | Q9: -86.29024173 | R9: -86.29024173 | S9: -43.14512086 | T9: 0 | V9: Minamata bulk changes and failed light replacements
A10: 6 | B10: LED 14W | C10: =G47+G83 -> 25 | D10: =I47+I83 -> 25 | E10: =K47+K83 -> 25 | F10: =M47+M83 -> 25 | G10: =O47+O83 -> 25 | H10: =Q47+Q83 -> 25 | K10: rows 45 and 81 | N10: LED 14W | P10: 0 | Q10: 0 | R10: 0 | S10: 0 | T10: 0
A11: 7 | B11: LED 18W | C11: =G46+G82 -> 61000.21594 | D11: =I46+I82 -> 70731.89144 | E11: =K46+K82 -> 80544.22914 | F11: =M46+M82 -> 90439.38426 | G11: =O46+O82 -> 97091.40704 | H11: =Q46+Q82 -> 100458.3428 | K11: rows 44 and 80 | N11: LED 18W | P11: 9731.675499 | Q11: 9812.337706 | R11: 9895.155115 | S11: 6652.022786 | T11: 3366.935798 | V11: Minamata bulk changes, failed light replacements of other light types and new lights
A12: 8 | B12: LED 70-125W | C12: =G48+G84 -> 2716.478803 | D12: =I48+I84 -> 3497.79432 | E12: =K48+K84 -> 4487.305029 | F12: =M48+M84 -> 5496.83822 | G12: =O48+O84 -> 6318.569263 | H12: =Q48+Q84 -> 7131.050323 | K12: rows 46 and 82 | N12: LED 70-125W | P12: 781.3155173 | Q12: 989.5107086 | R12: 1009.533191 | S12: 821.7310424 | T12: 812.4810605 | V12: Minamata bulk changes, failed light replacements of other light types (inc /poor condition&aged) and new lights
A13: 9 | B13: LED 155W-250W | C13: =G49+G85 -> 2964.776575 | D13: =I49+I85 -> 5471.258137 | E13: =K49+K85 -> 7884.722287 | F13: =M49+M85 -> 10205.83078 | G13: =O49+O85 -> 12435.25036 | H13: =Q49+Q85 -> 14618.99282 | K13: rows 47 and 83 | N13: LED 155W-250W | P13: 2506.481562 | Q13: 2413.46415 | R13: 2321.108492 | S13: 2229.419582 | T13: 2183.742463 | V13: Minamata bulk changes, failed light replacements of other light types (inc /poor condition&aged) and new lights
A14: 10 | B14: LED 275W-400W | C14: 170.5749506 | D14: 299.9753568 | E14: 430.1804604 | F14: 561.2112686 | G14: 649.9442216 | H14: 695.9611469 | K14: rows 48 and 84 | N14: LED 275W-400W | P14: 129.4004062 | Q14: 130.2051036 | R14: 131.0308082 | S14: 88.73295297 | T14: 46.01692532 | V14: Minamata bulk changes, failed light replacements of other light types (inc /poor condition&aged) and new lights
A17: Additional data
A21: Note H1 is an average of H2 from that year and the previous year's H2
A22: Number Of Lights | B22: Central | G22: Jun | H22: Dec | I22: Jun | J22: Dec | K22: Jun | L22: Dec | M22: Jun | N22: Dec | O22: Jun | P22: Dec | Q22: Jun | V22: Mapping of replacements
G23: 2021 | H23: 2021 | I23: 2022 | J23: 2022 | K23: 2023 | L23: 2023 | M23: 2024 | N23: 2024 | O23: 2025 | P23: 2025 | Q23: 2026
A24: Existing Lights | D24: Price Factor | V24: In Summary, under a Minamata bulk replacement:
A25: Mercury Vapour 80W | D25: 1 | G25: 15128.27951 | H25: 12967.09672 | I25: 10805.91394 | J25: 8644.73115 | K25: 6483.548362 | L25: 4322.365575 | M25: 2161.182787 | N25: 0 | O25: 0 | P25: 0 | Q25: 0 | V25: all MV50 and MV80 are replaced by LED 18W
A26: HP Sodium 150W | D26: 1 | G26: 17694.26008 | H26: 17402.52015 | I26: 17117.0426 | J26: 16831.56505 | K26: 16552.20463 | L26: 16272.84421 | M26: 15999.46071 | N26: 15726.0772 | O26: 15458.53318 | P26: 15190.98917 | Q26: 14923.44515 | V26: all MV125 and MH100 are replaced by LED 70W-125W (L1)
A27: HP Sodium 250W | D27: 1 | G27: 12121.61494 | H27: 11911.22987 | I27: 11700.98367 | J27: 11490.73747 | K27: 11285.34823 | L27: 11079.95898 | M27: 10879.32898 | N27: 10678.69899 | O27: 10482.7264 | P27: 10286.7538 | Q27: 10090.78121 | V27: all MV250 and MH150 are replaced by LED 155W-250W (L2)
A28: Mercury Vapour 50W | D28: 1.53 | G28: 21.4878125 | H28: 18.418125 | I28: 15.3484375 | J28: 12.27875 | K28: 9.2090625 | L28: 6.139375 | M28: 3.0696875 | N28: 0 | O28: 0 | P28: 0 | Q28: 0 | V28: all MV400 are replaced by LED 275W-400W (L4)
A29: Mercury Vapour 125W | D29: 1.47 | G29: 255.2752125 | H29: 218.807325 | I29: 182.3394375 | J29: 145.87155 | K29: 109.4036625 | L29: 72.935775 | M29: 36.4678875 | N29: 0 | O29: 0 | P29: 0 | Q29: 0 | V29: No lights are replace with LED 14W unless specifically requested by the Local Gov Organisation (LGA)
A30: Mercury Vapour 250W | D30: 1.05 | G30: 890.45495 | H30: 763.2471 | I30: 636.03925 | J30: 508.8314 | K30: 381.62355 | L30: 254.4157 | M30: 127.20785 | N30: 0 | O30: 0 | P30: 0 | Q30: 0
A31: Mercury Vapour 400W | D31: 1.09 | G31: 177.059575 | H31: 151.76535 | I31: 126.471125 | J31: 101.1769 | K31: 75.882675 | L31: 50.58845 | M31: 25.294225 | N31: 0 | O31: 0 | P31: 0 | Q31: 0 | V31: Light type | W31: Minamata replacement for
A32: HP Sodium 100W | D32: 1.07 | G32: 2481.458941 | H32: 2465.917882 | I32: 2450.376823 | J32: 2434.835764 | K32: 2419.294705 | L32: 2403.753646 | M32: 2388.212587 | N32: 2372.671528 | O32: 2357.130469 | P32: 2341.58941 | Q32: 2326.048351 | V32: LED 18W | W32: MV80 and MV50
A33: HP Sodium 400W | D33: 1.42 | G33: 440.2428157 | H33: 437.4856314 | I33: 434.7284472 | J33: 431.9712629 | K33: 429.2140786 | L33: 426.4568943 | M33: 423.6997101 | N33: 420.9425258 | O33: 418.1853415 | P33: 415.4281572 | Q33: 412.670973 | V33: LED 70W-125W (L1) | W33: MV 125 and MH100
A34: Metal Halide 70W | D34: 4.365105678 | G34: 27.125 | H34: 23.25 | I34: 19.375 | J34: 15.5 | K34: 11.625 | L34: 7.75 | M34: 3.875 | N34: 0 | O34: 0 | P34: 0 | Q34: 0 | V34: LED 155W-250W (L2) | W34: MV250 and MH150
A35: Metal Halide 100W | D35: 2.387689088 | G35: 29.75 | H35: 25.5 | I35: 21.25 | J35: 17 | K35: 12.75 | L35: 8.5 | M35: 4.25 | N35: 0 | O35: 0 | P35: 0 | Q35: 0 | V35: LED 275W-400W (L4) | W35: MV400
A36: Metal Halide 150W | D36: 2.712586814 | G36: 28.875 | H36: 24.75 | I36: 20.625 | J36: 16.5 | K36: 12.375 | L36: 8.25 | M36: 4.125 | N36: 0 | O36: 0 | P36: 0 | Q36: 0 | V36: All MV and MH lights | W36: Replaced by LED lights as part of bulk replacement as above
A37: HP Sodium 50W | D37: 0.4433450671 | G37: 0 | H37: 0 | I37: 0 | J37: 0 | K37: 0 | L37: 0 | M37: 0 | N37: 0 | O37: 0 | P37: 0 | Q37: 0 | V37: All HPS lights | W37: No bulk exchange
V38: All T5 lights | W38: No bulk exchange
V39: Compact Fluorescent lights | W39: No bulk exchange
A41: Total Existing Lights | G41: Jun | H41: Dec | I41: Jun | J41: Dec | K41: Jun | L41: Dec | M41: Jun | N41: Dec | O41: Jun | P41: Dec | Q41: Jun
G42: 2021 | H42: 2021 | I42: 2022 | J42: 2022 | K42: 2023 | L42: 2023 | M42: 2024 | N42: 2024 | O42: 2025 | P42: 2025 | Q42: 2026
A43: Energy Efficient Lights | D43: Price Factor
A44: T5 2X14W | D44: 1 | G44: 20924 | H44: 20924 | I44: 20924 | J44: 20924 | K44: 20924 | L44: 20924 | M44: 20924 | N44: 20924 | O44: 20924 | P44: 20924 | Q44: 20924
A45: T5 2X24W | D45: 1 | G45: 1649 | H45: 1649 | I45: 1649 | J45: 1649 | K45: 1649 | L45: 1649 | M45: 1649 | N45: 1649 | O45: 1649 | P45: 1649 | Q45: 1649
A46: LED 18W | D46: 1 | G46: 36672.69584 | H46: 39997.87501 | I46: 43354.22422 | J46: 46710.57343 | K46: 50098.96301 | L46: 53487.35258 | M46: 56908.67714 | N46: 60330.0017 | O46: 61591.87655 | P46: 62853.75139 | Q46: 64115.62624
A47: LED 14W | D47: 1 | G47: 14 | H47: 14 | I47: 14 | J47: 14 | K47: 14 | L47: 14 | M47: 14 | N47: 14 | O47: 14 | P47: 14 | Q47: 14
A48: LED 70W-125W (L1) | D48: 1 | G48: 2130.129127 | H48: 2426.836474 | I48: 2731.27931 | J48: 3035.722147 | K48: 3536.812426 | L48: 4037.902706 | M48: 4358.470517 | N48: 4679.038328 | O48: 4988.341796 | P48: 5297.645263 | Q48: 5606.948731
A49: LED 155W-250W (L2) | D49: 1 | G49: 1905.893735 | H49: 2681.203983 | I49: 3425.806867 | J49: 4170.409751 | K49: 4884.52884 | L49: 5598.64793 | M49: 6282.509743 | N49: 6966.371556 | O49: 7620.205711 | P49: 8274.039866 | Q49: 8927.874021
A50: LED 275W-400W (L4) | D50: 1 | G50: 85.47699696 | H50: 123.0978243 | I50: 160.9858469 | J50: 198.8738696 | K50: 237.0365481 | L50: 275.1992266 | M50: 313.6442298 | N50: 352.0892331 | O50: 365.5302191 | P50: 378.971205 | Q50: 392.412191
A51: Compact Fluorescent 32W | D51: 0.8796098925 | G51: 2849 | H51: 2849 | I51: 2849 | J51: 2849 | K51: 2849 | L51: 2849 | M51: 2849 | N51: 2849 | O51: 2849 | P51: 2849 | Q51: 2849
A52: Compact Fluorescent 42W | D52: 0.8796098925 | G52: 1361 | H52: 1361 | I52: 1361 | J52: 1361 | K52: 1361 | L52: 1361 | M52: 1361 | N52: 1361 | O52: 1361 | P52: 1361 | Q52: 1361
A53: Total Energy Efficient Lights | G53: =SUM(G44:G52) -> 67591.1957 | H53: =SUM(H44:H52) -> 72026.01329 | I53: 76469.29625 | J53: 80912.5792 | K53: 85554.34082 | L53: 90196.10244 | M53: 94660.30163 | N53: 99124.50082 | O53: 101362.9543 | P53: 103601.4077 | Q53: 105839.8612
A55: Total Number of Lights | G55: =SUM(G44:G52,G25:G37) -> 116887.0795 | H55: =SUM(H44:H52,H25:H37) -> 118436.0015 | I55: 119999.79 | J55: 121563.5785 | K55: 123336.8198 | L55: 125110.0611 | M55: 126716.4761 | N55: 128322.8911 | O55: 130079.5297 | P55: 131836.1683 | Q55: 133592.8069
A58: Number Of Lights | B58: North & East | G58: Jun | H58: Dec | I58: Jun | J58: Dec | K58: Jun | L58: Dec | M58: Jun | N58: Dec | O58: Jun | P58: Dec | Q58: Jun
G59: 2021 | H59: 2021 | I59: 2022 | J59: 2022 | K59: 2023 | L59: 2023 | M59: 2024 | N59: 2024 | O59: 2025 | P59: 2025 | Q59: 2026
A60: Existing Lights | D60: Price Factor | G60: Forecast Volumes
A61: Mercury Vapour 80W | D61: 1 | G61: 7835.095915 | H61: 6715.796498 | I61: 5596.497082 | J61: 4477.197666 | K61: 3357.898249 | L61: 2238.598833 | M61: 1119.799416 | N61: 1 | O61: 1 | P61: 1 | Q61: 1
A62: HP Sodium 150W | D62: 1 | G62: 9297.269775 | H62: 9120.539551 | I62: 8948.00904 | J62: 8775.47853 | K62: 8607.069153 | L62: 8438.659776 | M62: 8274.296155 | N62: 8109.932534 | O62: 7949.541324 | P62: 7789.150114 | Q62: 7628.758904
A63: HP Sodium 250W | D63: 1 | G63: 8256.69522 | H63: 8113.390441 | I63: 7977.41353 | J63: 7841.436619 | K63: 7708.397236 | L63: 7575.357854 | M63: 7445.194582 | N63: 7315.03131 | O63: 7187.6801 | P63: 7060.32889 | Q63: 6932.97768
A64: Mercury Vapour 50W | D64: 1.48 | G64: 81.89701549 | H64: 70.19744185 | I64: 58.49786821 | J64: 46.79829456 | K64: 35.09872092 | L64: 23.39914728 | M64: 11.69957364 | N64: 0 | O64: 0 | P64: 0 | Q64: 0
A65: Mercury Vapour 125W | D65: 1.48 | G65: 27.01757212 | H65: 23.15791896 | I65: 19.2982658 | J65: 15.43861264 | K65: 11.57895948 | L65: 7.71930632 | M65: 3.85965316 | N65: 0 | O65: 0 | P65: 0 | Q65: 0
A66: Mercury Vapour 250W | D66: 1.04 | G66: 369.8030184 | H66: 316.9740158 | I66: 264.1450131 | J66: 211.3160105 | K66: 158.4870079 | L66: 105.6580053 | M66: 52.82900263 | N66: 0 | O66: 0 | P66: 0 | Q66: 0
A67: Mercury Vapour 400W | D67: 1.07 | G67: 124.9562711 | H67: 107.1053752 | I67: 89.25447932 | J67: 71.40358346 | K67: 53.55268759 | L67: 35.70179173 | M67: 17.85089586 | N67: 0 | O67: 0 | P67: 0 | Q67: 0
A68: HP Sodium 100W | D68: 1.07 | G68: 773.1578118 | H68: 768.3156236 | I68: 763.4734354 | J68: 758.6312473 | K68: 753.7890591 | L68: 748.9468709 | M68: 744.1046827 | N68: 739.2624945 | O68: 734.4203063 | P68: 729.5781181 | Q68: 724.73593
A69: HP Sodium 400W | D69: 1.42 | G69: 513.7822477 | H69: 510.5644954 | I69: 507.3467431 | J69: 504.1289908 | K69: 500.9112385 | L69: 497.6934862 | M69: 494.4757339 | N69: 491.2579816 | O69: 488.0402293 | P69: 484.822477 | Q69: 481.6047247
A70: Metal Halide 70W | D70: 3.804442037 | G70: 0 | H70: 0 | I70: 0 | J70: 0 | K70: 0 | L70: 0 | M70: 0 | N70: 0 | O70: 0 | P70: 0 | Q70: 0
A71: Metal Halide 100W | D71: 2.11804911 | G71: 0 | H71: 0 | I71: 0 | J71: 0 | K71: 0 | L71: 0 | M71: 0 | N71: 0 | O71: 0 | P71: 0 | Q71: 0
A72: Metal Halide 150W | D72: 2.406294827 | G72: 0 | H72: 0 | I72: 0 | J72: 0 | K72: 0 | L72: 0 | M72: 0 | N72: 0 | O72: 0 | P72: 0 | Q72: 0
A73: =A37 -> HP Sodium 50W | D73: 0.4547295587 | G73: 0 | H73: 0 | I73: 0 | J73: 0 | K73: 0 | L73: 0 | M73: 0 | N73: 0 | O73: 0 | P73: 0 | Q73: 0
A77: Total Existing Lights
A79: Energy Efficient Lights | D79: Price Factor
A80: T5 2X14W | D80: 1 | G80: 7921 | H80: 7921 | I80: 7921 | J80: 7921 | K80: 7921 | L80: 7921 | M80: 7921 | N80: 7921 | O80: 7921 | P80: 7921 | Q80: 7921
A81: T5 2X24W | D81: 1 | G81: 1150 | H81: 1150 | I81: 1150 | J81: 1150 | K81: 1150 | L81: 1150 | M81: 1150 | N81: 1150 | O81: 1150 | P81: 1150 | Q81: 1150
A82: LED 18W | D82: 1 | G82: 24327.5201 | H82: 25848.27895 | I82: 27377.66721 | J82: 28907.05548 | K82: 30445.26614 | L82: 31983.47679 | M82: 33530.70712 | N82: 35077.93744 | O82: 35499.5305 | P82: 35921.12355 | Q82: 36342.7166
A83: LED 14W | D83: 1 | G83: 11 | H83: 11 | I83: 11 | J83: 11 | K83: 11 | L83: 11 | M83: 11 | N83: 11 | O83: 11 | P83: 11 | Q83: 11
A84: LED 70W-125W (L1) | D84: 1 | G84: 586.3496764 | H84: 675.4898167 | I84: 766.5150099 | J84: 857.5402031 | K84: 950.4926025 | L84: 1043.445002 | M84: 1138.367703 | N84: 1233.290404 | O84: 1330.227467 | P84: 1427.16453 | Q84: 1524.101592
A85: LED 155W-250W (L2) | D85: 1 | G85: 1058.882841 | H85: 1560.150146 | I85: 2045.45127 | J85: 2530.752394 | K85: 3000.193447 | L85: 3469.634499 | M85: 3923.321036 | N85: 4377.007574 | O85: 4815.04465 | P85: 5253.081726 | Q85: 5691.118803
A86: LED 275W-400W (L4) | D86: 1 | G86: 85.09795361 | H86: 111.9787467 | I86: 138.9895098 | J86: 166.0002729 | K86: 193.1439123 | L86: 220.2875517 | M86: 247.5670388 | N86: 274.8465258 | O86: 284.4140025 | P86: 293.9814792 | Q86: 303.5489558
A87: Compact Fluorescent 32W | D87: 0.8796098925 | G87: 671 | H87: 671 | I87: 671 | J87: 671 | K87: 671 | L87: 671 | M87: 671 | N87: 671 | O87: 671 | P87: 671 | Q87: 671
A88: Compact Fluorescent 42W | D88: 0.8796098925 | G88: 3295 | H88: 3295 | I88: 3295 | J88: 3295 | K88: 3295 | L88: 3295 | M88: 3295 | N88: 3295 | O88: 3295 | P88: 3295 | Q88: 3295
A89: Total Energy Efficient Lights | G89: =AVERAGE(G80:G88) -> 4345.094508 | H89: =AVERAGE(H80:H88) -> 4582.655295 | I89: =AVERAGE(I80:I88) -> 4819.624778 | J89: 5056.594261 | K89: 5293.010677 | L89: 5529.427094 | M89: 5765.329211 | N89: 6001.231328 | O89: 6108.579624 | P89: 6215.927921 | Q89: 6323.276217
A91: Total Number of Lights | G91: =SUM(G80:G88,G61:G73) -> 66385.52542 | H91: 66989.93902 | I91: 67600.55846 | J91: 68211.1779 | K91: 68823.87841 | L91: 69436.57891 | M91: 70052.07259 | N91: 70667.56627 | O91: 71337.89858 | P91: 72008.23088 | Q91: 72678.56319
G96: Jun | H96: Dec | I96: Jun | J96: Dec | K96: Jun | L96: Dec | M96: Jun | N96: Dec | O96: Jun | P96: Dec | Q96: Jun
G97: 2021 | H97: 2021 | I97: 2022 | J97: 2022 | K97: 2023 | L97: 2023 | M97: 2024 | N97: 2024 | O97: 2025 | P97: 2025 | Q97: 2026
A98: LED 18W | B98: Replacements across East and Central - financial year | H98: 7293.813776 | J98: 7224.714681 | L98: 7156.00826 | N98: 7087.705006 | P98: 472.6604172 | Q98: =P98/2 -> 236.3302086
A99: LED 18W | B99: Replacements across East and Central - biannual | G99: =H99 -> 3646.906888 | H99: =H98/2 -> 3646.906888 | I99: =J99 -> 3612.35734 | J99: =J98/2 -> 3612.35734 | K99: =L99 -> 3578.00413 | L99: =L98/2 -> 3578.00413 | M99: =N99 -> 3543.852503 | N99: =N98/2 -> 3543.852503 | O99: =P99 -> 236.3302086 | P99: =P98/2 -> 236.3302086 | Q99: =Q98 -> 236.3302086 | U99: For copying into the CAPX sheet of the model | AC99: Jun | AD99: Dec | AE99: Jun | AF99: Dec | AG99: Jun | AH99: Dec | AI99: Jun | AJ99: Dec | AK99: Jun | AL99: Dec | AM99: Jun
A100: T5 2X14W | B100: Replacements across East and Central - financial year | H100: 432.6292113 | J100: 432.6292113 | L100: 432.6292113 | N100: 432.6292113 | P100: 432.6292113 | Q100: =P100/2 -> 216.3146056 | W100: 2021 | X100: 2022 | Y100: 2023 | Z100: 2024 | AA100: 2025 | AC100: 2021 | AD100: 2021 | AE100: 2022 | AF100: 2022 | AG100: 2023 | AH100: 2023 | AI100: 2024 | AJ100: 2024 | AK100: 2025 | AL100: 2025 | AM100: 2026
A101: T5 2X14W | B101: Replacements across East and Central - biannual | G101: =H101 -> 216.3146056 | H101: =H100/2 -> 216.3146056 | I101: =J101 -> 216.3146056 | J101: =J100/2 -> 216.3146056 | K101: =L101 -> 216.3146056 | L101: =L100/2 -> 216.3146056 | M101: =N101 -> 216.3146056 | N101: =N100/2 -> 216.3146056 | O101: =P101 -> 216.3146056 | P101: =P100/2 -> 216.3146056 | Q101: =Q100 -> 216.3146056 | U101: LED 18W | V101: Number of luminaires replaced per year - urban | W101: 5603.730861 | X101: 5550.643033 | Y101: 5497.856891 | Z101: 5445.380496 | AA101: 363.1381124 | AC101: =W101/2 -> 2801.865431 | AD101: =W101/2 -> 2801.865431 | AE101: 2775.321517 | AF101: =X101/2 -> 2775.321517 | AG101: 2748.928446 | AH101: =Y101/2 -> 2748.928446 | AI101: 2722.690248 | AJ101: =Z101/2 -> 2722.690248 | AK101: 181.5690562 | AL101: =AA101/2 -> 181.5690562 | AM101: =AL101 -> 181.5690562
A102: T5 2X24W | B102: Replacements across East and Central - financial year | H102: 46.64506317 | J102: 46.64506317 | L102: 46.64506317 | N102: 46.64506317 | P102: 46.64506317 | Q102: =P102/2 -> 23.32253158 | V102: Number of luminaires replaced per year - rural | W102: 1415.390225 | X102: 1401.981303 | Y102: 1388.64858 | Z102: 1375.394093 | AA102: 91.72141694 | AC102: 707.6951126 | AD102: 707.6951126 | AE102: 700.9906514 | AF102: 700.9906514 | AG102: 694.3242901 | AH102: 694.3242901 | AI102: 687.6970467 | AJ102: 687.6970467 | AK102: 45.86070847 | AL102: 45.86070847 | AM102: 45.86070847
A103: T5 2X24W | B103: Replacements across East and Central - biannual | G103: =H103 -> 23.32253158 | H103: =H102/2 -> 23.32253158 | I103: =J103 -> 23.32253158 | J103: =J102/2 -> 23.32253158 | K103: =L103 -> 23.32253158 | L103: =L102/2 -> 23.32253158 | M103: =N103 -> 23.32253158 | N103: =N102/2 -> 23.32253158 | O103: =P103 -> 23.32253158 | P103: =P102/2 -> 23.32253158 | Q103: =Q102 -> 23.32253158 | V103: Number of luminaires replaced per year - remote | W103: 274.6926893 | X103: 272.0903448 | Y103: 269.5027888 | Z103: 266.9304165 | AA103: 17.80088786 | AC103: 137.3463446 | AD103: 137.3463446 | AE103: 136.0451724 | AF103: 136.0451724 | AG103: 134.7513944 | AH103: 134.7513944 | AI103: 133.4652082 | AJ103: 133.4652082 | AK103: 8.900443932 | AL103: 8.900443932 | AM103: 8.900443932
U104: LED 70W (L1) | V104: Number of luminaires replaced per year - urban | W104: 80.08603774 | X104: 83.04736993 | Y104: 87.49465 | Z104: 90.61221997 | AA104: 25.17108956 | AC104: 40.04301887 | AD104: 40.04301887 | AE104: 41.52368497 | AF104: 41.52368497 | AG104: 43.747325 | AH104: 43.747325 | AI104: 45.30610998 | AJ104: 45.30610998 | AK104: 12.58554478 | AL104: 12.58554478 | AM104: 12.58554478
A105: LED 70W (L1) | B105: Replacements across East and Central - financial year | H105: 104.2399537 | J105: 108.0944224 | L105: 113.8830003 | N105: 117.9408281 | P105: 32.76267978 | Q105: =P105/2 -> 16.38133989 | V105: Number of luminaires replaced per year - rural | W105: 20.22812976 | X105: 20.97610298 | Y105: 22.09939689 | Z105: 22.88683265 | AA105: 6.357713281 | AC105: 10.11406488 | AD105: 10.11406488 | AE105: 10.48805149 | AF105: 10.48805149 | AG105: 11.04969844 | AH105: 11.04969844 | AI105: 11.44341632 | AJ105: 11.44341632 | AK105: 3.178856641 | AL105: 3.178856641 | AM105: 3.178856641
A106: LED 70W (L1) | B106: Replacements across East and Central - biannual | G106: =H106 -> 52.11997683 | H106: =H105/2 -> 52.11997683 | I106: =J106 -> 54.04721121 | J106: =J105/2 -> 54.04721121 | K106: =L106 -> 56.94150016 | L106: =L105/2 -> 56.94150016 | M106: =N106 -> 58.97041405 | N106: =N105/2 -> 58.97041405 | O106: =P106 -> 16.38133989 | P106: =P105/2 -> 16.38133989 | Q106: =Q105 -> 16.38133989 | V106: Number of luminaires replaced per year - remote | W106: 3.925786164 | X106: 4.070949506 | Y106: 4.288953431 | Z106: 4.441775489 | AA106: 1.233876939 | AC106: 1.962893082 | AD106: 1.962893082 | AE106: 2.035474753 | AF106: 2.035474753 | AG106: 2.144476716 | AH106: 2.144476716 | AI106: 2.220887744 | AJ106: 2.220887744 | AK106: 0.6169384696 | AL106: 0.6169384696 | AM106: 0.6169384696
A107: LED 155W (L2) | B107: Replacements across East and Central - financial year | H107: 1672.953257 | J107: 1663.588517 | L107: 1638.786942 | N107: 1614.196258 | P107: 1581.578313 | Q107: =P107/2 -> 790.7891565 | U107: LED 155W (L2) | V107: Number of luminaires replaced per year - urban | W107: 1285.305614 | X107: 1278.110821 | Y107: 1259.056132 | Z107: 1240.163468 | AA107: 1215.103576 | AC107: 642.652807 | AD107: 642.652807 | AE107: 639.0554104 | AF107: 639.0554104 | AG107: 629.528066 | AH107: 629.528066 | AI107: 620.0817341 | AJ107: 620.0817341 | AK107: 607.551788 | AL107: 607.551788 | AM107: 607.551788
A108: LED 155W (L2) | B108: Replacements across East and Central - biannual | G108: =H108 -> 836.4766283 | H108: =H107/2 -> 836.4766283 | I108: =J108 -> 831.7942584 | J108: =J107/2 -> 831.7942584 | K108: =L108 -> 819.3934708 | L108: =L107/2 -> 819.3934708 | M108: =N108 -> 807.0981292 | N108: =N107/2 -> 807.0981292 | O108: =P108 -> 790.7891565 | P108: =P107/2 -> 790.7891565 | Q108: =Q107 -> 790.7891565 | V108: Number of luminaires replaced per year - rural | W108: 324.6424655 | X108: 322.8252047 | Y108: 318.0123718 | Z108: 313.2404632 | AA108: 306.9108362 | AC108: 162.3212327 | AD108: 162.3212327 | AE108: 161.4126024 | AF108: 161.4126024 | AG108: 159.0061859 | AH108: 159.0061859 | AI108: 156.6202316 | AJ108: 156.6202316 | AK108: 153.4554181 | AL108: 153.4554181 | AM108: 153.4554181
A109: LED 275W (L4) | B109: Replacements across East and Central - financial year | H109: 99.36503028 | J109: 100.2440771 | L109: 101.133241 | N109: 102.0324978 | P109: 16.24883723 | Q109: =P109/2 -> 8.124418613 | V109: Number of luminaires replaced per year - remote | W109: 63.00517716 | X109: 62.65249122 | Y109: 61.71843784 | Z109: 60.79232688 | AA109: 59.56390079 | AC109: 31.50258858 | AD109: 31.50258858 | AE109: 31.32624561 | AF109: 31.32624561 | AG109: 30.85921892 | AH109: 30.85921892 | AI109: 30.39616344 | AJ109: 30.39616344 | AK109: 29.78195039 | AL109: 29.78195039 | AM109: 29.78195039
A110: LED 275W (L4) | B110: Replacements across East and Central - biannual | G110: =H110 -> 49.68251514 | H110: =H109/2 -> 49.68251514 | I110: =J110 -> 50.12203853 | J110: =J109/2 -> 50.12203853 | K110: =L110 -> 50.56662052 | L110: =L109/2 -> 50.56662052 | M110: =N110 -> 51.01624888 | N110: =N109/2 -> 51.01624888 | O110: =P110 -> 8.124418613 | P110: =P109/2 -> 8.124418613 | Q110: =Q109 -> 8.124418613 | U110: LED 275W (L4) | V110: Number of luminaires replaced per year - urban | W110: 76.34070513 | X110: 77.01606395 | Y110: 77.69919569 | Z110: 78.39008153 | AA110: 12.48374491 | AC110: =W110/2 -> 38.17035256 | AD110: =W110/2 -> 38.17035256 | AE110: =X110/2 -> 38.50803198 | AF110: =X110/2 -> 38.50803198 | AG110: =Y110/2 -> 38.84959785 | AH110: =Y110/2 -> 38.84959785 | AI110: =Z110/2 -> 39.19504077 | AJ110: =Z110/2 -> 39.19504077 | AK110: =AA110/2 -> 6.241872457 | AL110: =AA110/2 -> 6.241872457 | AM110: 6.241872457
V111: Number of luminaires replaced per year - rural | W111: 19.28213373 | X111: 19.45271584 | Y111: 19.62526124 | Z111: 19.79976518 | AA111: 3.153144033 | AC111: =W111/2 -> 9.641066863 | AD111: =W111/2 -> 9.641066863 | AE111: 9.726357922 | AF111: =X111/2 -> 9.726357922 | AG111: 9.812630622 | AH111: =Y111/2 -> 9.812630622 | AI111: 9.899882588 | AJ111: =Z111/2 -> 9.899882588 | AK111: 1.576572016 | AL111: =AA111/2 -> 1.576572016 | AM111: 1.576572016
V112: Number of luminaires replaced per year - remote | W112: 3.742191428 | X112: 3.775297253 | Y112: 3.808784103 | Z112: 3.842651055 | AA112: 0.6119482801 | AC112: 1.871095714 | AD112: 1.871095714 | AE112: 1.887648626 | AF112: 1.887648626 | AG112: 1.904392051 | AH112: 1.904392051 | AI112: 1.921325528 | AJ112: 1.921325528 | AK112: 0.30597414 | AL112: 0.30597414 | AM112: =AL112 -> 0.30597414

Sheet All MV replaced with MV
B1: Replace All MV Lights with LED Lights | O1: Replace All MV Lights with MV Lights
A2: Volumes for Pricing | I2: Change in Volumes | V2: Change in Volumes
A3: ='Opt 1-replace all MV '!B22 -> Central | B3: HY2021 | C3: 2022-06-30 | D3: 2023-06-30 | E3: 2024-06-30 | F3: 2025-06-30 | G3: 2026-06-30 | I3: =C3 -> 2022-06-30 | J3: =D3 -> 2023-06-30 | K3: 2024-06-30 | L3: 2025-06-30 | M3: 2026-06-30 | O3: =B3 -> HY2021 | P3: 2022-06-30 | Q3: 2023-06-30 | R3: 2024-06-30 | S3: 2025-06-30 | T3: 2026-06-30 | V3: =P3 -> 2022-06-30 | W3: =Q3 -> 2023-06-30 | X3: 2024-06-30 | Y3: 2025-06-30 | Z3: 2026-06-30
A4: ='Opt 1-replace all MV '!A25 -> Mercury Vapour 80W | B4: ='Opt 1-replace all MV '!G25 -> 15128.27951 | C4: ='Opt 1-replace all MV '!I25 -> 10805.91394 | D4: ='Opt 1-replace all MV '!K25 -> 6483.548362 | E4: ='Opt 1-replace all MV '!M25 -> 2161.182787 | F4: ='Opt 1-replace all MV '!O25 -> 0 | G4: ='Opt 1-replace all MV '!Q25 -> 0 | I4: =C4-B4 -> -4322.365575 | J4: =D4-C4 -> -4322.365575 | K4: -4322.365575 | L4: -2161.182787 | M4: 0 | O4: =B4 -> 15128.27951 | P4: =O4 -> 15128.27951 | Q4: =P4 -> 15128.27951 | R4: 15128.27951 | S4: 15128.27951 | T4: 15128.27951 | V4: =P4-O4 -> 0 | W4: =Q4-P4 -> 0 | X4: 0 | Y4: 0 | Z4: 0
A5: ='Opt 1-replace all MV '!A28 -> Mercury Vapour 50W | B5: ='Opt 1-replace all MV '!G28 -> 21.4878125 | C5: ='Opt 1-replace all MV '!I28 -> 15.3484375 | D5: ='Opt 1-replace all MV '!K28 -> 9.2090625 | E5: ='Opt 1-replace all MV '!M28 -> 3.0696875 | F5: ='Opt 1-replace all MV '!O28 -> 0 | G5: ='Opt 1-replace all MV '!Q28 -> 0 | I5: =C5-B5 -> -6.139375 | J5: -6.139375 | K5: -6.139375 | L5: -3.0696875 | M5: 0 | O5: =B5 -> 21.4878125 | P5: =O5 -> 21.4878125 | Q5: 21.4878125 | R5: 21.4878125 | S5: 21.4878125 | T5: 21.4878125 | V5: =P5-O5 -> 0 | W5: 0 | X5: 0 | Y5: 0 | Z5: 0
A6: ='Opt 1-replace all MV '!A29 -> Mercury Vapour 125W | B6: ='Opt 1-replace all MV '!G29 -> 255.2752125 | C6: ='Opt 1-replace all MV '!I29 -> 182.3394375 | D6: ='Opt 1-replace all MV '!K29 -> 109.4036625 | E6: ='Opt 1-replace all MV '!M29 -> 36.4678875 | F6: ='Opt 1-replace all MV '!O29 -> 0 | G6: ='Opt 1-replace all MV '!Q29 -> 0 | I6: -72.935775 | J6: -72.935775 | K6: -72.935775 | L6: -36.4678875 | M6: 0 | O6: =B6 -> 255.2752125 | P6: 255.2752125 | Q6: 255.2752125 | R6: 255.2752125 | S6: 255.2752125 | T6: 255.2752125 | V6: 0 | W6: 0 | X6: 0 | Y6: 0 | Z6: 0
A7: ='Opt 1-replace all MV '!A30 -> Mercury Vapour 250W | B7: ='Opt 1-replace all MV '!G30 -> 890.45495 | C7: ='Opt 1-replace all MV '!I30 -> 636.03925 | D7: ='Opt 1-replace all MV '!K30 -> 381.62355 | E7: ='Opt 1-replace all MV '!M30 -> 127.20785 | F7: ='Opt 1-replace all MV '!O30 -> 0 | G7: ='Opt 1-replace all MV '!Q30 -> 0 | I7: -254.4157 | J7: -254.4157 | K7: -254.4157 | L7: -127.20785 | M7: 0 | O7: =B7 -> 890.45495 | P7: 890.45495 | Q7: 890.45495 | R7: 890.45495 | S7: 890.45495 | T7: 890.45495 | V7: 0 | W7: 0 | X7: 0 | Y7: 0 | Z7: 0
A8: ='Opt 1-replace all MV '!A31 -> Mercury Vapour 400W | B8: ='Opt 1-replace all MV '!G31 -> 177.059575 | C8: ='Opt 1-replace all MV '!I31 -> 126.471125 | D8: ='Opt 1-replace all MV '!K31 -> 75.882675 | E8: ='Opt 1-replace all MV '!M31 -> 25.294225 | F8: ='Opt 1-replace all MV '!O31 -> 0 | G8: ='Opt 1-replace all MV '!Q31 -> 0 | I8: -50.58845 | J8: -50.58845 | K8: -50.58845 | L8: -25.294225 | M8: 0 | O8: =B8 -> 177.059575 | P8: 177.059575 | Q8: 177.059575 | R8: 177.059575 | S8: 177.059575 | T8: 177.059575 | V8: 0 | W8: 0 | X8: 0 | Y8: 0 | Z8: 0
B9: =SUM(B4:B8) -> 16472.55706 | C9: =SUM(C4:C8) -> 11766.11219 | D9: 7059.667312 | E9: 2353.222437 | F9: 0 | G9: 0 | I9: =SUM(I4:I8) -> -4706.444875 | J9: -4706.444875 | K9: -4706.444875 | L9: -2353.222437 | M9: 0 | O9: =SUM(O4:O8) -> 16472.55706 | P9: =SUM(P4:P8) -> 16472.55706 | Q9: 16472.55706 | R9: 16472.55706 | S9: 16472.55706 | T9: 16472.55706 | V9: =SUM(V4:V8) -> 0 | W9: 0 | X9: 0 | Y9: 0 | Z9: 0
A11: ='Opt 1-replace all MV '!A35 -> Metal Halide 100W | B11: ='Opt 1-replace all MV '!G35 -> 29.75 | C11: ='Opt 1-replace all MV '!I35 -> 21.25 | D11: ='Opt 1-replace all MV '!K35 -> 12.75 | E11: ='Opt 1-replace all MV '!M35 -> 4.25 | F11: ='Opt 1-replace all MV '!O35 -> 0 | G11: ='Opt 1-replace all MV '!Q35 -> 0 | I11: =C11-B11 -> -8.5 | J11: -8.5 | K11: -8.5 | L11: -4.25 | M11: 0 | O11: =B11 -> 29.75 | P11: =O11 -> 29.75 | Q11: 29.75 | R11: 29.75 | S11: 29.75 | T11: 29.75 | V11: =P11-O11 -> 0 | W11: 0 | X11: 0 | Y11: 0 | Z11: 0
A12: ='Opt 1-replace all MV '!A36 -> Metal Halide 150W | B12: ='Opt 1-replace all MV '!G36 -> 28.875 | C12: ='Opt 1-replace all MV '!I36 -> 20.625 | D12: ='Opt 1-replace all MV '!K36 -> 12.375 | E12: ='Opt 1-replace all MV '!M36 -> 4.125 | F12: ='Opt 1-replace all MV '!O36 -> 0 | G12: ='Opt 1-replace all MV '!Q36 -> 0 | I12: -8.25 | J12: -8.25 | K12: -8.25 | L12: -4.125 | M12: 0 | O12: 28.875 | P12: 28.875 | Q12: 28.875 | R12: 28.875 | S12: 28.875 | T12: 28.875 | V12: 0 | W12: 0 | X12: 0 | Y12: 0 | Z12: 0
B13: =SUM(B11:B12) -> 58.625 | C13: 41.875 | D13: 25.125 | E13: 8.375 | F13: 0 | G13: 0 | I13: =SUM(I11:I12) -> -16.75 | J13: =SUM(J11:J12) -> -16.75 | K13: =SUM(K11:K12) -> -16.75 | L13: =SUM(L11:L12) -> -8.375 | M13: =SUM(M11:M12) -> 0 | O13: =SUM(O11:O12) -> 58.625 | P13: 58.625 | Q13: 58.625 | R13: 58.625 | S13: 58.625 | T13: 58.625 | V13: =SUM(V11:V12) -> 0 | W13: =SUM(W11:W12) -> 0 | X13: =SUM(X11:X12) -> 0 | Y13: =SUM(Y11:Y12) -> 0 | Z13: =SUM(Z11:Z12) -> 0
A15: Total | B15: =SUM(B9,B13) -> 16531.18206 | C15: 11807.98719 | D15: 7084.792312 | E15: 2361.597437 | F15: 0 | G15: 0 | I15: =C15-B15 -> -4723.194875 | J15: -4723.194875 | K15: -4723.194875 | L15: -2361.597437 | M15: 0 | O15: =SUM(O9,O13) -> 16531.18206 | P15: 16531.18206 | Q15: 16531.18206 | R15: 16531.18206 | S15: 16531.18206 | T15: 16531.18206 | V15: =P15-O15 -> 0 | W15: 0 | X15: 0 | Y15: 0 | Z15: 0
A17: ='Opt 1-replace all MV '!A46 -> LED 18W | B17: ='Opt 1-replace all MV '!G46 -> 36672.69584 | C17: ='Opt 1-replace all MV '!I46 -> 43354.22422 | D17: ='Opt 1-replace all MV '!K46 -> 50098.96301 | E17: ='Opt 1-replace all MV '!M46 -> 56908.67714 | F17: ='Opt 1-replace all MV '!O46 -> 61591.87655 | G17: ='Opt 1-replace all MV '!Q46 -> 64115.62624 | I17: =C17-B17 -> 6681.528383 | J17: 6744.738784 | K17: 6809.714133 | L17: 4683.199406 | M17: 2523.749693 | O17: =B17 -> 36672.69584 | P17: =C17+SUM($I4:I5) -> 39025.71927 | Q17: =D17+SUM($I4:J5) -> 41441.95311 | R17: =E17+SUM($I4:K5) -> 43923.16229 | S17: =F17+SUM($I4:L5) -> 46442.10922 | T17: =G17+SUM($I4:M5) -> 48965.85891 | V17: =P17-O17 -> 2353.023433 | W17: 2416.233834 | X17: 2481.209183 | Y17: 2518.946931 | Z17: 2523.749693
A18: ='Opt 1-replace all MV '!A48 -> LED 70W-125W (L1) | B18: ='Opt 1-replace all MV '!G48 -> 2130.129127 | C18: ='Opt 1-replace all MV '!I48 -> 2731.27931 | D18: ='Opt 1-replace all MV '!K48 -> 3536.812426 | E18: ='Opt 1-replace all MV '!M48 -> 4358.470517 | F18: ='Opt 1-replace all MV '!O48 -> 4988.341796 | G18: ='Opt 1-replace all MV '!Q48 -> 5606.948731 | I18: 601.1501838 | J18: 805.533116 | K18: 821.6580906 | L18: 629.8712786 | M18: 618.6069353 | O18: =B18 -> 2130.129127 | P18: =C18+SUM($I6:I6,$I11:I11) -> 2649.843535 | Q18: =D18+SUM($I6:J6,$I11:J11) -> 3373.940876 | R18: =E18+SUM($I6:K6,$I11:K11) -> 4114.163192 | S18: =F18+SUM($I6:L6,$I11:L11) -> 4703.316583 | T18: =G18+SUM($I6:M6,$I11:M11) -> 5321.923518 | V18: 519.7144088 | W18: 724.097341 | X18: 740.2223156 | Y18: 589.1533911 | Z18: 618.6069353
A19: ='Opt 1-replace all MV '!A49 -> LED 155W-250W (L2) | B19: ='Opt 1-replace all MV '!G49 -> 1905.893735 | C19: ='Opt 1-replace all MV '!I49 -> 3425.806867 | D19: ='Opt 1-replace all MV '!K49 -> 4884.52884 | E19: ='Opt 1-replace all MV '!M49 -> 6282.509743 | F19: ='Opt 1-replace all MV '!O49 -> 7620.205711 | G19: ='Opt 1-replace all MV '!Q49 -> 8927.874021 | I19: 1519.913133 | J19: 1458.721973 | K19: 1397.980902 | L19: 1337.695968 | M19: 1307.66831 | O19: 1905.893735 | P19: =C19+SUM($I7:I7,$I12:I12) -> 3163.141167 | Q19: =D19+SUM($I7:J7,$I12:J12) -> 4359.19744 | R19: =E19+SUM($I7:K7,$I12:K12) -> 5494.512643 | S19: =F19+SUM($I7:L7,$I12:L12) -> 6700.875761 | T19: =G19+SUM($I7:M7,$I12:M12) -> 8008.544071 | V19: 1257.247433 | W19: 1196.056273 | X19: 1135.315202 | Y19: 1206.363118 | Z19: 1307.66831
A20: ='Opt 1-replace all MV '!A50 -> LED 275W-400W (L4) | B20: ='Opt 1-replace all MV '!G50 -> 85.47699696 | C20: ='Opt 1-replace all MV '!I50 -> 160.9858469 | D20: ='Opt 1-replace all MV '!K50 -> 237.0365481 | E20: ='Opt 1-replace all MV '!M50 -> 313.6442298 | F20: ='Opt 1-replace all MV '!O50 -> 365.5302191 | G20: ='Opt 1-replace all MV '!Q50 -> 392.412191 | I20: 75.50884999 | J20: 76.05070114 | K20: 76.60768174 | L20: 51.88598923 | M20: 26.88197199 | O20: 85.47699696 | P20: =C20+SUM($I8:I8) -> 110.3973969 | Q20: =D20+SUM($I8:J8) -> 135.8596481 | R20: =E20+SUM($I8:K8) -> 161.8788798 | S20: =F20+SUM($I8:L8) -> 188.4706441 | T20: =G20+SUM($I8:M8) -> 215.352616 | V20: 24.92039999 | W20: 25.46225114 | X20: 26.01923174 | Y20: 26.59176423 | Z20: 26.88197199
B21: =SUM(B17:B20) -> 40794.1957 | C21: 49672.29625 | D21: 58757.34082 | E21: 67863.30163 | F21: 74565.95427 | G21: 79042.86118 | I21: =SUM(I17:I20) -> 8878.100549 | J21: =SUM(J17:J20) -> 9085.044575 | K21: =SUM(K17:K20) -> 9105.960808 | L21: =SUM(L17:L20) -> 6702.652642 | M21: =SUM(M17:M20) -> 4476.906911 | O21: =SUM(O17:O20) -> 40794.1957 | P21: 44949.10137 | Q21: 49310.95107 | R21: 53693.717 | S21: 58034.77221 | T21: 62511.67912 | V21: =SUM(V17:V20) -> 4154.905674 | W21: =SUM(W17:W20) -> 4361.8497 | X21: =SUM(X17:X20) -> 4382.765933 | Y21: =SUM(Y17:Y20) -> 4341.055205 | Z21: =SUM(Z17:Z20) -> 4476.906911
A22: Check | B22: =SUM(B15,B21)-SUM(O15,O21) -> 0 | C22: =SUM(C15,C21)-SUM(P15,P21) -> 0 | D22: 0 | E22: 0 | F22: 0 | G22: 0
A23: ='Opt 1-replace all MV '!B58 -> North & East | B23: =B$3 -> HY2021 | C23: =C$3 -> 2022-06-30 | D23: 2023-06-30 | E23: 2024-06-30 | F23: 2025-06-30 | G23: 2026-06-30 | I23: =I$3 -> 2022-06-30 | J23: 2023-06-30 | K23: 2024-06-30 | L23: 2025-06-30 | M23: 2026-06-30 | O23: =O$3 -> HY2021 | P23: =P$3 -> 2022-06-30 | Q23: 2023-06-30 | R23: 2024-06-30 | S23: 2025-06-30 | T23: 2026-06-30 | V23: =V$3 -> 2022-06-30 | W23: 2023-06-30 | X23: 2024-06-30 | Y23: 2025-06-30 | Z23: 2026-06-30
A24: ='Opt 1-replace all MV '!A61 -> Mercury Vapour 80W | B24: ='Opt 1-replace all MV '!G61 -> 7835.095915 | C24: ='Opt 1-replace all MV '!I61 -> 5596.497082 | D24: ='Opt 1-replace all MV '!K61 -> 3357.898249 | E24: ='Opt 1-replace all MV '!M61 -> 1119.799416 | F24: ='Opt 1-replace all MV '!O61 -> 1 | G24: ='Opt 1-replace all MV '!Q61 -> 1 | I24: =C24-B24 -> -2238.598833 | J24: =D24-C24 -> -2238.598833 | K24: -2238.098833 | L24: -1118.799416 | M24: 0 | O24: =B24 -> 7835.095915 | P24: =O24 -> 7835.095915 | Q24: =P24 -> 7835.095915 | R24: 7835.095915 | S24: 7835.095915 | T24: 7835.095915 | V24: =P24-O24 -> 0 | W24: =Q24-P24 -> 0 | X24: 0 | Y24: 0 | Z24: 0
A25: ='Opt 1-replace all MV '!A64 -> Mercury Vapour 50W | B25: ='Opt 1-replace all MV '!G64 -> 81.89701549 | C25: ='Opt 1-replace all MV '!I64 -> 58.49786821 | D25: ='Opt 1-replace all MV '!K64 -> 35.09872092 | E25: ='Opt 1-replace all MV '!M64 -> 11.69957364 | F25: ='Opt 1-replace all MV '!O64 -> 0 | G25: ='Opt 1-replace all MV '!Q64 -> 0 | I25: =C25-B25 -> -23.39914728 | J25: -23.39914728 | K25: -23.39914728 | L25: -11.69957364 | M25: 0 | O25: 81.89701549 | P25: =O25 -> 81.89701549 | Q25: 81.89701549 | R25: 81.89701549 | S25: 81.89701549 | T25: 81.89701549 | V25: =P25-O25 -> 0 | W25: 0 | X25: 0 | Y25: 0 | Z25: 0
A26: ='Opt 1-replace all MV '!A65 -> Mercury Vapour 125W | B26: ='Opt 1-replace all MV '!G65 -> 27.01757212 | C26: ='Opt 1-replace all MV '!I65 -> 19.2982658 | D26: ='Opt 1-replace all MV '!K65 -> 11.57895948 | E26: ='Opt 1-replace all MV '!M65 -> 3.85965316 | F26: ='Opt 1-replace all MV '!O65 -> 0 | G26: ='Opt 1-replace all MV '!Q65 -> 0 | I26: -7.71930632 | J26: -7.71930632 | K26: -7.71930632 | L26: -3.85965316 | M26: 0 | O26: 27.01757212 | P26: 27.01757212 | Q26: 27.01757212 | R26: 27.01757212 | S26: 27.01757212 | T26: 27.01757212 | V26: 0 | W26: 0 | X26: 0 | Y26: 0 | Z26: 0
A27: ='Opt 1-replace all MV '!A66 -> Mercury Vapour 250W | B27: ='Opt 1-replace all MV '!G66 -> 369.8030184 | C27: ='Opt 1-replace all MV '!I66 -> 264.1450131 | D27: ='Opt 1-replace all MV '!K66 -> 158.4870079 | E27: ='Opt 1-replace all MV '!M66 -> 52.82900263 | F27: ='Opt 1-replace all MV '!O66 -> 0 | G27: ='Opt 1-replace all MV '!Q66 -> 0 | I27: -105.6580053 | J27: -105.6580053 | K27: -105.6580053 | L27: -52.82900263 | M27: 0 | O27: 369.8030184 | P27: 369.8030184 | Q27: 369.8030184 | R27: 369.8030184 | S27: 369.8030184 | T27: 369.8030184 | V27: 0 | W27: 0 | X27: 0 | Y27: 0 | Z27: 0
A28: ='Opt 1-replace all MV '!A67 -> Mercury Vapour 400W | B28: ='Opt 1-replace all MV '!G67 -> 124.9562711 | C28: ='Opt 1-replace all MV '!I67 -> 89.25447932 | D28: ='Opt 1-replace all MV '!K67 -> 53.55268759 | E28: ='Opt 1-replace all MV '!M67 -> 17.85089586 | F28: ='Opt 1-replace all MV '!O67 -> 0 | G28: ='Opt 1-replace all MV '!Q67 -> 0 | I28: -35.70179173 | J28: -35.70179173 | K28: -35.70179173 | L28: -17.85089586 | M28: 0 | O28: 124.9562711 | P28: 124.9562711 | Q28: 124.9562711 | R28: 124.9562711 | S28: 124.9562711 | T28: 124.9562711 | V28: 0 | W28: 0 | X28: 0 | Y28: 0 | Z28: 0
B29: =SUM(B24:B28) -> 8438.769792 | C29: =SUM(C24:C28) -> 6027.692708 | D29: 3616.615625 | E29: 1206.038542 | F29: 1 | G29: 1 | I29: =SUM(I24:I28) -> -2411.077083 | J29: -2411.077083 | K29: -2410.577083 | L29: -1205.038542 | M29: 0 | O29: =SUM(O24:O28) -> 8438.769792 | P29: =SUM(P24:P28) -> 8438.769792 | Q29: 8438.769792 | R29: 8438.769792 | S29: 8438.769792 | T29: 8438.769792 | V29: =SUM(V24:V28) -> 0 | W29: 0 | X29: 0 | Y29: 0 | Z29: 0
A31: ='Opt 1-replace all MV '!A71 -> Metal Halide 100W | B31: ='Opt 1-replace all MV '!G71 -> 0 | C31: ='Opt 1-replace all MV '!I71 -> 0 | D31: ='Opt 1-replace all MV '!K71 -> 0 | E31: ='Opt 1-replace all MV '!M71 -> 0 | F31: ='Opt 1-replace all MV '!O71 -> 0 | G31: ='Opt 1-replace all MV '!Q71 -> 0 | I31: =C31-B31 -> 0 | J31: 0 | K31: 0 | L31: 0 | M31: 0 | O31: =B31 -> 0 | P31: =O31 -> 0 | Q31: 0 | R31: 0 | S31: 0 | T31: 0 | V31: =P31-O31 -> 0 | W31: 0 | X31: 0 | Y31: 0 | Z31: 0
A32: ='Opt 1-replace all MV '!A72 -> Metal Halide 150W | B32: ='Opt 1-replace all MV '!G72 -> 0 | C32: ='Opt 1-replace all MV '!I72 -> 0 | D32: ='Opt 1-replace all MV '!K72 -> 0 | E32: ='Opt 1-replace all MV '!M72 -> 0 | F32: ='Opt 1-replace all MV '!O72 -> 0 | G32: ='Opt 1-replace all MV '!Q72 -> 0 | I32: 0 | J32: 0 | K32: 0 | L32: 0 | M32: 0 | O32: 0 | P32: 0 | Q32: 0 | R32: 0 | S32: 0 | T32: 0 | V32: 0 | W32: 0 | X32: 0 | Y32: 0 | Z32: 0
B33: =SUM(B31:B32) -> 0 | C33: 0 | D33: 0 | E33: 0 | F33: 0 | G33: 0 | I33: =SUM(I31:I32) -> 0 | J33: =SUM(J31:J32) -> 0 | K33: =SUM(K31:K32) -> 0 | L33: =SUM(L31:L32) -> 0 | M33: =SUM(M31:M32) -> 0 | O33: =SUM(O31:O32) -> 0 | P33: 0 | Q33: 0 | R33: 0 | S33: 0 | T33: 0 | V33: =SUM(V31:V32) -> 0 | W33: =SUM(W31:W32) -> 0 | X33: =SUM(X31:X32) -> 0 | Y33: =SUM(Y31:Y32) -> 0 | Z33: =SUM(Z31:Z32) -> 0
A35: Total | B35: =SUM(B29,B33) -> 8438.769792 | C35: 6027.692708 | D35: 3616.615625 | E35: 1206.038542 | F35: 1 | G35: 1 | I35: =C35-B35 -> -2411.077083 | J35: -2411.077083 | K35: -2410.577083 | L35: -1205.038542 | M35: 0 | O35: =SUM(O29,O33) -> 8438.769792 | P35: 8438.769792 | Q35: 8438.769792 | R35: 8438.769792 | S35: 8438.769792 | T35: 8438.769792 | V35: =P35-O35 -> 0 | W35: 0 | X35: 0 | Y35: 0 | Z35: 0
A37: ='Opt 1-replace all MV '!A82 -> LED 18W | B37: ='Opt 1-replace all MV '!G82 -> 24327.5201 | C37: ='Opt 1-replace all MV '!I82 -> 27377.66721 | D37: ='Opt 1-replace all MV '!K82 -> 30445.26614 | E37: ='Opt 1-replace all MV '!M82 -> 33530.70712 | F37: ='Opt 1-replace all MV '!O82 -> 35499.5305 | G37: ='Opt 1-replace all MV '!Q82 -> 36342.7166 | I37: =C37-B37 -> 3050.147115 | J37: =D37-C37 -> 3067.598922 | K37: 3085.440982 | L37: 1968.82338 | M37: 843.1861049 | O37: =B37 -> 24327.5201 | P37: =C37+SUM($I24:I25) -> 25115.66923 | Q37: =D37+SUM($I24:J25) -> 25921.27017 | R37: =E37+SUM($I24:K25) -> 26745.21318 | S37: =F37+SUM($I24:L25) -> 27583.53757 | T37: =G37+SUM($I24:M25) -> 28426.72367 | V37: =P37-O37 -> 788.1491353 | W37: =Q37-P37 -> 805.600942 | X37: 823.9430022 | Y37: 838.3243897 | Z37: 843.1861049
A38: ='Opt 1-replace all MV '!A84 -> LED 70W-125W (L1) | B38: ='Opt 1-replace all MV '!G84 -> 586.3496764 | C38: ='Opt 1-replace all MV '!I84 -> 766.5150099 | D38: ='Opt 1-replace all MV '!K84 -> 950.4926025 | E38: ='Opt 1-replace all MV '!M84 -> 1138.367703 | F38: ='Opt 1-replace all MV '!O84 -> 1330.227467 | G38: ='Opt 1-replace all MV '!Q84 -> 1524.101592 | I38: =C38-B38 -> 180.1653335 | J38: 183.9775926 | K38: 187.8751006 | L38: 191.8597639 | M38: 193.8741252 | O38: =B38 -> 586.3496764 | P38: =C38+SUM($I26:I26,$I31:I31) -> 758.7957036 | Q38: =D38+SUM($I26:J26,$I31:J31) -> 935.0539898 | R38: =E38+SUM($I26:K26,$I31:K31) -> 1115.209784 | S38: =F38+SUM($I26:L26,$I31:L31) -> 1303.209895 | T38: =G38+SUM($I26:M26,$I31:M31) -> 1497.08402 | V38: =P38-O38 -> 172.4460272 | W38: 176.2582863 | X38: 180.1557943 | Y38: 188.0001107 | Z38: 193.8741252
A39: ='Opt 1-replace all MV '!A85 -> LED 155W-250W (L2) | B39: ='Opt 1-replace all MV '!G85 -> 1058.882841 | C39: ='Opt 1-replace all MV '!I85 -> 2045.45127 | D39: ='Opt 1-replace all MV '!K85 -> 3000.193447 | E39: ='Opt 1-replace all MV '!M85 -> 3923.321036 | F39: ='Opt 1-replace all MV '!O85 -> 4815.04465 | G39: ='Opt 1-replace all MV '!Q85 -> 5691.118803 | I39: 986.5684296 | J39: 954.7421766 | K39: 923.1275896 | L39: 891.7236135 | M39: 876.0741527 | O39: 1058.882841 | P39: =C39+SUM($I27:I27,$I32:I32) -> 1939.793265 | Q39: =D39+SUM($I27:J27,$I32:J32) -> 2788.877436 | R39: =E39+SUM($I27:K27,$I32:K32) -> 3606.347021 | S39: =F39+SUM($I27:L27,$I32:L32) -> 4445.241631 | T39: =G39+SUM($I27:M27,$I32:M32) -> 5321.315784 | V39: 880.9104244 | W39: 849.0841713 | X39: 817.4695843 | Y39: 838.8946109 | Z39: 876.0741527
A40: ='Opt 1-replace all MV '!A86 -> LED 275W-400W (L4) | B40: ='Opt 1-replace all MV '!G86 -> 85.09795361 | C40: ='Opt 1-replace all MV '!I86 -> 138.9895098 | D40: ='Opt 1-replace all MV '!K86 -> 193.1439123 | E40: ='Opt 1-replace all MV '!M86 -> 247.5670388 | F40: ='Opt 1-replace all MV '!O86 -> 284.4140025 | G40: ='Opt 1-replace all MV '!Q86 -> 303.5489558 | I40: 53.89155621 | J40: 54.15440248 | K40: 54.42312647 | L40: 36.84696374 | M40: 19.13495334 | O40: 85.09795361 | P40: =C40+SUM($I28:I28) -> 103.2877181 | Q40: =D40+SUM($I28:J28) -> 121.7403288 | R40: =E40+SUM($I28:K28) -> 140.4616636 | S40: =F40+SUM($I28:L28) -> 159.4577315 | T40: =G40+SUM($I28:M28) -> 178.5926848 | V40: 18.18976448 | W40: 18.45261075 | X40: 18.72133474 | Y40: 18.99606787 | Z40: 19.13495334
B41: =SUM(B37:B40) -> 26057.85057 | C41: =SUM(C37:C40) -> 30328.623 | D41: 34589.0961 | E41: 38839.9629 | F41: 41929.21662 | G41: 43861.48595 | I41: =SUM(I37:I40) -> 4270.772435 | J41: =SUM(J37:J40) -> 4260.473094 | K41: 4250.866799 | L41: 3089.253721 | M41: 1932.269336 | O41: =SUM(O37:O40) -> 26057.85057 | P41: =SUM(P37:P40) -> 27917.54592 | Q41: 29766.94193 | R41: 31607.23165 | S41: 33491.44682 | T41: 35423.71616 | V41: =SUM(V37:V40) -> 1859.695351 | W41: =SUM(W37:W40) -> 1849.39601 | X41: 1840.289716 | Y41: 1884.215179 | Z41: 1932.269336
A42: Check | B42: =SUM(B35,B41)-SUM(O35,O41) -> 0 | C42: =SUM(C35,C41)-SUM(P35,P41) -> 0 | D42: 0 | E42: 0 | F42: 0 | G42: 0
A44: Total | B44: =B$3 -> HY2021 | C44: =C$3 -> 2022-06-30 | D44: 2023-06-30 | E44: 2024-06-30 | F44: 2025-06-30 | G44: 2026-06-30 | I44: =I$3 -> 2022-06-30 | J44: 2023-06-30 | K44: 2024-06-30 | L44: 2025-06-30 | M44: 2026-06-30 | O44: =O$3 -> HY2021 | P44: =P$3 -> 2022-06-30 | Q44: 2023-06-30 | R44: 2024-06-30 | S44: 2025-06-30 | T44: 2026-06-30 | V44: =V$3 -> 2022-06-30 | W44: 2023-06-30 | X44: 2024-06-30 | Y44: 2025-06-30 | Z44: 2026-06-30
A45: =A24 -> Mercury Vapour 80W | B45: =SUM(B4,B24) -> 22963.37543 | C45: 16402.41102 | D45: 9841.446612 | E45: 3280.982204 | F45: 1 | G45: 1 | I45: =C45-B45 -> -6560.964408 | J45: =D45-C45 -> -6560.964408 | K45: -6560.464408 | L45: -3279.982204 | M45: 0 | O45: =B45 -> 22963.37543 | P45: =O45 -> 22963.37543 | Q45: =P45 -> 22963.37543 | R45: 22963.37543 | S45: 22963.37543 | T45: 22963.37543 | V45: =P45-O45 -> 0 | W45: =Q45-P45 -> 0 | X45: 0 | Y45: 0 | Z45: 0
A46: =A25 -> Mercury Vapour 50W | B46: 103.384828 | C46: 73.84630571 | D46: 44.30778342 | E46: 14.76926114 | F46: 0 | G46: 0 | I46: =C46-B46 -> -29.53852228 | J46: -29.53852228 | K46: -29.53852228 | L46: -14.76926114 | M46: 0 | O46: =B46 -> 103.384828 | P46: =O46 -> 103.384828 | Q46: 103.384828 | R46: 103.384828 | S46: 103.384828 | T46: 103.384828 | V46: =P46-O46 -> 0 | W46: 0 | X46: 0 | Y46: 0 | Z46: 0
A47: =A26 -> Mercury Vapour 125W | B47: 282.2927846 | C47: 201.6377033 | D47: 120.982622 | E47: 40.32754066 | F47: 0 | G47: 0 | I47: -80.65508132 | J47: -80.65508132 | K47: -80.65508132 | L47: -40.32754066 | M47: 0 | O47: 282.2927846 | P47: 282.2927846 | Q47: 282.2927846 | R47: 282.2927846 | S47: 282.2927846 | T47: 282.2927846 | V47: 0 | W47: 0 | X47: 0 | Y47: 0 | Z47: 0
A48: =A27 -> Mercury Vapour 250W | B48: 1260.257968 | C48: 900.1842631 | D48: 540.1105579 | E48: 180.0368526 | F48: 0 | G48: 0 | I48: -360.0737053 | J48: -360.0737053 | K48: -360.0737053 | L48: -180.0368526 | M48: 0 | O48: 1260.257968 | P48: 1260.257968 | Q48: 1260.257968 | R48: 1260.257968 | S48: 1260.257968 | T48: 1260.257968 | V48: 0 | W48: 0 | X48: 0 | Y48: 0 | Z48: 0
A49: =A28 -> Mercury Vapour 400W | B49: 302.0158461 | C49: 215.7256043 | D49: 129.4353626 | E49: 43.14512086 | F49: 0 | G49: 0 | I49: -86.29024173 | J49: -86.29024173 | K49: -86.29024173 | L49: -43.14512086 | M49: 0 | O49: 302.0158461 | P49: 302.0158461 | Q49: 302.0158461 | R49: 302.0158461 | S49: 302.0158461 | T49: 302.0158461 | V49: 0 | W49: 0 | X49: 0 | Y49: 0 | Z49: 0
B50: =SUM(B45:B49) -> 24911.32685 | C50: =SUM(C45:C49) -> 17793.8049 | D50: 10676.28294 | E50: 3559.260979 | F50: 1 | G50: 1 | I50: =SUM(I45:I49) -> -7117.521958 | J50: -7117.521958 | K50: -7117.021958 | L50: -3558.260979 | M50: 0 | O50: =SUM(O45:O49) -> 24911.32685 | P50: =SUM(P45:P49) -> 24911.32685 | Q50: 24911.32685 | R50: 24911.32685 | S50: 24911.32685 | T50: 24911.32685 | V50: =SUM(V45:V49) -> 0 | W50: 0 | X50: 0 | Y50: 0 | Z50: 0
A52: =A11 -> Metal Halide 100W | B52: =SUM(B11,B31) -> 29.75 | C52: 21.25 | D52: 12.75 | E52: 4.25 | F52: 0 | G52: 0 | I52: =C52-B52 -> -8.5 | J52: -8.5 | K52: -8.5 | L52: -4.25 | M52: 0 | O52: =SUM(O11,O31) -> 29.75 | P52: 29.75 | Q52: 29.75 | R52: 29.75 | S52: 29.75 | T52: 29.75 | V52: =P52-O52 -> 0 | W52: 0 | X52: 0 | Y52: 0 | Z52: 0
A53: =A12 -> Metal Halide 150W | B53: 28.875 | C53: 20.625 | D53: 12.375 | E53: 4.125 | F53: 0 | G53: 0 | I53: -8.25 | J53: -8.25 | K53: -8.25 | L53: -4.125 | M53: 0 | O53: 28.875 | P53: 28.875 | Q53: 28.875 | R53: 28.875 | S53: 28.875 | T53: 28.875 | V53: 0 | W53: 0 | X53: 0 | Y53: 0 | Z53: 0
B54: =SUM(B52:B53) -> 58.625 | C54: 41.875 | D54: 25.125 | E54: 8.375 | F54: 0 | G54: 0 | I54: =SUM(I52:I53) -> -16.75 | J54: =SUM(J52:J53) -> -16.75 | K54: =SUM(K52:K53) -> -16.75 | L54: =SUM(L52:L53) -> -8.375 | M54: =SUM(M52:M53) -> 0 | O54: =SUM(O52:O53) -> 58.625 | P54: 58.625 | Q54: 58.625 | R54: 58.625 | S54: 58.625 | T54: 58.625 | V54: =SUM(V52:V53) -> 0 | W54: =SUM(W52:W53) -> 0 | X54: =SUM(X52:X53) -> 0 | Y54: =SUM(Y52:Y53) -> 0 | Z54: =SUM(Z52:Z53) -> 0
A56: Total | B56: =SUM(B50,B54) -> 24969.95185 | C56: 17835.6799 | D56: 10701.40794 | E56: 3567.635979 | F56: 1 | G56: 1 | I56: =C56-B56 -> -7134.271958 | J56: -7134.271958 | K56: -7133.771958 | L56: -3566.635979 | M56: 0 | O56: =SUM(O50,O54) -> 24969.95185 | P56: 24969.95185 | Q56: 24969.95185 | R56: 24969.95185 | S56: 24969.95185 | T56: 24969.95185 | V56: =P56-O56 -> 0 | W56: 0 | X56: 0 | Y56: 0 | Z56: 0
A58: =A37 -> LED 18W | B58: =SUM(B17,B37) -> 61000.21594 | C58: 70731.89144 | D58: 80544.22914 | E58: 90439.38426 | F58: 97091.40704 | G58: 100458.3428 | I58: =C58-B58 -> 9731.675499 | J58: =D58-C58 -> 9812.337706 | K58: 9895.155115 | L58: 6652.022786 | M58: 3366.935798 | O58: =SUM(O17,O37) -> 61000.21594 | P58: 64141.3885 | Q58: 67363.22328 | R58: 70668.37547 | S58: 74025.64679 | T58: 77392.58259 | V58: =P58-O58 -> 3141.172568 | W58: =Q58-P58 -> 3221.834776 | X58: 3305.152185 | Y58: 3357.271321 | Z58: 3366.935798
A59: =A38 -> LED 70W-125W (L1) | B59: 2716.478803 | C59: 3497.79432 | D59: 4487.305029 | E59: 5496.83822 | F59: 6318.569263 | G59: 7131.050323 | I59: =C59-B59 -> 781.3155173 | J59: 989.5107086 | K59: 1009.533191 | L59: 821.7310424 | M59: 812.4810605 | O59: 2716.478803 | P59: 3408.639239 | Q59: 4308.994866 | R59: 5229.372976 | S59: 6006.526478 | T59: 6819.007539 | V59: =P59-O59 -> 692.160436 | W59: 900.3556273 | X59: 920.3781099 | Y59: 777.1535018 | Z59: 812.4810605
A60: =A39 -> LED 155W-250W (L2) | B60: 2964.776575 | C60: 5471.258137 | D60: 7884.722287 | E60: 10205.83078 | F60: 12435.25036 | G60: 14618.99282 | I60: 2506.481562 | J60: 2413.46415 | K60: 2321.108492 | L60: 2229.419582 | M60: 2183.742463 | O60: 2964.776575 | P60: 5102.934432 | Q60: 7148.074877 | R60: 9100.859663 | S60: 11146.11739 | T60: 13329.85986 | V60: 2138.157857 | W60: 2045.140444 | X60: 1952.784787 | Y60: 2045.257729 | Z60: 2183.742463
A61: =A40 -> LED 275W-400W (L4) | B61: 170.5749506 | C61: 299.9753568 | D61: 430.1804604 | E61: 561.2112686 | F61: 649.9442216 | G61: 695.9611469 | I61: 129.4004062 | J61: 130.2051036 | K61: 131.0308082 | L61: 88.73295297 | M61: 46.01692532 | O61: 170.5749506 | P61: 213.685115 | Q61: 257.5999769 | R61: 302.3405434 | S61: 347.9283755 | T61: 393.9453008 | V61: 43.11016447 | W61: 43.91486189 | X61: 44.74056647 | Y61: 45.58783211 | Z61: 46.01692532
B62: =SUM(B58:B61) -> 66852.04627 | C62: =SUM(C58:C61) -> 80000.91925 | D62: 93346.43692 | E62: 106703.2645 | F62: 116495.1709 | G62: 122904.3471 | I62: =SUM(I58:I61) -> 13148.87298 | J62: =SUM(J58:J61) -> 13345.51767 | K62: 13356.82761 | L62: 9791.906363 | M62: 6409.176247 | O62: =SUM(O58:O61) -> 66852.04627 | P62: =SUM(P58:P61) -> 72866.64729 | Q62: 79077.893 | R62: 85300.94865 | S62: 91526.21903 | T62: 97935.39528 | V62: =SUM(V58:V61) -> 6014.601026 | W62: =SUM(W58:W61) -> 6211.24571 | X62: 6223.055648 | Y62: 6225.270384 | Z62: 6409.176247
A63: Check | B63: =SUM(B56,B62)-SUM(O56,O62) -> 0 | C63: =SUM(C56,C62)-SUM(P56,P62) -> 0 | D63: 0 | E63: 0 | F63: 0 | G63: 0
A65: Total Lights | B65: =SUM(B41,B35,B21,B15) -> 91821.99812 | C65: 97836.59915 | D65: 104047.8449 | E65: 110270.9005 | F65: 116496.1709 | G65: 122905.3471 | I65: =I62+I56 -> 6014.601026 | J65: =J62+J56 -> 6211.24571 | K65: =K62+K56 -> 6223.055648 | L65: =L62+L56 -> 6225.270384 | M65: =M62+M56 -> 6409.176247 | O65: =SUM(O41,O35,O21,O15) -> 91821.99812 | P65: 97836.59915 | Q65: 104047.8449 | R65: 110270.9005 | S65: 116496.1709 | T65: 122905.3471 | V65: =V62+V56 -> 6014.601026 | W65: =W62+W56 -> 6211.24571 | X65: =X62+X56 -> 6223.055648 | Y65: =Y62+Y56 -> 6225.270384 | Z65: =Z62+Z56 -> 6409.176247
A69: Capex Volumes
A70: Forecast Quantities to be replaced | I70: =I$3 -> 2022-06-30 | J70: 2023-06-30 | K70: 2024-06-30 | L70: 2025-06-30 | M70: 2026-06-30 | V70: =V$3 -> 2022-06-30 | W70: 2023-06-30 | X70: 2024-06-30 | Y70: 2025-06-30 | Z70: 2026-06-30
A71: Inputs - MV80 | I71: =I83 -> 0 | J71: =J83 -> 0 | K71: 0 | L71: 0 | M71: 0 | V71: =-SUM(I50,I52,I53) -> 7134.271958 | W71: =-SUM(J50,J52,J53) -> 7134.271958 | X71: =-SUM(K50,K52,K53) -> 7133.771958 | Y71: =-SUM(L50,L52,L53) -> 3566.635979 | Z71: =-SUM(M50,M52,M53) -> 0
A72: Inputs - LED 18W | I72: =I89 -> 7259.264228 | J72: =J89 -> 7190.361471 | K72: 7121.856633 | L72: 3780.182712 | M72: 472.6604172 | V72: =I72+SUM(I45:I46) -> 668.7612981 | W72: =J72+SUM(J45:J46) -> 599.8585405 | X72: =K72+SUM(K45:K46) -> 531.8537033 | Y72: =L72+SUM(L45:L46) -> 485.4312467 | Z72: =M72+SUM(M45:M46) -> 472.6604172
A73: Inputs - LED 70W (L1) | I73: =I95 -> 106.167188 | J73: =J95 -> 110.9887114 | K73: 115.9119142 | L73: 75.35175394 | M73: 32.76267978 | V73: =I73+I47+I52 -> 17.01210672 | W73: 21.83363005 | X73: 26.75683289 | Y73: 30.77421328 | Z73: 32.76267978
A74: Inputs - LED 155W (L2) | I74: =I101 -> 1668.270887 | J74: =J101 -> 1651.187729 | K74: 1626.4916 | L74: 1597.887286 | M74: 1581.578313 | V74: 1299.947181 | W74: 1282.864024 | X74: 1258.167895 | Y74: 1413.725433 | Z74: 1581.578313
A75: Inputs - LED 275W (L4) | I75: =I106 -> 99.80455367 | J75: =J106 -> 100.688659 | K75: 101.5828694 | L75: 59.14066749 | M75: 16.24883723 | V75: =I75+I49 -> 13.51431194 | W75: =J75+J49 -> 14.39841732 | X75: =K75+K49 -> 15.29262767 | Y75: =L75+L49 -> 15.99554663 | Z75: =M75+M49 -> 16.24883723
I76: =SUM(I71:I75) -> 9133.506857 | J76: =SUM(J71:J75) -> 9053.22657 | K76: =SUM(K71:K75) -> 8965.843017 | L76: =SUM(L71:L75) -> 5512.562419 | M76: =SUM(M71:M75) -> 2103.250247 | V76: =SUM(V71:V75) -> 9133.506857 | W76: =SUM(W71:W75) -> 9053.22657 | X76: =SUM(X71:X75) -> 8965.843017 | Y76: =SUM(Y71:Y75) -> 5512.562419 | Z76: =SUM(Z71:Z75) -> 2103.250247
A77: Check | I77: =I76-V76 -> 0 | J77: =J76-W76 -> 0 | K77: 0 | L77: 0 | M77: 0
A79: =A$71 -> Inputs - MV80
A80: Number of luminaires replaced per year - urban | I80: 0 | J80: 0 | K80: 0 | L80: 0 | M80: 0 | V80: =V$71*I86/I$89 -> 5481.157207 | W80: =W$71*J86/J$89 -> 5481.157207 | X80: 5480.773065 | Y80: 2740.194461 | Z80: 0
A81: Number of luminaires replaced per year - rural | I81: 0 | J81: 0 | K81: 0 | L81: 0 | M81: 0 | V81: =V$71*I87/I$89 -> 1384.430574 | W81: 1384.430574 | X81: 1384.333548 | Y81: 692.1182604 | Z81: 0
A82: Number of luminaires replaced per year - remote | I82: 0 | J82: 0 | K82: 0 | L82: 0 | M82: 0 | V82: =V$71*I88/I$89 -> 268.6841768 | W82: 268.6841768 | X82: 268.6653463 | Y82: 134.3232579 | Z82: 0
I83: =SUM(I80:I82) -> 0 | J83: =SUM(J80:J82) -> 0 | K83: 0 | L83: 0 | M83: 0 | V83: =SUM(V80:V82) -> 7134.271958 | W83: =SUM(W80:W82) -> 7134.271958 | X83: 7133.771958 | Y83: 3566.635979 | Z83: 0
A85: =A$72 -> Inputs - LED 18W
A86: =A$80 -> Number of luminaires replaced per year - urban | I86: =SUM('Opt 1-replace all MV '!AD$101:AE$101) -> 5577.186947 | J86: =SUM('Opt 1-replace all MV '!AF$101:AG$101) -> 5524.249962 | K86: =SUM('Opt 1-replace all MV '!AH$101:AI$101) -> 5471.618694 | L86: =SUM('Opt 1-replace all MV '!AJ$101:AK$101) -> 2904.259304 | M86: =SUM('Opt 1-replace all MV '!AL$101:AM$101) -> 363.1381124 | V86: =V$72*I86/I$89 -> 513.7995622 | W86: =W$72*J86/J$89 -> 460.8625774 | X86: 408.6154517 | Y86: 372.9497547 | Z86: 363.1381124
A87: =A$81 -> Number of luminaires replaced per year - rural | I87: =SUM('Opt 1-replace all MV '!AD$102:AE$102) -> 1408.685764 | J87: =SUM('Opt 1-replace all MV '!AF$102:AG$102) -> 1395.314941 | K87: =SUM('Opt 1-replace all MV '!AH$102:AI$102) -> 1382.021337 | L87: =SUM('Opt 1-replace all MV '!AJ$102:AK$102) -> 733.5577552 | M87: =SUM('Opt 1-replace all MV '!AL$102:AM$102) -> 91.72141694 | V87: =V$72*I87/I$89 -> 129.7754828 | W87: 116.4046603 | X87: 103.2080824 | Y87: 94.19964134 | Z87: 91.72141694
A88: =A$82 -> Number of luminaires replaced per year - remote | I88: =SUM('Opt 1-replace all MV '!AD$103:AE$103) -> 273.391517 | J88: =SUM('Opt 1-replace all MV '!AF$103:AG$103) -> 270.7965668 | K88: =SUM('Opt 1-replace all MV '!AH$103:AI$103) -> 268.2166026 | L88: =SUM('Opt 1-replace all MV '!AJ$103:AK$103) -> 142.3656522 | M88: =SUM('Opt 1-replace all MV '!AL$103:AM$103) -> 17.80088786 | V88: 25.18625305 | W88: 22.59130281 | X88: 20.0301692 | Y88: 18.28185072 | Z88: 17.80088786
I89: =SUM(I86:I88) -> 7259.264228 | J89: =SUM(J86:J88) -> 7190.361471 | K89: 7121.856633 | L89: 3780.182712 | M89: 472.6604172 | V89: =SUM(V86:V88) -> 668.7612981 | W89: =SUM(W86:W88) -> 599.8585405 | X89: 531.8537033 | Y89: 485.4312467 | Z89: 472.6604172
A91: =A$73 -> Inputs - LED 70W (L1)
A92: =A$80 -> Number of luminaires replaced per year - urban | I92: =SUM('Opt 1-replace all MV '!AD$104:AE$104) -> 81.56670383 | J92: =SUM('Opt 1-replace all MV '!AF$104:AG$104) -> 85.27100996 | K92: =SUM('Opt 1-replace all MV '!AH$104:AI$104) -> 89.05343498 | L92: =SUM('Opt 1-replace all MV '!AJ$104:AK$104) -> 57.89165476 | M92: =SUM('Opt 1-replace all MV '!AL$104:AM$104) -> 25.17108956 | V92: =V$73*I92/I$95 -> 13.07015375 | W92: =W$73*J92/J$95 -> 16.77445987 | X92: 20.55688489 | Y92: 23.64337972 | Z92: 25.17108956
A93: =A$81 -> Number of luminaires replaced per year - rural | I93: =SUM('Opt 1-replace all MV '!AD$105:AE$105) -> 20.60211637 | J93: =SUM('Opt 1-replace all MV '!AF$105:AG$105) -> 21.53774994 | K93: =SUM('Opt 1-replace all MV '!AH$105:AI$105) -> 22.49311477 | L93: =SUM('Opt 1-replace all MV '!AJ$105:AK$105) -> 14.62227297 | M93: =SUM('Opt 1-replace all MV '!AL$105:AM$105) -> 6.357713281 | V93: =V$73*I93/I$95 -> 3.301259163 | W93: 4.236892729 | X93: 5.192257562 | Y93: 5.971844361 | Z93: 6.357713281
A94: =A$82 -> Number of luminaires replaced per year - remote | I94: =SUM('Opt 1-replace all MV '!AD$106:AE$106) -> 3.998367835 | J94: =SUM('Opt 1-replace all MV '!AF$106:AG$106) -> 4.179951469 | K94: =SUM('Opt 1-replace all MV '!AH$106:AI$106) -> 4.36536446 | L94: =SUM('Opt 1-replace all MV '!AJ$106:AK$106) -> 2.837826214 | M94: =SUM('Opt 1-replace all MV '!AL$106:AM$106) -> 1.233876939 | V94: 0.640693811 | W94: 0.8222774448 | X94: 1.007690436 | Y94: 1.158989202 | Z94: 1.233876939
I95: =SUM(I92:I94) -> 106.167188 | J95: =SUM(J92:J94) -> 110.9887114 | K95: 115.9119142 | L95: 75.35175394 | M95: 32.76267978 | V95: =SUM(V92:V94) -> 17.01210672 | W95: =SUM(W92:W94) -> 21.83363005 | X95: 26.75683289 | Y95: 30.77421328 | Z95: 32.76267978
A97: =A$74 -> Inputs - LED 155W (L2)
A98: =A$80 -> Number of luminaires replaced per year - urban | I98: =SUM('Opt 1-replace all MV '!AD$107:AE$107) -> 1281.708217 | J98: =SUM('Opt 1-replace all MV '!AF$107:AG$107) -> 1268.583476 | K98: =SUM('Opt 1-replace all MV '!AH$107:AI$107) -> 1249.6098 | L98: =SUM('Opt 1-replace all MV '!AJ$107:AK$107) -> 1227.633522 | M98: =SUM('Opt 1-replace all MV '!AL$107:AM$107) -> 1215.103576 | V98: =V$74*I98/I$101 -> 998.7304807 | W98: =W$74*J98/J$101 -> 985.6057397 | X98: 966.6320634 | Y98: 1086.144654 | Z98: 1215.103576
A99: =A$81 -> Number of luminaires replaced per year - rural | I99: =SUM('Opt 1-replace all MV '!AD$108:AE$108) -> 323.7338351 | J99: =SUM('Opt 1-replace all MV '!AF$108:AG$108) -> 320.4187883 | K99: =SUM('Opt 1-replace all MV '!AH$108:AI$108) -> 315.6264175 | L99: =SUM('Opt 1-replace all MV '!AJ$108:AK$108) -> 310.0756497 | M99: =SUM('Opt 1-replace all MV '!AL$108:AM$108) -> 306.9108362 | V99: =V$74*I99/I$101 -> 252.2593242 | W99: 248.9442774 | X99: 244.1519066 | Y99: 274.3383942 | Z99: 306.9108362
A100: =A$82 -> Number of luminaires replaced per year - remote | I100: =SUM('Opt 1-replace all MV '!AD$109:AE$109) -> 62.82883419 | J100: =SUM('Opt 1-replace all MV '!AF$109:AG$109) -> 62.18546453 | K100: =SUM('Opt 1-replace all MV '!AH$109:AI$109) -> 61.25538236 | L100: =SUM('Opt 1-replace all MV '!AJ$109:AK$109) -> 60.17811383 | M100: =SUM('Opt 1-replace all MV '!AL$109:AM$109) -> 59.56390079 | V100: 48.95737651 | W100: 48.31400685 | X100: 47.38392468 | Y100: 53.24238499 | Z100: 59.56390079
I101: =SUM(I98:I100) -> 1668.270887 | J101: =SUM(J98:J100) -> 1651.187729 | K101: 1626.4916 | L101: 1597.887286 | M101: 1581.578313 | V101: =SUM(V98:V100) -> 1299.947181 | W101: =SUM(W98:W100) -> 1282.864024 | X101: 1258.167895 | Y101: 1413.725433 | Z101: 1581.578313
A102: =A$75 -> Inputs - LED 275W (L4)
A103: =A$80 -> Number of luminaires replaced per year - urban | I103: =SUM('Opt 1-replace all MV '!AD$110:AE$110) -> 76.67838454 | J103: =SUM('Opt 1-replace all MV '!AF$110:AG$110) -> 77.35762982 | K103: =SUM('Opt 1-replace all MV '!AH$110:AI$110) -> 78.04463861 | L103: =SUM('Opt 1-replace all MV '!AJ$110:AK$110) -> 45.43691322 | M103: =SUM('Opt 1-replace all MV '!AL$110:AM$110) -> 12.48374491 | V103: =V$75*I103/I$106 -> 10.38284897 | W103: =W$75*J103/J$106 -> 11.06209426 | X103: 11.74910304 | Y103: 12.28914544 | Z103: 12.48374491
A104: =A$81 -> Number of luminaires replaced per year - rural | I104: =SUM('Opt 1-replace all MV '!AD$111:AE$111) -> 19.36742478 | J104: =SUM('Opt 1-replace all MV '!AF$111:AG$111) -> 19.53898854 | K104: =SUM('Opt 1-replace all MV '!AH$111:AI$111) -> 19.71251321 | L104: =SUM('Opt 1-replace all MV '!AJ$111:AK$111) -> 11.4764546 | M104: =SUM('Opt 1-replace all MV '!AL$111:AM$111) -> 3.153144033 | V104: =V$75*I104/I$106 -> 2.622499779 | W104: 2.794063539 | X104: 2.967588204 | Y104: 3.103992101 | Z104: 3.153144033
A105: =A$82 -> Number of luminaires replaced per year - remote | I105: =SUM('Opt 1-replace all MV '!AD$112:AE$112) -> 3.75874434 | J105: =SUM('Opt 1-replace all MV '!AF$112:AG$112) -> 3.792040678 | K105: =SUM('Opt 1-replace all MV '!AH$112:AI$112) -> 3.825717579 | L105: =SUM('Opt 1-replace all MV '!AJ$112:AK$112) -> 2.227299668 | M105: =SUM('Opt 1-replace all MV '!AL$112:AM$112) -> 0.6119482801 | V105: 0.5089631849 | W105: 0.5422595223 | X105: 0.5759364237 | Y105: 0.6024090901 | Z105: 0.6119482801
I106: =SUM(I103:I105) -> 99.80455367 | J106: =SUM(J103:J105) -> 100.688659 | K106: 101.5828694 | L106: 59.14066749 | M106: 16.24883723 | V106: =SUM(V103:V105) -> 13.51431194 | W106: =SUM(W103:W105) -> 14.39841732 | X106: 15.29262767 | Y106: 15.99554663 | Z106: 16.24883723
A107: Total
A108: =A$80 -> Number of luminaires replaced per year - urban | I108: =SUM(I80,I86,I92,I98,I103) -> 7017.140253 | J108: =SUM(J80,J86,J92,J98,J103) -> 6955.462079 | K108: 6888.326568 | L108: 4235.221395 | M108: 1615.896523 | V108: =SUM(V80,V86,V92,V98,V103) -> 7017.140253 | W108: =SUM(W80,W86,W92,W98,W103) -> 6955.462079 | X108: 6888.326568 | Y108: 4235.221395 | Z108: 1615.896523
A109: =A$81 -> Number of luminaires replaced per year - rural | I109: =SUM(I81,I87,I93,I99,I104) -> 1772.38914 | J109: 1756.810468 | K109: 1739.853382 | L109: 1069.732132 | M109: 408.1431104 | V109: =SUM(V81,V87,V93,V99,V104) -> 1772.38914 | W109: 1756.810468 | X109: 1739.853382 | Y109: 1069.732132 | Z109: 408.1431104
A110: =A$82 -> Number of luminaires replaced per year - remote | I110: 343.9774634 | J110: 340.9540235 | K110: 337.663067 | L110: 207.6088919 | M110: 79.21061387 | V110: 343.9774634 | W110: 340.9540235 | X110: 337.663067 | Y110: 207.6088919 | Z110: 79.21061387
I111: =SUM(I108:I110) -> 9133.506857 | J111: =SUM(J108:J110) -> 9053.22657 | K111: 8965.843017 | L111: 5512.562419 | M111: 2103.250247 | V111: =SUM(V108:V110) -> 9133.506857 | W111: =SUM(W108:W110) -> 9053.22657 | X111: 8965.843017 | Y111: 5512.562419 | Z111: 2103.250247
A112: Check
A113: =A$80 -> Number of luminaires replaced per year - urban | I113: =V108-I108 -> 0 | J113: 0 | K113: 0 | L113: 0 | M113: 0
A114: =A$81 -> Number of luminaires replaced per year - rural | I114: 0 | J114: 0 | K114: 0 | L114: 0 | M114: 0
A115: =A$82 -> Number of luminaires replaced per year - remote | I115: 0 | J115: 0 | K115: 0 | L115: 0 | M115: 0
I116: 0 | J116: 0 | K116: 0 | L116: 0 | M116: 0

Sheet DNSP Inputs General
A1: ='DNSP Inputs O & M'!$A$3 -> AusNet
D2: 2009 | E2: 2010 | F2: 2011 | G2: 2012 | H2: 2013 | I2: 2014 | J2: 2015 | K2: 2016 | L2: 2017 | M2: 2018 | N2: 2019 | O2: 2020 | P2: HY2021 | Q2: 2022-06-30 | R2: 2023-06-30 | S2: 2024-06-30 | T2: 2025-06-30 | U2: 2026-06-30
A3: Capital Expenditure | D3: Nominal $ - Actual | J3: Nominal $ | P3: Real 2021 $ - Forecast
A4: (Net of customer contributions)
N5: 2137181.56 | O5: 2137492.959
A6: Poles and Brackets | D6: 945891.2356 | E6: 957809.4651 | F6: 880178.8893 | G6: 925158.8499 | H6: 998447.2314 | I6: 775787.6177 | J6: 1086336.971 | K6: 1960186 | L6: 3550606.606 | M6: 4528111 | N6: =N5*L$31 -> 2280467.576 | O6: =O5*M$31 -> 2317131.178 | P6: 1181527.829 | Q6: ='Capex 2022-2026'!B28 -> 2313667.698 | R6: ='Capex 2022-2026'!C28 -> 2312042.594 | S6: ='Capex 2022-2026'!D28 -> 2311823.955 | T6: ='Capex 2022-2026'!E28 -> 2315083.645 | U6: ='Capex 2022-2026'!F28 -> 2323347.69
A8: Existing Lights | N8: 722257.8515 | O8: 407937.556
A9: Luminaires | D9: 448491.4405 | E9: 418018.4138 | F9: -892269.5328 | G9: 258757.3149 | H9: 398955.5693 | I9: 829176.3823 | J9: 1161608.129 | K9: 3323078 | L9: 3418777 | M9: 1644455 | N9: =N8*L$31 -> 770681.1824 | O9: =O8*M$31 -> 442221.2599 | P9: 0 | Q9: ='Capex 2022-2026'!B13-'Capex 2022-2026'!B42 -> 1840623.588 | R9: ='Capex 2022-2026'!C13-'Capex 2022-2026'!C42 -> 1838637.841 | S9: ='Capex 2022-2026'!D13-'Capex 2022-2026'!D42 -> 1837933.037 | T9: ='Capex 2022-2026'!E13-'Capex 2022-2026'!E42 -> 920357.152 | U9: ='Capex 2022-2026'!F13-'Capex 2022-2026'!F42 -> 0
A11: Energy Efficient Lights | N11: 328475.5021 | O11: 590393.0975
A12: Luminaires | D12: 0 | E12: 1941138.457 | F12: 0 | G12: 0 | H12: 0 | I12: 0 | J12: 0 | K12: 0 | L12: 0 | M12: 483844 | N12: =N11*L$31 -> 350497.9389 | O12: =O11*M$31 -> 640010.6477 | P12: 2682244.406 | Q12: ='Capex 2022-2026'!B23 -> 1184247.062 | R12: ='Capex 2022-2026'!C23 -> 1153341.891 | S12: ='Capex 2022-2026'!D23 -> 1119305.771 | T12: ='Capex 2022-2026'!E23 -> 1195724.805 | U12: ='Capex 2022-2026'!F23 -> 1291162.363
A14: Total Net Capex | D14: =SUM(D6,D9,D12) -> 1394382.676 | E14: 3316966.336 | F14: -12090.64345 | G14: 1183916.165 | H14: 1397402.801 | I14: 1604964 | J14: 2247945.101 | K14: 5283264 | L14: 6969383.606 | M14: 6656410 | N14: 3401646.697 | O14: 3399363.086 | P14: 3863772.235 | Q14: 5338538.348 | R14: 5304022.326 | S14: 5269062.764 | T14: 4431165.602 | U14: 3614510.053
F17: 2011 | G17: 2012 | H17: 2013 | I17: 2014 | J17: 2015 | K17: 2016 | L17: 2017 | M17: 2018 | N17: 2019 | O17: 2020 | P17: 2015 | Q17: 2016 | R17: 2017 | S17: 2018 | T17: 2019 | U17: 2020
A18: Operating and Maintenance Expenditure | F18: Nominal $ - Actual | J18: Nominal $ | P18: =P3 -> Real 2021 $ - Forecast
O19: 7852450.941
A20: Total O & M | F20: 2283204.04 | G20: 2209782.26 | H20: 2391738.64 | I20: 1580678 | J20: 1063000 | K20: 1946538.303 | L20: 2338331 | M20: 2966870.86 | N20: 2955471.78 | O20: =O19*M$31 -> 8512383.079 | P20: 3926225.471 | Q20: ='Cashflow Summary'!K13 -> 6720633.569 | R20: ='Cashflow Summary'!L13 -> 6675615.737 | S20: ='Cashflow Summary'!M13 -> 6639160.751 | T20: ='Cashflow Summary'!N13 -> 6623048.461 | U20: ='Cashflow Summary'!O13 -> 6636187.118
A24: WACC
A25: Regulatory Period | B25: =Q2 -> 2022-06-30 | C25: =R2 -> 2023-06-30 | D25: 2024-06-30 | E25: 2025-06-30 | F25: 2026-06-30
A26: Real Pre Tax WACC | B26: 0.02387219954 | C26: 0.02387219954 | D26: 0.02387219954 | E26: 0.02387219954 | F26: 0.02387219954
A29: CPI Index | B29: CPI Index | C29: Actual CPI | D29: F'cast CPI | H29: =J2 -> 2015 | I29: 2016 | J29: 2017 | K29: 2018 | L29: 2019 | M29: 2020
A30: 2019-12-31 | B30: 116.2 | H30: Actual CPI | I30: 0.01510859301 | J30: 0.01023255814 | K30: 0.01933701657 | L30: 0.02077687444 | M30: 0.01592920354
A31: 2020-12-31 | C31: =IF(B31="","",B31/B30-1) ->  | D31: 0.02374308679 | H31: 1 | I31: =H31*(1+I30) -> 1.015108593 | J31: =I31*(1+J30) -> 1.025495751 | K31: 1.045325779 | L31: 1.067044381 | M31: 1.084041549
A32: 2021-12-31 | C32: =IF(B32="","",B32/107.5-1) ->  | D32: 0.02374308679
A33: 2022-12-31 | C33: =IF(B33="","",B33/B32-1) ->  | D33: 0.02374308679
A34: 2023-12-31 | C34: =IF(B34="","",B34/B33-1) ->  | D34: 0.02374308679
A35: 2024-12-31 | D35: 0.02374308679
A39: Number Of Lights | B39: Central | E39: =P$2 -> HY2021 | F39: =F$2 -> 2011 | G39: 2012 | H39: 2013 | I39: 2014 | J39: =J$2 -> 2015 | K39: =K$2 -> 2016 | L39: 2017 | M39: 2018 | N39: 2019 | O39: 2020 | P39: HY2021 | Q39: 2022-06-30 | R39: 2023-06-30 | S39: 2024-06-30 | T39: 2025-06-30 | U39: 2026-06-30
E40: Actual Prices | F40: Actual Volumes | P40: Forecast Volumes
A41: Existing Lights | B41: Reference Light | D41: Price Factor
A42: Mercury Vapour 80W | B42: =A$42 -> Mercury Vapour 80W | D42: 1 | E42: 43.97 | F42: 59322.5 | G42: 58866.85 | H42: 58715.36667 | I42: 56826.28333 | J42: 48843.3699 | K42: 33071 | L42: 19501 | M42: 17601 | N42: 17601 | O42: 17289.4623 | P42: 15128.27951 | Q42: ='All MV replaced with MV'!P4 -> 15128.27951 | R42: ='All MV replaced with MV'!Q4 -> 15128.27951 | S42: ='All MV replaced with MV'!R4 -> 15128.27951 | T42: ='All MV replaced with MV'!S4 -> 15128.27951 | U42: ='All MV replaced with MV'!T4 -> 15128.27951
A43: HP Sodium 150W | B43: =A$43 -> HP Sodium 150W | D43: 1 | E43: 104.07 | F43: 12679.83333 | G43: 13325.13333 | H43: 13781.75 | I43: 14149.8 | J43: 14308.29031 | K43: 15306 | L43: 14457 | M43: 17986 | N43: 17986 | O43: 17986 | P43: 17694.26008 | Q43: 17117.0426 | R43: 16552.20463 | S43: 15999.46071 | T43: 15458.53318 | U43: 14923.44515
A44: HP Sodium 250W | B44: =A$44 -> HP Sodium 250W | D44: 1 | E44: 105.12 | F44: 6080.266667 | G44: 6156.533333 | H44: 6248.633333 | I44: 6374.183333 | J44: 6445.579842 | K44: 6810 | L44: 7048 | M44: 12332 | N44: 12332 | O44: 12332 | P44: 12121.61494 | Q44: 11700.98367 | R44: 11285.34823 | S44: 10879.32898 | T44: 10482.7264 | U44: 10090.78121
A45: Mercury Vapour 50W | B45: =A$42 -> Mercury Vapour 80W | D45: 1.53 | E45: 67.27 | F45: 324 | G45: 322.3333333 | H45: 319.5833333 | I45: 270.1666667 | J45: 273.192773 | K45: 75 | L45: 71 | M45: 25 | N45: 25 | O45: 24.5575 | P45: 21.4878125 | Q45: ='All MV replaced with MV'!P5 -> 21.4878125 | R45: ='All MV replaced with MV'!Q5 -> 21.4878125 | S45: ='All MV replaced with MV'!R5 -> 21.4878125 | T45: ='All MV replaced with MV'!S5 -> 21.4878125 | U45: ='All MV replaced with MV'!T5 -> 21.4878125
A46: Mercury Vapour 125W | B46: =A$42 -> Mercury Vapour 80W | D46: 1.47 | E46: 64.63 | F46: 855.25 | G46: 848.0833333 | H46: 839.5 | I46: 803.65 | J46: 812.651593 | K46: 425 | L46: 332 | M46: 297 | N46: 297 | O46: 291.7431 | P46: 255.2752125 | Q46: ='All MV replaced with MV'!P6 -> 255.2752125 | R46: ='All MV replaced with MV'!Q6 -> 255.2752125 | S46: ='All MV replaced with MV'!R6 -> 255.2752125 | T46: ='All MV replaced with MV'!S6 -> 255.2752125 | U46: ='All MV replaced with MV'!T6 -> 255.2752125
A47: Mercury Vapour 250W | B47: =A$44 -> HP Sodium 250W | D47: 1.05 | E47: 110.37 | F47: 875.8666667 | G47: 850.0833333 | H47: 817.7833333 | I47: 791.6 | J47: 800.4666223 | K47: 702 | L47: 668 | M47: 1036 | N47: 1036 | O47: 1017.6628 | P47: 890.45495 | Q47: ='All MV replaced with MV'!P7 -> 890.45495 | R47: ='All MV replaced with MV'!Q7 -> 890.45495 | S47: ='All MV replaced with MV'!R7 -> 890.45495 | T47: ='All MV replaced with MV'!S7 -> 890.45495 | U47: ='All MV replaced with MV'!T7 -> 890.45495
A48: Mercury Vapour 400W | B48: =A$44 -> HP Sodium 250W | D48: 1.09 | E48: 114.58 | F48: 151.1666667 | G48: 146.8666667 | H48: 148 | I48: 147.9166667 | J48: 149.5734646 | K48: 143 | L48: 141 | M48: 206 | N48: 206 | O48: 202.3538 | P48: 177.059575 | Q48: ='All MV replaced with MV'!P8 -> 177.059575 | R48: ='All MV replaced with MV'!Q8 -> 177.059575 | S48: ='All MV replaced with MV'!R8 -> 177.059575 | T48: ='All MV replaced with MV'!S8 -> 177.059575 | U48: ='All MV replaced with MV'!T8 -> 177.059575
A49: HP Sodium 100W | B49: =A$43 -> HP Sodium 150W | D49: 1.07 | E49: 111.36 | F49: 2304.166667 | G49: 2478.2 | H49: 2612.416667 | I49: 2729.483333 | J49: 2760.055968 | K49: 2851 | L49: 2465 | M49: 2497 | N49: 2497 | O49: 2497 | P49: 2481.458941 | Q49: 2450.376823 | R49: 2419.294705 | S49: 2388.212587 | T49: 2357.130469 | U49: 2326.048351
A50: HP Sodium 400W | B50: =A$44 -> HP Sodium 250W | D50: 1.42 | E50: 149.26 | F50: 289.5 | G50: 283.55 | H50: 275.25 | I50: 267.9166667 | J50: 270.917571 | K50: 282 | L50: 281 | M50: 443 | N50: 443 | O50: 443 | P50: 440.2428157 | Q50: 434.7284472 | R50: 429.2140786 | S50: 423.6997101 | T50: 418.1853415 | U50: 412.670973
A51: Metal Halide 70W | B51: =A$42 -> Mercury Vapour 80W | D51: 4.365105678 | E51: 191.93 | F51: 31 | G51: 31 | H51: 31 | I51: 31 | J51: 31.3472275 | K51: 31 | L51: 31 | M51: 31 | N51: 31 | O51: 31 | P51: 27.125 | Q51: 19.375 | R51: 11.625 | S51: 3.875 | T51: 0 | U51: 0
A52: Metal Halide 100W | B52: HP Sodium 150W | D52: 2.387689088 | E52: 248.49 | F52: 34 | G52: 34 | H52: 34 | I52: 34 | J52: 34.38083016 | K52: 34 | L52: 34 | M52: 34 | N52: 34 | O52: 34 | P52: 29.75 | Q52: ='All MV replaced with MV'!P11 -> 29.75 | R52: ='All MV replaced with MV'!Q11 -> 29.75 | S52: ='All MV replaced with MV'!R11 -> 29.75 | T52: ='All MV replaced with MV'!S11 -> 29.75 | U52: ='All MV replaced with MV'!T11 -> 29.75
A53: Metal Halide 150W | B53: HP Sodium 150W | D53: 2.712586814 | E53: 282.31 | F53: 32 | G53: 32 | H53: 32 | I53: 32.16666667 | J53: 32.52696187 | K53: 33 | L53: 33 | M53: 33 | N53: 33 | O53: 33 | P53: 28.875 | Q53: ='All MV replaced with MV'!P12 -> 28.875 | R53: ='All MV replaced with MV'!Q12 -> 28.875 | S53: ='All MV replaced with MV'!R12 -> 28.875 | T53: ='All MV replaced with MV'!S12 -> 28.875 | U53: ='All MV replaced with MV'!T12 -> 28.875
A54: HP Sodium 50W | B54: =A$43 -> HP Sodium 150W | D54: 0.4433450671 | E54: 46.14 | F54: 94 | G54: 95 | H54: 95 | I54: 95 | J54: 96.06408428 | K54: 0 | L54: 0 | M54: 0 | N54: 0 | O54: 0 | P54: 0 | Q54: 0 | R54: 0 | S54: 0 | T54: 0 | U54: 0
A66: Total Existing Lights | F66: =SUM(F42:F65) -> 83073.55 | G66: 83469.63333 | H66: 83950.28333 | I66: 82553.16667 | J66: 74858.41715 | K66: 59763 | L66: 45062 | M66: 52521 | N66: 52521 | O66: 52181.7795 | P66: 49295.88383 | Q66: 48253.6886 | R66: 47228.8687 | S66: 46225.75905 | T66: 45247.75745 | U66: 44284.12774
A68: Energy Efficient Lights | B68: Reference Light | D68: Price Factor
A69: T5 2X14W | B69: =A$69 -> T5 2X14W | D69: 1 | E69: 35.6 | F69: 3208.75 | G69: 5202.25 | H69: 6045.833333 | I69: 8439.583333 | J69: 11516.80288 | K69: 21929 | L69: 21271 | M69: 20924 | N69: 20924 | O69: 20924 | P69: 20924 | Q69: 20924 | R69: 20924 | S69: 20924 | T69: 20924 | U69: 20924
A70: T5 2X24W | B70: =A$70 -> T5 2X24W | D70: 1 | E70: 42.08 | F70: 105.1666667 | G70: 277 | H70: 352.4166667 | I70: 542.9166667 | J70: 932.7493248 | K70: 1690 | L70: 1584 | M70: 1649 | N70: 1649 | O70: 1649 | P70: 1649 | Q70: 1649 | R70: 1649 | S70: 1649 | T70: 1649 | U70: 1649
A71: LED 18W | B71: =A$71 -> LED 18W | D71: 1 | E71: 16.27 | F71: 0 | G71: 0 | H71: 0 | I71: 0 | J71: 2982.688731 | K71: 12368 | L71: 23946 | M71: 28428 | N71: 30858.25866 | O71: 33347.51667 | P71: 36672.69584 | Q71: ='All MV replaced with MV'!P17 -> 39025.71927 | R71: ='All MV replaced with MV'!Q17 -> 41441.95311 | S71: ='All MV replaced with MV'!R17 -> 43923.16229 | T71: ='All MV replaced with MV'!S17 -> 46442.10922 | U71: ='All MV replaced with MV'!T17 -> 48965.85891
A72: LED 14W | B72: =A72 -> LED 14W | D72: 1 | E72: 16.27 | K72: 0 | L72: 0 | M72: 14 | N72: 14 | O72: 14 | P72: 14 | Q72: 14 | R72: 14 | S72: 14 | T72: 14 | U72: 14
A73: LED 70W-125W (L1) | B73: =A73 -> LED 70W-125W (L1) | D73: 1 | E73: 23.59 | K73: 0 | L73: 0 | M73: 770 | N73: 1294.389937 | O73: 1833.421779 | P73: 2130.129127 | Q73: ='All MV replaced with MV'!P18 -> 2649.843535 | R73: ='All MV replaced with MV'!Q18 -> 3373.940876 | S73: ='All MV replaced with MV'!R18 -> 4114.163192 | T73: ='All MV replaced with MV'!S18 -> 4703.316583 | U73: ='All MV replaced with MV'!T18 -> 5321.923518
A74: LED 155W-250W (L2) | B74: LED 155W-250W (L2) | D74: 1 | E74: 24.3 | K74: 0 | L74: 0 | M74: 301 | N74: 710.4657487 | O74: 1130.583486 | P74: 1905.893735 | Q74: ='All MV replaced with MV'!P19 -> 3163.141167 | R74: ='All MV replaced with MV'!Q19 -> 4359.19744 | S74: ='All MV replaced with MV'!R19 -> 5494.512643 | T74: ='All MV replaced with MV'!S19 -> 6700.875761 | U74: ='All MV replaced with MV'!T19 -> 8008.544071
A75: LED 275W-400W (L4) | B75: LED 275W-400W (L4) | D75: 1 | E75: 25.83 | K75: 0 | L75: 0 | M75: 0 | N75: 23.6752082 | O75: 47.85616961 | P75: 85.47699696 | Q75: ='All MV replaced with MV'!P20 -> 110.3973969 | R75: ='All MV replaced with MV'!Q20 -> 135.8596481 | S75: ='All MV replaced with MV'!R20 -> 161.8788798 | T75: ='All MV replaced with MV'!S20 -> 188.4706441 | U75: ='All MV replaced with MV'!T20 -> 215.352616
A76: Compact Fluorescent 32W | B76: =A$69 -> T5 2X14W | D76: 0.8796098925 | E76: 31.59 | F76: 1978.933333 | G76: 2125.083333 | H76: 2279.5 | I76: 2420.833333 | J76: 4159.074119 | K76: 2908 | L76: 2707 | M76: 2849 | N76: 2849 | O76: 2849 | P76: 2849 | Q76: 2849 | R76: 2849 | S76: 2849 | T76: 2849 | U76: 2849
A77: Compact Fluorescent 42W | B77: T5 2X14W | D77: 0.8796098925 | E77: 31.59 | F77: 245.5 | G77: 366.3333333 | H77: 572.1666667 | I77: 791.0833333 | J77: 1359.108111 | K77: 1570 | L77: 1336 | M77: 1361 | N77: 1361 | O77: 1361 | P77: 1361 | Q77: 1361 | R77: 1361 | S77: 1361 | T77: 1361 | U77: 1361
A78: Total Energy Efficient Lights | F78: =SUM(F69:F77) -> 5538.35 | G78: 7970.666667 | H78: 9249.916667 | I78: 12194.41667 | J78: =SUM(J69:J77) -> 20950.42317 | K78: 40465 | L78: 50844 | M78: 56296 | N78: 59683.78955 | O78: 63156.3781 | P78: 67591.1957 | Q78: 71746.10137 | R78: 76107.95107 | S78: 80490.717 | T78: 84831.77221 | U78: 89308.67912
A80: Total Number of Lights | F80: =SUM(F66,F78) -> 88611.9 | G80: 91440.3 | H80: 93200.2 | I80: 94747.58333 | J80: =SUM(J66,J78) -> 95808.84032 | K80: 100228 | L80: 95906 | M80: 108817 | N80: 112204.7896 | O80: 115338.1576 | P80: 116887.0795 | Q80: 119999.79 | R80: 123336.8198 | S80: 126716.4761 | T80: 130079.5297 | U80: 133592.8069
A83: Number Of Lights | B83: North & East | E83: HY2021 | F83: =F$2 -> 2011 | G83: 2012 | H83: 2013 | I83: 2014 | J83: =J$2 -> 2015 | K83: =K$2 -> 2016 | L83: 2017 | M83: 2018 | N83: 2019 | O83: 2020 | P83: HY2021 | Q83: 2022-06-30 | R83: 2023-06-30 | S83: 2024-06-30 | T83: 2025-06-30 | U83: 2026-06-30
E84: Actual Prices | F84: Actual Volumes | P84: Forecast Volumes
A85: Existing Lights | B85: Reference Light | D85: Price Factor
A86: Mercury Vapour 80W | B86: =A$86 -> Mercury Vapour 80W | D86: 1 | E86: 49.95 | F86: 28734.83333 | G86: 28906.48333 | H86: 28889.05 | I86: 26233.91667 | J86: 22548.59584 | K86: 6984 | L86: 8177 | M86: 9280 | N86: 9115.744 | O86: 8954.395331 | P86: 7835.095915 | Q86: ='All MV replaced with MV'!P24 -> 7835.095915 | R86: ='All MV replaced with MV'!Q24 -> 7835.095915 | S86: ='All MV replaced with MV'!R24 -> 7835.095915 | T86: ='All MV replaced with MV'!S24 -> 7835.095915 | U86: ='All MV replaced with MV'!T24 -> 7835.095915
A87: HP Sodium 150W | B87: =A$87 -> HP Sodium 150W | D87: 1 | E87: 118.4 | F87: 4571.583333 | G87: 4712.166667 | H87: 4750.25 | I87: 4824.416667 | J87: 4878.454413 | K87: 5333 | L87: 7159 | M87: 9474 | N87: 9474 | O87: 9474 | P87: 9297.269775 | Q87: 8948.00904 | R87: 8607.069153 | S87: 8274.296155 | T87: 7949.541324 | U87: 7628.758904
A88: HP Sodium 250W | B88: =A$88 -> HP Sodium 250W | D88: 1 | E88: 117.12 | F88: 4504.7 | G88: 4586.866667 | H88: 4654.616667 | I88: 4713.483333 | J88: 4766.278528 | K88: 5034 | L88: 5363 | M88: 8400 | N88: 8400 | O88: 8400 | P88: 8256.69522 | Q88: 7977.41353 | R88: 7708.397236 | S88: 7445.194582 | T88: 7187.6801 | U88: 6932.97768
A89: Mercury Vapour 50W | B89: =A$86 -> Mercury Vapour 80W | D89: 1.48 | E89: 73.93 | F89: 376.75 | G89: 367.75 | H89: 363.1666667 | I89: 289.4166667 | J89: 292.6583901 | K89: 146 | L89: 128 | M89: 97 | N89: 95.2831 | O89: 93.59658913 | P89: 81.89701549 | Q89: ='All MV replaced with MV'!P25 -> 81.89701549 | R89: ='All MV replaced with MV'!Q25 -> 81.89701549 | S89: ='All MV replaced with MV'!R25 -> 81.89701549 | T89: ='All MV replaced with MV'!S25 -> 81.89701549 | U89: ='All MV replaced with MV'!T25 -> 81.89701549
A90: Mercury Vapour 125W | B90: =A$86 -> Mercury Vapour 80W | D90: 1.48 | E90: 73.93 | F90: 62 | G90: 62.08333333 | H90: 60.33333333 | I90: 54.58333333 | J90: 55.19471509 | K90: 26 | L90: 21 | M90: 32 | N90: 31.4336 | O90: 30.87722528 | P90: 27.01757212 | Q90: ='All MV replaced with MV'!P26 -> 27.01757212 | R90: ='All MV replaced with MV'!Q26 -> 27.01757212 | S90: ='All MV replaced with MV'!R26 -> 27.01757212 | T90: ='All MV replaced with MV'!S26 -> 27.01757212 | U90: ='All MV replaced with MV'!T26 -> 27.01757212
A91: Mercury Vapour 250W | B91: =A$88 -> HP Sodium 250W | D91: 1.04 | E91: 121.81 | F91: 433.85 | G91: 433.2833333 | H91: 427.8 | I91: 417.6833333 | J91: 422.3617572 | K91: 277 | L91: 275 | M91: 438 | N91: 430.2474 | O91: 422.632021 | P91: 369.8030184 | Q91: ='All MV replaced with MV'!P27 -> 369.8030184 | R91: ='All MV replaced with MV'!Q27 -> 369.8030184 | S91: ='All MV replaced with MV'!R27 -> 369.8030184 | T91: ='All MV replaced with MV'!S27 -> 369.8030184 | U91: ='All MV replaced with MV'!T27 -> 369.8030184
A92: Mercury Vapour 400W | B92: =A$88 -> HP Sodium 250W | D92: 1.07 | E92: 125.32 | F92: 132 | G92: 131.3333333 | H92: 127.6666667 | I92: 123.1666667 | J92: 124.5462426 | K92: 92 | L92: 91 | M92: 148 | N92: 145.3804 | O92: 142.8071669 | P92: 124.9562711 | Q92: ='All MV replaced with MV'!P28 -> 124.9562711 | R92: ='All MV replaced with MV'!Q28 -> 124.9562711 | S92: ='All MV replaced with MV'!R28 -> 124.9562711 | T92: ='All MV replaced with MV'!S28 -> 124.9562711 | U92: ='All MV replaced with MV'!T28 -> 124.9562711
A93: HP Sodium 100W | B93: =A$87 -> HP Sodium 150W | D93: 1.07 | E93: 126.69 | F93: 143.9166667 | G93: 196.8333333 | H93: 222.9166667 | I93: 248.5 | J93: 251.2834205 | K93: 244 | L93: 729 | M93: 778 | N93: 778 | O93: 778 | P93: 773.1578118 | Q93: 763.4734354 | R93: 753.7890591 | S93: 744.1046827 | T93: 734.4203063 | U93: 724.73593
A94: HP Sodium 400W | B94: =A$88 -> HP Sodium 250W | D94: 1.42 | E94: 166.31 | F94: 299.0833333 | G94: 310.4166667 | H94: 321.5 | I94: 330.0833333 | J94: 333.7805595 | K94: 349 | L94: 361 | M94: 517 | N94: 517 | O94: 517 | P94: 513.7822477 | Q94: 507.3467431 | R94: 500.9112385 | S94: 494.4757339 | T94: 488.0402293 | U94: 481.6047247
A95: Metal Halide 70W | B95: =A$86 -> Mercury Vapour 80W | D95: 3.804442037 | E95: 190.05 | F95: 0 | G95: 0 | H95: 0 | I95: 0 | J95: 0 | K95: 0 | L95: 0 | M95: 0 | N95: 0 | O95: 0 | P95: 0 | Q95: 0 | R95: 0 | S95: 0 | T95: 0 | U95: 0
A96: Metal Halide 100W | B96: =A$87 -> HP Sodium 150W | D96: 2.11804911 | E96: 250.78 | F96: 0 | G96: 0 | H96: 0 | I96: 0 | J96: 0 | K96: 0 | L96: 0 | M96: 0 | N96: 0 | O96: 0 | P96: 0 | Q96: ='All MV replaced with MV'!P31 -> 0 | R96: ='All MV replaced with MV'!Q31 -> 0 | S96: ='All MV replaced with MV'!R31 -> 0 | T96: ='All MV replaced with MV'!S31 -> 0 | U96: ='All MV replaced with MV'!T31 -> 0
A97: Metal Halide 150W | B97: =A$87 -> HP Sodium 150W | D97: 2.406294827 | E97: 284.91 | F97: 0 | G97: 0 | H97: 0 | I97: 0 | J97: 0 | K97: 0 | L97: 0 | M97: 0 | N97: 0 | O97: 0 | P97: 0 | Q97: ='All MV replaced with MV'!P32 -> 0 | R97: ='All MV replaced with MV'!Q32 -> 0 | S97: ='All MV replaced with MV'!R32 -> 0 | T97: ='All MV replaced with MV'!S32 -> 0 | U97: ='All MV replaced with MV'!T32 -> 0
A98: =A54 -> HP Sodium 50W | B98: =A$87 -> HP Sodium 150W | D98: 0.4547295587 | E98: 53.84 | F98: 0 | G98: 0 | H98: 0 | I98: 0 | J98: 0 | K98: 0 | L98: 0 | M98: 0 | N98: 0 | O98: 0 | P98: 0 | Q98: 0 | R98: 0 | S98: 0 | T98: 0 | U98: 0
A110: Total Existing Lights | F110: =SUM(F86:F109) -> 39258.71667 | G110: 39707.21667 | H110: 39817.3 | I110: 37235.25 | J110: =SUM(J86:J109) -> 33673.15386 | K110: 18485 | L110: 22304 | M110: 29164 | N110: 28987.0885 | O110: 28813.30833 | P110: 27279.67485 | Q110: 26635.01254 | R110: 26008.93648 | S110: 25396.84095 | T110: 24798.45175 | U110: 24206.84703
A112: Energy Efficient Lights | B112: Reference Light | D112: Price Factor
A113: T5 2X14W | B113: =A$113 -> T5 2X14W | D113: 1 | E113: 40.6 | F113: 64.75 | G113: 140 | H113: 249.5833333 | I113: 3014.583333 | J113: 5220.598408 | K113: 7036 | L113: 8015 | M113: 7921 | N113: 7921 | O113: 7921 | P113: 7921 | Q113: 7921 | R113: 7921 | S113: 7921 | T113: 7921 | U113: 7921
A114: T5 2X24W | B114: =A$114 -> T5 2X24W | D114: 1 | E114: 47.91 | F114: 36.5 | G114: 44.33333333 | H114: 64.41666667 | I114: 93.5 | J114: 128.2344074 | K114: 1002 | L114: 1159 | M114: 1150 | N114: 1150 | O114: 1150 | P114: 1150 | Q114: 1150 | R114: 1150 | S114: 1150 | T114: 1150 | U114: 1150
A115: LED 18W | B115: =A$115 -> LED 18W | D115: 1 | E115: 16.74 | F115: 0 | G115: 0 | H115: 0 | I115: 0 | J115: 33.68712443 | K115: 14920 | L115: 19876 | M115: 20779 | N115: 21786.75379 | O115: 22806.76125 | P115: 24327.5201 | Q115: ='All MV replaced with MV'!P37 -> 25115.66923 | R115: ='All MV replaced with MV'!Q37 -> 25921.27017 | S115: ='All MV replaced with MV'!R37 -> 26745.21318 | T115: ='All MV replaced with MV'!S37 -> 27583.53757 | U115: ='All MV replaced with MV'!T37 -> 28426.72367
A116: LED 14W | B116: =A116 -> LED 14W | D116: 1 | E116: 16.74 | K116: 0 | L116: 0 | M116: 11 | N116: 11 | O116: 11 | P116: 11 | Q116: 11 | R116: 11 | S116: 11 | T116: 11 | U116: 11
A117: LED 70W-125W (L1) | B117: =A117 -> LED 70W-125W (L1) | D117: 1 | E117: 24.09 | K117: 0 | L117: 0 | M117: 171 | N117: 332.3012756 | O117: 497.2095361 | P117: 586.3496764 | Q117: ='All MV replaced with MV'!P38 -> 758.7957036 | R117: ='All MV replaced with MV'!Q38 -> 935.0539898 | S117: ='All MV replaced with MV'!R38 -> 1115.209784 | T117: ='All MV replaced with MV'!S38 -> 1303.209895 | U117: ='All MV replaced with MV'!T38 -> 1497.08402
A118: LED 155W-250W (L2) | B118: LED 155W-250W (L2) | D118: 1 | E118: 24.89 | K118: 0 | L118: 0 | M118: 239 | N118: 390.8021439 | O118: 557.6155351 | P118: 1058.882841 | Q118: ='All MV replaced with MV'!P39 -> 1939.793265 | R118: ='All MV replaced with MV'!Q39 -> 2788.877436 | S118: ='All MV replaced with MV'!R39 -> 3606.347021 | T118: ='All MV replaced with MV'!S39 -> 4445.241631 | U118: ='All MV replaced with MV'!T39 -> 5321.315784
A119: LED 275W-400W (L4) | B119: LED 275W-400W (L4) | D119: 1 | E119: 26.37 | K119: 0 | L119: 0 | M119: 15 | N119: 46.84712489 | O119: 58.21716048 | P119: 85.09795361 | Q119: ='All MV replaced with MV'!P40 -> 103.2877181 | R119: ='All MV replaced with MV'!Q40 -> 121.7403288 | S119: ='All MV replaced with MV'!R40 -> 140.4616636 | T119: ='All MV replaced with MV'!S40 -> 159.4577315 | U119: ='All MV replaced with MV'!T40 -> 178.5926848
A120: Compact Fluorescent 32W | B120: =A$113 -> T5 2X14W | D120: 0.8796098925 | E120: 36.13 | F120: 180.5833333 | G120: 291.75 | H120: 405.75 | I120: 536.5833333 | J120: 929.2448693 | K120: 640 | L120: 718 | M120: 671 | N120: 671 | O120: 671 | P120: 671 | Q120: 671 | R120: 671 | S120: 671 | T120: 671 | U120: 671
A121: Compact Fluorescent 42W | B121: T5 2X14W | D121: 0.8796098925 | E121: 36.13 | F121: 709.1666667 | G121: 1220.083333 | H121: 1602.333333 | I121: 1877.5 | J121: 3251.418995 | K121: 2614 | L121: 3222 | M121: 3295 | N121: 3295 | O121: 3295 | P121: 3295 | Q121: 3295 | R121: 3295 | S121: 3295 | T121: 3295 | U121: 3295
A122: Total Energy Efficient Lights | F122: =SUM(F113:F121) -> 991 | G122: 1696.166667 | H122: 2322.083333 | I122: 5522.166667 | J122: =SUM(J113:J121) -> 9563.183804 | K122: 26212 | L122: 32990 | M122: 34252 | N122: 35604.70433 | O122: 36967.80348 | P122: 39105.85057 | Q122: 40965.54592 | R122: 42814.94193 | S122: 44655.23165 | T122: 46539.44682 | U122: 48471.71616
A124: Total Number of Lights | F124: =SUM(F110,F122) -> 40249.71667 | G124: 41403.38333 | H124: 42139.38333 | I124: 42757.41667 | J124: =SUM(J110,J122) -> 43236.33767 | K124: 44697 | L124: 55294 | M124: 63416 | N124: 64591.79283 | O124: 65781.11181 | P124: 66385.52542 | Q124: 67600.55846 | R124: 68823.87841 | S124: 70052.07259 | T124: 71337.89858 | U124: 72678.56319
Q127: =Q2 -> 2022-06-30 | R127: =R2 -> 2023-06-30 | S127: 2024-06-30 | T127: 2025-06-30 | U127: 2026-06-30
P128: Real Labour Escalation | Q128: 0.002386775912 | R128: -0.00249773643 | S128: -0.0007263065631 | T128: 0.003672748249 | U128: 0.009965933609

Sheet DNSP Inputs O & M
A1: Public Lighting Cost Build-up Model
A3: AusNet | C3: O & M Data Inputs
C5: Real 2021 $
A7: Input parameters | C7: ='DNSP Inputs General'!P2 -> HY2021 | D7: ='DNSP Inputs General'!Q2 -> 2022-06-30 | E7: ='DNSP Inputs General'!R2 -> 2023-06-30 | F7: ='DNSP Inputs General'!S2 -> 2024-06-30 | G7: ='DNSP Inputs General'!T2 -> 2025-06-30 | H7: ='DNSP Inputs General'!U2 -> 2026-06-30
A9: Inputs - all lamps
A11: Material premium for rural areas | C11: 0.05 | D11: 0.05 | E11: 0.05 | F11: 0.05 | G11: 0.05 | H11: 0.05
A12: Labour rate (per hour) | C12: 105.1461393 | D12: 111.3622324 | E12: =D12*(1+'DNSP Inputs General'!R$128) -> 111.0840789 | F12: =E12*(1+'DNSP Inputs General'!S$128) -> 111.0033978 | G12: =F12*(1+'DNSP Inputs General'!T$128) -> 111.4110853 | H12: =G12*(1+'DNSP Inputs General'!U$128) -> 112.5214008 | L12: 111.3622324 | M12: 111.3622324 | N12: 111.3622324 | O12: 111.3622324
A13: Labour rate for night patrols (per hour) | C13: 131.4292303 | D13: 143.4781359 | E13: =D13*(1+'DNSP Inputs General'!R$128) -> 143.1197653 | F13: =E13*(1+'DNSP Inputs General'!S$128) -> 143.0158165 | G13: =F13*(1+'DNSP Inputs General'!T$128) -> 143.5410776 | H13: =G13*(1+'DNSP Inputs General'!U$128) -> 144.9715984 | L13: 143.4781359 | M13: 143.4781359 | N13: 143.4781359 | O13: 143.4781359
A14: Elevated platform vehicle (per hour) - urban MV,urban T5 | C14: 49.79045722 | D14: 50.18 | E14: 50.18 | F14: 50.18 | G14: 50.18 | H14: 50.18 | K14: 72.59435996 | L14: 72.59435996 | M14: 72.59435996 | N14: 72.59435996 | O14: 72.59435996
A15: Elevated platform vehicle (per hour) - rural MV, rural T5, S-HP | C15: 89.9713562 | D15: 63.64 | E15: 63.64 | F15: 63.64 | G15: 63.64 | H15: 63.64 | K15: 103.7167592 | L15: 103.7167592 | M15: 103.7167592 | N15: 103.7167592 | O15: 103.7167592
A16: Patrol vehicle (per hour) | C16: 34.1064632 | D16: 34.37 | E16: 34.37 | F16: 34.37 | G16: 34.37 | H16: 34.37 | K16: 39.54063229 | L16: 39.54063229 | M16: 39.54063229 | N16: 39.54063229 | O16: 39.54063229
A17: Number of hours in a day | C17: 8 | D17: 7.5 | E17: 7.5 | F17: 7.5 | G17: 7.5 | H17: 7.5
A18: Indirect overheads | C18: 0.25 | D18: 0.25 | E18: 0.25 | F18: 0.25 | G18: 0.25 | H18: 0.25
A22: Inputs - MV80
A24: Depreciation period | B24: years | C24: 20 | D24: =C24 -> 20 | E24: =D24 -> 20 | F24: =E24 -> 20 | G24: =F24 -> 20 | H24: =G24 -> 20
A25: Lamps - bulk change | B25: years | C25: 4 | D25: 4 | E25: 4 | F25: 4 | G25: 4 | H25: 4
A26: PE cells - bulk change | B26: years | C26: 8 | D26: 8 | E26: 8 | F26: 8 | G26: 8 | H26: 8
A27: Proportion of lamps that fail between bulk change | C27: 0.107 | D27: 0.1941685018 | E27: 0.1941685018 | F27: 0.1941685018 | G27: 0.1941685018 | H27: 0.1941685018
A28: Unit cost - lamp | C28: 6.111746931 | D28: 4.71 | E28: 4.71 | F28: 4.71 | G28: 4.71 | H28: 4.71
A29: Unit cost - PE cell | C29: 24.67380676 | D29: 15.12 | E29: 15.12 | F29: 15.12 | G29: 15.12 | H29: 15.12
A30: Unit cost - luminaire | C30: 212.0348253 | D30: 116.85 | E30: 116.85 | F30: 116.85 | G30: 116.85 | H30: 116.85
A31: Unit cost - miscellaneous materials (bulk lamp) | C31: 1.3373337 | D31: 1.347645671 | E31: 1.347645671 | F31: 1.347645671 | G31: 1.347645671 | H31: 1.347645671
A32: Unit cost - miscellaneous materials (repair) | C32: 13.373337 | D32: 13.47645671 | E32: 13.47645671 | F32: 13.47645671 | G32: 13.47645671 | H32: 13.47645671
A33: Number of men in crew | C33: 2 | D33: 2 | E33: 2 | F33: 2 | G33: 2 | H33: 2
A34: Number of bulk lamp changes in 1 day - urban | C34: 85 | D34: 86 | E34: 86 | F34: 86 | G34: 86 | H34: 86 | K34: 66 | L34: 66 | M34: 66 | N34: 66 | O34: 66
A35: Number of bulk lamp changes in 1 day - rural | C35: 70 | D35: 72 | E35: 72 | F35: 72 | G35: 72 | H35: 72 | K35: 54 | L35: 54 | M35: 54 | N35: 54 | O35: 54
A36: Number of bulk lamp changes in 1 day - remote | C36: 50 | D36: 60 | E36: 60 | F36: 60 | G36: 60 | H36: 60 | K36: 37 | L36: 37 | M36: 37 | N36: 37 | O36: 37
A37: Number of repairs in 1 day - urban | C37: 20 | D37: 28.8 | E37: 28.8 | F37: 28.8 | G37: 28.8 | H37: 28.8 | K37: 18 | L37: 18 | M37: 18 | N37: 18 | O37: 18
A38: Number of repairs in 1 day - rural | C38: 15 | D38: 24 | E38: 24 | F38: 24 | G38: 24 | H38: 24 | K38: 14 | L38: 14 | M38: 14 | N38: 14 | O38: 14
A39: Number of repairs in 1 day - remote | C39: 10 | D39: 19.2 | E39: 19.2 | F39: 19.2 | G39: 19.2 | H39: 19.2 | K39: 10 | L39: 10 | M39: 10 | N39: 10 | O39: 10
A40: % of repairs - lamps | C40: 0.6 | D40: 0.6 | E40: 0.6 | F40: 0.6 | G40: 0.6 | H40: 0.6
A41: % of repairs - PE cells | C41: 0.5 | D41: 0.5 | E41: 0.5 | F41: 0.5 | G41: 0.5 | H41: 0.5
A42: % of repairs - luminaires | C42: 0.15 | D42: 0.15 | E42: 0.15 | F42: 0.15 | G42: 0.15 | H42: 0.15
A43: % of repairs - other | C43: 0.1 | D43: 0.1 | E43: 0.1 | F43: 0.1 | G43: 0.1 | H43: 0.1
A45: Other Maintenance and Repair costs
A46: Traffic control costs | C46: 6771.147526 | D46: =D49*D50-D47 -> 48223.0884 | E46: =E49*E50-E47 -> 48223.0884 | F46: 48223.0884 | G46: 48223.0884 | H46: 48223.0884
A47: Other costs : Describe……………………………………. | C47: 0 | D47: 0 | E47: 0 | F47: 0 | G47: 0 | H47: 0
C48: =SUM(C46:C47) -> 6771.147526 | D48: 48223.0884 | E48: 48223.0884 | F48: 48223.0884 | G48: 48223.0884 | H48: 48223.0884
A49: Number of Lights | C49: =C48/C50 -> 34321.64001 | D49: =SUM('DNSP Inputs General'!Q42,'DNSP Inputs General'!Q86) -> 22963.37543 | E49: =SUM('DNSP Inputs General'!R42,'DNSP Inputs General'!R86) -> 22963.37543 | F49: =SUM('DNSP Inputs General'!S42,'DNSP Inputs General'!S86) -> 22963.37543 | G49: =SUM('DNSP Inputs General'!T42,'DNSP Inputs General'!T86) -> 22963.37543 | H49: =SUM('DNSP Inputs General'!U42,'DNSP Inputs General'!U86) -> 22963.37543
A50: Unit Cost | C50: 0.1972850809 | D50: 2.1 | E50: 2.1 | F50: 2.1 | G50: 2.1 | H50: 2.1 | K50: 2.1 | L50: 2.1 | M50: 2.1 | N50: 2.1 | O50: 2.1
A52: Other O & M costs specific to North/East zone
A53: Other N\E O & M costs : Describe……………………………………. | C53: 2873.472555 | D53: =D54*D55 -> 7678.393997 | E53: =E54*E55 -> 7678.393997 | F53: 7678.393997 | G53: 7678.393997 | H53: 7678.393997
A54: Number of Lights | C54: =C53/C55 -> 10840.22244 | D54: ='DNSP Inputs General'!Q86 -> 7835.095915 | E54: ='DNSP Inputs General'!R86 -> 7835.095915 | F54: ='DNSP Inputs General'!S86 -> 7835.095915 | G54: ='DNSP Inputs General'!T86 -> 7835.095915 | H54: ='DNSP Inputs General'!U86 -> 7835.095915
A55: Unit Cost | C55: 0.2650750546 | D55: 0.98 | E55: 0.98 | F55: 0.98 | G55: 0.98 | H55: 0.98 | K55: 0.98 | L55: 0.98 | M55: 0.98 | N55: 0.98 | O55: 0.98
A57: Location of selected public lighting assets within distributors' areas (%)
A58: SP AusNet - Central
A59: Urban | C59: 0.96 | D59: 0.96 | E59: 0.96 | F59: 0.96 | G59: 0.96 | H59: 0.96
A60: Rural | C60: 0.04 | D60: 0.04 | E60: 0.04 | F60: 0.04 | G60: 0.04 | H60: 0.04
A61: Remote | C61: 0 | D61: 0 | E61: 0 | F61: 0 | G61: 0 | H61: 0
A63: SP AusNet - North/East
A64: Urban | C64: 0.35 | D64: 0.35 | E64: 0.35 | F64: 0.35 | G64: 0.35 | H64: 0.35
A65: Rural | C65: 0.53 | D65: 0.53 | E65: 0.53 | F65: 0.53 | G65: 0.53 | H65: 0.53
A66: Remote | C66: 0.12 | D66: 0.12 | E66: 0.12 | F66: 0.12 | G66: 0.12 | H66: 0.12
A70: Inputs - S-HP150
A72: Depreciation period | B72: years | C72: 20 | D72: =C72 -> 20 | E72: =D72 -> 20 | F72: =E72 -> 20 | G72: =F72 -> 20 | H72: =G72 -> 20
A73: Number of patrols per year | C73: 3 | D73: 3 | E73: 3 | F73: 3 | G73: 3 | H73: 3
A74: Lamps - frequency of replacement | B74: years | C74: 5 | D74: 5 | E74: 5 | F74: 5 | G74: 5 | H74: 5
A75: PE cells - frequency of replacement | B75: years | C75: 10 | D75: 10 | E75: 10 | F75: 10 | G75: 10 | H75: 10
A76: Unit cost - lamp | C76: 44.19769594 | D76: 19.33 | E76: 19.33 | F76: 19.33 | G76: 19.33 | H76: 19.33
A77: Unit cost - PE cell | C77: 24.00513991 | D77: 15.12 | E77: 15.12 | F77: 15.12 | G77: 15.12 | H77: 15.12
A78: Unit cost - miscellaneous materials | C78: 2.6746674 | D78: 2.695291341 | E78: 2.695291341 | F78: 2.695291341 | G78: 2.695291341 | H78: 2.695291341
A79: Number of men in crew - road patrols | C79: 2 | D79: 2 | E79: 2 | F79: 2 | G79: 2 | H79: 2
A80: Number of men in crew - repairs | C80: 2 | D80: 2 | E80: 2 | F80: 2 | G80: 2 | H80: 2
A81: Number of lamps patrolled in 1 day - urban | C81: 3000 | D81: 3000 | E81: 3000 | F81: 3000 | G81: 3000 | H81: 3000
A82: Number of lamps patrolled in 1 day - rural | C82: 2000 | D82: 2000 | E82: 2000 | F82: 2000 | G82: 2000 | H82: 2000
A83: Number of lamps patrolled in 1 day - remote | C83: 1000 | D83: 1000 | E83: 1000 | F83: 1000 | G83: 1000 | H83: 1000
A84: Number of repairs in 1 day - urban | C84: 15 | D84: 15 | E84: 15 | F84: 15 | G84: 15 | H84: 15
A85: Number of repairs in 1 day - rural | C85: 12 | D85: 11 | E85: 11 | F85: 11 | G85: 11 | H85: 11
A86: Number of repairs in 1 day - remote | C86: 9 | D86: 9 | E86: 9 | F86: 9 | G86: 9 | H86: 9
A88: Other Maintenance and Repair costs
A89: Traffic control costs | C89: 4101.281743 | D89: 54736.60844 | E89: 52834.47495 | F89: 50974.88941 | G89: 49156.95647 | H89: 47359.62851
A90: Other costs : Describe……………………………………. | C90: 995.8091444 | D90: 0 | E90: 0 | F90: 0 | G90: 0 | H90: 0
C91: =SUM(C89:C90) -> 5097.090887 | D91: 54736.60844 | E91: 52834.47495 | F91: 50974.88941 | G91: 49156.95647 | H91: 47359.62851
A92: Number of Lights | C92: =C91/C93 -> 20788.60563 | D92: =SUM('DNSP Inputs General'!Q43,'DNSP Inputs General'!Q87) -> 26065.05164 | E92: =SUM('DNSP Inputs General'!R43,'DNSP Inputs General'!R87) -> 25159.27378 | F92: =SUM('DNSP Inputs General'!S43,'DNSP Inputs General'!S87) -> 24273.75686 | G92: =SUM('DNSP Inputs General'!T43,'DNSP Inputs General'!T87) -> 23408.07451 | H92: =SUM('DNSP Inputs General'!U43,'DNSP Inputs General'!U87) -> 22552.20405
A93: Unit Cost | C93: 0.2451867614 | D93: =D91/D92 -> 2.1 | E93: =E91/E92 -> 2.1 | F93: =F91/F92 -> 2.1 | G93: =G91/G92 -> 2.1 | H93: =H91/H92 -> 2.1
A95: Other O & M costs specific to North/East zone
A96: Other N\E O & M costs : Describe……………………………………. | C96: 1401.119488 | D96: 8769.04886 | E96: 8434.92777 | F96: 8108.810232 | G96: 7790.550498 | H96: 7476.183726
A97: Number of Lights | C97: =C96/C98 -> 5285.746296 | D97: ='DNSP Inputs General'!Q87 -> 8948.00904 | E97: ='DNSP Inputs General'!R87 -> 8607.069153 | F97: ='DNSP Inputs General'!S87 -> 8274.296155 | G97: ='DNSP Inputs General'!T87 -> 7949.541324 | H97: ='DNSP Inputs General'!U87 -> 7628.758904
A98: Unit Cost | C98: 0.2650750546 | D98: =D96/D97 -> 0.98 | E98: =E96/E97 -> 0.98 | F98: =F96/F97 -> 0.98 | G98: =G96/G97 -> 0.98 | H98: =H96/H97 -> 0.98
A100: Location of selected public lighting assets within distributors' areas (%)
A101: SP AusNet - Central
A102: Urban | C102: 0.94 | D102: 0.94 | E102: 0.94 | F102: 0.94 | G102: 0.94 | H102: 0.94
A103: Rural | C103: 0.06 | D103: 0.06 | E103: 0.06 | F103: 0.06 | G103: 0.06 | H103: 0.06
A104: Remote | C104: 0 | D104: 0 | E104: 0 | F104: 0 | G104: 0 | H104: 0
A106: SP AusNet - North/East
A107: Urban | C107: 0.3 | D107: 0.3 | E107: 0.3 | F107: 0.3 | G107: 0.3 | H107: 0.3
A108: Rural | C108: 0.63 | D108: 0.63 | E108: 0.63 | F108: 0.63 | G108: 0.63 | H108: 0.63
A109: Remote | C109: 0.07 | D109: 0.07 | E109: 0.07 | F109: 0.07 | G109: 0.07 | H109: 0.07
A113: Inputs - S-HP250
A115: Depreciation period | B115: years | C115: =C72 -> 20 | D115: =D72 -> 20 | E115: 20 | F115: 20 | G115: 20 | H115: 20
A116: Number of patrols per year | C116: =C73 -> 3 | D116: 3 | E116: 3 | F116: 3 | G116: 3 | H116: 3
A117: Lamps - frequency of replacement | B117: years | C117: =C74 -> 5 | D117: 5 | E117: 5 | F117: 5 | G117: 5 | H117: 5
A118: PE cells - frequency of replacement | B118: years | C118: =C75 -> 10 | D118: 10 | E118: 10 | F118: 10 | G118: 10 | H118: 10
A119: Unit cost - lamp | C119: 44.41714825 | D119: 21.28 | E119: 21.28 | F119: 21.28 | G119: 21.28 | H119: 21.28
A120: Unit cost - PE cell | C120: 24.00513991 | D120: 15.12 | E120: 15.12 | F120: 15.12 | G120: 15.12 | H120: 15.12
A121: Unit cost - miscellaneous materials | C121: 2.6746674 | D121: 2.548069545 | E121: 2.548069545 | F121: 2.548069545 | G121: 2.548069545 | H121: 2.548069545
A122: Number of men in crew - road patrols | C122: =C79 -> 2 | D122: 2 | E122: 2 | F122: 2 | G122: 2 | H122: 2
A123: Number of men in crew - repairs | C123: =C80 -> 2 | D123: 2 | E123: 2 | F123: 2 | G123: 2 | H123: 2
A124: Number of lamps patrolled in 1 day - urban | C124: =C81 -> 3000 | D124: 3000 | E124: 3000 | F124: 3000 | G124: 3000 | H124: 3000
A125: Number of lamps patrolled in 1 day - rural | C125: =C82 -> 2000 | D125: 2000 | E125: 2000 | F125: 2000 | G125: 2000 | H125: 2000
A126: Number of lamps patrolled in 1 day - remote | C126: =C83 -> 1000 | D126: 1000 | E126: 1000 | F126: 1000 | G126: 1000 | H126: 1000
A127: Number of repairs in 1 day - urban | C127: =C84 -> 15 | D127: 15 | E127: 15 | F127: 15 | G127: 15 | H127: 15
A128: Number of repairs in 1 day - rural | C128: =C85 -> 12 | D128: 11 | E128: 11 | F128: 11 | G128: 11 | H128: 11
A129: Number of repairs in 1 day - remote | C129: =C86 -> 9 | D129: 9 | E129: 9 | F129: 9 | G129: 9 | H129: 9
A131: Other Maintenance and Repair costs
A132: Traffic control costs | C132: 2396.601961 | D132: 41324.63412 | E132: 39886.86547 | F132: 38481.49949 | G132: 37107.85364 | H132: 35749.89366
A133: Other costs : Describe……………………………………. | C133: 995.8091444 | D133: 0 | E133: 0 | F133: 0 | G133: 0 | H133: 0
C134: =SUM(C132:C133) -> 3392.411105 | D134: 41324.63412 | E134: 39886.86547 | F134: 38481.49949 | G134: 37107.85364 | H134: 35749.89366
A135: Number of Lights | C135: =C134/C136 -> 12147.91281 | D135: =SUM('DNSP Inputs General'!Q44,'DNSP Inputs General'!Q88) -> 19678.3972 | E135: =SUM('DNSP Inputs General'!R44,'DNSP Inputs General'!R88) -> 18993.74546 | F135: =SUM('DNSP Inputs General'!S44,'DNSP Inputs General'!S88) -> 18324.52357 | G135: =SUM('DNSP Inputs General'!T44,'DNSP Inputs General'!T88) -> 17670.4065 | H135: =SUM('DNSP Inputs General'!U44,'DNSP Inputs General'!U88) -> 17023.75889
A136: Unit Cost | C136: 0.2792587631 | D136: =D134/D135 -> 2.1 | E136: =E134/E135 -> 2.1 | F136: =F134/F135 -> 2.1 | G136: =G134/G135 -> 2.1 | H136: =H134/H135 -> 2.1
A138: Other O & M costs specific to North/East zone
A139: Other N\E O & M costs : Describe……………………………………. | C139: 1368.901944 | D139: 7817.865259 | E139: 7554.229292 | F139: 7296.29069 | G139: 7043.926498 | H139: 6794.318126
A140: Number of Lights | C140: =C139/C141 -> 5164.205083 | D140: ='DNSP Inputs General'!Q88 -> 7977.41353 | E140: ='DNSP Inputs General'!R88 -> 7708.397236 | F140: ='DNSP Inputs General'!S88 -> 7445.194582 | G140: ='DNSP Inputs General'!T88 -> 7187.6801 | H140: ='DNSP Inputs General'!U88 -> 6932.97768
A141: Unit Cost | C141: 0.2650750546 | D141: =D139/D140 -> 0.98 | E141: =E139/E140 -> 0.98 | F141: =F139/F140 -> 0.98 | G141: =G139/G140 -> 0.98 | H141: =H139/H140 -> 0.98
A143: Location of selected public lighting assets within distributors' areas (%)
A144: SP AusNet - Central
A145: Urban | C145: 0.9 | D145: 0.9 | E145: 0.9 | F145: 0.9 | G145: 0.9 | H145: 0.9
A146: Rural | C146: 0.1 | D146: 0.1 | E146: 0.1 | F146: 0.1 | G146: 0.1 | H146: 0.1
A147: Remote | C147: 0 | D147: 0 | E147: 0 | F147: 0 | G147: 0 | H147: 0
A149: SP AusNet - North/East
A150: Urban | C150: 0.37 | D150: 0.37 | E150: 0.37 | F150: 0.37 | G150: 0.37 | H150: 0.37
A151: Rural | C151: 0.57 | D151: 0.57 | E151: 0.57 | F151: 0.57 | G151: 0.57 | H151: 0.57
A152: Remote | C152: 0.06 | D152: 0.06 | E152: 0.06 | F152: 0.06 | G152: 0.06 | H152: 0.06
A156: Dedicated street lighting poles
A158: Period of inspection | B158: years | C158: 5 | D158: 5 | E158: 5 | F158: 5 | G158: 5 | H158: 5
A159: Pole inspection rate | B159: per day | C159: 75 | D159: 75 | E159: 75 | F159: 75 | G159: 75 | H159: 75
A160: Depreciation of dedicated street lighting pole & bracket | B160: years | C160: 35 | D160: =C160 -> 35 | E160: =D160 -> 35 | F160: =E160 -> 35 | G160: =F160 -> 35 | H160: =G160 -> 35
A161: Proportion of lights on dedicated poles
A162: SP AusNet - Central | C162: 0.381190625 | D162: 0.381190625 | E162: 0.381190625 | F162: 0.381190625 | G162: 0.381190625 | H162: 0.381190625
A163: SP AusNet - North/East | C163: 0.3829674402 | D163: 0.3829674402 | E163: 0.3829674402 | F163: 0.3829674402 | G163: 0.3829674402 | H163: 0.3829674402
A167: Other direct costs
A168: Call centre
A169: Number of calls | C169: 4000 | D169: 4000 | E169: 4000 | F169: 4000 | G169: 4000 | H169: 4000
A170: Average cost per call $ | C170: 16.0309915 | D170: 15.61 | E170: 16.61 | F170: 17.61 | G170: 18.61 | H170: 19.61
C171: =C169*C170 -> 64123.96601 | D171: 62440 | E171: 66440 | F171: 70440 | G171: 74440 | H171: 78440
A173: GIS and other | C173: 124476.143 | D173: 118584.4151 | E173: 118584.4151 | F173: 118584.4151 | G173: 118584.4151 | H173: 118584.4151
A174: Complaints handling | C174: 37342.84291 | D174: 35575.32453 | E174: 35575.32453 | F174: 35575.32453 | G174: 35575.32453 | H174: 35575.32453
A178: ENERGY EFFICIENT LIGHTS
A180: Inputs - T5 (2 X 14W)
A182: Depreciation period | B182: years | C182: 20 | D182: =C182 -> 20 | E182: =D182 -> 20 | F182: =E182 -> 20 | G182: =F182 -> 20 | H182: =G182 -> 20
A183: Lamps - bulk change | B183: years | C183: 4 | D183: 4 | E183: 4 | F183: 4 | G183: 4 | H183: 4
A184: PE cells - bulk change | B184: years | C184: 8 | D184: 8 | E184: 8 | F184: 8 | G184: 8 | H184: 8
A185: Ballast unit life | B185: years | C185: 20 | D185: =C185 -> 20 | E185: =D185 -> 20 | F185: =E185 -> 20 | G185: =F185 -> 20 | H185: =G185 -> 20
A186: Proportion of luminaires that fail between bulk change | C186: 0.114 | D186: 0.4156563612 | E186: 0.4156563612 | F186: 0.4156563612 | G186: 0.4156563612 | H186: 0.4156563612
A187: Unit cost - lamp | C187: 10.69830028 | D187: 8.1 | E187: 8.1 | F187: 8.1 | G187: 8.1 | H187: 8.1
A188: Unit cost - PE cell | C188: 18.05400495 | D188: 15.12 | E188: 15.12 | F188: 15.12 | G188: 15.12 | H188: 15.12
A189: Unit cost - luminaire | C189: 258.1088385 | D189: 260.28 | E189: 260.28 | F189: 260.28 | G189: 260.28 | H189: 260.28
A190: Unit cost - miscellaneous materials (bulk lamp) | C190: 1.3373337 | D190: 1.347645671 | E190: 1.347645671 | F190: 1.347645671 | G190: 1.347645671 | H190: 1.347645671
A191: Unit cost - miscellaneous materials (repair) | C191: 13.373337 | D191: 13.47645671 | E191: 13.47645671 | F191: 13.47645671 | G191: 13.47645671 | H191: 13.47645671
A192: Number of men in crew | C192: 2 | D192: 2 | E192: 2 | F192: 2 | G192: 2 | H192: 2
A193: Number of bulk lamp changes in 1 day - urban | C193: 85 | D193: =D34 -> 86 | E193: =E34 -> 86 | F193: 86 | G193: 86 | H193: 86 | L193: 66 | M193: 66 | N193: 66 | O193: 66 | P193: 66
A194: Number of bulk lamp changes in 1 day - rural | C194: 70 | D194: =D35 -> 72 | E194: 72 | F194: 72 | G194: 72 | H194: 72 | L194: 54 | M194: 54 | N194: 54 | O194: 54 | P194: 54
A195: Number of bulk lamp changes in 1 day - remote | C195: 50 | D195: =D36 -> 60 | E195: 60 | F195: 60 | G195: 60 | H195: 60 | L195: 37 | M195: 37 | N195: 37 | O195: 37 | P195: 37
A196: Number of repairs in 1 day - urban | C196: 20 | D196: =D37 -> 28.8 | E196: 28.8 | F196: 28.8 | G196: 28.8 | H196: 28.8 | L196: 18 | M196: 18 | N196: 18 | O196: 18 | P196: 18
A197: Number of repairs in 1 day - rural | C197: 15 | D197: =D38 -> 24 | E197: 24 | F197: 24 | G197: 24 | H197: 24 | L197: 14 | M197: 14 | N197: 14 | O197: 14 | P197: 14
A198: Number of repairs in 1 day - remote | C198: 10 | D198: =D39 -> 19.2 | E198: 19.2 | F198: 19.2 | G198: 19.2 | H198: 19.2 | L198: 10 | M198: 10 | N198: 10 | O198: 10 | P198: 10
A199: % of repairs - lamps | C199: 0.6 | D199: 0.6 | E199: 0.6 | F199: 0.6 | G199: 0.6 | H199: 0.6
A200: % of repairs - PE cells | C200: 0.5 | D200: 0.5 | E200: 0.5 | F200: 0.5 | G200: 0.5 | H200: 0.5
A201: % of repairs - luminaires | C201: 0.15 | D201: 0 | E201: 0 | F201: 0 | G201: 0 | H201: 0
A202: % of repairs - other | C202: 0.1 | D202: 0.1 | E202: 0.1 | F202: 0.1 | G202: 0.1 | H202: 0.1
A204: Other Maintenance and Repair costs
A205: Traffic control costs | C205: 7051.275982 | D205: 30287.25 | E205: 30287.25 | F205: 30287.25 | G205: 30287.25 | H205: 30287.25
A206: Other costs : Describe……………………………………. | C206: 0 | D206: 0 | E206: 0 | F206: 0 | G206: 0 | H206: 0
C207: =SUM(C205:C206) -> 7051.275982 | D207: 30287.25 | E207: 30287.25 | F207: 30287.25 | G207: 30287.25 | H207: 30287.25
A208: Number of Lights | C208: =C207/C209 -> 35741.55709 | D208: =SUM('DNSP Inputs General'!Q69,'DNSP Inputs General'!Q113) -> 28845 | E208: =SUM('DNSP Inputs General'!R69,'DNSP Inputs General'!R113) -> 28845 | F208: =SUM('DNSP Inputs General'!S69,'DNSP Inputs General'!S113) -> 28845 | G208: =SUM('DNSP Inputs General'!T69,'DNSP Inputs General'!T113) -> 28845 | H208: =SUM('DNSP Inputs General'!U69,'DNSP Inputs General'!U113) -> 28845
A209: Unit Cost | C209: 0.1972850809 | D209: =D207/D208 -> 1.05 | E209: =E207/E208 -> 1.05 | F209: =F207/F208 -> 1.05 | G209: =G207/G208 -> 1.05 | H209: =H207/H208 -> 1.05
A211: Other O & M costs specific to North/East zone
A212: Other N\E O & M costs : Describe……………………………………. | C212: 3466.071593 | D212: 7762.58 | E212: 7762.58 | F212: 7762.58 | G212: 7762.58 | H212: 7762.58
A213: Number of Lights | C213: =C212/C214 -> 13075.81205 | D213: ='DNSP Inputs General'!Q113 -> 7921 | E213: ='DNSP Inputs General'!R113 -> 7921 | F213: ='DNSP Inputs General'!S113 -> 7921 | G213: ='DNSP Inputs General'!T113 -> 7921 | H213: ='DNSP Inputs General'!U113 -> 7921
A214: Unit Cost | C214: 0.2650750546 | D214: =D212/D213 -> 0.98 | E214: =E212/E213 -> 0.98 | F214: =F212/F213 -> 0.98 | G214: =G212/G213 -> 0.98 | H214: =H212/H213 -> 0.98
A216: Location of selected public lighting assets within distributors' areas (%)
A217: SP AusNet - Central
A218: Urban | C218: 0.96 | D218: 0.96 | E218: 0.96 | F218: 0.96 | G218: 0.96 | H218: 0.96
A219: Rural | C219: 0.04 | D219: 0.04 | E219: 0.04 | F219: 0.04 | G219: 0.04 | H219: 0.04
A220: Remote | C220: 0 | D220: 0 | E220: 0 | F220: 0 | G220: 0 | H220: 0
A222: SP AusNet - North/East
A223: Urban | C223: 0.35 | D223: 0.35 | E223: 0.35 | F223: 0.35 | G223: 0.35 | H223: 0.35
A224: Rural | C224: 0.53 | D224: 0.53 | E224: 0.53 | F224: 0.53 | G224: 0.53 | H224: 0.53
A225: Remote | C225: 0.12 | D225: 0.12 | E225: 0.12 | F225: 0.12 | G225: 0.12 | H225: 0.12
A229: Inputs - T5 (2 x 24W)
A231: Depreciation period | B231: years | C231: 20 | D231: =C231 -> 20 | E231: =D231 -> 20 | F231: =E231 -> 20 | G231: =F231 -> 20 | H231: =G231 -> 20
A232: Lamps - bulk change | B232: years | C232: 4 | D232: 4 | E232: 4 | F232: 4 | G232: 4 | H232: 4
A233: PE cells - bulk change | B233: years | C233: 8 | D233: 8 | E233: 8 | F233: 8 | G233: 8 | H233: 8
A234: Ballast unit life | C234: 20 | D234: =C234 -> 20 | E234: =D234 -> 20 | F234: 20 | G234: 20 | H234: 20
A235: Proportion of luminaires that fail between bulk change | C235: 0.114 | D235: 0.4156563612 | E235: 0.4156563612 | F235: 0.4156563612 | G235: 0.4156563612 | H235: 0.4156563612
A236: Unit cost - lamp | C236: 18.45593957 | D236: 8.1 | E236: 8.1 | F236: 8.1 | G236: 8.1 | H236: 8.1
A237: Unit cost - PE cell | C237: 23.40333975 | D237: 15.12 | E237: 15.12 | F237: 15.12 | G237: 15.12 | H237: 15.12
A238: Unit cost - luminaire | C238: 286.187762 | D238: 267.33 | E238: 267.33 | F238: 267.33 | G238: 267.33 | H238: 267.33
A239: Unit cost - miscellaneous materials (bulk lamp) | C239: 1.3373337 | D239: 1.347645671 | E239: 1.347645671 | F239: 1.347645671 | G239: 1.347645671 | H239: 1.347645671
A240: Unit cost - miscellaneous materials (repair) | C240: 13.373337 | D240: 13.47645671 | E240: 13.47645671 | F240: 13.47645671 | G240: 13.47645671 | H240: 13.47645671
A241: Number of men in crew | C241: 2 | D241: 2 | E241: 2 | F241: 2 | G241: 2 | H241: 2
A242: Number of bulk lamp changes in 1 day - urban | C242: 85 | D242: =D193 -> 86 | E242: =E193 -> 86 | F242: 86 | G242: 86 | H242: 86 | L242: 66 | M242: 66 | N242: 66 | O242: 66 | P242: 66
A243: Number of bulk lamp changes in 1 day - rural | C243: 70 | D243: =D194 -> 72 | E243: 72 | F243: 72 | G243: 72 | H243: 72 | L243: 54 | M243: 54 | N243: 54 | O243: 54 | P243: 54
A244: Number of bulk lamp changes in 1 day - remote | C244: 50 | D244: =D195 -> 60 | E244: 60 | F244: 60 | G244: 60 | H244: 60 | L244: 37 | M244: 37 | N244: 37 | O244: 37 | P244: 37
A245: Number of repairs in 1 day - urban | C245: 20 | D245: =D196 -> 28.8 | E245: 28.8 | F245: 28.8 | G245: 28.8 | H245: 28.8 | L245: 20 | M245: 20 | N245: 20 | O245: 20 | P245: 20
A246: Number of repairs in 1 day - rural | C246: 15 | D246: =D197 -> 24 | E246: 24 | F246: 24 | G246: 24 | H246: 24 | L246: 15 | M246: 15 | N246: 15 | O246: 15 | P246: 15
A247: Number of repairs in 1 day - remote | C247: 10 | D247: =D198 -> 19.2 | E247: 19.2 | F247: 19.2 | G247: 19.2 | H247: 19.2 | L247: 10 | M247: 10 | N247: 10 | O247: 10 | P247: 10
A248: % of repairs - lamps | C248: 0.6 | D248: 0.6 | E248: 0.6 | F248: 0.6 | G248: 0.6 | H248: 0.6
A249: % of repairs - PE cells | C249: 0.5 | D249: 0.5 | E249: 0.5 | F249: 0.5 | G249: 0.5 | H249: 0.5
A250: % of repairs - luminaires | C250: 0.15 | D250: 0 | E250: 0 | F250: 0 | G250: 0 | H250: 0
... 200 more rows

Sheet DNSP Inputs Capex
A1: Public Lighting Cost Build-up Model
A3: ='DNSP Inputs O & M'!$A$3 -> AusNet | C3: Capex Data Inputs
C5: Real 2021 $
A7: Input parameters | C7: ='DNSP Inputs General'!P2 -> HY2021 | D7: ='DNSP Inputs General'!Q2 -> 2022-06-30 | E7: ='DNSP Inputs General'!R2 -> 2023-06-30 | F7: ='DNSP Inputs General'!S2 -> 2024-06-30 | G7: ='DNSP Inputs General'!T2 -> 2025-06-30 | H7: ='DNSP Inputs General'!U2 -> 2026-06-30
A9: Inputs - all lamps
A11: Material premium for rural areas | C11: ='DNSP Inputs O & M'!C11 -> 0.05 | D11: ='DNSP Inputs O & M'!D11 -> 0.05 | E11: ='DNSP Inputs O & M'!E11 -> 0.05 | F11: ='DNSP Inputs O & M'!F11 -> 0.05 | G11: ='DNSP Inputs O & M'!G11 -> 0.05 | H11: ='DNSP Inputs O & M'!H11 -> 0.05
A12: Labour rate (per hour) | C12: ='DNSP Inputs O & M'!C12 -> 105.1461393 | D12: ='DNSP Inputs O & M'!D12 -> 111.3622324 | E12: ='DNSP Inputs O & M'!E12 -> 111.0840789 | F12: ='DNSP Inputs O & M'!F12 -> 111.0033978 | G12: ='DNSP Inputs O & M'!G12 -> 111.4110853 | H12: ='DNSP Inputs O & M'!H12 -> 112.5214008
A13: Elevated platform vehicle (per hour) - urban MV,urban T5 | C13: ='DNSP Inputs O & M'!C14 -> 49.79045722 | D13: ='DNSP Inputs O & M'!D14 -> 50.18 | E13: ='DNSP Inputs O & M'!E14 -> 50.18 | F13: ='DNSP Inputs O & M'!F14 -> 50.18 | G13: ='DNSP Inputs O & M'!G14 -> 50.18 | H13: ='DNSP Inputs O & M'!H14 -> 50.18
A14: Elevated platform vehicle (per hour) - rural MV, rural T5, S-HP | C14: ='DNSP Inputs O & M'!C15 -> 89.9713562 | D14: ='DNSP Inputs O & M'!D15 -> 63.64 | E14: ='DNSP Inputs O & M'!E15 -> 63.64 | F14: ='DNSP Inputs O & M'!F15 -> 63.64 | G14: ='DNSP Inputs O & M'!G15 -> 63.64 | H14: ='DNSP Inputs O & M'!H15 -> 63.64
A15: Number of hours in a day | C15: ='DNSP Inputs O & M'!C17 -> 8 | D15: ='DNSP Inputs O & M'!D17 -> 7.5 | E15: ='DNSP Inputs O & M'!E17 -> 7.5 | F15: ='DNSP Inputs O & M'!F17 -> 7.5 | G15: ='DNSP Inputs O & M'!G17 -> 7.5 | H15: ='DNSP Inputs O & M'!H17 -> 7.5
A19: Inputs - MV80
A21: Unit cost - luminaire | C21: ='DNSP Inputs O & M'!C30 -> 212.0348253 | D21: ='DNSP Inputs O & M'!D30 -> 116.85 | E21: ='DNSP Inputs O & M'!E30 -> 116.85 | F21: ='DNSP Inputs O & M'!F30 -> 116.85 | G21: ='DNSP Inputs O & M'!G30 -> 116.85 | H21: ='DNSP Inputs O & M'!H30 -> 116.85
A22: Unit cost - miscellaneous materials (bulk lamp) | C22: ='DNSP Inputs O & M'!C31 -> 1.3373337 | D22: ='DNSP Inputs O & M'!D31 -> 1.347645671 | E22: ='DNSP Inputs O & M'!E31 -> 1.347645671 | F22: ='DNSP Inputs O & M'!F31 -> 1.347645671 | G22: ='DNSP Inputs O & M'!G31 -> 1.347645671 | H22: ='DNSP Inputs O & M'!H31 -> 1.347645671
A23: Number of men in crew | C23: ='DNSP Inputs O & M'!C33 -> 2 | D23: ='DNSP Inputs O & M'!D33 -> 2 | E23: ='DNSP Inputs O & M'!E33 -> 2 | F23: ='DNSP Inputs O & M'!F33 -> 2 | G23: ='DNSP Inputs O & M'!G33 -> 2 | H23: ='DNSP Inputs O & M'!H33 -> 2
A24: Number of luminaires replaced per day - urban | C24: 16 | D24: 16 | E24: 16 | F24: 16 | G24: 16 | H24: 16
A25: Number of luminaires replaced per day - rural | C25: 13 | D25: 13 | E25: 13 | F25: 13 | G25: 13 | H25: 13
A26: Number of luminaires replaced per day - remote | C26: 10 | D26: 10 | E26: 10 | F26: 10 | G26: 10 | H26: 10
A28: Other Capex unit costs Describe :……………………… | C28: 0 | D28: 0 | E28: 0 | F28: 0 | G28: 0 | H28: 0
A30: Forecast Quantities to be replaced
A31: Number of luminaires replaced per year - urban | C31: 749.9114407 | D31: ='All MV replaced with MV'!V80 -> 5481.157207 | E31: ='All MV replaced with MV'!W80 -> 5481.157207 | F31: ='All MV replaced with MV'!X80 -> 5480.773065 | G31: ='All MV replaced with MV'!Y80 -> 2740.194461 | H31: ='All MV replaced with MV'!Z80 -> 0
A32: Number of luminaires replaced per year - rural | C32: 189.4001079 | D32: ='All MV replaced with MV'!V81 -> 1384.430574 | E32: ='All MV replaced with MV'!W81 -> 1384.430574 | F32: ='All MV replaced with MV'!X81 -> 1384.333548 | G32: ='All MV replaced with MV'!Y81 -> 692.1182604 | H32: ='All MV replaced with MV'!Z81 -> 0
A33: Number of luminaires replaced per year - remote | C33: 36.82157946 | D33: ='All MV replaced with MV'!V82 -> 268.6841768 | E33: ='All MV replaced with MV'!W82 -> 268.6841768 | F33: ='All MV replaced with MV'!X82 -> 268.6653463 | G33: ='All MV replaced with MV'!Y82 -> 134.3232579 | H33: ='All MV replaced with MV'!Z82 -> 0
A35: MV80 Lights replaced with T5 Energy Efficient Lights
A36: Number of Lights MV80 replaced with T5 per year
A37: SP AusNet - Central | C37: 1500 | D37: 0 | E37: 0 | F37: 0 | G37: 0 | H37: 0
A38: SP AusNet - North/East | C38: 500 | D38: 0 | E38: 0 | F38: 0 | G38: 0 | H38: 0
A42: Inputs - S-HP150
A44: Unit cost - luminaire | C44: 264.8350519 | D44: 234.07 | E44: 234.07 | F44: 234.07 | G44: 234.07 | H44: 234.07
A45: Unit cost - miscellaneous materials | C45: ='DNSP Inputs O & M'!C78 -> 2.6746674 | D45: ='DNSP Inputs O & M'!D78 -> 2.695291341 | E45: ='DNSP Inputs O & M'!E78 -> 2.695291341 | F45: ='DNSP Inputs O & M'!F78 -> 2.695291341 | G45: ='DNSP Inputs O & M'!G78 -> 2.695291341 | H45: ='DNSP Inputs O & M'!H78 -> 2.695291341
A46: Number of men in crew | C46: ='DNSP Inputs O & M'!C80 -> 2 | D46: ='DNSP Inputs O & M'!D80 -> 2 | E46: ='DNSP Inputs O & M'!E80 -> 2 | F46: ='DNSP Inputs O & M'!F80 -> 2 | G46: ='DNSP Inputs O & M'!G80 -> 2 | H46: ='DNSP Inputs O & M'!H80 -> 2
A47: Number of luminaires replaced per day - urban | C47: 16 | D47: 16 | E47: 16 | F47: 16 | G47: 16 | H47: 16
A48: Number of luminaires replaced per day - rural | C48: 13 | D48: 13 | E48: 13 | F48: 13 | G48: 13 | H48: 13
A49: Number of luminaires replaced per day - remote | C49: 10 | D49: 10 | E49: 10 | F49: 10 | G49: 10 | H49: 10
A51: Other Capex unit costs Describe :……………………… | C51: 0 | D51: 0 | E51: 0 | F51: 0 | G51: 0 | H51: 0
A53: Forecast Quantities to be replaced
A54: Number of luminaires replaced per year - urban | C54: 335.2045732 | D54: 0 | E54: 0 | F54: 0 | G54: 0 | H54: 0
A55: Number of luminaires replaced per year - rural | C55: 94.52251231 | D55: 0 | E55: 0 | F55: 0 | G55: 0 | H55: 0
A56: Number of luminaires replaced per day - remote | C56: 8.379871303 | D56: 0 | E56: 0 | F56: 0 | G56: 0 | H56: 0
A60: Inputs - S-HP250
A62: Unit cost - luminaire | C62: 271.769745 | D62: 240.18 | E62: 240.18 | F62: 240.18 | G62: 240.18 | H62: 240.18
A63: Unit cost - miscellaneous materials | C63: ='DNSP Inputs O & M'!C121 -> 2.6746674 | D63: ='DNSP Inputs O & M'!D121 -> 2.548069545 | E63: ='DNSP Inputs O & M'!E121 -> 2.548069545 | F63: ='DNSP Inputs O & M'!F121 -> 2.548069545 | G63: ='DNSP Inputs O & M'!G121 -> 2.548069545 | H63: ='DNSP Inputs O & M'!H121 -> 2.548069545
A64: Number of men in crew | C64: ='DNSP Inputs O & M'!C123 -> 2 | D64: ='DNSP Inputs O & M'!D123 -> 2 | E64: ='DNSP Inputs O & M'!E123 -> 2 | F64: ='DNSP Inputs O & M'!F123 -> 2 | G64: ='DNSP Inputs O & M'!G123 -> 2 | H64: ='DNSP Inputs O & M'!H123 -> 2
A65: Number of luminaires replaced per day - urban | C65: 16 | D65: 16 | E65: 16 | F65: 16 | G65: 16 | H65: 16
A66: Number of luminaires replaced per day - rural | C66: 13 | D66: 13 | E66: 13 | F66: 13 | G66: 13 | H66: 13
A67: Number of luminaires replaced per day - remote | C67: 10 | D67: 10 | E67: 10 | F67: 10 | G67: 10 | H67: 10
A69: Other Capex unit costs Describe :……………………… | C69: 0 | D69: 0 | E69: 0 | F69: 0 | G69: 0 | H69: 0
A71: Forecast Quantities to be replaced
A72: Number of luminaires replaced per year - urban | C72: 212.0461387 | D72: 0 | E72: 0 | F72: 0 | G72: 0 | H72: 0
A73: Number of luminaires replaced per year - rural | C73: 61.66473706 | D73: 0 | E73: 0 | F73: 0 | G73: 0 | H73: 0
A74: Number of luminaires replaced per day - remote | C74: 5.232576094 | D74: 0 | E74: 0 | F74: 0 | G74: 0 | H74: 0
A78: Dedicated street lighting poles
A80: Cost of pole & bracket | C80: 945.4664023 | D80: 1223.627538 | E80: 1223.627538 | F80: 1223.627538 | G80: 1223.627538 | H80: 1223.627538
A81: Number of men in crew | D81: 4 | E81: 4 | F81: 4 | G81: 4 | H81: 4
A82: Number of poles & brackets replaced per day | C82: 4 | D82: 4 | E82: 4 | F82: 4 | G82: 4 | H82: 4
A83: Cost of bracket on non-dedicated poles | C83: 47.99422096 | D83: 48.36429688 | E83: 48.36429688 | F83: 48.36429688 | G83: 48.36429688 | H83: 48.36429688
A84: Number of brackets replaced per day | C84: 20 | D84: 20 | E84: 20 | F84: 20 | G84: 20 | H84: 20
A85: Plant costs (including truck mounted crane & auger, and tipper truck) | D85: 387.05858 | E85: 387.05858 | F85: 387.05858 | G85: 387.05858 | H85: 387.05858
A86: Other poles & brackets Capex unit costs Describe :………………… | C86: 22.04901374 | D86: 20.53017169 | E86: 20.96576029 | F86: 21.4013489 | G86: 21.8369375 | H86: 22.2725261
A89: Forecast Quantities to be replaced
A90: Number of poles & brackets replaced per year - urban | C90: 598.7331124 | D90: 598.7331124 | E90: 598.7331124 | F90: 598.7331124 | G90: 598.7331124 | H90: 598.7331124
A91: Number of poles & brackets replaced per year - rural | C91: 203.0623874 | D91: 203.0623874 | E91: 203.0623874 | F91: 203.0623874 | G91: 203.0623874 | H91: 203.0623874
A92: Number of poles & brackets replaced per year - remote | C92: 15.48943329 | D92: 15.48943329 | E92: 15.48943329 | F92: 15.48943329 | G92: 15.48943329 | H92: 15.48943329
A94: Brackets on non-dedicated poles :
A95: Number of brackets replaced per year - urban | C95: 970.796428 | D95: 970.796428 | E95: 970.796428 | F95: 970.796428 | G95: 970.796428 | H95: 970.796428
A96: Number of brackets replaced per year - rural | C96: 327.8522232 | D96: 327.8522232 | E96: 327.8522232 | F96: 327.8522232 | G96: 327.8522232 | H96: 327.8522232
A97: Number of brackets replaced per year - remote | C97: 24.95638968 | D97: 24.95638968 | E97: 24.95638968 | F97: 24.95638968 | G97: 24.95638968 | H97: 24.95638968
A101: Luminaire Replacements - Other Light types (excluding T5s)
A102: Number of luminaires replaced per year | C102: 129.5406343
A103: Forecast Capex | C103: 41924.26816
A107: Inputs - T5 (2 X 14W)
A109: Unit cost - luminaire | C109: ='DNSP Inputs O & M'!C189 -> 258.1088385 | D109: ='DNSP Inputs O & M'!D189 -> 260.28 | E109: ='DNSP Inputs O & M'!E189 -> 260.28 | F109: ='DNSP Inputs O & M'!F189 -> 260.28 | G109: ='DNSP Inputs O & M'!G189 -> 260.28 | H109: ='DNSP Inputs O & M'!H189 -> 260.28
A110: Unit cost - miscellaneous materials (bulk lamp) | C110: ='DNSP Inputs O & M'!C190 -> 1.3373337 | D110: ='DNSP Inputs O & M'!D190 -> 1.347645671 | E110: ='DNSP Inputs O & M'!E190 -> 1.347645671 | F110: ='DNSP Inputs O & M'!F190 -> 1.347645671 | G110: ='DNSP Inputs O & M'!G190 -> 1.347645671 | H110: ='DNSP Inputs O & M'!H190 -> 1.347645671
A111: Number of men in crew | C111: ='DNSP Inputs O & M'!C192 -> 2 | D111: ='DNSP Inputs O & M'!D192 -> 2 | E111: ='DNSP Inputs O & M'!E192 -> 2 | F111: ='DNSP Inputs O & M'!F192 -> 2 | G111: ='DNSP Inputs O & M'!G192 -> 2 | H111: ='DNSP Inputs O & M'!H192 -> 2
A112: Number of luminaires replaced per day - urban | C112: 0 | D112: 16 | E112: 16 | F112: 16 | G112: 16 | H112: 16
A113: Number of luminaires replaced per day - rural | C113: 0 | D113: 13 | E113: 13 | F113: 13 | G113: 13 | H113: 13
A114: Number of luminaires replaced per day - remote | C114: 0 | D114: 10 | E114: 10 | F114: 10 | G114: 10 | H114: 10
A116: Other Capex unit costs Describe :……………………… | C116: 0 | D116: 0 | E116: 0 | F116: 0 | G116: 0 | H116: 0
A118: Forecast Quantities to be replaced
A119: Number of luminaires replaced per year - urban | C119: 0 | D119: 332.3168495 | E119: 332.3168495 | F119: 332.3168495 | G119: 332.3168495 | H119: 332.3168495
A120: Number of luminaires replaced per year - rural | C120: 0 | D120: 83.936583 | E120: 83.936583 | F120: 83.936583 | G120: 83.936583 | H120: 83.936583
A121: Number of luminaires replaced per year - remote | C121: 0 | D121: 16.29004164 | E121: 16.29004164 | F121: 16.29004164 | G121: 16.29004164 | H121: 16.29004164
A125: Inputs - T5 (2x24W)
A127: Unit cost - luminaire | C127: ='DNSP Inputs O & M'!C238 -> 286.187762 | D127: ='DNSP Inputs O & M'!D238 -> 267.33 | E127: ='DNSP Inputs O & M'!E238 -> 267.33 | F127: ='DNSP Inputs O & M'!F238 -> 267.33 | G127: ='DNSP Inputs O & M'!G238 -> 267.33 | H127: ='DNSP Inputs O & M'!H238 -> 267.33
A128: Unit cost - miscellaneous materials (bulk lamp) | C128: ='DNSP Inputs O & M'!C239 -> 1.3373337 | D128: ='DNSP Inputs O & M'!D239 -> 1.347645671 | E128: ='DNSP Inputs O & M'!E239 -> 1.347645671 | F128: ='DNSP Inputs O & M'!F239 -> 1.347645671 | G128: ='DNSP Inputs O & M'!G239 -> 1.347645671 | H128: ='DNSP Inputs O & M'!H239 -> 1.347645671
A129: Number of men in crew | C129: ='DNSP Inputs O & M'!C241 -> 2 | D129: ='DNSP Inputs O & M'!D241 -> 2 | E129: ='DNSP Inputs O & M'!E241 -> 2 | F129: ='DNSP Inputs O & M'!F241 -> 2 | G129: ='DNSP Inputs O & M'!G241 -> 2 | H129: ='DNSP Inputs O & M'!H241 -> 2
A130: Number of luminaires replaced per day - urban | C130: 0 | D130: 16 | E130: 16 | F130: 16 | G130: 16 | H130: 16
A131: Number of luminaires replaced per day - rural | C131: 0 | D131: 13 | E131: 13 | F131: 13 | G131: 13 | H131: 13
A132: Number of luminaires replaced per day - remote | C132: 0 | D132: 10 | E132: 10 | F132: 10 | G132: 10 | H132: 10
A134: Other Capex unit costs Describe :……………………… | C134: 0 | D134: 0 | E134: 0 | F134: 0 | G134: 0 | H134: 0
A136: Forecast Quantities to be replaced
A137: Number of luminaires replaced per year - urban | C137: 0 | D137: 35.82962046 | E137: 35.82962046 | F137: 35.82962046 | G137: 35.82962046 | H137: 35.82962046
A138: Number of luminaires replaced per year - rural | C138: 0 | D138: 9.049844796 | E138: 9.049844796 | F138: 9.049844796 | G138: 9.049844796 | H138: 9.049844796
A139: Number of luminaires replaced per year - remote | C139: 0 | D139: 1.756353944 | E139: 1.756353944 | F139: 1.756353944 | G139: 1.756353944 | H139: 1.756353944
A143: Inputs - LED 18W
A145: Unit cost - luminaire | C145: ='DNSP Inputs O & M'!C286 -> 391.1415906 | D145: ='DNSP Inputs O & M'!D286 -> 205 | E145: ='DNSP Inputs O & M'!E286 -> 205 | F145: ='DNSP Inputs O & M'!F286 -> 205 | G145: ='DNSP Inputs O & M'!G286 -> 205 | H145: ='DNSP Inputs O & M'!H286 -> 205
A146: Number of men in crew | C146: ='DNSP Inputs O & M'!C288 -> 2 | D146: ='DNSP Inputs O & M'!D288 -> 2 | E146: ='DNSP Inputs O & M'!E288 -> 2 | F146: ='DNSP Inputs O & M'!F288 -> 2 | G146: ='DNSP Inputs O & M'!G288 -> 2 | H146: ='DNSP Inputs O & M'!H288 -> 2
A147: Number of luminaires replaced per day - urban | C147: 0 | D147: 16 | E147: 16 | F147: 16 | G147: 16 | H147: 16
A148: Number of luminaires replaced per day - rural | C148: 0 | D148: 13 | E148: 13 | F148: 13 | G148: 13 | H148: 13
A149: Number of luminaires replaced per day - remote | C149: 0 | D149: 10 | E149: 10 | F149: 10 | G149: 10 | H149: 10
A151: Other Capex unit costs Describe :……………………… | C151: 0 | D151: 0 | E151: 0 | F151: 0 | G151: 0 | H151: 0
A153: Forecast Quantities to be replaced
A154: Number of luminaires replaced per year - urban | C154: 0 | D154: ='All MV replaced with MV'!V86 -> 513.7995622 | E154: ='All MV replaced with MV'!W86 -> 460.8625774 | F154: ='All MV replaced with MV'!X86 -> 408.6154517 | G154: ='All MV replaced with MV'!Y86 -> 372.9497547 | H154: ='All MV replaced with MV'!Z86 -> 363.1381124
A155: Number of luminaires replaced per year - rural | C155: 0 | D155: ='All MV replaced with MV'!V87 -> 129.7754828 | E155: ='All MV replaced with MV'!W87 -> 116.4046603 | F155: ='All MV replaced with MV'!X87 -> 103.2080824 | G155: ='All MV replaced with MV'!Y87 -> 94.19964134 | H155: ='All MV replaced with MV'!Z87 -> 91.72141694
A156: Number of luminaires replaced per year - remote | C156: 0 | D156: ='All MV replaced with MV'!V88 -> 25.18625305 | E156: ='All MV replaced with MV'!W88 -> 22.59130281 | F156: ='All MV replaced with MV'!X88 -> 20.0301692 | G156: ='All MV replaced with MV'!Y88 -> 18.28185072 | H156: ='All MV replaced with MV'!Z88 -> 17.80088786
A159: NEW
A160: Inputs - LED 14W
A162: Unit cost - luminaire | D162: ='DNSP Inputs O & M'!D332 -> 205 | E162: ='DNSP Inputs O & M'!E332 -> 205 | F162: ='DNSP Inputs O & M'!F332 -> 205 | G162: ='DNSP Inputs O & M'!G332 -> 205 | H162: ='DNSP Inputs O & M'!H332 -> 205
A163: Number of men in crew | D163: ='DNSP Inputs O & M'!D334 -> 2 | E163: ='DNSP Inputs O & M'!E334 -> 2 | F163: ='DNSP Inputs O & M'!F334 -> 2 | G163: ='DNSP Inputs O & M'!G334 -> 2 | H163: ='DNSP Inputs O & M'!H334 -> 2
A164: Number of luminaires replaced per day - urban | D164: 16 | E164: 16 | F164: 16 | G164: 16 | H164: 16
A165: Number of luminaires replaced per day - rural | D165: 13 | E165: 13 | F165: 13 | G165: 13 | H165: 13
A166: Number of luminaires replaced per day - remote | D166: 10 | E166: 10 | F166: 10 | G166: 10 | H166: 10
A168: Other Capex unit costs Describe :……………………… | D168: 0 | E168: 0 | F168: 0 | G168: 0 | H168: 0
A170: Forecast Quantities to be replaced
A171: Number of luminaires replaced per year - urban | D171: 0 | E171: 0 | F171: 1 | G171: 0 | H171: 1
A172: Number of luminaires replaced per year - rural | D172: 0 | E172: 0 | F172: 0 | G172: 1 | H172: 0
A173: Number of luminaires replaced per year - remote | D173: 0 | E173: 0 | F173: 0 | G173: 0 | H173: 0
A176: NEW
A177: Inputs - LED 70W (L1)
A179: Unit cost - luminaire | D179: ='DNSP Inputs O & M'!D378 -> 402 | E179: ='DNSP Inputs O & M'!E378 -> 402 | F179: ='DNSP Inputs O & M'!F378 -> 402 | G179: ='DNSP Inputs O & M'!G378 -> 402 | H179: ='DNSP Inputs O & M'!H378 -> 402
A180: Number of men in crew | D180: ='DNSP Inputs O & M'!D380 -> 2 | E180: ='DNSP Inputs O & M'!E380 -> 2 | F180: ='DNSP Inputs O & M'!F380 -> 2 | G180: ='DNSP Inputs O & M'!G380 -> 2 | H180: ='DNSP Inputs O & M'!H380 -> 2
A181: Number of luminaires replaced per day - urban | D181: 16 | E181: 16 | F181: 16 | G181: 16 | H181: 16
A182: Number of luminaires replaced per day - rural | D182: 13 | E182: 13 | F182: 13 | G182: 13 | H182: 13
A183: Number of luminaires replaced per day - remote | D183: 10 | E183: 10 | F183: 10 | G183: 10 | H183: 10
A185: Other Capex unit costs Describe :……………………… | D185: 0 | E185: 0 | F185: 0 | G185: 0 | H185: 0
A187: Forecast Quantities to be replaced
A188: Number of luminaires replaced per year - urban | D188: ='All MV replaced with MV'!V92 -> 13.07015375 | E188: ='All MV replaced with MV'!W92 -> 16.77445987 | F188: ='All MV replaced with MV'!X92 -> 20.55688489 | G188: ='All MV replaced with MV'!Y92 -> 23.64337972 | H188: ='All MV replaced with MV'!Z92 -> 25.17108956
A189: Number of luminaires replaced per year - rural | D189: ='All MV replaced with MV'!V93 -> 3.301259163 | E189: ='All MV replaced with MV'!W93 -> 4.236892729 | F189: ='All MV replaced with MV'!X93 -> 5.192257562 | G189: ='All MV replaced with MV'!Y93 -> 5.971844361 | H189: ='All MV replaced with MV'!Z93 -> 6.357713281
A190: Number of luminaires replaced per year - remote | D190: ='All MV replaced with MV'!V94 -> 0.640693811 | E190: ='All MV replaced with MV'!W94 -> 0.8222774448 | F190: ='All MV replaced with MV'!X94 -> 1.007690436 | G190: ='All MV replaced with MV'!Y94 -> 1.158989202 | H190: ='All MV replaced with MV'!Z94 -> 1.233876939
A193: NEW
A194: Inputs - LED 155W (L2)
A196: Unit cost - luminaire | D196: ='DNSP Inputs O & M'!D424 -> 427 | E196: ='DNSP Inputs O & M'!E424 -> 427 | F196: ='DNSP Inputs O & M'!F424 -> 427 | G196: ='DNSP Inputs O & M'!G424 -> 427 | H196: ='DNSP Inputs O & M'!H424 -> 427
A197: Number of men in crew | D197: ='DNSP Inputs O & M'!D426 -> 2 | E197: ='DNSP Inputs O & M'!E426 -> 2 | F197: ='DNSP Inputs O & M'!F426 -> 2 | G197: ='DNSP Inputs O & M'!G426 -> 2 | H197: ='DNSP Inputs O & M'!H426 -> 2
A198: Number of luminaires replaced per day - urban | D198: 16 | E198: 16 | F198: 16 | G198: 16 | H198: 16
A199: Number of luminaires replaced per day - rural | D199: 13 | E199: 13 | F199: 13 | G199: 13 | H199: 13
A200: Number of luminaires replaced per day - remote | D200: 10 | E200: 10 | F200: 10 | G200: 10 | H200: 10
A202: Other Capex unit costs Describe :……………………… | D202: 0 | E202: 0 | F202: 0 | G202: 0 | H202: 0
A204: Forecast Quantities to be replaced
A205: Number of luminaires replaced per year - urban | D205: ='All MV replaced with MV'!V98 -> 998.7304807 | E205: ='All MV replaced with MV'!W98 -> 985.6057397 | F205: ='All MV replaced with MV'!X98 -> 966.6320634 | G205: ='All MV replaced with MV'!Y98 -> 1086.144654 | H205: ='All MV replaced with MV'!Z98 -> 1215.103576
A206: Number of luminaires replaced per year - rural | D206: ='All MV replaced with MV'!V99 -> 252.2593242 | E206: ='All MV replaced with MV'!W99 -> 248.9442774 | F206: ='All MV replaced with MV'!X99 -> 244.1519066 | G206: ='All MV replaced with MV'!Y99 -> 274.3383942 | H206: ='All MV replaced with MV'!Z99 -> 306.9108362
A207: Number of luminaires replaced per year - remote | D207: ='All MV replaced with MV'!V100 -> 48.95737651 | E207: ='All MV replaced with MV'!W100 -> 48.31400685 | F207: ='All MV replaced with MV'!X100 -> 47.38392468 | G207: ='All MV replaced with MV'!Y100 -> 53.24238499 | H207: ='All MV replaced with MV'!Z100 -> 59.56390079
A210: NEW
A211: Inputs - LED 275W (L4)
A213: Unit cost - luminaire | D213: ='DNSP Inputs O & M'!D470 -> 650.88 | E213: ='DNSP Inputs O & M'!E470 -> 650.88 | F213: ='DNSP Inputs O & M'!F470 -> 650.88 | G213: ='DNSP Inputs O & M'!G470 -> 650.88 | H213: ='DNSP Inputs O & M'!H470 -> 650.88
A214: Number of men in crew | D214: ='DNSP Inputs O & M'!D472 -> 2 | E214: ='DNSP Inputs O & M'!E472 -> 2 | F214: ='DNSP Inputs O & M'!F472 -> 2 | G214: ='DNSP Inputs O & M'!G472 -> 2 | H214: ='DNSP Inputs O & M'!H472 -> 2
A215: Number of luminaires replaced per day - urban | D215: 16 | E215: 16 | F215: 16 | G215: 16 | H215: 16
A216: Number of luminaires replaced per day - rural | D216: 13 | E216: 13 | F216: 13 | G216: 13 | H216: 13
A217: Number of luminaires replaced per day - remote | D217: 10 | E217: 10 | F217: 10 | G217: 10 | H217: 10
A219: Other Capex unit costs Describe :……………………… | D219: 0 | E219: 0 | F219: 0 | G219: 0 | H219: 0
A221: Forecast Quantities to be replaced
A222: Number of luminaires replaced per year - urban | D222: ='All MV replaced with MV'!V103 -> 10.38284897 | E222: ='All MV replaced with MV'!W103 -> 11.06209426 | F222: ='All MV replaced with MV'!X103 -> 11.74910304 | G222: ='All MV replaced with MV'!Y103 -> 12.28914544 | H222: ='All MV replaced with MV'!Z103 -> 12.48374491
A223: Number of luminaires replaced per year - rural | D223: ='All MV replaced with MV'!V104 -> 2.622499779 | E223: ='All MV replaced with MV'!W104 -> 2.794063539 | F223: ='All MV replaced with MV'!X104 -> 2.967588204 | G223: ='All MV replaced with MV'!Y104 -> 3.103992101 | H223: ='All MV replaced with MV'!Z104 -> 3.153144033
A224: Number of luminaires replaced per year - remote | D224: ='All MV replaced with MV'!V105 -> 0.5089631849 | E224: ='All MV replaced with MV'!W105 -> 0.5422595223 | F224: ='All MV replaced with MV'!X105 -> 0.5759364237 | G224: ='All MV replaced with MV'!Y105 -> 0.6024090901 | H224: ='All MV replaced with MV'!Z105 -> 0.6119482801

Sheet PL Tariffs
A1: ='DNSP Inputs O & M'!$A$3 -> AusNet | E1: Global Check | F1: =IF(SUM('Total RAB'!F1,'Depn & WACC Post 2004 N & E'!F1,'Depn & WACC Post 2004 Central'!F1,'Cashflow Summary'!F1,'PL Tariff Components'!W1)<1,"Ok","Error") -> Ok
D3: ='DNSP Inputs General'!$B$39 -> Central | V3: Average
A4: Public Lighting Tariffs | C4: Nominal Prices | J4: Nominal Price Movement | P4: Real Price Movement (Implied X Factor) | V4: Nubmer | W4: % of | Y4: Submission Model | AE4: Difference
C5: Actual | V5: of Lights | W5: Total Lights
A6: ='DNSP Inputs General'!A$41 -> Existing Lights | C6: ='DNSP Inputs General'!P$2 -> HY2021 | D6: ='DNSP Inputs General'!Q$2 -> 2022-06-30 | E6: ='DNSP Inputs General'!R$2 -> 2023-06-30 | F6: ='DNSP Inputs General'!S$2 -> 2024-06-30 | G6: ='DNSP Inputs General'!T$2 -> 2025-06-30 | H6: ='DNSP Inputs General'!U$2 -> 2026-06-30 | J6: =D6 -> 2022-06-30 | K6: =E6 -> 2023-06-30 | L6: 2024-06-30 | M6: 2025-06-30 | N6: 2026-06-30 | P6: =J6 -> 2022-06-30 | Q6: =K6 -> 2023-06-30 | R6: 2024-06-30 | S6: 2025-06-30 | T6: 2026-06-30 | V6: 2022-26 | W6: 2022-26 | Y6: =P6 -> 2022-06-30 | Z6: =Q6 -> 2023-06-30 | AA6: 2024-06-30 | AB6: 2025-06-30 | AC6: 2026-06-30 | AE6: =Y6 -> 2022-06-30 | AF6: =Z6 -> 2023-06-30 | AG6: 2024-06-30 | AH6: 2025-06-30 | AI6: 2026-06-30
A7: ='DNSP Inputs General'!A42 -> Mercury Vapour 80W | C7: ='DNSP Inputs General'!E42 -> 43.97 | D7: ='Charges Summary'!D$31 -> 52.21143895 | E7: ='Charges Summary'!E$31 -> 53.59445593 | F7: ='Charges Summary'!F$31 -> 49.73982296 | G7: ='Charges Summary'!G$31 -> 52.01186016 | H7: ='Charges Summary'!H$31 -> 53.56585946 | J7: =IF(C7=0,"",D7/C7-1) -> 0.187433226 | K7: =IF(D7=0,"",E7/D7-1) -> 0.02648877359 | L7: =IF(E7=0,"",F7/E7-1) -> -0.0719222335 | M7: =IF(F7=0,"",G7/F7-1) -> 0.04567843359 | N7: =IF(G7=0,"",H7/G7-1) -> 0.0298777875 | P7: =IF(C7=0,"",(D7/'Charges Summary'!D$4)/C7-1) -> 0.1598937676 | Q7: =IF(D7=0,"",(E7/'Charges Summary'!E$4)/(D7/'Charges Summary'!D$4)-1) -> 0.002682007664 | R7: =IF(E7=0,"",(F7/'Charges Summary'!F$4)/(E7/'Charges Summary'!E$4)-1) -> -0.09344660934 | S7: =IF(F7=0,"",(G7/'Charges Summary'!G$4)/(F7/'Charges Summary'!F$4)-1) -> 0.02142661287 | T7: =IF(G7=0,"",(H7/'Charges Summary'!H$4)/(G7/'Charges Summary'!G$4)-1) -> 0.00599242211 | V7: =SUM('DNSP Inputs General'!Q42:U42)/5 -> 15128.27951 | W7: =V7/V$32 -> 0.1193598914 | Y7: 62.91930903 | Z7: 45.99390141 | AA7: 47.25853191 | AB7: 48.65384015 | AC7: 49.79046715 | AE7: =D7-Y7 -> -10.70787008 | AF7: 7.600554522 | AG7: 2.481291045 | AH7: 3.358020005 | AI7: 3.775392312
A8: ='DNSP Inputs General'!A43 -> HP Sodium 150W | C8: ='DNSP Inputs General'!E43 -> 104.07 | D8: ='Charges Summary'!D$55 -> 103.0511045 | E8: ='Charges Summary'!E$55 -> 105.5429222 | F8: ='Charges Summary'!F$55 -> 111.5246984 | G8: ='Charges Summary'!G$55 -> 116.2958912 | H8: ='Charges Summary'!H$55 -> 119.8335228 | J8: -0.009790481932 | K8: 0.02418040748 | L8: 0.05667624143 | M8: 0.04278149022 | N8: 0.03041923164 | P8: =IF(C8=0,"",(D8/'Charges Summary'!D$4)/C8-1) -> -0.03275584388 | Q8: =IF(D8=0,"",(E8/'Charges Summary'!E$4)/(D8/'Charges Summary'!D$4)-1) -> 0.000427178162 | R8: =IF(E8=0,"",(F8/'Charges Summary'!F$4)/(E8/'Charges Summary'!E$4)-1) -> 0.03216935486 | S8: =IF(F8=0,"",(G8/'Charges Summary'!G$4)/(F8/'Charges Summary'!F$4)-1) -> 0.01859685665 | T8: =IF(G8=0,"",(H8/'Charges Summary'!H$4)/(G8/'Charges Summary'!G$4)-1) -> 0.006521308852 | V8: =SUM('DNSP Inputs General'!Q43:U43)/5 -> 16010.13725 | W8: =V8/V$32 -> 0.1263176187 | Y8: 114.8551157 | Z8: 95.55509923 | AA8: 97.80161903 | AB8: 100.4293792 | AC8: 102.9807482 | AE8: =D8-Y8 -> -11.80401117 | AF8: =E8-Z8 -> 9.987823011 | AG8: =F8-AA8 -> 13.72307936 | AH8: =G8-AB8 -> 15.86651198 | AI8: =H8-AC8 -> 16.8527746
A9: ='DNSP Inputs General'!A44 -> HP Sodium 250W | C9: ='DNSP Inputs General'!E44 -> 105.12 | D9: ='Charges Summary'!D$71 -> 104.7938312 | E9: ='Charges Summary'!E$71 -> 107.3243649 | F9: ='Charges Summary'!F$71 -> 113.5614143 | G9: ='Charges Summary'!G$71 -> 118.4301834 | H9: ='Charges Summary'!H$71 -> 122.0295477 | J9: -0.003102823824 | K9: 0.02414773549 | L9: 0.0581140119 | M9: 0.04287344565 | N9: 0.03039228821 | P9: =IF(C9=0,"",(D9/'Charges Summary'!D$4)/C9-1) -> -0.02622328879 | Q9: =IF(D9=0,"",(E9/'Charges Summary'!E$4)/(D9/'Charges Summary'!D$4)-1) -> 0.0003952639149 | R9: =IF(E9=0,"",(F9/'Charges Summary'!F$4)/(E9/'Charges Summary'!E$4)-1) -> 0.03357377994 | S9: =IF(F9=0,"",(G9/'Charges Summary'!G$4)/(F9/'Charges Summary'!F$4)-1) -> 0.01868667941 | T9: =IF(G9=0,"",(H9/'Charges Summary'!H$4)/(G9/'Charges Summary'!G$4)-1) -> 0.006494990305 | V9: =SUM('DNSP Inputs General'!Q44:U44)/5 -> 10887.8337 | W9: 0.08590340006 | Y9: 116.7469212 | Z9: 97.04474763 | AA9: 99.15928722 | AB9: 101.6834199 | AC9: 104.2655129 | AE9: -11.95309002 | AF9: 10.27961725 | AG9: 14.40212708 | AH9: 16.74676355 | AI9: 17.76403479
A10: ='DNSP Inputs General'!A45 -> Mercury Vapour 50W | C10: ='DNSP Inputs General'!E45 -> 67.27 | D10: =IF('DNSP Inputs General'!$B45='DNSP Inputs General'!$A$42,D$7,IF('DNSP Inputs General'!$B45='DNSP Inputs General'!$A$43,D$8,D$9))*'DNSP Inputs General'!$D45 -> 79.88350159 | E10: =IF('DNSP Inputs General'!$B45='DNSP Inputs General'!$A$42,E$7,IF('DNSP Inputs General'!$B45='DNSP Inputs General'!$A$43,E$8,E$9))*'DNSP Inputs General'!$D45 -> 81.99951758 | F10: =IF('DNSP Inputs General'!$B45='DNSP Inputs General'!$A$42,F$7,IF('DNSP Inputs General'!$B45='DNSP Inputs General'!$A$43,F$8,F$9))*'DNSP Inputs General'!$D45 -> 76.10192913 | G10: =IF('DNSP Inputs General'!$B45='DNSP Inputs General'!$A$42,G$7,IF('DNSP Inputs General'!$B45='DNSP Inputs General'!$A$43,G$8,G$9))*'DNSP Inputs General'!$D45 -> 79.57814604 | H10: =IF('DNSP Inputs General'!$B45='DNSP Inputs General'!$A$42,H$7,IF('DNSP Inputs General'!$B45='DNSP Inputs General'!$A$43,H$8,H$9))*'DNSP Inputs General'!$D45 -> 81.95576498 | J10: 0.1875055982 | K10: 0.02648877359 | L10: -0.0719222335 | M10: 0.04567843359 | N10: 0.0298777875 | P10: =IF(C10=0,"",(D10/'Charges Summary'!D$4)/C10-1) -> 0.1599644613 | Q10: =IF(D10=0,"",(E10/'Charges Summary'!E$4)/(D10/'Charges Summary'!D$4)-1) -> 0.002682007664 | R10: =IF(E10=0,"",(F10/'Charges Summary'!F$4)/(E10/'Charges Summary'!E$4)-1) -> -0.09344660934 | S10: =IF(F10=0,"",(G10/'Charges Summary'!G$4)/(F10/'Charges Summary'!F$4)-1) -> 0.02142661287 | T10: =IF(G10=0,"",(H10/'Charges Summary'!H$4)/(G10/'Charges Summary'!G$4)-1) -> 0.00599242211 | V10: =SUM('DNSP Inputs General'!Q45:U45)/5 -> 21.4878125 | W10: 0.0001695356675 | Y10: 96.26654281 | Z10: 70.37066916 | AA10: 72.30555383 | AB10: 74.44037543 | AC10: 76.17941474 | AE10: -16.38304122 | AF10: 11.62884842 | AG10: 3.796375299 | AH10: 5.137770607 | AI10: 5.776350238
A11: ='DNSP Inputs General'!A46 -> Mercury Vapour 125W | C11: ='DNSP Inputs General'!E46 -> 64.63 | D11: =IF('DNSP Inputs General'!$B46='DNSP Inputs General'!$A$42,D$7,IF('DNSP Inputs General'!$B46='DNSP Inputs General'!$A$43,D$8,D$9))*'DNSP Inputs General'!$D46 -> 76.75081525 | E11: =IF('DNSP Inputs General'!$B46='DNSP Inputs General'!$A$42,E$7,IF('DNSP Inputs General'!$B46='DNSP Inputs General'!$A$43,E$8,E$9))*'DNSP Inputs General'!$D46 -> 78.78385022 | F11: =IF('DNSP Inputs General'!$B46='DNSP Inputs General'!$A$42,F$7,IF('DNSP Inputs General'!$B46='DNSP Inputs General'!$A$43,F$8,F$9))*'DNSP Inputs General'!$D46 -> 73.11753975 | G11: =IF('DNSP Inputs General'!$B46='DNSP Inputs General'!$A$42,G$7,IF('DNSP Inputs General'!$B46='DNSP Inputs General'!$A$43,G$8,G$9))*'DNSP Inputs General'!$D46 -> 76.45743443 | H11: =IF('DNSP Inputs General'!$B46='DNSP Inputs General'!$A$42,H$7,IF('DNSP Inputs General'!$B46='DNSP Inputs General'!$A$43,H$8,H$9))*'DNSP Inputs General'!$D46 -> 78.74181341 | J11: 0.1875416254 | K11: 0.02648877359 | L11: -0.0719222335 | M11: 0.04567843359 | N11: 0.0298777875 | P11: =IF(C11=0,"",(D11/'Charges Summary'!D$4)/C11-1) -> 0.159999653 | Q11: =IF(D11=0,"",(E11/'Charges Summary'!E$4)/(D11/'Charges Summary'!D$4)-1) -> 0.002682007664 | R11: =IF(E11=0,"",(F11/'Charges Summary'!F$4)/(E11/'Charges Summary'!E$4)-1) -> -0.09344660934 | S11: =IF(F11=0,"",(G11/'Charges Summary'!G$4)/(F11/'Charges Summary'!F$4)-1) -> 0.02142661287 | T11: =IF(G11=0,"",(H11/'Charges Summary'!H$4)/(G11/'Charges Summary'!G$4)-1) -> 0.00599242211 | V11: =SUM('DNSP Inputs General'!Q46:U46)/5 -> 255.2752125 | W11: 0.00201408373 | Y11: 92.49138427 | Z11: 67.61103507 | AA11: 69.47004191 | AB11: 71.52114503 | AC11: 73.19198671 | AE11: -15.74056902 | AF11: 11.17281515 | AG11: 3.647497837 | AH11: 4.936289407 | AI11: 5.549826699
A12: ='DNSP Inputs General'!A47 -> Mercury Vapour 250W | C12: ='DNSP Inputs General'!E47 -> 110.37 | D12: =IF('DNSP Inputs General'!$B47='DNSP Inputs General'!$A$42,D$7,IF('DNSP Inputs General'!$B47='DNSP Inputs General'!$A$43,D$8,D$9))*'DNSP Inputs General'!$D47 -> 110.0335227 | E12: =IF('DNSP Inputs General'!$B47='DNSP Inputs General'!$A$42,E$7,IF('DNSP Inputs General'!$B47='DNSP Inputs General'!$A$43,E$8,E$9))*'DNSP Inputs General'!$D47 -> 112.6905831 | F12: =IF('DNSP Inputs General'!$B47='DNSP Inputs General'!$A$42,F$7,IF('DNSP Inputs General'!$B47='DNSP Inputs General'!$A$43,F$8,F$9))*'DNSP Inputs General'!$D47 -> 119.239485 | G12: =IF('DNSP Inputs General'!$B47='DNSP Inputs General'!$A$42,G$7,IF('DNSP Inputs General'!$B47='DNSP Inputs General'!$A$43,G$8,G$9))*'DNSP Inputs General'!$D47 -> 124.3516926 | H12: =IF('DNSP Inputs General'!$B47='DNSP Inputs General'!$A$42,H$7,IF('DNSP Inputs General'!$B47='DNSP Inputs General'!$A$43,H$8,H$9))*'DNSP Inputs General'!$D47 -> 128.1310251 | J12: -0.003048629903 | K12: 0.02414773549 | L12: 0.0581140119 | M12: 0.04287344565 | N12: 0.03039228821 | P12: =IF(C12=0,"",(D12/'Charges Summary'!D$4)/C12-1) -> -0.02617035176 | Q12: =IF(D12=0,"",(E12/'Charges Summary'!E$4)/(D12/'Charges Summary'!D$4)-1) -> 0.0003952639149 | R12: =IF(E12=0,"",(F12/'Charges Summary'!F$4)/(E12/'Charges Summary'!E$4)-1) -> 0.03357377994 | S12: =IF(F12=0,"",(G12/'Charges Summary'!G$4)/(F12/'Charges Summary'!F$4)-1) -> 0.01868667941 | T12: =IF(G12=0,"",(H12/'Charges Summary'!H$4)/(G12/'Charges Summary'!G$4)-1) -> 0.006494990305 | V12: =SUM('DNSP Inputs General'!Q47:U47)/5 -> 890.45495 | W12: 0.007025558062 | Y12: 122.5842672 | Z12: 101.896985 | AA12: 104.1172516 | AB12: 106.7675909 | AC12: 109.4787885 | AE12: -12.55074452 | AF12: 10.79359811 | AG12: 15.12223343 | AH12: 17.58410173 | AI12: 18.65223653
A13: ='DNSP Inputs General'!A48 -> Mercury Vapour 400W | C13: ='DNSP Inputs General'!E48 -> 114.58 | D13: =IF('DNSP Inputs General'!$B48='DNSP Inputs General'!$A$42,D$7,IF('DNSP Inputs General'!$B48='DNSP Inputs General'!$A$43,D$8,D$9))*'DNSP Inputs General'!$D48 -> 114.225276 | E13: =IF('DNSP Inputs General'!$B48='DNSP Inputs General'!$A$42,E$7,IF('DNSP Inputs General'!$B48='DNSP Inputs General'!$A$43,E$8,E$9))*'DNSP Inputs General'!$D48 -> 116.9835577 | F13: =IF('DNSP Inputs General'!$B48='DNSP Inputs General'!$A$42,F$7,IF('DNSP Inputs General'!$B48='DNSP Inputs General'!$A$43,F$8,F$9))*'DNSP Inputs General'!$D48 -> 123.7819416 | G13: =IF('DNSP Inputs General'!$B48='DNSP Inputs General'!$A$42,G$7,IF('DNSP Inputs General'!$B48='DNSP Inputs General'!$A$43,G$8,G$9))*'DNSP Inputs General'!$D48 -> 129.0888999 | H13: =IF('DNSP Inputs General'!$B48='DNSP Inputs General'!$A$42,H$7,IF('DNSP Inputs General'!$B48='DNSP Inputs General'!$A$43,H$8,H$9))*'DNSP Inputs General'!$D48 -> 133.012207 | J13: -0.003095863466 | K13: 0.02414773549 | L13: 0.0581140119 | M13: 0.04287344565 | N13: 0.03039228821 | P13: =IF(C13=0,"",(D13/'Charges Summary'!D$4)/C13-1) -> -0.02621648986 | Q13: =IF(D13=0,"",(E13/'Charges Summary'!E$4)/(D13/'Charges Summary'!D$4)-1) -> 0.0003952639149 | R13: =IF(E13=0,"",(F13/'Charges Summary'!F$4)/(E13/'Charges Summary'!E$4)-1) -> 0.03357377994 | S13: =IF(F13=0,"",(G13/'Charges Summary'!G$4)/(F13/'Charges Summary'!F$4)-1) -> 0.01868667941 | T13: =IF(G13=0,"",(H13/'Charges Summary'!H$4)/(G13/'Charges Summary'!G$4)-1) -> 0.006494990305 | V13: =SUM('DNSP Inputs General'!Q48:U48)/5 -> 177.059575 | W13: 0.0013969739 | Y13: 127.2541441 | Z13: 105.7787749 | AA13: 108.0836231 | AB13: 110.8349276 | AC13: 113.6494091 | AE13: -13.02886812 | AF13: 11.2047828 | AG13: 15.69831851 | AH13: 18.25397227 | AI13: 19.36279792
A14: ='DNSP Inputs General'!A49 -> HP Sodium 100W | C14: ='DNSP Inputs General'!E49 -> 111.36 | D14: =IF('DNSP Inputs General'!$B49='DNSP Inputs General'!$A$42,D$7,IF('DNSP Inputs General'!$B49='DNSP Inputs General'!$A$43,D$8,D$9))*'DNSP Inputs General'!$D49 -> 110.2646819 | E14: =IF('DNSP Inputs General'!$B49='DNSP Inputs General'!$A$42,E$7,IF('DNSP Inputs General'!$B49='DNSP Inputs General'!$A$43,E$8,E$9))*'DNSP Inputs General'!$D49 -> 112.9309268 | F14: =IF('DNSP Inputs General'!$B49='DNSP Inputs General'!$A$42,F$7,IF('DNSP Inputs General'!$B49='DNSP Inputs General'!$A$43,F$8,F$9))*'DNSP Inputs General'!$D49 -> 119.3314273 | G14: =IF('DNSP Inputs General'!$B49='DNSP Inputs General'!$A$42,G$7,IF('DNSP Inputs General'!$B49='DNSP Inputs General'!$A$43,G$8,G$9))*'DNSP Inputs General'!$D49 -> 124.4366036 | H14: =IF('DNSP Inputs General'!$B49='DNSP Inputs General'!$A$42,H$7,IF('DNSP Inputs General'!$B49='DNSP Inputs General'!$A$43,H$8,H$9))*'DNSP Inputs General'!$D49 -> 128.2218694 | J14: -0.009835830967 | K14: 0.02418040748 | L14: 0.05667624143 | M14: 0.04278149022 | N14: 0.03041923164 | P14: =IF(C14=0,"",(D14/'Charges Summary'!D$4)/C14-1) -> -0.03280014116 | Q14: =IF(D14=0,"",(E14/'Charges Summary'!E$4)/(D14/'Charges Summary'!D$4)-1) -> 0.000427178162 | R14: =IF(E14=0,"",(F14/'Charges Summary'!F$4)/(E14/'Charges Summary'!E$4)-1) -> 0.03216935486 | S14: =IF(F14=0,"",(G14/'Charges Summary'!G$4)/(F14/'Charges Summary'!F$4)-1) -> 0.01859685665 | T14: =IF(G14=0,"",(H14/'Charges Summary'!H$4)/(G14/'Charges Summary'!G$4)-1) -> 0.006521308852 | V14: =SUM('DNSP Inputs General'!Q49:U49)/5 -> 2388.212587 | W14: 0.01884264464 | Y14: 122.8949738 | Z14: 102.2439562 | AA14: 104.6477324 | AB14: 107.4594357 | AC14: 110.1894006 | AE14: -12.63029196 | AF14: 10.68697062 | AG14: 14.68369491 | AH14: 16.97716782 | AI14: 18.03246882
A15: ='DNSP Inputs General'!A50 -> HP Sodium 400W | C15: ='DNSP Inputs General'!E50 -> 149.26 | D15: =IF('DNSP Inputs General'!$B50='DNSP Inputs General'!$A$42,D$7,IF('DNSP Inputs General'!$B50='DNSP Inputs General'!$A$43,D$8,D$9))*'DNSP Inputs General'!$D50 -> 148.8072402 | E15: =IF('DNSP Inputs General'!$B50='DNSP Inputs General'!$A$42,E$7,IF('DNSP Inputs General'!$B50='DNSP Inputs General'!$A$43,E$8,E$9))*'DNSP Inputs General'!$D50 -> 152.4005981 | F15: =IF('DNSP Inputs General'!$B50='DNSP Inputs General'!$A$42,F$7,IF('DNSP Inputs General'!$B50='DNSP Inputs General'!$A$43,F$8,F$9))*'DNSP Inputs General'!$D50 -> 161.2572083 | G15: =IF('DNSP Inputs General'!$B50='DNSP Inputs General'!$A$42,G$7,IF('DNSP Inputs General'!$B50='DNSP Inputs General'!$A$43,G$8,G$9))*'DNSP Inputs General'!$D50 -> 168.1708605 | H15: =IF('DNSP Inputs General'!$B50='DNSP Inputs General'!$A$42,H$7,IF('DNSP Inputs General'!$B50='DNSP Inputs General'!$A$43,H$8,H$9))*'DNSP Inputs General'!$D50 -> 173.2819577 | J15: -0.003033362946 | K15: 0.02414773549 | L15: 0.0581140119 | M15: 0.04287344565 | N15: 0.03039228821 | P15: =IF(C15=0,"",(D15/'Charges Summary'!D$4)/C15-1) -> -0.02615543888 | Q15: =IF(D15=0,"",(E15/'Charges Summary'!E$4)/(D15/'Charges Summary'!D$4)-1) -> 0.0003952639149 | R15: =IF(E15=0,"",(F15/'Charges Summary'!F$4)/(E15/'Charges Summary'!E$4)-1) -> 0.03357377994 | S15: =IF(F15=0,"",(G15/'Charges Summary'!G$4)/(F15/'Charges Summary'!F$4)-1) -> 0.01868667941 | T15: =IF(G15=0,"",(H15/'Charges Summary'!H$4)/(G15/'Charges Summary'!G$4)-1) -> 0.006494990305 | V15: =SUM('DNSP Inputs General'!Q50:U50)/5 -> 423.6997101 | W15: 0.003342928145 | Y15: 165.7806281 | Z15: 137.8035416 | AA15: 140.8061878 | AB15: 144.3904562 | AC15: 148.0570283 | AE15: -16.97338783 | AF15: 14.59705649 | AG15: 20.45102045 | AH15: 23.78040425 | AI15: 25.2249294
A16: ='DNSP Inputs General'!A51 -> Metal Halide 70W | C16: ='DNSP Inputs General'!E51 -> 191.93 | D16: =IF('DNSP Inputs General'!$B51='DNSP Inputs General'!$A$42,D$7,IF('DNSP Inputs General'!$B51='DNSP Inputs General'!$A$43,D$8,D$9))*'DNSP Inputs General'!$D51 -> 227.9084486 | E16: =IF('DNSP Inputs General'!$B51='DNSP Inputs General'!$A$42,E$7,IF('DNSP Inputs General'!$B51='DNSP Inputs General'!$A$43,E$8,E$9))*'DNSP Inputs General'!$D51 -> 233.9454639 | F16: =IF('DNSP Inputs General'!$B51='DNSP Inputs General'!$A$42,F$7,IF('DNSP Inputs General'!$B51='DNSP Inputs General'!$A$43,F$8,F$9))*'DNSP Inputs General'!$D51 -> 217.1195836 | G16: =IF('DNSP Inputs General'!$B51='DNSP Inputs General'!$A$42,G$7,IF('DNSP Inputs General'!$B51='DNSP Inputs General'!$A$43,G$8,G$9))*'DNSP Inputs General'!$D51 -> 227.0372661 | H16: =IF('DNSP Inputs General'!$B51='DNSP Inputs General'!$A$42,H$7,IF('DNSP Inputs General'!$B51='DNSP Inputs General'!$A$43,H$8,H$9))*'DNSP Inputs General'!$D51 -> 233.8206373 | J16: =IF(C16=0,"",D16/C16-1) -> 0.1874560964 | K16: =IF(D16=0,"",E16/D16-1) -> 0.02648877359 | L16: =IF(E16=0,"",F16/E16-1) -> -0.0719222335 | M16: =IF(F16=0,"",G16/F16-1) -> 0.04567843359 | N16: =IF(G16=0,"",H16/G16-1) -> 0.0298777875 | P16: =IF(C16=0,"",(D16/'Charges Summary'!D$4)/C16-1) -> 0.1599161076 | Q16: =IF(D16=0,"",(E16/'Charges Summary'!E$4)/(D16/'Charges Summary'!D$4)-1) -> 0.002682007664 | R16: =IF(E16=0,"",(F16/'Charges Summary'!F$4)/(E16/'Charges Summary'!E$4)-1) -> -0.09344660934 | S16: =IF(F16=0,"",(G16/'Charges Summary'!G$4)/(F16/'Charges Summary'!F$4)-1) -> 0.02142661287 | T16: =IF(G16=0,"",(H16/'Charges Summary'!H$4)/(G16/'Charges Summary'!G$4)-1) -> 0.00599242211 | V16: =SUM('DNSP Inputs General'!Q51:U51)/5 -> 6.975 | W16: 5.503172e-05 | Y16: 274.6494331 | Z16: 200.7682402 | AA16: 206.288486 | AB16: 212.3791539 | AC16: 217.3406509 | AE16: -46.74098448 | AF16: 33.1772237 | AG16: 10.83109763 | AH16: 14.65811219 | AI16: 16.47998642
A17: ='DNSP Inputs General'!A52 -> Metal Halide 100W | C17: ='DNSP Inputs General'!E52 -> 248.49 | D17: =IF('DNSP Inputs General'!$B52='DNSP Inputs General'!$A$42,D$7,IF('DNSP Inputs General'!$B52='DNSP Inputs General'!$A$43,D$8,D$9))*'DNSP Inputs General'!$D52 -> 246.0539978 | E17: =IF('DNSP Inputs General'!$B52='DNSP Inputs General'!$A$42,E$7,IF('DNSP Inputs General'!$B52='DNSP Inputs General'!$A$43,E$8,E$9))*'DNSP Inputs General'!$D52 -> 252.0036837 | F17: =IF('DNSP Inputs General'!$B52='DNSP Inputs General'!$A$42,F$7,IF('DNSP Inputs General'!$B52='DNSP Inputs General'!$A$43,F$8,F$9))*'DNSP Inputs General'!$D52 -> 266.2863053 | G17: =IF('DNSP Inputs General'!$B52='DNSP Inputs General'!$A$42,G$7,IF('DNSP Inputs General'!$B52='DNSP Inputs General'!$A$43,G$8,G$9))*'DNSP Inputs General'!$D52 -> 277.6784303 | H17: =IF('DNSP Inputs General'!$B52='DNSP Inputs General'!$A$42,H$7,IF('DNSP Inputs General'!$B52='DNSP Inputs General'!$A$43,H$8,H$9))*'DNSP Inputs General'!$D52 -> 286.1251948 | J17: -0.009803220289 | K17: 0.02418040748 | L17: 0.05667624143 | M17: 0.04278149022 | N17: 0.03041923164 | P17: =IF(C17=0,"",(D17/'Charges Summary'!D$4)/C17-1) -> -0.0327682868 | Q17: =IF(D17=0,"",(E17/'Charges Summary'!E$4)/(D17/'Charges Summary'!D$4)-1) -> 0.000427178162 | R17: =IF(E17=0,"",(F17/'Charges Summary'!F$4)/(E17/'Charges Summary'!E$4)-1) -> 0.03216935486 | S17: =IF(F17=0,"",(G17/'Charges Summary'!G$4)/(F17/'Charges Summary'!F$4)-1) -> 0.01859685665 | T17: =IF(G17=0,"",(H17/'Charges Summary'!H$4)/(G17/'Charges Summary'!G$4)-1) -> 0.006521308852 | V17: =SUM('DNSP Inputs General'!Q52:U52)/5 -> 29.75 | W17: 0.0002347231068 | Y17: 274.2383065 | Z17: 228.1558677 | AA17: 233.5198585 | AB17: 239.7941328 | AC17: 245.8860088 | AE17: -28.18430867 | AF17: 23.84781601 | AG17: 32.76644683 | AH17: 37.88429751 | AI17: 40.239186
A18: ='DNSP Inputs General'!A53 -> Metal Halide 150W | C18: ='DNSP Inputs General'!E53 -> 282.31 | D18: =IF('DNSP Inputs General'!$B53='DNSP Inputs General'!$A$42,D$7,IF('DNSP Inputs General'!$B53='DNSP Inputs General'!$A$43,D$8,D$9))*'DNSP Inputs General'!$D53 -> 279.5350673 | E18: =IF('DNSP Inputs General'!$B53='DNSP Inputs General'!$A$42,E$7,IF('DNSP Inputs General'!$B53='DNSP Inputs General'!$A$43,E$8,E$9))*'DNSP Inputs General'!$D53 -> 286.2943392 | F18: =IF('DNSP Inputs General'!$B53='DNSP Inputs General'!$A$42,F$7,IF('DNSP Inputs General'!$B53='DNSP Inputs General'!$A$43,F$8,F$9))*'DNSP Inputs General'!$D53 -> 302.5204263 | G18: =IF('DNSP Inputs General'!$B53='DNSP Inputs General'!$A$42,G$7,IF('DNSP Inputs General'!$B53='DNSP Inputs General'!$A$43,G$8,G$9))*'DNSP Inputs General'!$D53 -> 315.4627009 | H18: =IF('DNSP Inputs General'!$B53='DNSP Inputs General'!$A$42,H$7,IF('DNSP Inputs General'!$B53='DNSP Inputs General'!$A$43,H$8,H$9))*'DNSP Inputs General'!$D53 -> 325.0588339 | J18: -0.009829381394 | K18: 0.02418040748 | L18: 0.05667624143 | M18: 0.04278149022 | N18: 0.03041923164 | P18: =IF(C18=0,"",(D18/'Charges Summary'!D$4)/C18-1) -> -0.03279384117 | Q18: =IF(D18=0,"",(E18/'Charges Summary'!E$4)/(D18/'Charges Summary'!D$4)-1) -> 0.000427178162 | R18: =IF(E18=0,"",(F18/'Charges Summary'!F$4)/(E18/'Charges Summary'!E$4)-1) -> 0.03216935486 | S18: =IF(F18=0,"",(G18/'Charges Summary'!G$4)/(F18/'Charges Summary'!F$4)-1) -> 0.01859685665 | T18: =IF(G18=0,"",(H18/'Charges Summary'!H$4)/(G18/'Charges Summary'!G$4)-1) -> 0.006521308852 | V18: =SUM('DNSP Inputs General'!Q53:U53)/5 -> 28.875 | W18: 0.000227819486 | Y18: 311.5544724 | Z18: 259.2015022 | AA18: 265.2953821 | AB18: 272.4234097 | AC18: 279.3442197 | AE18: -32.01940506 | AF18: 27.092837 | AG18: 37.22504411 | AH18: 43.03929117 | AI18: 45.71461415
A19: ='DNSP Inputs General'!A54 -> HP Sodium 50W | C19: ='DNSP Inputs General'!E54 -> 46.14 | D19: =IF('DNSP Inputs General'!$B54='DNSP Inputs General'!$A$42,D$7,IF('DNSP Inputs General'!$B54='DNSP Inputs General'!$A$43,D$8,D$9))*'DNSP Inputs General'!$D54 -> 45.68719886 | E19: =IF('DNSP Inputs General'!$B54='DNSP Inputs General'!$A$42,E$7,IF('DNSP Inputs General'!$B54='DNSP Inputs General'!$A$43,E$8,E$9))*'DNSP Inputs General'!$D54 -> 46.79193394 | F19: =IF('DNSP Inputs General'!$B54='DNSP Inputs General'!$A$42,F$7,IF('DNSP Inputs General'!$B54='DNSP Inputs General'!$A$43,F$8,F$9))*'DNSP Inputs General'!$D54 -> 49.44392489 | G19: =IF('DNSP Inputs General'!$B54='DNSP Inputs General'!$A$42,G$7,IF('DNSP Inputs General'!$B54='DNSP Inputs General'!$A$43,G$8,G$9))*'DNSP Inputs General'!$D54 -> 51.55920968 | H19: =IF('DNSP Inputs General'!$B54='DNSP Inputs General'!$A$42,H$7,IF('DNSP Inputs General'!$B54='DNSP Inputs General'!$A$43,H$8,H$9))*'DNSP Inputs General'!$D54 -> 53.12760122 | J19: -0.009813635532 | K19: 0.02418040748 | L19: 0.05667624143 | M19: 0.04278149022 | N19: 0.03041923164 | P19: =IF(C19=0,"",(D19/'Charges Summary'!D$4)/C19-1) -> -0.03277846049 | Q19: =IF(D19=0,"",(E19/'Charges Summary'!E$4)/(D19/'Charges Summary'!D$4)-1) -> 0.000427178162 | R19: =IF(E19=0,"",(F19/'Charges Summary'!F$4)/(E19/'Charges Summary'!E$4)-1) -> 0.03216935486 | S19: =IF(F19=0,"",(G19/'Charges Summary'!G$4)/(F19/'Charges Summary'!F$4)-1) -> 0.01859685665 | T19: =IF(G19=0,"",(H19/'Charges Summary'!H$4)/(G19/'Charges Summary'!G$4)-1) -> 0.006521308852 | V19: =SUM('DNSP Inputs General'!Q54:U54)/5 -> 0 | W19: 0 | Y19: 50.92044898 | Z19: 42.36388188 | AA19: 43.35986535 | AB19: 44.52486986 | AC19: 45.65600673 | AE19: -5.233250125 | AF19: 4.428052063 | AG19: 6.084059539 | AH19: 7.034339817 | AI19: 7.471594484
A22: ='DNSP Inputs General'!A$68 -> Energy Efficient Lights
A23: ='DNSP Inputs General'!A69 -> T5 2X14W | C23: ='DNSP Inputs General'!E69 -> 35.6 | D23: ='Charges Summary'!D$89 -> 45.86203165 | E23: ='Charges Summary'!E$89 -> 47.51958221 | F23: ='Charges Summary'!F$89 -> 49.10924112 | G23: ='Charges Summary'!G$89 -> 50.740964 | H23: ='Charges Summary'!H$89 -> 52.48717928 | J23: =IF(C23=0,"",D23/C23-1) -> 0.2882593161 | K23: 0.03614210926 | L23: 0.03345271232 | M23: 0.0332263915 | N23: 0.03441431044 | P23: =IF(C23=0,"",(D23/'Charges Summary'!D$4)/C23-1) -> 0.258381456 | Q23: =IF(D23=0,"",(E23/'Charges Summary'!E$4)/(D23/'Charges Summary'!D$4)-1) -> 0.01211145905 | R23: =IF(E23=0,"",(F23/'Charges Summary'!F$4)/(E23/'Charges Summary'!E$4)-1) -> 0.009484435748 | S23: =IF(F23=0,"",(G23/'Charges Summary'!G$4)/(F23/'Charges Summary'!F$4)-1) -> 0.00926336386 | T23: =IF(G23=0,"",(H23/'Charges Summary'!H$4)/(G23/'Charges Summary'!G$4)-1) -> 0.01042373208 | V23: =SUM('DNSP Inputs General'!Q69:U69)/5 -> 20924 | W23: =V23/V$32 -> 0.1650872702 | Y23: 58.18438916 | Z23: 64.74784835 | AA23: 64.57392876 | AB23: 67.13477963 | AC23: 69.06856055 | AE23: =D23-Y23 -> -12.32235751 | AF23: =E23-Z23 -> -17.22826613 | AG23: =F23-AA23 -> -15.46468763 | AH23: =G23-AB23 -> -16.39381564 | AI23: =H23-AC23 -> -16.58138126
A24: ='DNSP Inputs General'!A70 -> T5 2X24W | C24: ='DNSP Inputs General'!E70 -> 42.08 | D24: ='Charges Summary'!D$105 -> 48.92941093 | E24: ='Charges Summary'!E$105 -> 50.66574909 | F24: ='Charges Summary'!F$105 -> 52.33658649 | G24: ='Charges Summary'!G$105 -> 54.05905512 | H24: ='Charges Summary'!H$105 -> 55.9113094 | J24: 0.1627711723 | K24: 0.03548659444 | L24: 0.03297765123 | M24: 0.03291136736 | N24: 0.03426353421 | P24: =IF(C24=0,"",(D24/'Charges Summary'!D$4)/C24-1) -> 0.1358036868 | Q24: =IF(D24=0,"",(E24/'Charges Summary'!E$4)/(D24/'Charges Summary'!D$4)-1) -> 0.01147114721 | R24: =IF(E24=0,"",(F24/'Charges Summary'!F$4)/(E24/'Charges Summary'!E$4)-1) -> 0.00902039248 | S24: =IF(F24=0,"",(G24/'Charges Summary'!G$4)/(F24/'Charges Summary'!F$4)-1) -> 0.008955645889 | T24: =IF(G24=0,"",(H24/'Charges Summary'!H$4)/(G24/'Charges Summary'!G$4)-1) -> 0.01027645271 | V24: =SUM('DNSP Inputs General'!Q70:U70)/5 -> 1649 | W24: 0.01301036649 | Y24: 60.55992705 | Z24: 64.21670402 | AA24: 67.34804032 | AB24: 69.7911866 | AC24: 70.69651453 | AE24: -11.63051612 | AF24: -13.55095492 | AG24: -15.01145382 | AH24: -15.73213148 | AI24: -14.78520513
A25: ='DNSP Inputs General'!A71 -> LED 18W | C25: ='DNSP Inputs General'!E71 -> 16.27 | D25: ='Charges Summary'!D$121 -> 26.76904714 | E25: ='Charges Summary'!E$121 -> 27.91747732 | F25: ='Charges Summary'!F$121 -> 28.98822684 | G25: ='Charges Summary'!G$121 -> 30.04544476 | H25: ='Charges Summary'!H$121 -> 31.12541164 | J25: =IF(C25=0,"",D25/C25-1) -> 0.6453009921 | K25: =IF(D25=0,"",E25/D25-1) -> 0.0429014215 | L25: =IF(E25=0,"",F25/E25-1) -> 0.03835409291 | M25: =IF(F25=0,"",G25/F25-1) -> 0.03647059661 | N25: =IF(G25=0,"",H25/G25-1) -> 0.03594444632 | P25: =IF(C25=0,"",(D25/'Charges Summary'!D$4)/C25-1) -> 0.607142469 | Q25: =IF(D25=0,"",(E25/'Charges Summary'!E$4)/(D25/'Charges Summary'!D$4)-1) -> 0.01871400643 | R25: =IF(E25=0,"",(F25/'Charges Summary'!F$4)/(E25/'Charges Summary'!E$4)-1) -> 0.01427214143 | S25: =IF(F25=0,"",(G25/'Charges Summary'!G$4)/(F25/'Charges Summary'!F$4)-1) -> 0.01243232798 | T25: =IF(G25=0,"",(H25/'Charges Summary'!H$4)/(G25/'Charges Summary'!G$4)-1) -> 0.01191838039 | V25: =SUM('DNSP Inputs General'!Q71:U71)/5 -> 43959.76056 | W25: 0.3468360193 | Y25: 33.94459169 | Z25: 37.76555677 | AA25: 40.76982142 | AB25: 43.17447711 | AC25: 44.61220366 | AE25: -7.175544546 | AF25: -9.848079452 | AG25: -11.78159459 | AH25: -13.12903235 | AI25: -13.48679202
A26: ='DNSP Inputs General'!A72 -> LED 14W | C26: ='DNSP Inputs General'!E72 -> 16.27 | D26: ='Charges Summary'!D$137 -> 27.95449266 | E26: ='Charges Summary'!E$137 -> 29.12859944 | F26: ='Charges Summary'!F$137 -> 30.22737142 | G26: ='Charges Summary'!G$137 -> 31.31780395 | H26: ='Charges Summary'!H$137 -> 32.43855721 | J26: =IF(C26=0,"",D26/C26-1) -> 0.7181618105 | K26: =IF(D26=0,"",E26/D26-1) -> 0.04200064732 | L26: =IF(E26=0,"",F26/E26-1) -> 0.03772141474 | M26: =IF(F26=0,"",G26/F26-1) -> 0.03607434174 | N26: =IF(G26=0,"",H26/G26-1) -> 0.03578645738 | P26: =IF(C26=0,"",(D26/'Charges Summary'!D$4)/C26-1) -> 0.6783134681 | Q26: =IF(D26=0,"",(E26/'Charges Summary'!E$4)/(D26/'Charges Summary'!D$4)-1) -> 0.01783412339 | R26: =IF(E26=0,"",(F26/'Charges Summary'!F$4)/(E26/'Charges Summary'!E$4)-1) -> 0.0136541366 | S26: =IF(F26=0,"",(G26/'Charges Summary'!G$4)/(F26/'Charges Summary'!F$4)-1) -> 0.01204526322 | T26: =IF(G26=0,"",(H26/'Charges Summary'!H$4)/(G26/'Charges Summary'!G$4)-1) -> 0.0117640556 | V26: =SUM('DNSP Inputs General'!Q72:U72)/5 -> 14 | W26: 0.0001104579326 | Y26: 36.12352238 | Z26: 39.99787127 | AA26: 43.05156979 | AB26: 45.51212832 | AC26: 47.00712732 | AE26: -8.169029726 | AF26: -10.86927182 | AG26: -12.82419837 | AH26: -14.19432437 | AI26: -14.56857011
A27: ='DNSP Inputs General'!A73 -> LED 70W-125W (L1) | C27: ='DNSP Inputs General'!E73 -> 23.59 | D27: ='Charges Summary'!D$153 -> 36.5548499 | E27: ='Charges Summary'!E$153 -> 38.22280285 | F27: ='Charges Summary'!F$153 -> 39.75510516 | G27: ='Charges Summary'!G$153 -> 41.27710896 | H27: ='Charges Summary'!H$153 -> 42.86856664 | J27: 0.5495909243 | K27: 0.04562877298 | L27: 0.04008869548 | M27: 0.03828448687 | N27: 0.03855545423 | P27: =IF(C27=0,"",(D27/'Charges Summary'!D$4)/C27-1) -> 0.5136521499 | Q27: =IF(D27=0,"",(E27/'Charges Summary'!E$4)/(D27/'Charges Summary'!D$4)-1) -> 0.02137810401 | R27: =IF(E27=0,"",(F27/'Charges Summary'!F$4)/(E27/'Charges Summary'!E$4)-1) -> 0.01596651435 | S27: =IF(F27=0,"",(G27/'Charges Summary'!G$4)/(F27/'Charges Summary'!F$4)-1) -> 0.01420414972 | T27: =IF(G27=0,"",(H27/'Charges Summary'!H$4)/(G27/'Charges Summary'!G$4)-1) -> 0.01446883269 | V27: =SUM('DNSP Inputs General'!Q73:U73)/5 -> 4032.637541 | W27: 0.0318169147 | Y27: 45.57794877 | Z27: 52.5842589 | AA27: 58.02161795 | AB27: 62.22835877 | AC27: 64.43708013 | AE27: -9.023098867 | AF27: -14.36145605 | AG27: -18.2665128 | AH27: -20.95124981 | AI27: -21.56851349
A28: ='DNSP Inputs General'!A74 -> LED 155W-250W (L2) | C28: ='DNSP Inputs General'!E74 -> 24.3 | D28: ='Charges Summary'!D$169 -> 37.1020684 | E28: ='Charges Summary'!E$169 -> 38.82117877 | F28: ='Charges Summary'!F$169 -> 40.39572128 | G28: ='Charges Summary'!G$169 -> 41.95683325 | H28: ='Charges Summary'!H$169 -> 43.58812731 | J28: 0.5268340903 | K28: 0.04633462368 | L28: 0.04055885373 | M28: 0.03864547823 | N28: 0.0388802952 | P28: =IF(C28=0,"",(D28/'Charges Summary'!D$4)/C28-1) -> 0.4914231022 | Q28: =IF(D28=0,"",(E28/'Charges Summary'!E$4)/(D28/'Charges Summary'!D$4)-1) -> 0.02206758433 | R28: =IF(E28=0,"",(F28/'Charges Summary'!F$4)/(E28/'Charges Summary'!E$4)-1) -> 0.0164257685 | S28: =IF(F28=0,"",(G28/'Charges Summary'!G$4)/(F28/'Charges Summary'!F$4)-1) -> 0.01455676881 | T28: =IF(G28=0,"",(H28/'Charges Summary'!H$4)/(G28/'Charges Summary'!G$4)-1) -> 0.01478613981 | V28: =SUM('DNSP Inputs General'!Q74:U74)/5 -> 5545.254216 | W28: 0.0437512369 | Y28: 47.63544497 | Z28: 55.47242662 | AA28: 61.54168836 | AB28: 66.20576936 | AC28: 68.59376811 | AE28: -10.53337657 | AF28: -16.65124785 | AG28: -21.14596708 | AH28: -24.24893611 | AI28: -25.0056408
A29: ='DNSP Inputs General'!A75 -> LED 275W-400W (L4) | C29: ='DNSP Inputs General'!E75 -> 25.83 | D29: ='Charges Summary'!D$185 -> 50.88375195 | E29: ='Charges Summary'!E$185 -> 53.25337028 | F29: ='Charges Summary'!F$185 -> 55.4161289 | G29: ='Charges Summary'!G$185 -> 57.5762778 | H29: ='Charges Summary'!H$185 -> 59.86981123 | J29: 0.9699478108 | K29: 0.04656925311 | L29: 0.04061261492 | M29: 0.03898050884 | N29: 0.03983469443 | P29: =IF(C29=0,"",(D29/'Charges Summary'!D$4)/C29-1) -> 0.9242599401 | Q29: =IF(D29=0,"",(E29/'Charges Summary'!E$4)/(D29/'Charges Summary'!D$4)-1) -> 0.02229677212 | R29: =IF(E29=0,"",(F29/'Charges Summary'!F$4)/(E29/'Charges Summary'!E$4)-1) -> 0.01647828283 | S29: =IF(F29=0,"",(G29/'Charges Summary'!G$4)/(F29/'Charges Summary'!F$4)-1) -> 0.01488402925 | T29: =IF(G29=0,"",(H29/'Charges Summary'!H$4)/(G29/'Charges Summary'!G$4)-1) -> 0.01571840421 | V29: =SUM('DNSP Inputs General'!Q75:U75)/5 -> 162.391837 | W29: 0.001281247613 | Y29: 59.33963178 | Z29: 68.24362888 | AA29: 75.12988266 | AB29: 80.49797287 | AC29: 83.31796144 | AE29: -8.455879827 | AF29: -14.9902586 | AG29: -19.71375376 | AH29: -22.92169507 | AI29: -23.4481502
A30: ='DNSP Inputs General'!A76 -> Compact Fluorescent 32W | C30: ='DNSP Inputs General'!E76 -> 31.59 | D30: =IF('DNSP Inputs General'!$B76='DNSP Inputs General'!$A$69,D$23,D$24)*'DNSP Inputs General'!$D76 -> 40.34069673 | E30: =IF('DNSP Inputs General'!$B76='DNSP Inputs General'!$A$69,E$23,E$24)*'DNSP Inputs General'!$D76 -> 41.7986946 | F30: =IF('DNSP Inputs General'!$B76='DNSP Inputs General'!$A$69,F$23,F$24)*'DNSP Inputs General'!$D76 -> 43.19697431 | G30: =IF('DNSP Inputs General'!$B76='DNSP Inputs General'!$A$69,G$23,G$24)*'DNSP Inputs General'!$D76 -> 44.63225389 | H30: =IF('DNSP Inputs General'!$B76='DNSP Inputs General'!$A$69,H$23,H$24)*'DNSP Inputs General'!$D76 -> 46.16824213 | J30: 0.2770084436 | K30: 0.03614210926 | L30: 0.03345271232 | M30: 0.0332263915 | N30: 0.03441431044 | P30: =IF(C30=0,"",(D30/'Charges Summary'!D$4)/C30-1) -> 0.2473915185 | Q30: =IF(D30=0,"",(E30/'Charges Summary'!E$4)/(D30/'Charges Summary'!D$4)-1) -> 0.01211145905 | R30: =IF(E30=0,"",(F30/'Charges Summary'!F$4)/(E30/'Charges Summary'!E$4)-1) -> 0.009484435748 | S30: =IF(F30=0,"",(G30/'Charges Summary'!G$4)/(F30/'Charges Summary'!F$4)-1) -> 0.00926336386 | T30: =IF(G30=0,"",(H30/'Charges Summary'!H$4)/(G30/'Charges Summary'!G$4)-1) -> 0.01042373208 | V30: =SUM('DNSP Inputs General'!Q76:U76)/5 -> 2849 | W30: 0.02247818929 | Y30: 51.17956429 | Z30: 56.95284792 | AA30: 56.79986654 | AB30: 59.0524163 | AC30: 60.75338912 | AE30: -10.83886756 | AF30: -15.15415332 | AG30: -13.60289223 | AH30: -14.42016241 | AI30: -14.58514699
A31: ='DNSP Inputs General'!A77 -> Compact Fluorescent 42W | C31: ='DNSP Inputs General'!E77 -> 31.59 | D31: =IF('DNSP Inputs General'!$B77='DNSP Inputs General'!$A$69,D$23,D$24)*'DNSP Inputs General'!$D77 -> 40.34069673 | E31: =IF('DNSP Inputs General'!$B77='DNSP Inputs General'!$A$69,E$23,E$24)*'DNSP Inputs General'!$D77 -> 41.7986946 | F31: =IF('DNSP Inputs General'!$B77='DNSP Inputs General'!$A$69,F$23,F$24)*'DNSP Inputs General'!$D77 -> 43.19697431 | G31: =IF('DNSP Inputs General'!$B77='DNSP Inputs General'!$A$69,G$23,G$24)*'DNSP Inputs General'!$D77 -> 44.63225389 | H31: =IF('DNSP Inputs General'!$B77='DNSP Inputs General'!$A$69,H$23,H$24)*'DNSP Inputs General'!$D77 -> 46.16824213 | J31: 0.2770084436 | K31: 0.03614210926 | L31: 0.03345271232 | M31: 0.0332263915 | N31: 0.03441431044 | P31: =IF(C31=0,"",(D31/'Charges Summary'!D$4)/C31-1) -> 0.2473915185 | Q31: =IF(D31=0,"",(E31/'Charges Summary'!E$4)/(D31/'Charges Summary'!D$4)-1) -> 0.01211145905 | R31: =IF(E31=0,"",(F31/'Charges Summary'!F$4)/(E31/'Charges Summary'!E$4)-1) -> 0.009484435748 | S31: =IF(F31=0,"",(G31/'Charges Summary'!G$4)/(F31/'Charges Summary'!F$4)-1) -> 0.00926336386 | T31: =IF(G31=0,"",(H31/'Charges Summary'!H$4)/(G31/'Charges Summary'!G$4)-1) -> 0.01042373208 | V31: =SUM('DNSP Inputs General'!Q77:U77)/5 -> 1361 | W31: 0.01073808902 | Y31: 51.17956429 | Z31: 56.95284792 | AA31: 56.79986654 | AB31: 59.0524163 | AC31: 60.75338912 | AE31: -10.83886756 | AF31: -15.15415332 | AG31: -13.60289223 | AH31: -14.42016241 | AI31: -14.58514699
V32: =SUM(V7:V31) -> 126745.0845 | W32: 1
A34: Total Revenue - Nominal ($,000) | D34: ='Cashflow Summary'!D7/10^3 -> 10984.43272 | E34: ='Cashflow Summary'!E7/10^3 -> 11338.27175 | F34: ='Cashflow Summary'!F7/10^3 -> 11707.04982 | G34: ='Cashflow Summary'!G7/10^3 -> 12202.62655 | H34: ='Cashflow Summary'!H7/10^3 -> 12645.76693 | Y34: 12794.25316 | Z34: 12078.65382 | AA34: 12537.74704 | AB34: 13222.25621 | AC34: 13800.66085 | AE34: =D34-Y34 -> -1809.820435 | AF34: =E34-Z34 -> -740.3820644 | AG34: -830.6972235 | AH34: -1019.629658 | AI34: -1154.893915
AI36: =SUM(AE34:AI34)/SUM(Y34:AC34) -> -0.08621939158
D37: ='DNSP Inputs General'!$B$83 -> North & East | V37: Average
A38: Public Lighting Tariffs | C38: Nominal Prices | J38: Nominal Price Movement | P38: Real Price Movement (Implied X Factor) | V38: Nubmer | W38: % of | Y38: Submission Model | AE38: Difference
C39: Actual | V39: of Lights | W39: Total Lights
A40: ='DNSP Inputs General'!A$85 -> Existing Lights | C40: ='DNSP Inputs General'!P$2 -> HY2021 | D40: ='DNSP Inputs General'!Q$2 -> 2022-06-30 | E40: ='DNSP Inputs General'!R$2 -> 2023-06-30 | F40: ='DNSP Inputs General'!S$2 -> 2024-06-30 | G40: ='DNSP Inputs General'!T$2 -> 2025-06-30 | H40: ='DNSP Inputs General'!U$2 -> 2026-06-30 | J40: =D40 -> 2022-06-30 | K40: =E40 -> 2023-06-30 | L40: 2024-06-30 | M40: 2025-06-30 | N40: 2026-06-30 | P40: =J40 -> 2022-06-30 | Q40: =K40 -> 2023-06-30 | R40: 2024-06-30 | S40: 2025-06-30 | T40: 2026-06-30 | V40: 2022-26 | W40: 2022-26 | Y40: =P40 -> 2022-06-30 | Z40: =Q40 -> 2023-06-30 | AA40: =R40 -> 2024-06-30 | AB40: =S40 -> 2025-06-30 | AC40: =T40 -> 2026-06-30 | AE40: =Y40 -> 2022-06-30 | AF40: =Z40 -> 2023-06-30 | AG40: =AA40 -> 2024-06-30 | AH40: =AB40 -> 2025-06-30 | AI40: =AC40 -> 2026-06-30
A41: ='DNSP Inputs General'!A86 -> Mercury Vapour 80W | C41: ='DNSP Inputs General'!E86 -> 49.95 | D41: ='Charges Summary'!K$31 -> 57.63853987 | E41: ='Charges Summary'!L$31 -> 59.13998981 | F41: ='Charges Summary'!M$31 -> 53.6879303 | G41: ='Charges Summary'!N$31 -> 56.05893355 | H41: ='Charges Summary'!O$31 -> 57.72709766 | J41: =IF(C41=0,"",D41/C41-1) -> 0.1539247222 | K41: =IF(D41=0,"",E41/D41-1) -> 0.02604940971 | L41: =IF(E41=0,"",F41/E41-1) -> -0.09218905055 | M41: =IF(F41=0,"",G41/F41-1) -> 0.04416268676 | N41: =IF(G41=0,"",H41/G41-1) -> 0.0297573287 | P41: =IF(C41=0,"",(D41/'Charges Summary'!K$4)/C41-1) -> 0.1271624073 | Q41: =IF(D41=0,"",(E41/'Charges Summary'!L$4)/(D41/'Charges Summary'!K$4)-1) -> 0.002252833696 | R41: =IF(E41=0,"",(F41/'Charges Summary'!M$4)/(E41/'Charges Summary'!L$4)-1) -> -0.1132433897 | S41: =IF(F41=0,"",(G41/'Charges Summary'!N$4)/(F41/'Charges Summary'!M$4)-1) -> 0.01994601989 | T41: =IF(G41=0,"",(H41/'Charges Summary'!O$4)/(G41/'Charges Summary'!N$4)-1) -> 0.005874757043 | V41: =SUM('DNSP Inputs General'!Q86:U86)/5 -> 7835.095915 | W41: =V41/V$32 -> 0.06181774976 | Y41: 72.15095807 | Z41: 51.45883457 | AA41: 52.84988592 | AB41: 54.28773772 | AC41: 55.65534277 | AE41: =D41-Y41 -> -14.5124182 | AF41: =E41-Z41 -> 7.681155241 | AG41: =F41-AA41 -> 0.8380443824 | AH41: =G41-AB41 -> 1.77119583 | AI41: =H41-AC41 -> 2.071754891
A42: ='DNSP Inputs General'!A87 -> HP Sodium 150W | C42: ='DNSP Inputs General'!E87 -> 118.4 | D42: ='Charges Summary'!K$55 -> 121.1292391 | E42: ='Charges Summary'!L$55 -> 124.0136806 | F42: ='Charges Summary'!M$55 -> 128.8354885 | G42: ='Charges Summary'!N$55 -> 134.06361 | H42: ='Charges Summary'!O$55 -> 138.1546288 | J42: 0.02305100573 | K42: 0.02381292569 | L42: 0.03888125726 | M42: 0.04057982439 | N42: 0.03051550543 | P42: =IF(C42=0,"",(D42/'Charges Summary'!K$4)/C42-1) -> -0.0006760300149 | Q42: =IF(D42=0,"",(E42/'Charges Summary'!L$4)/(D42/'Charges Summary'!K$4)-1) -> 6.821917076e-05 | R42: =IF(E42=0,"",(F42/'Charges Summary'!M$4)/(E42/'Charges Summary'!L$4)-1) -> 0.01478707956 | S42: =IF(F42=0,"",(G42/'Charges Summary'!N$4)/(F42/'Charges Summary'!M$4)-1) -> 0.01644625279 | T42: =IF(G42=0,"",(H42/'Charges Summary'!O$4)/(G42/'Charges Summary'!N$4)-1) -> 0.006615349811 | V42: =SUM('DNSP Inputs General'!Q87:U87)/5 -> 8281.534915 | W42: =V42/V$32 -> 0.06534008755 | Y42: 135.0569893 | Z42: 114.5542419 | AA42: 114.3567189 | AB42: 118.9263534 | AC42: 121.9309217 | AE42: -13.92775024 | AF42: 9.459438715 | AG42: 14.47876956 | AH42: 15.13725657 | AI42: 16.2237071
A43: ='DNSP Inputs General'!A88 -> HP Sodium 250W | C43: ='DNSP Inputs General'!E88 -> 117.12 | D43: ='Charges Summary'!K$71 -> 120.0176771 | E43: ='Charges Summary'!L$71 -> 122.9939623 | F43: ='Charges Summary'!M$71 -> 128.2609066 | G43: ='Charges Summary'!N$71 -> 133.5166209 | H43: ='Charges Summary'!O$71 -> 137.5834523 | J43: 0.02474109564 | K43: 0.02479872354 | L43: 0.04282278713 | M43: 0.04097674392 | N43: 0.03045936435 | P43: =IF(C43=0,"",(D43/'Charges Summary'!K$4)/C43-1) -> 0.0009748625999 | Q43: =IF(D43=0,"",(E43/'Charges Summary'!L$4)/(D43/'Charges Summary'!K$4)-1) -> 0.001031153973 | R43: =IF(E43=0,"",(F43/'Charges Summary'!M$4)/(E43/'Charges Summary'!L$4)-1) -> 0.01863719578 | S43: =IF(F43=0,"",(G43/'Charges Summary'!N$4)/(F43/'Charges Summary'!M$4)-1) -> 0.0168339668 | T43: =IF(G43=0,"",(H43/'Charges Summary'!O$4)/(G43/'Charges Summary'!N$4)-1) -> 0.006560510784 | V43: =SUM('DNSP Inputs General'!Q88:U88)/5 -> 7450.332626 | W43: 0.05878202423 | Y43: 133.7365782 | Z43: 113.0244139 | AA43: 113.1023212 | AB43: 115.9643156 | AC43: 118.896314 | AE43: -13.71890109 | AF43: 9.969548459 | AG43: 15.15858534 | AH43: 17.55230532 | AI43: 18.68713836
A44: ='DNSP Inputs General'!A89 -> Mercury Vapour 50W | C44: ='DNSP Inputs General'!E89 -> 73.93 | D44: =IF('DNSP Inputs General'!$B89='DNSP Inputs General'!$A$86,D$41,IF('DNSP Inputs General'!$B89='DNSP Inputs General'!$A$87,D$42,D$43))*'DNSP Inputs General'!$D89 -> 85.30503901 | E44: =IF('DNSP Inputs General'!$B89='DNSP Inputs General'!$A$86,E$41,IF('DNSP Inputs General'!$B89='DNSP Inputs General'!$A$87,E$42,E$43))*'DNSP Inputs General'!$D89 -> 87.52718492 | F44: =IF('DNSP Inputs General'!$B89='DNSP Inputs General'!$A$86,F$41,IF('DNSP Inputs General'!$B89='DNSP Inputs General'!$A$87,F$42,F$43))*'DNSP Inputs General'!$D89 -> 79.45813685 | G44: =IF('DNSP Inputs General'!$B89='DNSP Inputs General'!$A$86,G$41,IF('DNSP Inputs General'!$B89='DNSP Inputs General'!$A$87,G$42,G$43))*'DNSP Inputs General'!$D89 -> 82.96722166 | H44: =IF('DNSP Inputs General'!$B89='DNSP Inputs General'!$A$86,H$41,IF('DNSP Inputs General'!$B89='DNSP Inputs General'!$A$87,H$42,H$43))*'DNSP Inputs General'!$D89 -> 85.43610454 | J44: 0.1538622888 | K44: 0.02604940971 | L44: -0.09218905055 | M44: 0.04416268676 | N44: 0.0297573287 | P44: =IF(C44=0,"",(D44/'Charges Summary'!K$4)/C44-1) -> 0.1271014219 | Q44: =IF(D44=0,"",(E44/'Charges Summary'!L$4)/(D44/'Charges Summary'!K$4)-1) -> 0.002252833696 | R44: =IF(E44=0,"",(F44/'Charges Summary'!M$4)/(E44/'Charges Summary'!L$4)-1) -> -0.1132433897 | S44: =IF(F44=0,"",(G44/'Charges Summary'!N$4)/(F44/'Charges Summary'!M$4)-1) -> 0.01994601989 | T44: =IF(G44=0,"",(H44/'Charges Summary'!O$4)/(G44/'Charges Summary'!N$4)-1) -> 0.005874757043 | V44: =SUM('DNSP Inputs General'!Q89:U89)/5 -> 81.89701549 | W44: 0.0006461553585 | Y44: 106.7834179 | Z44: 76.15907517 | AA44: 78.21783116 | AB44: 80.34585183 | AC44: 82.3699073 | AE44: -21.47837894 | AF44: 11.36810976 | AG44: 1.240305686 | AH44: 2.621369828 | AI44: 3.066197239
A45: ='DNSP Inputs General'!A90 -> Mercury Vapour 125W | C45: ='DNSP Inputs General'!E90 -> 73.93 | D45: =IF('DNSP Inputs General'!$B90='DNSP Inputs General'!$A$86,D$41,IF('DNSP Inputs General'!$B90='DNSP Inputs General'!$A$87,D$42,D$43))*'DNSP Inputs General'!$D90 -> 85.30503901 | E45: =IF('DNSP Inputs General'!$B90='DNSP Inputs General'!$A$86,E$41,IF('DNSP Inputs General'!$B90='DNSP Inputs General'!$A$87,E$42,E$43))*'DNSP Inputs General'!$D90 -> 87.52718492 | F45: =IF('DNSP Inputs General'!$B90='DNSP Inputs General'!$A$86,F$41,IF('DNSP Inputs General'!$B90='DNSP Inputs General'!$A$87,F$42,F$43))*'DNSP Inputs General'!$D90 -> 79.45813685 | G45: =IF('DNSP Inputs General'!$B90='DNSP Inputs General'!$A$86,G$41,IF('DNSP Inputs General'!$B90='DNSP Inputs General'!$A$87,G$42,G$43))*'DNSP Inputs General'!$D90 -> 82.96722166 | H45: =IF('DNSP Inputs General'!$B90='DNSP Inputs General'!$A$86,H$41,IF('DNSP Inputs General'!$B90='DNSP Inputs General'!$A$87,H$42,H$43))*'DNSP Inputs General'!$D90 -> 85.43610454 | J45: 0.1538622888 | K45: 0.02604940971 | L45: -0.09218905055 | M45: 0.04416268676 | N45: 0.0297573287 | P45: =IF(C45=0,"",(D45/'Charges Summary'!K$4)/C45-1) -> 0.1271014219 | Q45: =IF(D45=0,"",(E45/'Charges Summary'!L$4)/(D45/'Charges Summary'!K$4)-1) -> 0.002252833696 | R45: =IF(E45=0,"",(F45/'Charges Summary'!M$4)/(E45/'Charges Summary'!L$4)-1) -> -0.1132433897 | S45: =IF(F45=0,"",(G45/'Charges Summary'!N$4)/(F45/'Charges Summary'!M$4)-1) -> 0.01994601989 | T45: =IF(G45=0,"",(H45/'Charges Summary'!O$4)/(G45/'Charges Summary'!N$4)-1) -> 0.005874757043 | V45: =SUM('DNSP Inputs General'!Q90:U90)/5 -> 27.01757212 | W45: 0.0002131646543 | Y45: 106.7834179 | Z45: 76.15907517 | AA45: 78.21783116 | AB45: 80.34585183 | AC45: 82.3699073 | AE45: -21.47837894 | AF45: 11.36810976 | AG45: 1.240305686 | AH45: 2.621369828 | AI45: 3.066197239
A46: ='DNSP Inputs General'!A91 -> Mercury Vapour 250W | C46: ='DNSP Inputs General'!E91 -> 121.81 | D46: =IF('DNSP Inputs General'!$B91='DNSP Inputs General'!$A$86,D$41,IF('DNSP Inputs General'!$B91='DNSP Inputs General'!$A$87,D$42,D$43))*'DNSP Inputs General'!$D91 -> 124.8183842 | E46: =IF('DNSP Inputs General'!$B91='DNSP Inputs General'!$A$86,E$41,IF('DNSP Inputs General'!$B91='DNSP Inputs General'!$A$87,E$42,E$43))*'DNSP Inputs General'!$D91 -> 127.9137208 | F46: =IF('DNSP Inputs General'!$B91='DNSP Inputs General'!$A$86,F$41,IF('DNSP Inputs General'!$B91='DNSP Inputs General'!$A$87,F$42,F$43))*'DNSP Inputs General'!$D91 -> 133.3913428 | G46: =IF('DNSP Inputs General'!$B91='DNSP Inputs General'!$A$86,G$41,IF('DNSP Inputs General'!$B91='DNSP Inputs General'!$A$87,G$42,G$43))*'DNSP Inputs General'!$D91 -> 138.8572857 | H46: =IF('DNSP Inputs General'!$B91='DNSP Inputs General'!$A$86,H$41,IF('DNSP Inputs General'!$B91='DNSP Inputs General'!$A$87,H$42,H$43))*'DNSP Inputs General'!$D91 -> 143.0867904 | J46: 0.02469735002 | K46: 0.02479872354 | L46: 0.04282278713 | M46: 0.04097674392 | N46: 0.03045936435 | P46: =IF(C46=0,"",(D46/'Charges Summary'!K$4)/C46-1) -> 0.0009321315492 | Q46: =IF(D46=0,"",(E46/'Charges Summary'!L$4)/(D46/'Charges Summary'!K$4)-1) -> 0.001031153973 | R46: =IF(E46=0,"",(F46/'Charges Summary'!M$4)/(E46/'Charges Summary'!L$4)-1) -> 0.01863719578 | S46: =IF(F46=0,"",(G46/'Charges Summary'!N$4)/(F46/'Charges Summary'!M$4)-1) -> 0.0168339668 | T46: =IF(G46=0,"",(H46/'Charges Summary'!O$4)/(G46/'Charges Summary'!N$4)-1) -> 0.006560510784 | V46: =SUM('DNSP Inputs General'!Q91:U91)/5 -> 369.8030184 | W46: 0.002917691206 | Y46: 139.0860413 | Z46: 117.5453904 | AA46: 117.6264141 | AB46: 120.6028882 | AC46: 123.6521665 | AE46: -14.26765713 | AF46: 10.3683304 | AG46: 15.76492875 | AH46: 18.25439753 | AI46: 19.43462389
A47: ='DNSP Inputs General'!A92 -> Mercury Vapour 400W | C47: ='DNSP Inputs General'!E92 -> 125.32 | D47: =IF('DNSP Inputs General'!$B92='DNSP Inputs General'!$A$86,D$41,IF('DNSP Inputs General'!$B92='DNSP Inputs General'!$A$87,D$42,D$43))*'DNSP Inputs General'!$D92 -> 128.4189145 | E47: =IF('DNSP Inputs General'!$B92='DNSP Inputs General'!$A$86,E$41,IF('DNSP Inputs General'!$B92='DNSP Inputs General'!$A$87,E$42,E$43))*'DNSP Inputs General'!$D92 -> 131.6035397 | F47: =IF('DNSP Inputs General'!$B92='DNSP Inputs General'!$A$86,F$41,IF('DNSP Inputs General'!$B92='DNSP Inputs General'!$A$87,F$42,F$43))*'DNSP Inputs General'!$D92 -> 137.23917 | G47: =IF('DNSP Inputs General'!$B92='DNSP Inputs General'!$A$86,G$41,IF('DNSP Inputs General'!$B92='DNSP Inputs General'!$A$87,G$42,G$43))*'DNSP Inputs General'!$D92 -> 142.8627844 | H47: =IF('DNSP Inputs General'!$B92='DNSP Inputs General'!$A$86,H$41,IF('DNSP Inputs General'!$B92='DNSP Inputs General'!$A$87,H$42,H$43))*'DNSP Inputs General'!$D92 -> 147.214294 | J47: 0.02472801244 | K47: 0.02479872354 | L47: 0.04282278713 | M47: 0.04097674392 | N47: 0.03045936435 | P47: =IF(C47=0,"",(D47/'Charges Summary'!K$4)/C47-1) -> 0.0009620828378 | Q47: =IF(D47=0,"",(E47/'Charges Summary'!L$4)/(D47/'Charges Summary'!K$4)-1) -> 0.001031153973 | R47: =IF(E47=0,"",(F47/'Charges Summary'!M$4)/(E47/'Charges Summary'!L$4)-1) -> 0.01863719578 | S47: =IF(F47=0,"",(G47/'Charges Summary'!N$4)/(F47/'Charges Summary'!M$4)-1) -> 0.0168339668 | T47: =IF(G47=0,"",(H47/'Charges Summary'!O$4)/(G47/'Charges Summary'!N$4)-1) -> 0.006560510784 | V47: =SUM('DNSP Inputs General'!Q92:U92)/5 -> 124.9562711 | W47: 0.0009858865263 | Y47: 143.0981387 | Z47: 120.9361228 | AA47: 121.0194837 | AB47: 124.0818177 | AC47: 127.2190559 | AE47: -14.67922417 | AF47: 10.66741685 | AG47: 16.21968631 | AH47: 18.78096669 | AI47: 19.99523804
A48: ='DNSP Inputs General'!A93 -> HP Sodium 100W | C48: ='DNSP Inputs General'!E93 -> 126.69 | D48: =IF('DNSP Inputs General'!$B93='DNSP Inputs General'!$A$86,D$41,IF('DNSP Inputs General'!$B93='DNSP Inputs General'!$A$87,D$42,D$43))*'DNSP Inputs General'!$D93 -> 129.6082858 | E48: =IF('DNSP Inputs General'!$B93='DNSP Inputs General'!$A$86,E$41,IF('DNSP Inputs General'!$B93='DNSP Inputs General'!$A$87,E$42,E$43))*'DNSP Inputs General'!$D93 -> 132.6946383 | F48: =IF('DNSP Inputs General'!$B93='DNSP Inputs General'!$A$86,F$41,IF('DNSP Inputs General'!$B93='DNSP Inputs General'!$A$87,F$42,F$43))*'DNSP Inputs General'!$D93 -> 137.8539727 | G48: =IF('DNSP Inputs General'!$B93='DNSP Inputs General'!$A$86,G$41,IF('DNSP Inputs General'!$B93='DNSP Inputs General'!$A$87,G$42,G$43))*'DNSP Inputs General'!$D93 -> 143.4480627 | H48: =IF('DNSP Inputs General'!$B93='DNSP Inputs General'!$A$86,H$41,IF('DNSP Inputs General'!$B93='DNSP Inputs General'!$A$87,H$42,H$43))*'DNSP Inputs General'!$D93 -> 147.8254528 | J48: 0.02303485527 | K48: 0.02381292569 | L48: 0.03888125726 | M48: 0.04057982439 | N48: 0.03051550543 | P48: =IF(C48=0,"",(D48/'Charges Summary'!K$4)/C48-1) -> -0.0006918059083 | Q48: =IF(D48=0,"",(E48/'Charges Summary'!L$4)/(D48/'Charges Summary'!K$4)-1) -> 6.821917076e-05 | R48: =IF(E48=0,"",(F48/'Charges Summary'!M$4)/(E48/'Charges Summary'!L$4)-1) -> 0.01478707956 | S48: =IF(F48=0,"",(G48/'Charges Summary'!N$4)/(F48/'Charges Summary'!M$4)-1) -> 0.01644625279 | T48: =IF(G48=0,"",(H48/'Charges Summary'!O$4)/(G48/'Charges Summary'!N$4)-1) -> 0.006615349811 | V48: =SUM('DNSP Inputs General'!Q93:U93)/5 -> 744.1046827 | W48: 0.005870876065 | Y48: 144.5109786 | Z48: 122.5730389 | AA48: 122.3616892 | AB48: 127.2511981 | AC48: 130.4660862 | AE48: -14.90269275 | AF48: 10.12159943 | AG48: 15.49228343 | AH48: 16.19686453 | AI48: 17.3593666
A49: ='DNSP Inputs General'!A94 -> HP Sodium 400W | C49: ='DNSP Inputs General'!E94 -> 166.31 | D49: =IF('DNSP Inputs General'!$B94='DNSP Inputs General'!$A$86,D$41,IF('DNSP Inputs General'!$B94='DNSP Inputs General'!$A$87,D$42,D$43))*'DNSP Inputs General'!$D94 -> 170.4251015 | E49: =IF('DNSP Inputs General'!$B94='DNSP Inputs General'!$A$86,E$41,IF('DNSP Inputs General'!$B94='DNSP Inputs General'!$A$87,E$42,E$43))*'DNSP Inputs General'!$D94 -> 174.6514265 | F49: =IF('DNSP Inputs General'!$B94='DNSP Inputs General'!$A$86,F$41,IF('DNSP Inputs General'!$B94='DNSP Inputs General'!$A$87,F$42,F$43))*'DNSP Inputs General'!$D94 -> 182.1304873 | G49: =IF('DNSP Inputs General'!$B94='DNSP Inputs General'!$A$86,G$41,IF('DNSP Inputs General'!$B94='DNSP Inputs General'!$A$87,G$42,G$43))*'DNSP Inputs General'!$D94 -> 189.5936017 | H49: =IF('DNSP Inputs General'!$B94='DNSP Inputs General'!$A$86,H$41,IF('DNSP Inputs General'!$B94='DNSP Inputs General'!$A$87,H$42,H$43))*'DNSP Inputs General'!$D94 -> 195.3685023 | J49: 0.02474356029 | K49: 0.02479872354 | L49: 0.04282278713 | M49: 0.04097674392 | N49: 0.03045936435 | P49: =IF(C49=0,"",(D49/'Charges Summary'!K$4)/C49-1) -> 0.0009772700916 | Q49: =IF(D49=0,"",(E49/'Charges Summary'!L$4)/(D49/'Charges Summary'!K$4)-1) -> 0.001031153973 | R49: =IF(E49=0,"",(F49/'Charges Summary'!M$4)/(E49/'Charges Summary'!L$4)-1) -> 0.01863719578 | S49: =IF(F49=0,"",(G49/'Charges Summary'!N$4)/(F49/'Charges Summary'!M$4)-1) -> 0.0168339668 | T49: =IF(G49=0,"",(H49/'Charges Summary'!O$4)/(G49/'Charges Summary'!N$4)-1) -> 0.006560510784 | V49: =SUM('DNSP Inputs General'!Q94:U94)/5 -> 494.4757339 | W49: 0.003901340521 | Y49: 189.9059411 | Z49: 160.4946677 | AA49: 160.6052962 | AB49: 164.6693281 | AC49: 168.8327658 | AE49: -19.48083955 | AF49: 14.15675881 | AG49: 21.52519118 | AH49: 24.92427355 | AI49: 26.53573647
A50: ='DNSP Inputs General'!A95 -> Metal Halide 70W | C50: ='DNSP Inputs General'!E95 -> 190.05 | D50: =IF('DNSP Inputs General'!$B95='DNSP Inputs General'!$A$86,D$41,IF('DNSP Inputs General'!$B95='DNSP Inputs General'!$A$87,D$42,D$43))*'DNSP Inputs General'!$D95 -> 219.282484 | E50: =IF('DNSP Inputs General'!$B95='DNSP Inputs General'!$A$86,E$41,IF('DNSP Inputs General'!$B95='DNSP Inputs General'!$A$87,E$42,E$43))*'DNSP Inputs General'!$D95 -> 224.9946633 | F50: =IF('DNSP Inputs General'!$B95='DNSP Inputs General'!$A$86,F$41,IF('DNSP Inputs General'!$B95='DNSP Inputs General'!$A$87,F$42,F$43))*'DNSP Inputs General'!$D95 -> 204.2526189 | G50: =IF('DNSP Inputs General'!$B95='DNSP Inputs General'!$A$86,G$41,IF('DNSP Inputs General'!$B95='DNSP Inputs General'!$A$87,G$42,G$43))*'DNSP Inputs General'!$D95 -> 213.2729633 | H50: =IF('DNSP Inputs General'!$B95='DNSP Inputs General'!$A$86,H$41,IF('DNSP Inputs General'!$B95='DNSP Inputs General'!$A$87,H$42,H$43))*'DNSP Inputs General'!$D95 -> 219.619397 | J50: =IF(C50=0,"",D50/C50-1) -> 0.1538147016 | K50: =IF(D50=0,"",E50/D50-1) -> 0.02604940971 | L50: =IF(E50=0,"",F50/E50-1) -> -0.09218905055 | M50: =IF(F50=0,"",G50/F50-1) -> 0.04416268676 | N50: =IF(G50=0,"",H50/G50-1) -> 0.0297573287 | P50: =IF(C50=0,"",(D50/'Charges Summary'!K$4)/C50-1) -> 0.1270549384 | Q50: =IF(D50=0,"",(E50/'Charges Summary'!L$4)/(D50/'Charges Summary'!K$4)-1) -> 0.002252833696 | R50: =IF(E50=0,"",(F50/'Charges Summary'!M$4)/(E50/'Charges Summary'!L$4)-1) -> -0.1132433897 | S50: =IF(F50=0,"",(G50/'Charges Summary'!N$4)/(F50/'Charges Summary'!M$4)-1) -> 0.01994601989 | T50: =IF(G50=0,"",(H50/'Charges Summary'!O$4)/(G50/'Charges Summary'!N$4)-1) -> 0.005874757043 | V50: =SUM('DNSP Inputs General'!Q95:U95)/5 -> 0 | W50: 0 | Y50: 274.4941379 | Z50: 195.7721534 | AA50: 201.0643276 | AB50: 206.5345515 | AC50: 211.7375256 | AE50: -55.21165386 | AF50: 29.22250989 | AG50: 3.188291277 | AH50: 6.738411871 | AI50: 7.881871397
A51: ='DNSP Inputs General'!A96 -> Metal Halide 100W | C51: ='DNSP Inputs General'!E96 -> 250.78 | D51: =IF('DNSP Inputs General'!$B96='DNSP Inputs General'!$A$86,D$41,IF('DNSP Inputs General'!$B96='DNSP Inputs General'!$A$87,D$42,D$43))*'DNSP Inputs General'!$D96 -> 256.557677 | E51: =IF('DNSP Inputs General'!$B96='DNSP Inputs General'!$A$86,E$41,IF('DNSP Inputs General'!$B96='DNSP Inputs General'!$A$87,E$42,E$43))*'DNSP Inputs General'!$D96 -> 262.6670659 | F51: =IF('DNSP Inputs General'!$B96='DNSP Inputs General'!$A$86,F$41,IF('DNSP Inputs General'!$B96='DNSP Inputs General'!$A$87,F$42,F$43))*'DNSP Inputs General'!$D96 -> 272.8798917 | G51: =IF('DNSP Inputs General'!$B96='DNSP Inputs General'!$A$86,G$41,IF('DNSP Inputs General'!$B96='DNSP Inputs General'!$A$87,G$42,G$43))*'DNSP Inputs General'!$D96 -> 283.9533097 | H51: =IF('DNSP Inputs General'!$B96='DNSP Inputs General'!$A$86,H$41,IF('DNSP Inputs General'!$B96='DNSP Inputs General'!$A$87,H$42,H$43))*'DNSP Inputs General'!$D96 -> 292.6182885 | J51: 0.02303882686 | K51: 0.02381292569 | L51: 0.03888125726 | M51: 0.04057982439 | N51: 0.03051550543 | P51: =IF(C51=0,"",(D51/'Charges Summary'!K$4)/C51-1) -> -0.0006879264335 | Q51: =IF(D51=0,"",(E51/'Charges Summary'!L$4)/(D51/'Charges Summary'!K$4)-1) -> 6.821917076e-05 | R51: =IF(E51=0,"",(F51/'Charges Summary'!M$4)/(E51/'Charges Summary'!L$4)-1) -> 0.01478707956 | S51: =IF(F51=0,"",(G51/'Charges Summary'!N$4)/(F51/'Charges Summary'!M$4)-1) -> 0.01644625279 | T51: =IF(G51=0,"",(H51/'Charges Summary'!O$4)/(G51/'Charges Summary'!N$4)-1) -> 0.006615349811 | V51: =SUM('DNSP Inputs General'!Q96:U96)/5 -> 0 | W51: 0 | Y51: 286.057336 | Z51: 242.6315101 | AA51: 242.2131467 | AB51: 251.8918569 | AC51: 258.2556801 | AE51: -29.49965899 | AF51: 20.03555575 | AG51: 30.66674498 | AH51: 32.06145281 | AI51: 34.36260839
A52: ='DNSP Inputs General'!A97 -> Metal Halide 150W | C52: ='DNSP Inputs General'!E97 -> 284.91 | D52: =IF('DNSP Inputs General'!$B97='DNSP Inputs General'!$A$86,D$41,IF('DNSP Inputs General'!$B97='DNSP Inputs General'!$A$87,D$42,D$43))*'DNSP Inputs General'!$D97 -> 291.4726614 | E52: =IF('DNSP Inputs General'!$B97='DNSP Inputs General'!$A$86,E$41,IF('DNSP Inputs General'!$B97='DNSP Inputs General'!$A$87,E$42,E$43))*'DNSP Inputs General'!$D97 -> 298.4134783 | F52: =IF('DNSP Inputs General'!$B97='DNSP Inputs General'!$A$86,F$41,IF('DNSP Inputs General'!$B97='DNSP Inputs General'!$A$87,F$42,F$43))*'DNSP Inputs General'!$D97 -> 310.0161695 | G52: =IF('DNSP Inputs General'!$B97='DNSP Inputs General'!$A$86,G$41,IF('DNSP Inputs General'!$B97='DNSP Inputs General'!$A$87,G$42,G$43))*'DNSP Inputs General'!$D97 -> 322.5965712 | H52: =IF('DNSP Inputs General'!$B97='DNSP Inputs General'!$A$86,H$41,IF('DNSP Inputs General'!$B97='DNSP Inputs General'!$A$87,H$42,H$43))*'DNSP Inputs General'!$D97 -> 332.4407686 | J52: 0.02303415622 | K52: 0.02381292569 | L52: 0.03888125726 | M52: 0.04057982439 | N52: 0.03051550543 | P52: =IF(C52=0,"",(D52/'Charges Summary'!K$4)/C52-1) -> -0.000692488752 | Q52: =IF(D52=0,"",(E52/'Charges Summary'!L$4)/(D52/'Charges Summary'!K$4)-1) -> 6.821917076e-05 | R52: =IF(E52=0,"",(F52/'Charges Summary'!M$4)/(E52/'Charges Summary'!L$4)-1) -> 0.01478707956 | S52: =IF(F52=0,"",(G52/'Charges Summary'!N$4)/(F52/'Charges Summary'!M$4)-1) -> 0.01644625279 | T52: =IF(G52=0,"",(H52/'Charges Summary'!O$4)/(G52/'Charges Summary'!N$4)-1) -> 0.006615349811 | V52: =SUM('DNSP Inputs General'!Q97:U97)/5 -> 0 | W52: 0 | Y52: 324.9869348 | Z52: 275.6512798 | AA52: 275.1759812 | AB52: 286.171869 | AC52: 293.4017461 | AE52: -33.51427335 | AF52: 22.76219845 | AG52: 34.84018831 | AH52: 36.4247022 | AI52: 39.03902249
A53: ='DNSP Inputs General'!A98 -> HP Sodium 50W | C53: ='DNSP Inputs General'!E98 -> 53.84 | D53: =IF('DNSP Inputs General'!$B98='DNSP Inputs General'!$A$86,D$41,IF('DNSP Inputs General'!$B98='DNSP Inputs General'!$A$87,D$42,D$43))*'DNSP Inputs General'!$D98 -> 55.08104543 | E53: =IF('DNSP Inputs General'!$B98='DNSP Inputs General'!$A$86,E$41,IF('DNSP Inputs General'!$B98='DNSP Inputs General'!$A$87,E$42,E$43))*'DNSP Inputs General'!$D98 -> 56.39268627 | F53: =IF('DNSP Inputs General'!$B98='DNSP Inputs General'!$A$86,F$41,IF('DNSP Inputs General'!$B98='DNSP Inputs General'!$A$87,F$42,F$43))*'DNSP Inputs General'!$D98 -> 58.58530481 | G53: =IF('DNSP Inputs General'!$B98='DNSP Inputs General'!$A$86,G$41,IF('DNSP Inputs General'!$B98='DNSP Inputs General'!$A$87,G$42,G$43))*'DNSP Inputs General'!$D98 -> 60.9626862 | H53: =IF('DNSP Inputs General'!$B98='DNSP Inputs General'!$A$86,H$41,IF('DNSP Inputs General'!$B98='DNSP Inputs General'!$A$87,H$42,H$43))*'DNSP Inputs General'!$D98 -> 62.82299338 | J53: 0.02305062092 | K53: 0.02381292569 | L53: 0.03888125726 | M53: 0.04057982439 | N53: 0.03051550543 | P53: =IF(C53=0,"",(D53/'Charges Summary'!K$4)/C53-1) -> -0.0006764059021 | Q53: =IF(D53=0,"",(E53/'Charges Summary'!L$4)/(D53/'Charges Summary'!K$4)-1) -> 6.821917076e-05 | R53: =IF(E53=0,"",(F53/'Charges Summary'!M$4)/(E53/'Charges Summary'!L$4)-1) -> 0.01478707956 | S53: =IF(F53=0,"",(G53/'Charges Summary'!N$4)/(F53/'Charges Summary'!M$4)-1) -> 0.01644625279 | T53: =IF(G53=0,"",(H53/'Charges Summary'!O$4)/(G53/'Charges Summary'!N$4)-1) -> 0.006615349811 | V53: =SUM('DNSP Inputs General'!Q98:U98)/5 -> 0 | W53: 0 | Y53: 61.41440515 | Z53: 52.09119988 | AA53: 52.00138032 | AB53: 54.07932819 | AC53: 55.44559421 | AE53: -6.333359718 | AF53: 4.301486392 | AG53: 6.583924494 | AH53: 6.883358002 | AI53: 7.377399172
A56: ='DNSP Inputs General'!A$112 -> Energy Efficient Lights
A57: ='DNSP Inputs General'!A113 -> T5 2X14W | C57: ='DNSP Inputs General'!E113 -> 40.6 | D57: ='Charges Summary'!K$89 -> 50.65241497 | E57: ='Charges Summary'!L$89 -> 52.4154343 | F57: ='Charges Summary'!M$89 -> 54.11711639 | G57: ='Charges Summary'!N$89 -> 55.87551811 | H57: ='Charges Summary'!O$89 -> 57.76882978 | J57: =IF(C57=0,"",D57/C57-1) -> 0.2475964278 | K57: 0.03480622462 | L57: 0.03246528652 | M57: 0.03249252415 | N57: 0.03388445853 | P57: =IF(C57=0,"",(D57/'Charges Summary'!K$4)/C57-1) -> 0.2186616387 | Q57: =IF(D57=0,"",(E57/'Charges Summary'!L$4)/(D57/'Charges Summary'!K$4)-1) -> 0.01080655681 | R57: =IF(E57=0,"",(F57/'Charges Summary'!M$4)/(E57/'Charges Summary'!L$4)-1) -> 0.008519910752 | S57: =IF(F57=0,"",(G57/'Charges Summary'!N$4)/(F57/'Charges Summary'!M$4)-1) -> 0.008546516672 | T57: =IF(G57=0,"",(H57/'Charges Summary'!O$4)/(G57/'Charges Summary'!N$4)-1) -> 0.009906168718 | V57: =SUM('DNSP Inputs General'!Q113:U113)/5 -> 7921 | W57: =V57/V$32 -> 0.06249552031 | Y57: 68.48619415 | Z57: 73.04744426 | AA57: 72.62141403 | AB57: 75.10019765 | AC57: 77.22915469 | AE57: =D57-Y57 -> -17.83377918 | AF57: =E57-Z57 -> -20.63200996 | AG57: =F57-AA57 -> -18.50429763 | AH57: =G57-AB57 -> -19.22467955 | AI57: =H57-AC57 -> -19.46032491
A58: ='DNSP Inputs General'!A114 -> T5 2X24W | C58: ='DNSP Inputs General'!E114 -> 47.91 | D58: ='Charges Summary'!K$105 -> 54.15995954 | E58: ='Charges Summary'!L$105 -> 56.01151531 | F58: ='Charges Summary'!M$105 -> 57.80484977 | G58: ='Charges Summary'!N$105 -> 59.6660067 | H58: ='Charges Summary'!O$105 -> 61.67958033 | J58: 0.1304520881 | K58: 0.03418680118 | L58: 0.03201724595 | M58: 0.0321972453 | N58: 0.03374741742 | P58: =IF(C58=0,"",(D58/'Charges Summary'!K$4)/C58-1) -> 0.1042341606 | Q58: =IF(D58=0,"",(E58/'Charges Summary'!L$4)/(D58/'Charges Summary'!K$4)-1) -> 0.01020149931 | R58: =IF(E58=0,"",(F58/'Charges Summary'!M$4)/(E58/'Charges Summary'!L$4)-1) -> 0.008082261324 | S58: =IF(F58=0,"",(G58/'Charges Summary'!N$4)/(F58/'Charges Summary'!M$4)-1) -> 0.00825808606 | T58: =IF(G58=0,"",(H58/'Charges Summary'!O$4)/(G58/'Charges Summary'!N$4)-1) -> 0.009772305926 | V58: =SUM('DNSP Inputs General'!Q114:U114)/5 -> 1150 | W58: 0.00907333018 | Y58: 72.04910122 | Z58: 75.90122591 | AA58: 76.29919665 | AB58: 78.77245033 | AC58: 80.07642103 | AE58: -17.88914168 | AF58: -19.8897106 | AG58: -18.49434688 | AH58: -19.10644363 | AI58: -18.39684069
A59: ='DNSP Inputs General'!A115 -> LED 18W | C59: ='DNSP Inputs General'!E115 -> 16.74 | D59: ='Charges Summary'!K$121 -> 28.89815211 | E59: ='Charges Summary'!L$121 -> 30.09309208 | F59: ='Charges Summary'!M$121 -> 31.21253343 | G59: ='Charges Summary'!N$121 -> 32.323845 | H59: ='Charges Summary'!O$121 -> 33.46498646 | J59: =IF(C59=0,"",D59/C59-1) -> 0.7262934355 | K59: =IF(D59=0,"",E59/D59-1) -> 0.04135004769 | L59: =IF(E59=0,"",F59/E59-1) -> 0.03719927979 | M59: =IF(F59=0,"",G59/F59-1) -> 0.03560465775 | N59: =IF(G59=0,"",H59/G59-1) -> 0.0353033948 | P59: =IF(C59=0,"",(D59/'Charges Summary'!K$4)/C59-1) -> 0.686256501 | Q59: =IF(D59=0,"",(E59/'Charges Summary'!L$4)/(D59/'Charges Summary'!K$4)-1) -> 0.01719861275 | R59: =IF(E59=0,"",(F59/'Charges Summary'!M$4)/(E59/'Charges Summary'!L$4)-1) -> 0.01314411123 | S59: =IF(F59=0,"",(G59/'Charges Summary'!N$4)/(F59/'Charges Summary'!M$4)-1) -> 0.01158647234 | T59: =IF(G59=0,"",(H59/'Charges Summary'!O$4)/(G59/'Charges Summary'!N$4)-1) -> 0.01129219641 | V59: =SUM('DNSP Inputs General'!Q115:U115)/5 -> 26758.48276 | W59: 0.2111204776 | Y59: 37.19877302 | Z59: 41.0921632 | AA59: 43.48272993 | AB59: 45.95010924 | AC59: 47.45586216 | AE59: -8.300620911 | AF59: -10.99907112 | AG59: -12.2701965 | AH59: -13.62626424 | AI59: -13.9908757
A60: ='DNSP Inputs General'!A116 -> LED 14W | C60: ='DNSP Inputs General'!E116 -> 16.74 | D60: ='Charges Summary'!K$137 -> 30.01334002 | E60: ='Charges Summary'!L$137 -> 31.23249932 | F60: ='Charges Summary'!M$137 -> 32.37832301 | G60: ='Charges Summary'!N$137 -> 33.52078361 | H60: ='Charges Summary'!O$137 -> 34.70001768 | J60: =IF(C60=0,"",D60/C60-1) -> 0.7929115901 | K60: =IF(D60=0,"",E60/D60-1) -> 0.04062058069 | L60: =IF(E60=0,"",F60/E60-1) -> 0.03668690363 | M60: =IF(F60=0,"",G60/F60-1) -> 0.03528473667 | N60: =IF(G60=0,"",H60/G60-1) -> 0.03517919169 | P60: =IF(C60=0,"",(D60/'Charges Summary'!K$4)/C60-1) -> 0.751329619 | Q60: =IF(D60=0,"",(E60/'Charges Summary'!L$4)/(D60/'Charges Summary'!K$4)-1) -> 0.01648606386 | R60: =IF(E60=0,"",(F60/'Charges Summary'!M$4)/(E60/'Charges Summary'!L$4)-1) -> 0.01264361831 | S60: =IF(F60=0,"",(G60/'Charges Summary'!N$4)/(F60/'Charges Summary'!M$4)-1) -> 0.01127397101 | T60: =IF(G60=0,"",(H60/'Charges Summary'!O$4)/(G60/'Charges Summary'!N$4)-1) -> 0.01117087387 | V60: =SUM('DNSP Inputs General'!Q116:U116)/5 -> 11 | W60: 8.678837563e-05 | Y60: 39.06117638 | Z60: 43.00019544 | AA60: 45.37070915 | AB60: 47.88434395 | AC60: 49.43748562 | AE60: -9.047836363 | AF60: -11.76769612 | AG60: -12.99238614 | AH60: -14.36356034 | AI60: -14.73746794
A61: ='DNSP Inputs General'!A117 -> LED 70W-125W (L1) | C61: ='DNSP Inputs General'!E117 -> 24.09 | D61: ='Charges Summary'!K$153 -> 41.48438632 | E61: ='Charges Summary'!L$153 -> 43.25968119 | F61: ='Charges Summary'!M$153 -> 44.9069302 | G61: ='Charges Summary'!N$153 -> 46.56122851 | H61: ='Charges Summary'!O$153 -> 48.3094616 | J61: 0.722058378 | K61: 0.04279429003 | L61: 0.03807815892 | M61: 0.03683837444 | N61: 0.03754697079 | P61: =IF(C61=0,"",(D61/'Charges Summary'!K$4)/C61-1) -> 0.6821196648 | Q61: =IF(D61=0,"",(E61/'Charges Summary'!L$4)/(D61/'Charges Summary'!K$4)-1) -> 0.0186093596 | R61: =IF(E61=0,"",(F61/'Charges Summary'!M$4)/(E61/'Charges Summary'!L$4)-1) -> 0.01400260702 | S61: =IF(F61=0,"",(G61/'Charges Summary'!N$4)/(F61/'Charges Summary'!M$4)-1) -> 0.01279157615 | T61: =IF(G61=0,"",(H61/'Charges Summary'!O$4)/(G61/'Charges Summary'!N$4)-1) -> 0.01348373843 | V61: =SUM('DNSP Inputs General'!Q117:U117)/5 -> 1121.870678 | W61: 0.008851393987 | Y61: 51.21450903 | Z61: 58.35161254 | AA61: 63.01483558 | AB61: 67.34016759 | AC61: 69.67415166 | AE61: -9.73012271 | AF61: -15.09193136 | AG61: -18.10790538 | AH61: -20.77893908 | AI61: -21.36469006
A62: ='DNSP Inputs General'!A118 -> LED 155W-250W (L2) | C62: ='DNSP Inputs General'!E118 -> 24.89 | D62: ='Charges Summary'!K$169 -> 42.03160482 | E62: ='Charges Summary'!L$169 -> 43.85805711 | F62: ='Charges Summary'!M$169 -> 45.54754633 | G62: ='Charges Summary'!N$169 -> 47.2409528 | H62: ='Charges Summary'!O$169 -> 49.02902227 | J62: 0.6886944482 | K62: 0.04345426013 | L62: 0.03852175254 | M62: 0.03717887378 | N62: 0.03784998732 | P62: =IF(C62=0,"",(D62/'Charges Summary'!K$4)/C62-1) -> 0.6495295255 | Q62: =IF(D62=0,"",(E62/'Charges Summary'!L$4)/(D62/'Charges Summary'!K$4)-1) -> 0.0192540234 | R62: =IF(E62=0,"",(F62/'Charges Summary'!M$4)/(E62/'Charges Summary'!L$4)-1) -> 0.01443591262 | S62: =IF(F62=0,"",(G62/'Charges Summary'!N$4)/(F62/'Charges Summary'!M$4)-1) -> 0.01312417848 | T62: =IF(G62=0,"",(H62/'Charges Summary'!O$4)/(G62/'Charges Summary'!N$4)-1) -> 0.01377972727 | V62: =SUM('DNSP Inputs General'!Q118:U118)/5 -> 3620.315027 | W62: 0.02856375096 | Y62: 53.27200523 | Z62: 61.23978027 | AA62: 66.53490599 | AB62: 71.31757818 | AC62: 73.81971014 | AE62: -11.24040042 | AF62: -17.38172316 | AG62: -20.98735966 | AH62: -24.07662538 | AI62: -24.79068787
A63: ='DNSP Inputs General'!A119 -> LED 275W-400W (L4) | C63: ='DNSP Inputs General'!E119 -> 26.37 | D63: ='Charges Summary'!K$185 -> 58.44125921 | E63: ='Charges Summary'!L$185 -> 60.97591154 | F63: ='Charges Summary'!M$185 -> 63.31598594 | G63: ='Charges Summary'!N$185 -> 65.6809021 | H63: ='Charges Summary'!O$185 -> 68.21832527 | J63: 1.216202473 | K63: 0.0433709396 | L63: 0.03837703034 | M63: 0.03735101211 | N63: 0.03863258701 | P63: =IF(C63=0,"",(D63/'Charges Summary'!K$4)/C63-1) -> 1.164803359 | Q63: =IF(D63=0,"",(E63/'Charges Summary'!L$4)/(D63/'Charges Summary'!K$4)-1) -> 0.01917263526 | R63: =IF(E63=0,"",(F63/'Charges Summary'!M$4)/(E63/'Charges Summary'!L$4)-1) -> 0.01429454688 | S63: =IF(F63=0,"",(G63/'Charges Summary'!N$4)/(F63/'Charges Summary'!M$4)-1) -> 0.0132923245 | T63: =IF(G63=0,"",(H63/'Charges Summary'!O$4)/(G63/'Charges Summary'!N$4)-1) -> 0.01454417658 | V63: =SUM('DNSP Inputs General'!Q119:U119)/5 -> 140.7080253 | W63: 0.001110165542 | Y63: 68.28231285 | Z63: 77.39810328 | AA63: 82.68523933 | AB63: 88.23469315 | AC63: 91.24425475 | AE63: -9.841053632 | AF63: -16.42219174 | AG63: -19.36925339 | AH63: -22.55379105 | AI63: -23.02592948
A64: ='DNSP Inputs General'!A120 -> Compact Fluorescent 32W | C64: ='DNSP Inputs General'!E120 -> 36.13 | D64: =IF('DNSP Inputs General'!$B120='DNSP Inputs General'!$A$113,D$57,D$58)*'DNSP Inputs General'!$D120 -> 44.55436529 | E64: =IF('DNSP Inputs General'!$B120='DNSP Inputs General'!$A$113,E$57,E$58)*'DNSP Inputs General'!$D120 -> 46.10513453 | F64: =IF('DNSP Inputs General'!$B120='DNSP Inputs General'!$A$113,F$57,F$58)*'DNSP Inputs General'!$D120 -> 47.60195094 | G64: =IF('DNSP Inputs General'!$B120='DNSP Inputs General'!$A$113,G$57,G$58)*'DNSP Inputs General'!$D120 -> 49.14865848 | H64: =IF('DNSP Inputs General'!$B120='DNSP Inputs General'!$A$113,H$57,H$58)*'DNSP Inputs General'!$D120 -> 50.81403416 | J64: 0.2331681508 | K64: 0.03480622462 | L64: 0.03246528652 | M64: 0.03249252415 | N64: 0.03388445853 | P64: =IF(C64=0,"",(D64/'Charges Summary'!K$4)/C64-1) -> 0.2045679885 | Q64: =IF(D64=0,"",(E64/'Charges Summary'!L$4)/(D64/'Charges Summary'!K$4)-1) -> 0.01080655681 | R64: =IF(E64=0,"",(F64/'Charges Summary'!M$4)/(E64/'Charges Summary'!L$4)-1) -> 0.008519910752 | S64: =IF(F64=0,"",(G64/'Charges Summary'!N$4)/(F64/'Charges Summary'!M$4)-1) -> 0.008546516672 | T64: =IF(G64=0,"",(H64/'Charges Summary'!O$4)/(G64/'Charges Summary'!N$4)-1) -> 0.009906168718 | V64: =SUM('DNSP Inputs General'!Q120:U120)/5 -> 671 | W64: 0.005294090914 | Y64: 60.24113387 | Z64: 64.2532546 | AA64: 63.87851419 | AB64: 66.05887679 | AC64: 67.93152846 | AE64: -15.68676859 | AF64: -18.14812006 | AG64: -16.27656325 | AH64: -16.91021831 | AI64: -17.1174943
A65: ='DNSP Inputs General'!A121 -> Compact Fluorescent 42W | C65: ='DNSP Inputs General'!E121 -> 36.13 | D65: =IF('DNSP Inputs General'!$B121='DNSP Inputs General'!$A$113,D$57,D$58)*'DNSP Inputs General'!$D121 -> 44.55436529 | E65: =IF('DNSP Inputs General'!$B121='DNSP Inputs General'!$A$113,E$57,E$58)*'DNSP Inputs General'!$D121 -> 46.10513453 | F65: =IF('DNSP Inputs General'!$B121='DNSP Inputs General'!$A$113,F$57,F$58)*'DNSP Inputs General'!$D121 -> 47.60195094 | G65: =IF('DNSP Inputs General'!$B121='DNSP Inputs General'!$A$113,G$57,G$58)*'DNSP Inputs General'!$D121 -> 49.14865848 | H65: =IF('DNSP Inputs General'!$B121='DNSP Inputs General'!$A$113,H$57,H$58)*'DNSP Inputs General'!$D121 -> 50.81403416 | J65: 0.2331681508 | K65: 0.03480622462 | L65: 0.03246528652 | M65: 0.03249252415 | N65: 0.03388445853 | P65: =IF(C65=0,"",(D65/'Charges Summary'!K$4)/C65-1) -> 0.2045679885 | Q65: =IF(D65=0,"",(E65/'Charges Summary'!L$4)/(D65/'Charges Summary'!K$4)-1) -> 0.01080655681 | R65: =IF(E65=0,"",(F65/'Charges Summary'!M$4)/(E65/'Charges Summary'!L$4)-1) -> 0.008519910752 | S65: =IF(F65=0,"",(G65/'Charges Summary'!N$4)/(F65/'Charges Summary'!M$4)-1) -> 0.008546516672 | T65: =IF(G65=0,"",(H65/'Charges Summary'!O$4)/(G65/'Charges Summary'!N$4)-1) -> 0.009906168718 | V65: =SUM('DNSP Inputs General'!Q121:U121)/5 -> 3295 | W65: 0.02599706343 | Y65: 60.24113387 | Z65: 64.2532546 | AA65: 63.87851419 | AB65: 66.05887679 | AC65: 67.93152846 | AE65: -15.68676859 | AF65: -18.14812006 | AG65: -16.27656325 | AH65: -16.91021831 | AI65: -17.1174943
V66: =SUM(V41:V65) -> 70098.59425 | W66: 0.5530675571

Sheet PL Tariff Components
A1: ='DNSP Inputs O & M'!$A$3 -> AusNet | E1: Global Check | F1: =IF(SUM('Total RAB'!F1,'Depn & WACC Post 2004 N & E'!F1,'Depn & WACC Post 2004 Central'!F1,'Cashflow Summary'!F1,W1)<1,"Ok","Error") -> Ok | V1: Check | W1: =SUM(V7:Z31,V38:Z62) -> 1.51167967e-12
D3: ='DNSP Inputs General'!$B$39 -> Central
A4: Public Lighting Tariffs | C4: Total Tariff | J4: Operations, maintenance and repair Tariff | P4: Replacement Tariff | V4: Check
C5: Actual
A6: ='DNSP Inputs General'!A$41 -> Existing Lights | C6: ='DNSP Inputs General'!P$2 -> HY2021 | D6: ='DNSP Inputs General'!Q$2 -> 2022-06-30 | E6: ='DNSP Inputs General'!R$2 -> 2023-06-30 | F6: ='DNSP Inputs General'!S$2 -> 2024-06-30 | G6: ='DNSP Inputs General'!T$2 -> 2025-06-30 | H6: ='DNSP Inputs General'!U$2 -> 2026-06-30 | J6: =D6 -> 2022-06-30 | K6: =E6 -> 2023-06-30 | L6: 2024-06-30 | M6: 2025-06-30 | N6: 2026-06-30 | P6: =J6 -> 2022-06-30 | Q6: =K6 -> 2023-06-30 | R6: 2024-06-30 | S6: 2025-06-30 | T6: 2026-06-30 | V6: =P6 -> 2022-06-30 | W6: =Q6 -> 2023-06-30 | X6: 2024-06-30 | Y6: 2025-06-30 | Z6: 2026-06-30
A7: ='DNSP Inputs General'!A42 -> Mercury Vapour 80W | C7: ='DNSP Inputs General'!E42 -> 43.97 | D7: ='Charges Summary'!D$31 -> 52.21143895 | E7: ='Charges Summary'!E$31 -> 53.59445593 | F7: ='Charges Summary'!F$31 -> 49.73982296 | G7: ='Charges Summary'!G$31 -> 52.01186016 | H7: ='Charges Summary'!H$31 -> 53.56585946 | J7: =SUM('Charges Summary'!D25,'Charges Summary'!D8) -> 24.77915266 | K7: =SUM('Charges Summary'!E25,'Charges Summary'!E8) -> 25.32930497 | L7: =SUM('Charges Summary'!F25,'Charges Summary'!F8) -> 25.91437932 | M7: =SUM('Charges Summary'!G25,'Charges Summary'!G8) -> 26.57059253 | N7: =SUM('Charges Summary'!H25,'Charges Summary'!H8) -> 27.3272036 | P7: =SUM('Charges Summary'!D27,'Charges Summary'!D11) -> 27.43228629 | Q7: =SUM('Charges Summary'!E27,'Charges Summary'!E11) -> 28.26515096 | R7: =SUM('Charges Summary'!F27,'Charges Summary'!F11) -> 23.82544364 | S7: =SUM('Charges Summary'!G27,'Charges Summary'!G11) -> 25.44126762 | T7: =SUM('Charges Summary'!H27,'Charges Summary'!H11) -> 26.23865586 | V7: =ABS(D7-J7-P7) -> 3.552713679e-15 | W7: =ABS(E7-K7-Q7) -> 3.552713679e-15 | X7: 0 | Y7: 0 | Z7: 0
A8: ='DNSP Inputs General'!A43 -> HP Sodium 150W | C8: ='DNSP Inputs General'!E43 -> 104.07 | D8: ='Charges Summary'!D$55 -> 103.0511045 | E8: ='Charges Summary'!E$55 -> 105.5429222 | F8: ='Charges Summary'!F$55 -> 111.5246984 | G8: ='Charges Summary'!G$55 -> 116.2958912 | H8: ='Charges Summary'!H$55 -> 119.8335228 | J8: =SUM('Charges Summary'!D49,'Charges Summary'!D8) -> 72.22970358 | K8: =SUM('Charges Summary'!E49,'Charges Summary'!E8) -> 73.81602238 | L8: =SUM('Charges Summary'!F49,'Charges Summary'!F8) -> 75.52546046 | M8: =SUM('Charges Summary'!G49,'Charges Summary'!G8) -> 77.49854515 | N8: =SUM('Charges Summary'!H49,'Charges Summary'!H8) -> 79.85175447 | P8: =SUM('Charges Summary'!D51,'Charges Summary'!D11) -> 30.82140097 | Q8: =SUM('Charges Summary'!E51,'Charges Summary'!E11) -> 31.72689986 | R8: =SUM('Charges Summary'!F51,'Charges Summary'!F11) -> 35.99923792 | S8: =SUM('Charges Summary'!G51,'Charges Summary'!G11) -> 38.79734603 | T8: =SUM('Charges Summary'!H51,'Charges Summary'!H11) -> 39.98176837 | V8: =ABS(D8-J8-P8) -> 7.105427358e-15 | W8: 3.552713679e-15 | X8: 0 | Y8: 0 | Z8: 7.105427358e-15
A9: ='DNSP Inputs General'!A44 -> HP Sodium 250W | C9: ='DNSP Inputs General'!E44 -> 105.12 | D9: ='Charges Summary'!D$71 -> 104.7938312 | E9: ='Charges Summary'!E$71 -> 107.3243649 | F9: ='Charges Summary'!F$71 -> 113.5614143 | G9: ='Charges Summary'!G$71 -> 118.4301834 | H9: ='Charges Summary'!H$71 -> 122.0295477 | J9: =SUM('Charges Summary'!D65,'Charges Summary'!D8) -> 73.56976622 | K9: =SUM('Charges Summary'!E65,'Charges Summary'!E8) -> 75.18617131 | L9: =SUM('Charges Summary'!F65,'Charges Summary'!F8) -> 76.92762695 | M9: =SUM('Charges Summary'!G65,'Charges Summary'!G8) -> 78.93666234 | N9: =SUM('Charges Summary'!H65,'Charges Summary'!H8) -> 81.33143042 | P9: =SUM('Charges Summary'!D67,'Charges Summary'!D11) -> 31.22406493 | Q9: =SUM('Charges Summary'!E67,'Charges Summary'!E11) -> 32.13819357 | R9: =SUM('Charges Summary'!F67,'Charges Summary'!F11) -> 36.63378734 | S9: =SUM('Charges Summary'!G67,'Charges Summary'!G11) -> 39.49352108 | T9: =SUM('Charges Summary'!H67,'Charges Summary'!H11) -> 40.69811726 | V9: =ABS(D9-J9-P9) -> 3.552713679e-15 | W9: =ABS(E9-K9-Q9) -> 0 | X9: =ABS(F9-L9-R9) -> 0 | Y9: =ABS(G9-M9-S9) -> 0 | Z9: =ABS(H9-N9-T9) -> 7.105427358e-15
A10: ='DNSP Inputs General'!A45 -> Mercury Vapour 50W | C10: ='DNSP Inputs General'!E45 -> 67.27 | D10: =IF('DNSP Inputs General'!$B45='DNSP Inputs General'!$A$42,D$7,IF('DNSP Inputs General'!$B45='DNSP Inputs General'!$A$43,D$8,D$9))*'DNSP Inputs General'!$D45 -> 79.88350159 | E10: =IF('DNSP Inputs General'!$B45='DNSP Inputs General'!$A$42,E$7,IF('DNSP Inputs General'!$B45='DNSP Inputs General'!$A$43,E$8,E$9))*'DNSP Inputs General'!$D45 -> 81.99951758 | F10: =IF('DNSP Inputs General'!$B45='DNSP Inputs General'!$A$42,F$7,IF('DNSP Inputs General'!$B45='DNSP Inputs General'!$A$43,F$8,F$9))*'DNSP Inputs General'!$D45 -> 76.10192913 | G10: =IF('DNSP Inputs General'!$B45='DNSP Inputs General'!$A$42,G$7,IF('DNSP Inputs General'!$B45='DNSP Inputs General'!$A$43,G$8,G$9))*'DNSP Inputs General'!$D45 -> 79.57814604 | H10: =IF('DNSP Inputs General'!$B45='DNSP Inputs General'!$A$42,H$7,IF('DNSP Inputs General'!$B45='DNSP Inputs General'!$A$43,H$8,H$9))*'DNSP Inputs General'!$D45 -> 81.95576498 | J10: =IF('DNSP Inputs General'!$B45='DNSP Inputs General'!$A$42,J$7,IF('DNSP Inputs General'!$B45='DNSP Inputs General'!$A$43,J$8,J$9))*'DNSP Inputs General'!$D45 -> 37.91210357 | K10: =IF('DNSP Inputs General'!$B45='DNSP Inputs General'!$A$42,K$7,IF('DNSP Inputs General'!$B45='DNSP Inputs General'!$A$43,K$8,K$9))*'DNSP Inputs General'!$D45 -> 38.7538366 | L10: =IF('DNSP Inputs General'!$B45='DNSP Inputs General'!$A$42,L$7,IF('DNSP Inputs General'!$B45='DNSP Inputs General'!$A$43,L$8,L$9))*'DNSP Inputs General'!$D45 -> 39.64900036 | M10: =IF('DNSP Inputs General'!$B45='DNSP Inputs General'!$A$42,M$7,IF('DNSP Inputs General'!$B45='DNSP Inputs General'!$A$43,M$8,M$9))*'DNSP Inputs General'!$D45 -> 40.65300658 | N10: =IF('DNSP Inputs General'!$B45='DNSP Inputs General'!$A$42,N$7,IF('DNSP Inputs General'!$B45='DNSP Inputs General'!$A$43,N$8,N$9))*'DNSP Inputs General'!$D45 -> 41.81062151 | P10: =IF('DNSP Inputs General'!$B45='DNSP Inputs General'!$A$42,P$7,IF('DNSP Inputs General'!$B45='DNSP Inputs General'!$A$43,P$8,P$9))*'DNSP Inputs General'!$D45 -> 41.97139802 | Q10: =IF('DNSP Inputs General'!$B45='DNSP Inputs General'!$A$42,Q$7,IF('DNSP Inputs General'!$B45='DNSP Inputs General'!$A$43,Q$8,Q$9))*'DNSP Inputs General'!$D45 -> 43.24568097 | R10: =IF('DNSP Inputs General'!$B45='DNSP Inputs General'!$A$42,R$7,IF('DNSP Inputs General'!$B45='DNSP Inputs General'!$A$43,R$8,R$9))*'DNSP Inputs General'!$D45 -> 36.45292877 | S10: =IF('DNSP Inputs General'!$B45='DNSP Inputs General'!$A$42,S$7,IF('DNSP Inputs General'!$B45='DNSP Inputs General'!$A$43,S$8,S$9))*'DNSP Inputs General'!$D45 -> 38.92513946 | T10: =IF('DNSP Inputs General'!$B45='DNSP Inputs General'!$A$42,T$7,IF('DNSP Inputs General'!$B45='DNSP Inputs General'!$A$43,T$8,T$9))*'DNSP Inputs General'!$D45 -> 40.14514347 | V10: 1.421085472e-14 | W10: 7.105427358e-15 | X10: 7.105427358e-15 | Y10: 0 | Z10: 0
A11: ='DNSP Inputs General'!A46 -> Mercury Vapour 125W | C11: ='DNSP Inputs General'!E46 -> 64.63 | D11: =IF('DNSP Inputs General'!$B46='DNSP Inputs General'!$A$42,D$7,IF('DNSP Inputs General'!$B46='DNSP Inputs General'!$A$43,D$8,D$9))*'DNSP Inputs General'!$D46 -> 76.75081525 | E11: =IF('DNSP Inputs General'!$B46='DNSP Inputs General'!$A$42,E$7,IF('DNSP Inputs General'!$B46='DNSP Inputs General'!$A$43,E$8,E$9))*'DNSP Inputs General'!$D46 -> 78.78385022 | F11: =IF('DNSP Inputs General'!$B46='DNSP Inputs General'!$A$42,F$7,IF('DNSP Inputs General'!$B46='DNSP Inputs General'!$A$43,F$8,F$9))*'DNSP Inputs General'!$D46 -> 73.11753975 | G11: =IF('DNSP Inputs General'!$B46='DNSP Inputs General'!$A$42,G$7,IF('DNSP Inputs General'!$B46='DNSP Inputs General'!$A$43,G$8,G$9))*'DNSP Inputs General'!$D46 -> 76.45743443 | H11: =IF('DNSP Inputs General'!$B46='DNSP Inputs General'!$A$42,H$7,IF('DNSP Inputs General'!$B46='DNSP Inputs General'!$A$43,H$8,H$9))*'DNSP Inputs General'!$D46 -> 78.74181341 | J11: =IF('DNSP Inputs General'!$B46='DNSP Inputs General'!$A$42,J$7,IF('DNSP Inputs General'!$B46='DNSP Inputs General'!$A$43,J$8,J$9))*'DNSP Inputs General'!$D46 -> 36.42535441 | K11: =IF('DNSP Inputs General'!$B46='DNSP Inputs General'!$A$42,K$7,IF('DNSP Inputs General'!$B46='DNSP Inputs General'!$A$43,K$8,K$9))*'DNSP Inputs General'!$D46 -> 37.23407831 | L11: =IF('DNSP Inputs General'!$B46='DNSP Inputs General'!$A$42,L$7,IF('DNSP Inputs General'!$B46='DNSP Inputs General'!$A$43,L$8,L$9))*'DNSP Inputs General'!$D46 -> 38.0941376 | M11: =IF('DNSP Inputs General'!$B46='DNSP Inputs General'!$A$42,M$7,IF('DNSP Inputs General'!$B46='DNSP Inputs General'!$A$43,M$8,M$9))*'DNSP Inputs General'!$D46 -> 39.05877103 | N11: =IF('DNSP Inputs General'!$B46='DNSP Inputs General'!$A$42,N$7,IF('DNSP Inputs General'!$B46='DNSP Inputs General'!$A$43,N$8,N$9))*'DNSP Inputs General'!$D46 -> 40.17098929 | P11: =IF('DNSP Inputs General'!$B46='DNSP Inputs General'!$A$42,P$7,IF('DNSP Inputs General'!$B46='DNSP Inputs General'!$A$43,P$8,P$9))*'DNSP Inputs General'!$D46 -> 40.32546085 | Q11: =IF('DNSP Inputs General'!$B46='DNSP Inputs General'!$A$42,Q$7,IF('DNSP Inputs General'!$B46='DNSP Inputs General'!$A$43,Q$8,Q$9))*'DNSP Inputs General'!$D46 -> 41.54977191 | R11: =IF('DNSP Inputs General'!$B46='DNSP Inputs General'!$A$42,R$7,IF('DNSP Inputs General'!$B46='DNSP Inputs General'!$A$43,R$8,R$9))*'DNSP Inputs General'!$D46 -> 35.02340215 | S11: =IF('DNSP Inputs General'!$B46='DNSP Inputs General'!$A$42,S$7,IF('DNSP Inputs General'!$B46='DNSP Inputs General'!$A$43,S$8,S$9))*'DNSP Inputs General'!$D46 -> 37.39866341 | T11: =IF('DNSP Inputs General'!$B46='DNSP Inputs General'!$A$42,T$7,IF('DNSP Inputs General'!$B46='DNSP Inputs General'!$A$43,T$8,T$9))*'DNSP Inputs General'!$D46 -> 38.57082412 | V11: 0 | W11: 7.105427358e-15 | X11: 7.105427358e-15 | Y11: 0 | Z11: 7.105427358e-15
A12: ='DNSP Inputs General'!A47 -> Mercury Vapour 250W | C12: ='DNSP Inputs General'!E47 -> 110.37 | D12: =IF('DNSP Inputs General'!$B47='DNSP Inputs General'!$A$42,D$7,IF('DNSP Inputs General'!$B47='DNSP Inputs General'!$A$43,D$8,D$9))*'DNSP Inputs General'!$D47 -> 110.0335227 | E12: =IF('DNSP Inputs General'!$B47='DNSP Inputs General'!$A$42,E$7,IF('DNSP Inputs General'!$B47='DNSP Inputs General'!$A$43,E$8,E$9))*'DNSP Inputs General'!$D47 -> 112.6905831 | F12: =IF('DNSP Inputs General'!$B47='DNSP Inputs General'!$A$42,F$7,IF('DNSP Inputs General'!$B47='DNSP Inputs General'!$A$43,F$8,F$9))*'DNSP Inputs General'!$D47 -> 119.239485 | G12: =IF('DNSP Inputs General'!$B47='DNSP Inputs General'!$A$42,G$7,IF('DNSP Inputs General'!$B47='DNSP Inputs General'!$A$43,G$8,G$9))*'DNSP Inputs General'!$D47 -> 124.3516926 | H12: =IF('DNSP Inputs General'!$B47='DNSP Inputs General'!$A$42,H$7,IF('DNSP Inputs General'!$B47='DNSP Inputs General'!$A$43,H$8,H$9))*'DNSP Inputs General'!$D47 -> 128.1310251 | J12: =IF('DNSP Inputs General'!$B47='DNSP Inputs General'!$A$42,J$7,IF('DNSP Inputs General'!$B47='DNSP Inputs General'!$A$43,J$8,J$9))*'DNSP Inputs General'!$D47 -> 77.24825454 | K12: =IF('DNSP Inputs General'!$B47='DNSP Inputs General'!$A$42,K$7,IF('DNSP Inputs General'!$B47='DNSP Inputs General'!$A$43,K$8,K$9))*'DNSP Inputs General'!$D47 -> 78.94547987 | L12: =IF('DNSP Inputs General'!$B47='DNSP Inputs General'!$A$42,L$7,IF('DNSP Inputs General'!$B47='DNSP Inputs General'!$A$43,L$8,L$9))*'DNSP Inputs General'!$D47 -> 80.7740083 | M12: =IF('DNSP Inputs General'!$B47='DNSP Inputs General'!$A$42,M$7,IF('DNSP Inputs General'!$B47='DNSP Inputs General'!$A$43,M$8,M$9))*'DNSP Inputs General'!$D47 -> 82.88349546 | N12: =IF('DNSP Inputs General'!$B47='DNSP Inputs General'!$A$42,N$7,IF('DNSP Inputs General'!$B47='DNSP Inputs General'!$A$43,N$8,N$9))*'DNSP Inputs General'!$D47 -> 85.39800194 | P12: =IF('DNSP Inputs General'!$B47='DNSP Inputs General'!$A$42,P$7,IF('DNSP Inputs General'!$B47='DNSP Inputs General'!$A$43,P$8,P$9))*'DNSP Inputs General'!$D47 -> 32.78526818 | Q12: =IF('DNSP Inputs General'!$B47='DNSP Inputs General'!$A$42,Q$7,IF('DNSP Inputs General'!$B47='DNSP Inputs General'!$A$43,Q$8,Q$9))*'DNSP Inputs General'!$D47 -> 33.74510325 | R12: =IF('DNSP Inputs General'!$B47='DNSP Inputs General'!$A$42,R$7,IF('DNSP Inputs General'!$B47='DNSP Inputs General'!$A$43,R$8,R$9))*'DNSP Inputs General'!$D47 -> 38.46547671 | S12: =IF('DNSP Inputs General'!$B47='DNSP Inputs General'!$A$42,S$7,IF('DNSP Inputs General'!$B47='DNSP Inputs General'!$A$43,S$8,S$9))*'DNSP Inputs General'!$D47 -> 41.46819713 | T12: =IF('DNSP Inputs General'!$B47='DNSP Inputs General'!$A$42,T$7,IF('DNSP Inputs General'!$B47='DNSP Inputs General'!$A$43,T$8,T$9))*'DNSP Inputs General'!$D47 -> 42.73302312 | V12: 7.105427358e-15 | W12: 7.105427358e-15 | X12: 7.105427358e-15 | Y12: 7.105427358e-15 | Z12: 7.105427358e-15
A13: ='DNSP Inputs General'!A48 -> Mercury Vapour 400W | C13: ='DNSP Inputs General'!E48 -> 114.58 | D13: =IF('DNSP Inputs General'!$B48='DNSP Inputs General'!$A$42,D$7,IF('DNSP Inputs General'!$B48='DNSP Inputs General'!$A$43,D$8,D$9))*'DNSP Inputs General'!$D48 -> 114.225276 | E13: =IF('DNSP Inputs General'!$B48='DNSP Inputs General'!$A$42,E$7,IF('DNSP Inputs General'!$B48='DNSP Inputs General'!$A$43,E$8,E$9))*'DNSP Inputs General'!$D48 -> 116.9835577 | F13: =IF('DNSP Inputs General'!$B48='DNSP Inputs General'!$A$42,F$7,IF('DNSP Inputs General'!$B48='DNSP Inputs General'!$A$43,F$8,F$9))*'DNSP Inputs General'!$D48 -> 123.7819416 | G13: =IF('DNSP Inputs General'!$B48='DNSP Inputs General'!$A$42,G$7,IF('DNSP Inputs General'!$B48='DNSP Inputs General'!$A$43,G$8,G$9))*'DNSP Inputs General'!$D48 -> 129.0888999 | H13: =IF('DNSP Inputs General'!$B48='DNSP Inputs General'!$A$42,H$7,IF('DNSP Inputs General'!$B48='DNSP Inputs General'!$A$43,H$8,H$9))*'DNSP Inputs General'!$D48 -> 133.012207 | J13: =IF('DNSP Inputs General'!$B48='DNSP Inputs General'!$A$42,J$7,IF('DNSP Inputs General'!$B48='DNSP Inputs General'!$A$43,J$8,J$9))*'DNSP Inputs General'!$D48 -> 80.19104519 | K13: =IF('DNSP Inputs General'!$B48='DNSP Inputs General'!$A$42,K$7,IF('DNSP Inputs General'!$B48='DNSP Inputs General'!$A$43,K$8,K$9))*'DNSP Inputs General'!$D48 -> 81.95292672 | L13: =IF('DNSP Inputs General'!$B48='DNSP Inputs General'!$A$42,L$7,IF('DNSP Inputs General'!$B48='DNSP Inputs General'!$A$43,L$8,L$9))*'DNSP Inputs General'!$D48 -> 83.85111337 | M13: =IF('DNSP Inputs General'!$B48='DNSP Inputs General'!$A$42,M$7,IF('DNSP Inputs General'!$B48='DNSP Inputs General'!$A$43,M$8,M$9))*'DNSP Inputs General'!$D48 -> 86.04096195 | N13: =IF('DNSP Inputs General'!$B48='DNSP Inputs General'!$A$42,N$7,IF('DNSP Inputs General'!$B48='DNSP Inputs General'!$A$43,N$8,N$9))*'DNSP Inputs General'!$D48 -> 88.65125916 | P13: =IF('DNSP Inputs General'!$B48='DNSP Inputs General'!$A$42,P$7,IF('DNSP Inputs General'!$B48='DNSP Inputs General'!$A$43,P$8,P$9))*'DNSP Inputs General'!$D48 -> 34.03423078 | Q13: =IF('DNSP Inputs General'!$B48='DNSP Inputs General'!$A$42,Q$7,IF('DNSP Inputs General'!$B48='DNSP Inputs General'!$A$43,Q$8,Q$9))*'DNSP Inputs General'!$D48 -> 35.03063099 | R13: =IF('DNSP Inputs General'!$B48='DNSP Inputs General'!$A$42,R$7,IF('DNSP Inputs General'!$B48='DNSP Inputs General'!$A$43,R$8,R$9))*'DNSP Inputs General'!$D48 -> 39.93082821 | S13: =IF('DNSP Inputs General'!$B48='DNSP Inputs General'!$A$42,S$7,IF('DNSP Inputs General'!$B48='DNSP Inputs General'!$A$43,S$8,S$9))*'DNSP Inputs General'!$D48 -> 43.04793797 | T13: =IF('DNSP Inputs General'!$B48='DNSP Inputs General'!$A$42,T$7,IF('DNSP Inputs General'!$B48='DNSP Inputs General'!$A$43,T$8,T$9))*'DNSP Inputs General'!$D48 -> 44.36094781 | V13: 7.105427358e-15 | W13: 7.105427358e-15 | X13: 7.105427358e-15 | Y13: 0 | Z13: 7.105427358e-15
A14: ='DNSP Inputs General'!A49 -> HP Sodium 100W | C14: ='DNSP Inputs General'!E49 -> 111.36 | D14: =IF('DNSP Inputs General'!$B49='DNSP Inputs General'!$A$42,D$7,IF('DNSP Inputs General'!$B49='DNSP Inputs General'!$A$43,D$8,D$9))*'DNSP Inputs General'!$D49 -> 110.2646819 | E14: =IF('DNSP Inputs General'!$B49='DNSP Inputs General'!$A$42,E$7,IF('DNSP Inputs General'!$B49='DNSP Inputs General'!$A$43,E$8,E$9))*'DNSP Inputs General'!$D49 -> 112.9309268 | F14: =IF('DNSP Inputs General'!$B49='DNSP Inputs General'!$A$42,F$7,IF('DNSP Inputs General'!$B49='DNSP Inputs General'!$A$43,F$8,F$9))*'DNSP Inputs General'!$D49 -> 119.3314273 | G14: =IF('DNSP Inputs General'!$B49='DNSP Inputs General'!$A$42,G$7,IF('DNSP Inputs General'!$B49='DNSP Inputs General'!$A$43,G$8,G$9))*'DNSP Inputs General'!$D49 -> 124.4366036 | H14: =IF('DNSP Inputs General'!$B49='DNSP Inputs General'!$A$42,H$7,IF('DNSP Inputs General'!$B49='DNSP Inputs General'!$A$43,H$8,H$9))*'DNSP Inputs General'!$D49 -> 128.2218694 | J14: =IF('DNSP Inputs General'!$B49='DNSP Inputs General'!$A$42,J$7,IF('DNSP Inputs General'!$B49='DNSP Inputs General'!$A$43,J$8,J$9))*'DNSP Inputs General'!$D49 -> 77.28578283 | K14: =IF('DNSP Inputs General'!$B49='DNSP Inputs General'!$A$42,K$7,IF('DNSP Inputs General'!$B49='DNSP Inputs General'!$A$43,K$8,K$9))*'DNSP Inputs General'!$D49 -> 78.98314395 | L14: =IF('DNSP Inputs General'!$B49='DNSP Inputs General'!$A$42,L$7,IF('DNSP Inputs General'!$B49='DNSP Inputs General'!$A$43,L$8,L$9))*'DNSP Inputs General'!$D49 -> 80.8122427 | M14: =IF('DNSP Inputs General'!$B49='DNSP Inputs General'!$A$42,M$7,IF('DNSP Inputs General'!$B49='DNSP Inputs General'!$A$43,M$8,M$9))*'DNSP Inputs General'!$D49 -> 82.92344331 | N14: =IF('DNSP Inputs General'!$B49='DNSP Inputs General'!$A$42,N$7,IF('DNSP Inputs General'!$B49='DNSP Inputs General'!$A$43,N$8,N$9))*'DNSP Inputs General'!$D49 -> 85.44137728 | P14: =IF('DNSP Inputs General'!$B49='DNSP Inputs General'!$A$42,P$7,IF('DNSP Inputs General'!$B49='DNSP Inputs General'!$A$43,P$8,P$9))*'DNSP Inputs General'!$D49 -> 32.97889903 | Q14: =IF('DNSP Inputs General'!$B49='DNSP Inputs General'!$A$42,Q$7,IF('DNSP Inputs General'!$B49='DNSP Inputs General'!$A$43,Q$8,Q$9))*'DNSP Inputs General'!$D49 -> 33.94778285 | R14: =IF('DNSP Inputs General'!$B49='DNSP Inputs General'!$A$42,R$7,IF('DNSP Inputs General'!$B49='DNSP Inputs General'!$A$43,R$8,R$9))*'DNSP Inputs General'!$D49 -> 38.51918458 | S14: =IF('DNSP Inputs General'!$B49='DNSP Inputs General'!$A$42,S$7,IF('DNSP Inputs General'!$B49='DNSP Inputs General'!$A$43,S$8,S$9))*'DNSP Inputs General'!$D49 -> 41.51316025 | T14: =IF('DNSP Inputs General'!$B49='DNSP Inputs General'!$A$42,T$7,IF('DNSP Inputs General'!$B49='DNSP Inputs General'!$A$43,T$8,T$9))*'DNSP Inputs General'!$D49 -> 42.78049215 | V14: 0 | W14: 7.105427358e-15 | X14: 7.105427358e-15 | Y14: 0 | Z14: 7.105427358e-15
A15: ='DNSP Inputs General'!A50 -> HP Sodium 400W | C15: ='DNSP Inputs General'!E50 -> 149.26 | D15: =IF('DNSP Inputs General'!$B50='DNSP Inputs General'!$A$42,D$7,IF('DNSP Inputs General'!$B50='DNSP Inputs General'!$A$43,D$8,D$9))*'DNSP Inputs General'!$D50 -> 148.8072402 | E15: =IF('DNSP Inputs General'!$B50='DNSP Inputs General'!$A$42,E$7,IF('DNSP Inputs General'!$B50='DNSP Inputs General'!$A$43,E$8,E$9))*'DNSP Inputs General'!$D50 -> 152.4005981 | F15: =IF('DNSP Inputs General'!$B50='DNSP Inputs General'!$A$42,F$7,IF('DNSP Inputs General'!$B50='DNSP Inputs General'!$A$43,F$8,F$9))*'DNSP Inputs General'!$D50 -> 161.2572083 | G15: =IF('DNSP Inputs General'!$B50='DNSP Inputs General'!$A$42,G$7,IF('DNSP Inputs General'!$B50='DNSP Inputs General'!$A$43,G$8,G$9))*'DNSP Inputs General'!$D50 -> 168.1708605 | H15: =IF('DNSP Inputs General'!$B50='DNSP Inputs General'!$A$42,H$7,IF('DNSP Inputs General'!$B50='DNSP Inputs General'!$A$43,H$8,H$9))*'DNSP Inputs General'!$D50 -> 173.2819577 | J15: =IF('DNSP Inputs General'!$B50='DNSP Inputs General'!$A$42,J$7,IF('DNSP Inputs General'!$B50='DNSP Inputs General'!$A$43,J$8,J$9))*'DNSP Inputs General'!$D50 -> 104.469068 | K15: =IF('DNSP Inputs General'!$B50='DNSP Inputs General'!$A$42,K$7,IF('DNSP Inputs General'!$B50='DNSP Inputs General'!$A$43,K$8,K$9))*'DNSP Inputs General'!$D50 -> 106.7643633 | L15: =IF('DNSP Inputs General'!$B50='DNSP Inputs General'!$A$42,L$7,IF('DNSP Inputs General'!$B50='DNSP Inputs General'!$A$43,L$8,L$9))*'DNSP Inputs General'!$D50 -> 109.2372303 | M15: =IF('DNSP Inputs General'!$B50='DNSP Inputs General'!$A$42,M$7,IF('DNSP Inputs General'!$B50='DNSP Inputs General'!$A$43,M$8,M$9))*'DNSP Inputs General'!$D50 -> 112.0900605 | N15: =IF('DNSP Inputs General'!$B50='DNSP Inputs General'!$A$42,N$7,IF('DNSP Inputs General'!$B50='DNSP Inputs General'!$A$43,N$8,N$9))*'DNSP Inputs General'!$D50 -> 115.4906312 | P15: =IF('DNSP Inputs General'!$B50='DNSP Inputs General'!$A$42,P$7,IF('DNSP Inputs General'!$B50='DNSP Inputs General'!$A$43,P$8,P$9))*'DNSP Inputs General'!$D50 -> 44.33817221 | Q15: =IF('DNSP Inputs General'!$B50='DNSP Inputs General'!$A$42,Q$7,IF('DNSP Inputs General'!$B50='DNSP Inputs General'!$A$43,Q$8,Q$9))*'DNSP Inputs General'!$D50 -> 45.63623487 | R15: =IF('DNSP Inputs General'!$B50='DNSP Inputs General'!$A$42,R$7,IF('DNSP Inputs General'!$B50='DNSP Inputs General'!$A$43,R$8,R$9))*'DNSP Inputs General'!$D50 -> 52.01997803 | S15: =IF('DNSP Inputs General'!$B50='DNSP Inputs General'!$A$42,S$7,IF('DNSP Inputs General'!$B50='DNSP Inputs General'!$A$43,S$8,S$9))*'DNSP Inputs General'!$D50 -> 56.08079993 | T15: =IF('DNSP Inputs General'!$B50='DNSP Inputs General'!$A$42,T$7,IF('DNSP Inputs General'!$B50='DNSP Inputs General'!$A$43,T$8,T$9))*'DNSP Inputs General'!$D50 -> 57.79132651 | V15: 0 | W15: 1.421085472e-14 | X15: 7.105427358e-15 | Y15: 1.421085472e-14 | Z15: 2.842170943e-14
A16: ='DNSP Inputs General'!A51 -> Metal Halide 70W | C16: ='DNSP Inputs General'!E51 -> 191.93 | D16: =IF('DNSP Inputs General'!$B51='DNSP Inputs General'!$A$42,D$7,IF('DNSP Inputs General'!$B51='DNSP Inputs General'!$A$43,D$8,D$9))*'DNSP Inputs General'!$D51 -> 227.9084486 | E16: =IF('DNSP Inputs General'!$B51='DNSP Inputs General'!$A$42,E$7,IF('DNSP Inputs General'!$B51='DNSP Inputs General'!$A$43,E$8,E$9))*'DNSP Inputs General'!$D51 -> 233.9454639 | F16: =IF('DNSP Inputs General'!$B51='DNSP Inputs General'!$A$42,F$7,IF('DNSP Inputs General'!$B51='DNSP Inputs General'!$A$43,F$8,F$9))*'DNSP Inputs General'!$D51 -> 217.1195836 | G16: =IF('DNSP Inputs General'!$B51='DNSP Inputs General'!$A$42,G$7,IF('DNSP Inputs General'!$B51='DNSP Inputs General'!$A$43,G$8,G$9))*'DNSP Inputs General'!$D51 -> 227.0372661 | H16: =IF('DNSP Inputs General'!$B51='DNSP Inputs General'!$A$42,H$7,IF('DNSP Inputs General'!$B51='DNSP Inputs General'!$A$43,H$8,H$9))*'DNSP Inputs General'!$D51 -> 233.8206373 | J16: =IF('DNSP Inputs General'!$B51='DNSP Inputs General'!$A$42,J$7,IF('DNSP Inputs General'!$B51='DNSP Inputs General'!$A$43,J$8,J$9))*'DNSP Inputs General'!$D51 -> 108.1636199 | K16: =IF('DNSP Inputs General'!$B51='DNSP Inputs General'!$A$42,K$7,IF('DNSP Inputs General'!$B51='DNSP Inputs General'!$A$43,K$8,K$9))*'DNSP Inputs General'!$D51 -> 110.5650929 | L16: =IF('DNSP Inputs General'!$B51='DNSP Inputs General'!$A$42,L$7,IF('DNSP Inputs General'!$B51='DNSP Inputs General'!$A$43,L$8,L$9))*'DNSP Inputs General'!$D51 -> 113.1190043 | M16: =IF('DNSP Inputs General'!$B51='DNSP Inputs General'!$A$42,M$7,IF('DNSP Inputs General'!$B51='DNSP Inputs General'!$A$43,M$8,M$9))*'DNSP Inputs General'!$D51 -> 115.9834443 | N16: =IF('DNSP Inputs General'!$B51='DNSP Inputs General'!$A$42,N$7,IF('DNSP Inputs General'!$B51='DNSP Inputs General'!$A$43,N$8,N$9))*'DNSP Inputs General'!$D51 -> 119.2861316 | P16: =IF('DNSP Inputs General'!$B51='DNSP Inputs General'!$A$42,P$7,IF('DNSP Inputs General'!$B51='DNSP Inputs General'!$A$43,P$8,P$9))*'DNSP Inputs General'!$D51 -> 119.7448286 | Q16: =IF('DNSP Inputs General'!$B51='DNSP Inputs General'!$A$42,Q$7,IF('DNSP Inputs General'!$B51='DNSP Inputs General'!$A$43,Q$8,Q$9))*'DNSP Inputs General'!$D51 -> 123.3803709 | R16: =IF('DNSP Inputs General'!$B51='DNSP Inputs General'!$A$42,R$7,IF('DNSP Inputs General'!$B51='DNSP Inputs General'!$A$43,R$8,R$9))*'DNSP Inputs General'!$D51 -> 104.0005793 | S16: =IF('DNSP Inputs General'!$B51='DNSP Inputs General'!$A$42,S$7,IF('DNSP Inputs General'!$B51='DNSP Inputs General'!$A$43,S$8,S$9))*'DNSP Inputs General'!$D51 -> 111.0538218 | T16: =IF('DNSP Inputs General'!$B51='DNSP Inputs General'!$A$42,T$7,IF('DNSP Inputs General'!$B51='DNSP Inputs General'!$A$43,T$8,T$9))*'DNSP Inputs General'!$D51 -> 114.5345057 | V16: 0 | W16: 1.421085472e-14 | X16: 1.421085472e-14 | Y16: 1.421085472e-14 | Z16: 1.421085472e-14
A17: ='DNSP Inputs General'!A52 -> Metal Halide 100W | C17: ='DNSP Inputs General'!E52 -> 248.49 | D17: =IF('DNSP Inputs General'!$B52='DNSP Inputs General'!$A$42,D$7,IF('DNSP Inputs General'!$B52='DNSP Inputs General'!$A$43,D$8,D$9))*'DNSP Inputs General'!$D52 -> 246.0539978 | E17: =IF('DNSP Inputs General'!$B52='DNSP Inputs General'!$A$42,E$7,IF('DNSP Inputs General'!$B52='DNSP Inputs General'!$A$43,E$8,E$9))*'DNSP Inputs General'!$D52 -> 252.0036837 | F17: =IF('DNSP Inputs General'!$B52='DNSP Inputs General'!$A$42,F$7,IF('DNSP Inputs General'!$B52='DNSP Inputs General'!$A$43,F$8,F$9))*'DNSP Inputs General'!$D52 -> 266.2863053 | G17: =IF('DNSP Inputs General'!$B52='DNSP Inputs General'!$A$42,G$7,IF('DNSP Inputs General'!$B52='DNSP Inputs General'!$A$43,G$8,G$9))*'DNSP Inputs General'!$D52 -> 277.6784303 | H17: =IF('DNSP Inputs General'!$B52='DNSP Inputs General'!$A$42,H$7,IF('DNSP Inputs General'!$B52='DNSP Inputs General'!$A$43,H$8,H$9))*'DNSP Inputs General'!$D52 -> 286.1251948 | J17: =IF('DNSP Inputs General'!$B52='DNSP Inputs General'!$A$42,J$7,IF('DNSP Inputs General'!$B52='DNSP Inputs General'!$A$43,J$8,J$9))*'DNSP Inputs General'!$D52 -> 172.462075 | K17: =IF('DNSP Inputs General'!$B52='DNSP Inputs General'!$A$42,K$7,IF('DNSP Inputs General'!$B52='DNSP Inputs General'!$A$43,K$8,K$9))*'DNSP Inputs General'!$D52 -> 176.2497111 | L17: =IF('DNSP Inputs General'!$B52='DNSP Inputs General'!$A$42,L$7,IF('DNSP Inputs General'!$B52='DNSP Inputs General'!$A$43,L$8,L$9))*'DNSP Inputs General'!$D52 -> 180.3313178 | M17: =IF('DNSP Inputs General'!$B52='DNSP Inputs General'!$A$42,M$7,IF('DNSP Inputs General'!$B52='DNSP Inputs General'!$A$43,M$8,M$9))*'DNSP Inputs General'!$D52 -> 185.0424306 | N17: =IF('DNSP Inputs General'!$B52='DNSP Inputs General'!$A$42,N$7,IF('DNSP Inputs General'!$B52='DNSP Inputs General'!$A$43,N$8,N$9))*'DNSP Inputs General'!$D52 -> 190.6611628 | P17: =IF('DNSP Inputs General'!$B52='DNSP Inputs General'!$A$42,P$7,IF('DNSP Inputs General'!$B52='DNSP Inputs General'!$A$43,P$8,P$9))*'DNSP Inputs General'!$D52 -> 73.59192275 | Q17: =IF('DNSP Inputs General'!$B52='DNSP Inputs General'!$A$42,Q$7,IF('DNSP Inputs General'!$B52='DNSP Inputs General'!$A$43,Q$8,Q$9))*'DNSP Inputs General'!$D52 -> 75.75397258 | R17: =IF('DNSP Inputs General'!$B52='DNSP Inputs General'!$A$42,R$7,IF('DNSP Inputs General'!$B52='DNSP Inputs General'!$A$43,R$8,R$9))*'DNSP Inputs General'!$D52 -> 85.95498755 | S17: =IF('DNSP Inputs General'!$B52='DNSP Inputs General'!$A$42,S$7,IF('DNSP Inputs General'!$B52='DNSP Inputs General'!$A$43,S$8,S$9))*'DNSP Inputs General'!$D52 -> 92.63599974 | T17: =IF('DNSP Inputs General'!$B52='DNSP Inputs General'!$A$42,T$7,IF('DNSP Inputs General'!$B52='DNSP Inputs General'!$A$43,T$8,T$9))*'DNSP Inputs General'!$D52 -> 95.46403203 | V17: 1.421085472e-14 | W17: 1.421085472e-14 | X17: 0 | Y17: 1.421085472e-14 | Z17: 5.684341886e-14
A18: ='DNSP Inputs General'!A53 -> Metal Halide 150W | C18: ='DNSP Inputs General'!E53 -> 282.31 | D18: =IF('DNSP Inputs General'!$B53='DNSP Inputs General'!$A$42,D$7,IF('DNSP Inputs General'!$B53='DNSP Inputs General'!$A$43,D$8,D$9))*'DNSP Inputs General'!$D53 -> 279.5350673 | E18: =IF('DNSP Inputs General'!$B53='DNSP Inputs General'!$A$42,E$7,IF('DNSP Inputs General'!$B53='DNSP Inputs General'!$A$43,E$8,E$9))*'DNSP Inputs General'!$D53 -> 286.2943392 | F18: =IF('DNSP Inputs General'!$B53='DNSP Inputs General'!$A$42,F$7,IF('DNSP Inputs General'!$B53='DNSP Inputs General'!$A$43,F$8,F$9))*'DNSP Inputs General'!$D53 -> 302.5204263 | G18: =IF('DNSP Inputs General'!$B53='DNSP Inputs General'!$A$42,G$7,IF('DNSP Inputs General'!$B53='DNSP Inputs General'!$A$43,G$8,G$9))*'DNSP Inputs General'!$D53 -> 315.4627009 | H18: =IF('DNSP Inputs General'!$B53='DNSP Inputs General'!$A$42,H$7,IF('DNSP Inputs General'!$B53='DNSP Inputs General'!$A$43,H$8,H$9))*'DNSP Inputs General'!$D53 -> 325.0588339 | J18: =IF('DNSP Inputs General'!$B53='DNSP Inputs General'!$A$42,J$7,IF('DNSP Inputs General'!$B53='DNSP Inputs General'!$A$43,J$8,J$9))*'DNSP Inputs General'!$D53 -> 195.9293415 | K18: =IF('DNSP Inputs General'!$B53='DNSP Inputs General'!$A$42,K$7,IF('DNSP Inputs General'!$B53='DNSP Inputs General'!$A$43,K$8,K$9))*'DNSP Inputs General'!$D53 -> 200.232369 | L18: =IF('DNSP Inputs General'!$B53='DNSP Inputs General'!$A$42,L$7,IF('DNSP Inputs General'!$B53='DNSP Inputs General'!$A$43,L$8,L$9))*'DNSP Inputs General'!$D53 -> 204.8693682 | M18: =IF('DNSP Inputs General'!$B53='DNSP Inputs General'!$A$42,M$7,IF('DNSP Inputs General'!$B53='DNSP Inputs General'!$A$43,M$8,M$9))*'DNSP Inputs General'!$D53 -> 210.2215317 | N18: =IF('DNSP Inputs General'!$B53='DNSP Inputs General'!$A$42,N$7,IF('DNSP Inputs General'!$B53='DNSP Inputs General'!$A$43,N$8,N$9))*'DNSP Inputs General'!$D53 -> 216.6048162 | P18: =IF('DNSP Inputs General'!$B53='DNSP Inputs General'!$A$42,P$7,IF('DNSP Inputs General'!$B53='DNSP Inputs General'!$A$43,P$8,P$9))*'DNSP Inputs General'!$D53 -> 83.60572584 | Q18: =IF('DNSP Inputs General'!$B53='DNSP Inputs General'!$A$42,Q$7,IF('DNSP Inputs General'!$B53='DNSP Inputs General'!$A$43,Q$8,Q$9))*'DNSP Inputs General'!$D53 -> 86.0619702 | R18: =IF('DNSP Inputs General'!$B53='DNSP Inputs General'!$A$42,R$7,IF('DNSP Inputs General'!$B53='DNSP Inputs General'!$A$43,R$8,R$9))*'DNSP Inputs General'!$D53 -> 97.6510581 | S18: =IF('DNSP Inputs General'!$B53='DNSP Inputs General'!$A$42,S$7,IF('DNSP Inputs General'!$B53='DNSP Inputs General'!$A$43,S$8,S$9))*'DNSP Inputs General'!$D53 -> 105.2411693 | T18: =IF('DNSP Inputs General'!$B53='DNSP Inputs General'!$A$42,T$7,IF('DNSP Inputs General'!$B53='DNSP Inputs General'!$A$43,T$8,T$9))*'DNSP Inputs General'!$D53 -> 108.4540177 | V18: 2.842170943e-14 | W18: 1.421085472e-14 | X18: 2.842170943e-14 | Y18: 2.842170943e-14 | Z18: 1.421085472e-14
A19: ='DNSP Inputs General'!A54 -> HP Sodium 50W | C19: ='DNSP Inputs General'!E54 -> 46.14 | D19: =IF('DNSP Inputs General'!$B54='DNSP Inputs General'!$A$42,D$7,IF('DNSP Inputs General'!$B54='DNSP Inputs General'!$A$43,D$8,D$9))*'DNSP Inputs General'!$D54 -> 45.68719886 | E19: =IF('DNSP Inputs General'!$B54='DNSP Inputs General'!$A$42,E$7,IF('DNSP Inputs General'!$B54='DNSP Inputs General'!$A$43,E$8,E$9))*'DNSP Inputs General'!$D54 -> 46.79193394 | F19: =IF('DNSP Inputs General'!$B54='DNSP Inputs General'!$A$42,F$7,IF('DNSP Inputs General'!$B54='DNSP Inputs General'!$A$43,F$8,F$9))*'DNSP Inputs General'!$D54 -> 49.44392489 | G19: =IF('DNSP Inputs General'!$B54='DNSP Inputs General'!$A$42,G$7,IF('DNSP Inputs General'!$B54='DNSP Inputs General'!$A$43,G$8,G$9))*'DNSP Inputs General'!$D54 -> 51.55920968 | H19: =IF('DNSP Inputs General'!$B54='DNSP Inputs General'!$A$42,H$7,IF('DNSP Inputs General'!$B54='DNSP Inputs General'!$A$43,H$8,H$9))*'DNSP Inputs General'!$D54 -> 53.12760122 | J19: =IF('DNSP Inputs General'!$B54='DNSP Inputs General'!$A$42,J$7,IF('DNSP Inputs General'!$B54='DNSP Inputs General'!$A$43,J$8,J$9))*'DNSP Inputs General'!$D54 -> 32.02268278 | K19: =IF('DNSP Inputs General'!$B54='DNSP Inputs General'!$A$42,K$7,IF('DNSP Inputs General'!$B54='DNSP Inputs General'!$A$43,K$8,K$9))*'DNSP Inputs General'!$D54 -> 32.7259694 | L19: =IF('DNSP Inputs General'!$B54='DNSP Inputs General'!$A$42,L$7,IF('DNSP Inputs General'!$B54='DNSP Inputs General'!$A$43,L$8,L$9))*'DNSP Inputs General'!$D54 -> 33.48384033 | M19: =IF('DNSP Inputs General'!$B54='DNSP Inputs General'!$A$42,M$7,IF('DNSP Inputs General'!$B54='DNSP Inputs General'!$A$43,M$8,M$9))*'DNSP Inputs General'!$D54 -> 34.3585977 | N19: =IF('DNSP Inputs General'!$B54='DNSP Inputs General'!$A$42,N$7,IF('DNSP Inputs General'!$B54='DNSP Inputs General'!$A$43,N$8,N$9))*'DNSP Inputs General'!$D54 -> 35.40188144 | P19: =IF('DNSP Inputs General'!$B54='DNSP Inputs General'!$A$42,P$7,IF('DNSP Inputs General'!$B54='DNSP Inputs General'!$A$43,P$8,P$9))*'DNSP Inputs General'!$D54 -> 13.66451608 | Q19: =IF('DNSP Inputs General'!$B54='DNSP Inputs General'!$A$42,Q$7,IF('DNSP Inputs General'!$B54='DNSP Inputs General'!$A$43,Q$8,Q$9))*'DNSP Inputs General'!$D54 -> 14.06596455 | R19: =IF('DNSP Inputs General'!$B54='DNSP Inputs General'!$A$42,R$7,IF('DNSP Inputs General'!$B54='DNSP Inputs General'!$A$43,R$8,R$9))*'DNSP Inputs General'!$D54 -> 15.96008455 | S19: =IF('DNSP Inputs General'!$B54='DNSP Inputs General'!$A$42,S$7,IF('DNSP Inputs General'!$B54='DNSP Inputs General'!$A$43,S$8,S$9))*'DNSP Inputs General'!$D54 -> 17.20061198 | T19: =IF('DNSP Inputs General'!$B54='DNSP Inputs General'!$A$42,T$7,IF('DNSP Inputs General'!$B54='DNSP Inputs General'!$A$43,T$8,T$9))*'DNSP Inputs General'!$D54 -> 17.72571978 | V19: 1.776356839e-15 | W19: 7.105427358e-15 | X19: 1.776356839e-15 | Y19: 3.552713679e-15 | Z19: 3.552713679e-15
A22: ='DNSP Inputs General'!A$68 -> Energy Efficient Lights
A23: ='DNSP Inputs General'!A69 -> T5 2X14W | C23: ='DNSP Inputs General'!E69 -> 35.6 | D23: ='Charges Summary'!D$89 -> 45.86203165 | E23: ='Charges Summary'!E$89 -> 47.51958221 | F23: ='Charges Summary'!F$89 -> 49.10924112 | G23: ='Charges Summary'!G$89 -> 50.740964 | H23: ='Charges Summary'!H$89 -> 52.48717928 | J23: =SUM('Charges Summary'!D83,'Charges Summary'!D8) -> 29.40602586 | K23: =SUM('Charges Summary'!E83,'Charges Summary'!E8) -> 30.05544126 | L23: =SUM('Charges Summary'!F83,'Charges Summary'!F8) -> 30.74958307 | M23: =SUM('Charges Summary'!G83,'Charges Summary'!G8) -> 31.53687131 | N23: =SUM('Charges Summary'!H83,'Charges Summary'!H8) -> 32.4567663 | P23: =SUM('Charges Summary'!D85,'Charges Summary'!D11) -> 16.4560058 | Q23: =SUM('Charges Summary'!E85,'Charges Summary'!E11) -> 17.46414095 | R23: =SUM('Charges Summary'!F85,'Charges Summary'!F11) -> 18.35965806 | S23: =SUM('Charges Summary'!G85,'Charges Summary'!G11) -> 19.20409269 | T23: =SUM('Charges Summary'!H85,'Charges Summary'!H11) -> 20.03041299 | V23: =ABS(D23-J23-P23) -> 3.552713679e-15 | W23: =ABS(E23-K23-Q23) -> 0 | X23: =ABS(F23-L23-R23) -> 3.552713679e-15 | Y23: =ABS(G23-M23-S23) -> 3.552713679e-15 | Z23: =ABS(H23-N23-T23) -> 3.552713679e-15
A24: ='DNSP Inputs General'!A70 -> T5 2X24W | C24: ='DNSP Inputs General'!E70 -> 42.08 | D24: ='Charges Summary'!D$105 -> 48.92941093 | E24: ='Charges Summary'!E$105 -> 50.66574909 | F24: ='Charges Summary'!F$105 -> 52.33658649 | G24: ='Charges Summary'!G$105 -> 54.05905512 | H24: ='Charges Summary'!H$105 -> 55.9113094 | J24: =SUM('Charges Summary'!D99,'Charges Summary'!D8) -> 32.31908952 | K24: =SUM('Charges Summary'!E99,'Charges Summary'!E8) -> 33.03286613 | L24: =SUM('Charges Summary'!F99,'Charges Summary'!F8) -> 33.79627469 | M24: =SUM('Charges Summary'!G99,'Charges Summary'!G8) -> 34.66328018 | N24: =SUM('Charges Summary'!H99,'Charges Summary'!H8) -> 35.67798031 | P24: =SUM('Charges Summary'!D101,'Charges Summary'!D11) -> 16.61032141 | Q24: =SUM('Charges Summary'!E101,'Charges Summary'!E11) -> 17.63288296 | R24: =SUM('Charges Summary'!F101,'Charges Summary'!F11) -> 18.54031181 | S24: =SUM('Charges Summary'!G101,'Charges Summary'!G11) -> 19.39577494 | T24: =SUM('Charges Summary'!H101,'Charges Summary'!H11) -> 20.23332909 | V24: 0 | W24: 3.552713679e-15 | X24: 7.105427358e-15 | Y24: 0 | Z24: 0
A25: ='DNSP Inputs General'!A71 -> LED 18W | C25: ='DNSP Inputs General'!E71 -> 16.27 | D25: ='Charges Summary'!D$121 -> 26.76904714 | E25: ='Charges Summary'!E$121 -> 27.91747732 | F25: ='Charges Summary'!F$121 -> 28.98822684 | G25: ='Charges Summary'!G$121 -> 30.04544476 | H25: ='Charges Summary'!H$121 -> 31.12541164 | J25: =SUM('Charges Summary'!D115,'Charges Summary'!D8) -> 11.52305087 | K25: =SUM('Charges Summary'!E115,'Charges Summary'!E8) -> 11.7764652 | L25: =SUM('Charges Summary'!F115,'Charges Summary'!F8) -> 12.04509916 | M25: =SUM('Charges Summary'!G115,'Charges Summary'!G8) -> 12.34435843 | N25: =SUM('Charges Summary'!H115,'Charges Summary'!H8) -> 12.68609121 | P25: =SUM('Charges Summary'!D117,'Charges Summary'!D11) -> 15.24599627 | Q25: =SUM('Charges Summary'!E117,'Charges Summary'!E11) -> 16.14101212 | R25: =SUM('Charges Summary'!F117,'Charges Summary'!F11) -> 16.94312768 | S25: =SUM('Charges Summary'!G117,'Charges Summary'!G11) -> 17.70108633 | T25: =SUM('Charges Summary'!H117,'Charges Summary'!H11) -> 18.43932043 | V25: 1.776356839e-15 | W25: 0 | X25: 3.552713679e-15 | Y25: 0 | Z25: 0
A26: ='DNSP Inputs General'!A72 -> LED 14W | C26: ='DNSP Inputs General'!E72 -> 16.27 | D26: ='Charges Summary'!D$137 -> 27.95449266 | E26: ='Charges Summary'!E$137 -> 29.12859944 | F26: ='Charges Summary'!F$137 -> 30.22737142 | G26: ='Charges Summary'!G$137 -> 31.31780395 | H26: ='Charges Summary'!H$137 -> 32.43855721 | J26: =SUM('Charges Summary'!D131,'Charges Summary'!D$8) -> 12.70849639 | K26: =SUM('Charges Summary'!E131,'Charges Summary'!E$8) -> 12.98758732 | L26: =SUM('Charges Summary'!F131,'Charges Summary'!F$8) -> 13.28424375 | M26: =SUM('Charges Summary'!G131,'Charges Summary'!G$8) -> 13.61671762 | N26: =SUM('Charges Summary'!H131,'Charges Summary'!H$8) -> 13.99923678 | P26: =SUM('Charges Summary'!D133,'Charges Summary'!D$11) -> 15.24599627 | Q26: =SUM('Charges Summary'!E133,'Charges Summary'!E$11) -> 16.14101212 | R26: =SUM('Charges Summary'!F133,'Charges Summary'!F$11) -> 16.94312768 | S26: =SUM('Charges Summary'!G133,'Charges Summary'!G$11) -> 17.70108633 | T26: =SUM('Charges Summary'!H133,'Charges Summary'!H$11) -> 18.43932043 | V26: =ABS(D26-J26-P26) -> 1.776356839e-15 | W26: =ABS(E26-K26-Q26) -> 0 | X26: =ABS(F26-L26-R26) -> 0 | Y26: =ABS(G26-M26-S26) -> 0 | Z26: =ABS(H26-N26-T26) -> 3.552713679e-15
A27: ='DNSP Inputs General'!A73 -> LED 70W-125W (L1) | C27: ='DNSP Inputs General'!E73 -> 23.59 | D27: ='Charges Summary'!D$153 -> 36.5548499 | E27: ='Charges Summary'!E$153 -> 38.22280285 | F27: ='Charges Summary'!F$153 -> 39.75510516 | G27: ='Charges Summary'!G$153 -> 41.27710896 | H27: ='Charges Summary'!H$153 -> 42.86856664 | J27: =SUM('Charges Summary'!D147,'Charges Summary'!D$8) -> 16.99677193 | K27: =SUM('Charges Summary'!E147,'Charges Summary'!E$8) -> 17.36658848 | L27: =SUM('Charges Summary'!F147,'Charges Summary'!F$8) -> 17.76392239 | M27: =SUM('Charges Summary'!G147,'Charges Summary'!G$8) -> 18.21979519 | N27: =SUM('Charges Summary'!H147,'Charges Summary'!H$8) -> 18.75910812 | P27: =SUM('Charges Summary'!D149,'Charges Summary'!D$11) -> 19.55807798 | Q27: =SUM('Charges Summary'!E149,'Charges Summary'!E$11) -> 20.85621437 | R27: =SUM('Charges Summary'!F149,'Charges Summary'!F$11) -> 21.99118277 | S27: =SUM('Charges Summary'!G149,'Charges Summary'!G$11) -> 23.05731377 | T27: =SUM('Charges Summary'!H149,'Charges Summary'!H$11) -> 24.10945852 | V27: 7.105427358e-15 | W27: 0 | X27: 7.105427358e-15 | Y27: 3.552713679e-15 | Z27: 3.552713679e-15
A28: ='DNSP Inputs General'!A74 -> LED 155W-250W (L2) | C28: ='DNSP Inputs General'!E74 -> 24.3 | D28: ='Charges Summary'!D$169 -> 37.1020684 | E28: ='Charges Summary'!E$169 -> 38.82117877 | F28: ='Charges Summary'!F$169 -> 40.39572128 | G28: ='Charges Summary'!G$169 -> 41.95683325 | H28: ='Charges Summary'!H$169 -> 43.58812731 | J28: =SUM('Charges Summary'!D163,'Charges Summary'!D$8) -> 16.99677193 | K28: =SUM('Charges Summary'!E163,'Charges Summary'!E$8) -> 17.36658848 | L28: =SUM('Charges Summary'!F163,'Charges Summary'!F$8) -> 17.76392239 | M28: =SUM('Charges Summary'!G163,'Charges Summary'!G$8) -> 18.21979519 | N28: =SUM('Charges Summary'!H163,'Charges Summary'!H$8) -> 18.75910812 | P28: =SUM('Charges Summary'!D165,'Charges Summary'!D$11) -> 20.10529647 | Q28: =SUM('Charges Summary'!E165,'Charges Summary'!E$11) -> 21.45459029 | R28: =SUM('Charges Summary'!F165,'Charges Summary'!F$11) -> 22.63179889 | S28: =SUM('Charges Summary'!G165,'Charges Summary'!G$11) -> 23.73703806 | T28: =SUM('Charges Summary'!H165,'Charges Summary'!H$11) -> 24.82901919 | V28: 0 | W28: 0 | X28: 0 | Y28: 3.552713679e-15 | Z28: 3.552713679e-15
A29: ='DNSP Inputs General'!A75 -> LED 275W-400W (L4) | C29: ='DNSP Inputs General'!E75 -> 25.83 | D29: ='Charges Summary'!D$185 -> 50.88375195 | E29: ='Charges Summary'!E$185 -> 53.25337028 | F29: ='Charges Summary'!F$185 -> 55.4161289 | G29: ='Charges Summary'!G$185 -> 57.5762778 | H29: ='Charges Summary'!H$185 -> 59.86981123 | J29: =SUM('Charges Summary'!D179,'Charges Summary'!D$8) -> 25.87800445 | K29: =SUM('Charges Summary'!E179,'Charges Summary'!E$8) -> 26.44020394 | L29: =SUM('Charges Summary'!F179,'Charges Summary'!F$8) -> 27.04748445 | M29: =SUM('Charges Summary'!G179,'Charges Summary'!G$8) -> 27.75217273 | N29: =SUM('Charges Summary'!H179,'Charges Summary'!H$8) -> 28.59698231 | P29: =SUM('Charges Summary'!D181,'Charges Summary'!D$11) -> 25.0057475 | Q29: =SUM('Charges Summary'!E181,'Charges Summary'!E$11) -> 26.81316634 | R29: =SUM('Charges Summary'!F181,'Charges Summary'!F$11) -> 28.36864445 | S29: =SUM('Charges Summary'!G181,'Charges Summary'!G$11) -> 29.82410507 | T29: =SUM('Charges Summary'!H181,'Charges Summary'!H$11) -> 31.27282892 | V29: 3.552713679e-15 | W29: 3.552713679e-15 | X29: 7.105427358e-15 | Y29: 3.552713679e-15 | Z29: 0
A30: ='DNSP Inputs General'!A76 -> Compact Fluorescent 32W | C30: ='DNSP Inputs General'!E76 -> 31.59 | D30: =IF('DNSP Inputs General'!$B76='DNSP Inputs General'!$A$69,D$23,D$24)*'DNSP Inputs General'!$D76 -> 40.34069673 | E30: =IF('DNSP Inputs General'!$B76='DNSP Inputs General'!$A$69,E$23,E$24)*'DNSP Inputs General'!$D76 -> 41.7986946 | F30: =IF('DNSP Inputs General'!$B76='DNSP Inputs General'!$A$69,F$23,F$24)*'DNSP Inputs General'!$D76 -> 43.19697431 | G30: =IF('DNSP Inputs General'!$B76='DNSP Inputs General'!$A$69,G$23,G$24)*'DNSP Inputs General'!$D76 -> 44.63225389 | H30: =IF('DNSP Inputs General'!$B76='DNSP Inputs General'!$A$69,H$23,H$24)*'DNSP Inputs General'!$D76 -> 46.16824213 | J30: =IF('DNSP Inputs General'!$B76='DNSP Inputs General'!$A$69,J$23,J$24)*'DNSP Inputs General'!$D76 -> 25.86583124 | K30: =IF('DNSP Inputs General'!$B76='DNSP Inputs General'!$A$69,K$23,K$24)*'DNSP Inputs General'!$D76 -> 26.43706345 | L30: =IF('DNSP Inputs General'!$B76='DNSP Inputs General'!$A$69,L$23,L$24)*'DNSP Inputs General'!$D76 -> 27.04763746 | M30: =IF('DNSP Inputs General'!$B76='DNSP Inputs General'!$A$69,M$23,M$24)*'DNSP Inputs General'!$D76 -> 27.74014398 | N30: =IF('DNSP Inputs General'!$B76='DNSP Inputs General'!$A$69,N$23,N$24)*'DNSP Inputs General'!$D76 -> 28.54929272 | P30: =IF('DNSP Inputs General'!$B76='DNSP Inputs General'!$A$69,P$23,P$24)*'DNSP Inputs General'!$D76 -> 14.47486549 | Q30: =IF('DNSP Inputs General'!$B76='DNSP Inputs General'!$A$69,Q$23,Q$24)*'DNSP Inputs General'!$D76 -> 15.36163115 | R30: =IF('DNSP Inputs General'!$B76='DNSP Inputs General'!$A$69,R$23,R$24)*'DNSP Inputs General'!$D76 -> 16.14933685 | S30: =IF('DNSP Inputs General'!$B76='DNSP Inputs General'!$A$69,S$23,S$24)*'DNSP Inputs General'!$D76 -> 16.89210991 | T30: =IF('DNSP Inputs General'!$B76='DNSP Inputs General'!$A$69,T$23,T$24)*'DNSP Inputs General'!$D76 -> 17.61894941 | V30: 3.552713679e-15 | W30: 0 | X30: 0 | Y30: 0 | Z30: 3.552713679e-15
A31: ='DNSP Inputs General'!A77 -> Compact Fluorescent 42W | C31: ='DNSP Inputs General'!E77 -> 31.59 | D31: =IF('DNSP Inputs General'!$B77='DNSP Inputs General'!$A$69,D$23,D$24)*'DNSP Inputs General'!$D77 -> 40.34069673 | E31: =IF('DNSP Inputs General'!$B77='DNSP Inputs General'!$A$69,E$23,E$24)*'DNSP Inputs General'!$D77 -> 41.7986946 | F31: =IF('DNSP Inputs General'!$B77='DNSP Inputs General'!$A$69,F$23,F$24)*'DNSP Inputs General'!$D77 -> 43.19697431 | G31: =IF('DNSP Inputs General'!$B77='DNSP Inputs General'!$A$69,G$23,G$24)*'DNSP Inputs General'!$D77 -> 44.63225389 | H31: =IF('DNSP Inputs General'!$B77='DNSP Inputs General'!$A$69,H$23,H$24)*'DNSP Inputs General'!$D77 -> 46.16824213 | J31: =IF('DNSP Inputs General'!$B77='DNSP Inputs General'!$A$69,J$23,J$24)*'DNSP Inputs General'!$D77 -> 25.86583124 | K31: =IF('DNSP Inputs General'!$B77='DNSP Inputs General'!$A$69,K$23,K$24)*'DNSP Inputs General'!$D77 -> 26.43706345 | L31: =IF('DNSP Inputs General'!$B77='DNSP Inputs General'!$A$69,L$23,L$24)*'DNSP Inputs General'!$D77 -> 27.04763746 | M31: =IF('DNSP Inputs General'!$B77='DNSP Inputs General'!$A$69,M$23,M$24)*'DNSP Inputs General'!$D77 -> 27.74014398 | N31: =IF('DNSP Inputs General'!$B77='DNSP Inputs General'!$A$69,N$23,N$24)*'DNSP Inputs General'!$D77 -> 28.54929272 | P31: =IF('DNSP Inputs General'!$B77='DNSP Inputs General'!$A$69,P$23,P$24)*'DNSP Inputs General'!$D77 -> 14.47486549 | Q31: =IF('DNSP Inputs General'!$B77='DNSP Inputs General'!$A$69,Q$23,Q$24)*'DNSP Inputs General'!$D77 -> 15.36163115 | R31: =IF('DNSP Inputs General'!$B77='DNSP Inputs General'!$A$69,R$23,R$24)*'DNSP Inputs General'!$D77 -> 16.14933685 | S31: =IF('DNSP Inputs General'!$B77='DNSP Inputs General'!$A$69,S$23,S$24)*'DNSP Inputs General'!$D77 -> 16.89210991 | T31: =IF('DNSP Inputs General'!$B77='DNSP Inputs General'!$A$69,T$23,T$24)*'DNSP Inputs General'!$D77 -> 17.61894941 | V31: 3.552713679e-15 | W31: 0 | X31: 0 | Y31: 0 | Z31: 3.552713679e-15
D34: ='DNSP Inputs General'!$B$83 -> North & East
A35: Public Lighting Tariffs | C35: Total Tariff | J35: Operations, maintenance and repair Tariff | P35: Replacement Tariff | V35: Check
C36: Actual
A37: ='DNSP Inputs General'!A$85 -> Existing Lights | C37: ='DNSP Inputs General'!P$2 -> HY2021 | D37: ='DNSP Inputs General'!Q$2 -> 44742 | E37: ='DNSP Inputs General'!R$2 -> 45107 | F37: ='DNSP Inputs General'!S$2 -> 45473 | G37: ='DNSP Inputs General'!T$2 -> 45838 | H37: ='DNSP Inputs General'!U$2 -> 46203 | J37: =D37 -> 44742 | K37: =E37 -> 45107 | L37: 45473 | M37: 45838 | N37: 46203 | P37: =J37 -> 44742 | Q37: =K37 -> 45107 | R37: 45473 | S37: 45838 | T37: 46203 | V37: =P37 -> 44742 | W37: =Q37 -> 45107 | X37: =R37 -> 45473 | Y37: =S37 -> 45838 | Z37: =T37 -> 46203
A38: ='DNSP Inputs General'!A86 -> Mercury Vapour 80W | C38: ='DNSP Inputs General'!E86 -> 49.95 | D38: ='Charges Summary'!K$31 -> 57.63853987 | E38: ='Charges Summary'!L$31 -> 59.13998981 | F38: ='Charges Summary'!M$31 -> 53.6879303 | G38: ='Charges Summary'!N$31 -> 56.05893355 | H38: ='Charges Summary'!O$31 -> 57.72709766 | J38: =SUM('Charges Summary'!K25,'Charges Summary'!K8) -> 28.51719423 | K38: =SUM('Charges Summary'!L25,'Charges Summary'!L8) -> 29.15182241 | L38: =SUM('Charges Summary'!M25,'Charges Summary'!M8) -> 29.82638514 | M38: =SUM('Charges Summary'!N25,'Charges Summary'!N8) -> 30.58205109 | N38: =SUM('Charges Summary'!O25,'Charges Summary'!O8) -> 31.45222345 | P38: =SUM('Charges Summary'!K27,'Charges Summary'!K11) -> 29.12134565 | Q38: =SUM('Charges Summary'!L27,'Charges Summary'!L11) -> 29.98816741 | R38: =SUM('Charges Summary'!M27,'Charges Summary'!M11) -> 23.86154516 | S38: =SUM('Charges Summary'!N27,'Charges Summary'!N11) -> 25.47688246 | T38: =SUM('Charges Summary'!O27,'Charges Summary'!O11) -> 26.27487422 | V38: =ABS(D38-J38-P38) -> 3.552713679e-15 | W38: =ABS(E38-K38-Q38) -> 3.552713679e-15 | X38: =ABS(F38-L38-R38) -> 3.552713679e-15 | Y38: =ABS(G38-M38-S38) -> 3.552713679e-15 | Z38: =ABS(H38-N38-T38) -> 3.552713679e-15
A39: ='DNSP Inputs General'!A87 -> HP Sodium 150W | C39: ='DNSP Inputs General'!E87 -> 118.4 | D39: ='Charges Summary'!K$55 -> 121.1292391 | E39: ='Charges Summary'!L$55 -> 124.0136806 | F39: ='Charges Summary'!M$55 -> 128.8354885 | G39: ='Charges Summary'!N$55 -> 134.06361 | H39: ='Charges Summary'!O$55 -> 138.1546288 | J39: =SUM('Charges Summary'!K49,'Charges Summary'!K8) -> 88.75117015 | K39: =SUM('Charges Summary'!L49,'Charges Summary'!L8) -> 90.6989931 | L39: =SUM('Charges Summary'!M49,'Charges Summary'!M8) -> 92.80014903 | M39: =SUM('Charges Summary'!N49,'Charges Summary'!N8) -> 95.2306491 | N39: =SUM('Charges Summary'!O49,'Charges Summary'!O8) -> 98.13664207 | P39: =SUM('Charges Summary'!K51,'Charges Summary'!K11) -> 32.37806892 | Q39: =SUM('Charges Summary'!L51,'Charges Summary'!L11) -> 33.31468754 | R39: =SUM('Charges Summary'!M51,'Charges Summary'!M11) -> 36.03533944 | S39: =SUM('Charges Summary'!N51,'Charges Summary'!N11) -> 38.83296087 | T39: =SUM('Charges Summary'!O51,'Charges Summary'!O11) -> 40.01798672 | V39: =ABS(D39-J39-P39) -> 1.421085472e-14 | W39: 0 | X39: 2.131628207e-14 | Y39: 7.105427358e-15 | Z39: 1.421085472e-14
A40: ='DNSP Inputs General'!A88 -> HP Sodium 250W | C40: ='DNSP Inputs General'!E88 -> 117.12 | D40: ='Charges Summary'!K$71 -> 120.0176771 | E40: ='Charges Summary'!L$71 -> 122.9939623 | F40: ='Charges Summary'!M$71 -> 128.2609066 | G40: ='Charges Summary'!N$71 -> 133.5166209 | H40: ='Charges Summary'!O$71 -> 137.5834523 | J40: =SUM('Charges Summary'!K65,'Charges Summary'!K8) -> 87.4806395 | K40: =SUM('Charges Summary'!L65,'Charges Summary'!L8) -> 89.51689912 | L40: =SUM('Charges Summary'!M65,'Charges Summary'!M8) -> 91.59101772 | M40: =SUM('Charges Summary'!N65,'Charges Summary'!N8) -> 93.98748499 | N40: =SUM('Charges Summary'!O65,'Charges Summary'!O8) -> 96.8491167 | P40: =SUM('Charges Summary'!K67,'Charges Summary'!K11) -> 32.53703762 | Q40: =SUM('Charges Summary'!L67,'Charges Summary'!L11) -> 33.4770632 | R40: =SUM('Charges Summary'!M67,'Charges Summary'!M11) -> 36.66988886 | S40: =SUM('Charges Summary'!N67,'Charges Summary'!N11) -> 39.52913591 | T40: =SUM('Charges Summary'!O67,'Charges Summary'!O11) -> 40.73433561 | V40: 0 | W40: 7.105427358e-15 | X40: 2.131628207e-14 | Y40: 2.131628207e-14 | Z40: 1.421085472e-14
A41: ='DNSP Inputs General'!A89 -> Mercury Vapour 50W | C41: ='DNSP Inputs General'!E89 -> 73.93 | D41: =IF('DNSP Inputs General'!$B89='DNSP Inputs General'!$A$86,D$38,IF('DNSP Inputs General'!$B89='DNSP Inputs General'!$A$87,D$39,D$40))*'DNSP Inputs General'!$D89 -> 85.30503901 | E41: =IF('DNSP Inputs General'!$B89='DNSP Inputs General'!$A$86,E$38,IF('DNSP Inputs General'!$B89='DNSP Inputs General'!$A$87,E$39,E$40))*'DNSP Inputs General'!$D89 -> 87.52718492 | F41: =IF('DNSP Inputs General'!$B89='DNSP Inputs General'!$A$86,F$38,IF('DNSP Inputs General'!$B89='DNSP Inputs General'!$A$87,F$39,F$40))*'DNSP Inputs General'!$D89 -> 79.45813685 | G41: =IF('DNSP Inputs General'!$B89='DNSP Inputs General'!$A$86,G$38,IF('DNSP Inputs General'!$B89='DNSP Inputs General'!$A$87,G$39,G$40))*'DNSP Inputs General'!$D89 -> 82.96722166 | H41: =IF('DNSP Inputs General'!$B89='DNSP Inputs General'!$A$86,H$38,IF('DNSP Inputs General'!$B89='DNSP Inputs General'!$A$87,H$39,H$40))*'DNSP Inputs General'!$D89 -> 85.43610454 | J41: =IF('DNSP Inputs General'!$B89='DNSP Inputs General'!$A$86,J$38,IF('DNSP Inputs General'!$B89='DNSP Inputs General'!$A$87,J$39,J$40))*'DNSP Inputs General'!$D89 -> 42.20544745 | K41: =IF('DNSP Inputs General'!$B89='DNSP Inputs General'!$A$86,K$38,IF('DNSP Inputs General'!$B89='DNSP Inputs General'!$A$87,K$39,K$40))*'DNSP Inputs General'!$D89 -> 43.14469716 | L41: =IF('DNSP Inputs General'!$B89='DNSP Inputs General'!$A$86,L$38,IF('DNSP Inputs General'!$B89='DNSP Inputs General'!$A$87,L$39,L$40))*'DNSP Inputs General'!$D89 -> 44.14305001 | M41: =IF('DNSP Inputs General'!$B89='DNSP Inputs General'!$A$86,M$38,IF('DNSP Inputs General'!$B89='DNSP Inputs General'!$A$87,M$39,M$40))*'DNSP Inputs General'!$D89 -> 45.26143562 | N41: =IF('DNSP Inputs General'!$B89='DNSP Inputs General'!$A$86,N$38,IF('DNSP Inputs General'!$B89='DNSP Inputs General'!$A$87,N$39,N$40))*'DNSP Inputs General'!$D89 -> 46.5492907 | P41: =IF('DNSP Inputs General'!$B89='DNSP Inputs General'!$A$86,P$38,IF('DNSP Inputs General'!$B89='DNSP Inputs General'!$A$87,P$39,P$40))*'DNSP Inputs General'!$D89 -> 43.09959156 | Q41: =IF('DNSP Inputs General'!$B89='DNSP Inputs General'!$A$86,Q$38,IF('DNSP Inputs General'!$B89='DNSP Inputs General'!$A$87,Q$39,Q$40))*'DNSP Inputs General'!$D89 -> 44.38248776 | R41: =IF('DNSP Inputs General'!$B89='DNSP Inputs General'!$A$86,R$38,IF('DNSP Inputs General'!$B89='DNSP Inputs General'!$A$87,R$39,R$40))*'DNSP Inputs General'!$D89 -> 35.31508684 | S41: =IF('DNSP Inputs General'!$B89='DNSP Inputs General'!$A$86,S$38,IF('DNSP Inputs General'!$B89='DNSP Inputs General'!$A$87,S$39,S$40))*'DNSP Inputs General'!$D89 -> 37.70578604 | T41: =IF('DNSP Inputs General'!$B89='DNSP Inputs General'!$A$86,T$38,IF('DNSP Inputs General'!$B89='DNSP Inputs General'!$A$87,T$39,T$40))*'DNSP Inputs General'!$D89 -> 38.88681384 | V41: 0 | W41: 0 | X41: 0 | Y41: 0 | Z41: 7.105427358e-15
A42: ='DNSP Inputs General'!A90 -> Mercury Vapour 125W | C42: ='DNSP Inputs General'!E90 -> 73.93 | D42: =IF('DNSP Inputs General'!$B90='DNSP Inputs General'!$A$86,D$38,IF('DNSP Inputs General'!$B90='DNSP Inputs General'!$A$87,D$39,D$40))*'DNSP Inputs General'!$D90 -> 85.30503901 | E42: =IF('DNSP Inputs General'!$B90='DNSP Inputs General'!$A$86,E$38,IF('DNSP Inputs General'!$B90='DNSP Inputs General'!$A$87,E$39,E$40))*'DNSP Inputs General'!$D90 -> 87.52718492 | F42: =IF('DNSP Inputs General'!$B90='DNSP Inputs General'!$A$86,F$38,IF('DNSP Inputs General'!$B90='DNSP Inputs General'!$A$87,F$39,F$40))*'DNSP Inputs General'!$D90 -> 79.45813685 | G42: =IF('DNSP Inputs General'!$B90='DNSP Inputs General'!$A$86,G$38,IF('DNSP Inputs General'!$B90='DNSP Inputs General'!$A$87,G$39,G$40))*'DNSP Inputs General'!$D90 -> 82.96722166 | H42: =IF('DNSP Inputs General'!$B90='DNSP Inputs General'!$A$86,H$38,IF('DNSP Inputs General'!$B90='DNSP Inputs General'!$A$87,H$39,H$40))*'DNSP Inputs General'!$D90 -> 85.43610454 | J42: =IF('DNSP Inputs General'!$B90='DNSP Inputs General'!$A$86,J$38,IF('DNSP Inputs General'!$B90='DNSP Inputs General'!$A$87,J$39,J$40))*'DNSP Inputs General'!$D90 -> 42.20544745 | K42: =IF('DNSP Inputs General'!$B90='DNSP Inputs General'!$A$86,K$38,IF('DNSP Inputs General'!$B90='DNSP Inputs General'!$A$87,K$39,K$40))*'DNSP Inputs General'!$D90 -> 43.14469716 | L42: =IF('DNSP Inputs General'!$B90='DNSP Inputs General'!$A$86,L$38,IF('DNSP Inputs General'!$B90='DNSP Inputs General'!$A$87,L$39,L$40))*'DNSP Inputs General'!$D90 -> 44.14305001 | M42: =IF('DNSP Inputs General'!$B90='DNSP Inputs General'!$A$86,M$38,IF('DNSP Inputs General'!$B90='DNSP Inputs General'!$A$87,M$39,M$40))*'DNSP Inputs General'!$D90 -> 45.26143562 | N42: =IF('DNSP Inputs General'!$B90='DNSP Inputs General'!$A$86,N$38,IF('DNSP Inputs General'!$B90='DNSP Inputs General'!$A$87,N$39,N$40))*'DNSP Inputs General'!$D90 -> 46.5492907 | P42: =IF('DNSP Inputs General'!$B90='DNSP Inputs General'!$A$86,P$38,IF('DNSP Inputs General'!$B90='DNSP Inputs General'!$A$87,P$39,P$40))*'DNSP Inputs General'!$D90 -> 43.09959156 | Q42: =IF('DNSP Inputs General'!$B90='DNSP Inputs General'!$A$86,Q$38,IF('DNSP Inputs General'!$B90='DNSP Inputs General'!$A$87,Q$39,Q$40))*'DNSP Inputs General'!$D90 -> 44.38248776 | R42: =IF('DNSP Inputs General'!$B90='DNSP Inputs General'!$A$86,R$38,IF('DNSP Inputs General'!$B90='DNSP Inputs General'!$A$87,R$39,R$40))*'DNSP Inputs General'!$D90 -> 35.31508684 | S42: =IF('DNSP Inputs General'!$B90='DNSP Inputs General'!$A$86,S$38,IF('DNSP Inputs General'!$B90='DNSP Inputs General'!$A$87,S$39,S$40))*'DNSP Inputs General'!$D90 -> 37.70578604 | T42: =IF('DNSP Inputs General'!$B90='DNSP Inputs General'!$A$86,T$38,IF('DNSP Inputs General'!$B90='DNSP Inputs General'!$A$87,T$39,T$40))*'DNSP Inputs General'!$D90 -> 38.88681384 | V42: 0 | W42: 0 | X42: 0 | Y42: 0 | Z42: 7.105427358e-15
A43: ='DNSP Inputs General'!A91 -> Mercury Vapour 250W | C43: ='DNSP Inputs General'!E91 -> 121.81 | D43: =IF('DNSP Inputs General'!$B91='DNSP Inputs General'!$A$86,D$38,IF('DNSP Inputs General'!$B91='DNSP Inputs General'!$A$87,D$39,D$40))*'DNSP Inputs General'!$D91 -> 124.8183842 | E43: =IF('DNSP Inputs General'!$B91='DNSP Inputs General'!$A$86,E$38,IF('DNSP Inputs General'!$B91='DNSP Inputs General'!$A$87,E$39,E$40))*'DNSP Inputs General'!$D91 -> 127.9137208 | F43: =IF('DNSP Inputs General'!$B91='DNSP Inputs General'!$A$86,F$38,IF('DNSP Inputs General'!$B91='DNSP Inputs General'!$A$87,F$39,F$40))*'DNSP Inputs General'!$D91 -> 133.3913428 | G43: =IF('DNSP Inputs General'!$B91='DNSP Inputs General'!$A$86,G$38,IF('DNSP Inputs General'!$B91='DNSP Inputs General'!$A$87,G$39,G$40))*'DNSP Inputs General'!$D91 -> 138.8572857 | H43: =IF('DNSP Inputs General'!$B91='DNSP Inputs General'!$A$86,H$38,IF('DNSP Inputs General'!$B91='DNSP Inputs General'!$A$87,H$39,H$40))*'DNSP Inputs General'!$D91 -> 143.0867904 | J43: =IF('DNSP Inputs General'!$B91='DNSP Inputs General'!$A$86,J$38,IF('DNSP Inputs General'!$B91='DNSP Inputs General'!$A$87,J$39,J$40))*'DNSP Inputs General'!$D91 -> 90.97986508 | K43: =IF('DNSP Inputs General'!$B91='DNSP Inputs General'!$A$86,K$38,IF('DNSP Inputs General'!$B91='DNSP Inputs General'!$A$87,K$39,K$40))*'DNSP Inputs General'!$D91 -> 93.09757508 | L43: =IF('DNSP Inputs General'!$B91='DNSP Inputs General'!$A$86,L$38,IF('DNSP Inputs General'!$B91='DNSP Inputs General'!$A$87,L$39,L$40))*'DNSP Inputs General'!$D91 -> 95.25465843 | M43: =IF('DNSP Inputs General'!$B91='DNSP Inputs General'!$A$86,M$38,IF('DNSP Inputs General'!$B91='DNSP Inputs General'!$A$87,M$39,M$40))*'DNSP Inputs General'!$D91 -> 97.74698439 | N43: =IF('DNSP Inputs General'!$B91='DNSP Inputs General'!$A$86,N$38,IF('DNSP Inputs General'!$B91='DNSP Inputs General'!$A$87,N$39,N$40))*'DNSP Inputs General'!$D91 -> 100.7230814 | P43: =IF('DNSP Inputs General'!$B91='DNSP Inputs General'!$A$86,P$38,IF('DNSP Inputs General'!$B91='DNSP Inputs General'!$A$87,P$39,P$40))*'DNSP Inputs General'!$D91 -> 33.83851912 | Q43: =IF('DNSP Inputs General'!$B91='DNSP Inputs General'!$A$86,Q$38,IF('DNSP Inputs General'!$B91='DNSP Inputs General'!$A$87,Q$39,Q$40))*'DNSP Inputs General'!$D91 -> 34.81614572 | R43: =IF('DNSP Inputs General'!$B91='DNSP Inputs General'!$A$86,R$38,IF('DNSP Inputs General'!$B91='DNSP Inputs General'!$A$87,R$39,R$40))*'DNSP Inputs General'!$D91 -> 38.13668442 | S43: =IF('DNSP Inputs General'!$B91='DNSP Inputs General'!$A$86,S$38,IF('DNSP Inputs General'!$B91='DNSP Inputs General'!$A$87,S$39,S$40))*'DNSP Inputs General'!$D91 -> 41.11030135 | T43: =IF('DNSP Inputs General'!$B91='DNSP Inputs General'!$A$86,T$38,IF('DNSP Inputs General'!$B91='DNSP Inputs General'!$A$87,T$39,T$40))*'DNSP Inputs General'!$D91 -> 42.36370904 | V43: 0 | W43: 1.421085472e-14 | X43: 1.421085472e-14 | Y43: 2.131628207e-14 | Z43: 7.105427358e-15
A44: ='DNSP Inputs General'!A92 -> Mercury Vapour 400W | C44: ='DNSP Inputs General'!E92 -> 125.32 | D44: =IF('DNSP Inputs General'!$B92='DNSP Inputs General'!$A$86,D$38,IF('DNSP Inputs General'!$B92='DNSP Inputs General'!$A$87,D$39,D$40))*'DNSP Inputs General'!$D92 -> 128.4189145 | E44: =IF('DNSP Inputs General'!$B92='DNSP Inputs General'!$A$86,E$38,IF('DNSP Inputs General'!$B92='DNSP Inputs General'!$A$87,E$39,E$40))*'DNSP Inputs General'!$D92 -> 131.6035397 | F44: =IF('DNSP Inputs General'!$B92='DNSP Inputs General'!$A$86,F$38,IF('DNSP Inputs General'!$B92='DNSP Inputs General'!$A$87,F$39,F$40))*'DNSP Inputs General'!$D92 -> 137.23917 | G44: =IF('DNSP Inputs General'!$B92='DNSP Inputs General'!$A$86,G$38,IF('DNSP Inputs General'!$B92='DNSP Inputs General'!$A$87,G$39,G$40))*'DNSP Inputs General'!$D92 -> 142.8627844 | H44: =IF('DNSP Inputs General'!$B92='DNSP Inputs General'!$A$86,H$38,IF('DNSP Inputs General'!$B92='DNSP Inputs General'!$A$87,H$39,H$40))*'DNSP Inputs General'!$D92 -> 147.214294 | J44: =IF('DNSP Inputs General'!$B92='DNSP Inputs General'!$A$86,J$38,IF('DNSP Inputs General'!$B92='DNSP Inputs General'!$A$87,J$39,J$40))*'DNSP Inputs General'!$D92 -> 93.60428427 | K44: =IF('DNSP Inputs General'!$B92='DNSP Inputs General'!$A$86,K$38,IF('DNSP Inputs General'!$B92='DNSP Inputs General'!$A$87,K$39,K$40))*'DNSP Inputs General'!$D92 -> 95.78308206 | L44: =IF('DNSP Inputs General'!$B92='DNSP Inputs General'!$A$86,L$38,IF('DNSP Inputs General'!$B92='DNSP Inputs General'!$A$87,L$39,L$40))*'DNSP Inputs General'!$D92 -> 98.00238896 | M44: =IF('DNSP Inputs General'!$B92='DNSP Inputs General'!$A$86,M$38,IF('DNSP Inputs General'!$B92='DNSP Inputs General'!$A$87,M$39,M$40))*'DNSP Inputs General'!$D92 -> 100.5666089 | N44: =IF('DNSP Inputs General'!$B92='DNSP Inputs General'!$A$86,N$38,IF('DNSP Inputs General'!$B92='DNSP Inputs General'!$A$87,N$39,N$40))*'DNSP Inputs General'!$D92 -> 103.6285549 | P44: =IF('DNSP Inputs General'!$B92='DNSP Inputs General'!$A$86,P$38,IF('DNSP Inputs General'!$B92='DNSP Inputs General'!$A$87,P$39,P$40))*'DNSP Inputs General'!$D92 -> 34.81463025 | Q44: =IF('DNSP Inputs General'!$B92='DNSP Inputs General'!$A$86,Q$38,IF('DNSP Inputs General'!$B92='DNSP Inputs General'!$A$87,Q$39,Q$40))*'DNSP Inputs General'!$D92 -> 35.82045762 | R44: =IF('DNSP Inputs General'!$B92='DNSP Inputs General'!$A$86,R$38,IF('DNSP Inputs General'!$B92='DNSP Inputs General'!$A$87,R$39,R$40))*'DNSP Inputs General'!$D92 -> 39.23678109 | S44: =IF('DNSP Inputs General'!$B92='DNSP Inputs General'!$A$86,S$38,IF('DNSP Inputs General'!$B92='DNSP Inputs General'!$A$87,S$39,S$40))*'DNSP Inputs General'!$D92 -> 42.29617543 | T44: =IF('DNSP Inputs General'!$B92='DNSP Inputs General'!$A$86,T$38,IF('DNSP Inputs General'!$B92='DNSP Inputs General'!$A$87,T$39,T$40))*'DNSP Inputs General'!$D92 -> 43.58573911 | V44: 0 | W44: 2.131628207e-14 | X44: 2.842170943e-14 | Y44: 2.131628207e-14 | Z44: 7.105427358e-15
A45: ='DNSP Inputs General'!A93 -> HP Sodium 100W | C45: ='DNSP Inputs General'!E93 -> 126.69 | D45: =IF('DNSP Inputs General'!$B93='DNSP Inputs General'!$A$86,D$38,IF('DNSP Inputs General'!$B93='DNSP Inputs General'!$A$87,D$39,D$40))*'DNSP Inputs General'!$D93 -> 129.6082858 | E45: =IF('DNSP Inputs General'!$B93='DNSP Inputs General'!$A$86,E$38,IF('DNSP Inputs General'!$B93='DNSP Inputs General'!$A$87,E$39,E$40))*'DNSP Inputs General'!$D93 -> 132.6946383 | F45: =IF('DNSP Inputs General'!$B93='DNSP Inputs General'!$A$86,F$38,IF('DNSP Inputs General'!$B93='DNSP Inputs General'!$A$87,F$39,F$40))*'DNSP Inputs General'!$D93 -> 137.8539727 | G45: =IF('DNSP Inputs General'!$B93='DNSP Inputs General'!$A$86,G$38,IF('DNSP Inputs General'!$B93='DNSP Inputs General'!$A$87,G$39,G$40))*'DNSP Inputs General'!$D93 -> 143.4480627 | H45: =IF('DNSP Inputs General'!$B93='DNSP Inputs General'!$A$86,H$38,IF('DNSP Inputs General'!$B93='DNSP Inputs General'!$A$87,H$39,H$40))*'DNSP Inputs General'!$D93 -> 147.8254528 | J45: =IF('DNSP Inputs General'!$B93='DNSP Inputs General'!$A$86,J$38,IF('DNSP Inputs General'!$B93='DNSP Inputs General'!$A$87,J$39,J$40))*'DNSP Inputs General'!$D93 -> 94.96375206 | K45: =IF('DNSP Inputs General'!$B93='DNSP Inputs General'!$A$86,K$38,IF('DNSP Inputs General'!$B93='DNSP Inputs General'!$A$87,K$39,K$40))*'DNSP Inputs General'!$D93 -> 97.04792262 | L45: =IF('DNSP Inputs General'!$B93='DNSP Inputs General'!$A$86,L$38,IF('DNSP Inputs General'!$B93='DNSP Inputs General'!$A$87,L$39,L$40))*'DNSP Inputs General'!$D93 -> 99.29615946 | M45: =IF('DNSP Inputs General'!$B93='DNSP Inputs General'!$A$86,M$38,IF('DNSP Inputs General'!$B93='DNSP Inputs General'!$A$87,M$39,M$40))*'DNSP Inputs General'!$D93 -> 101.8967945 | N45: =IF('DNSP Inputs General'!$B93='DNSP Inputs General'!$A$86,N$38,IF('DNSP Inputs General'!$B93='DNSP Inputs General'!$A$87,N$39,N$40))*'DNSP Inputs General'!$D93 -> 105.006207 | P45: =IF('DNSP Inputs General'!$B93='DNSP Inputs General'!$A$86,P$38,IF('DNSP Inputs General'!$B93='DNSP Inputs General'!$A$87,P$39,P$40))*'DNSP Inputs General'!$D93 -> 34.64453375 | Q45: =IF('DNSP Inputs General'!$B93='DNSP Inputs General'!$A$86,Q$38,IF('DNSP Inputs General'!$B93='DNSP Inputs General'!$A$87,Q$39,Q$40))*'DNSP Inputs General'!$D93 -> 35.64671567 | R45: =IF('DNSP Inputs General'!$B93='DNSP Inputs General'!$A$86,R$38,IF('DNSP Inputs General'!$B93='DNSP Inputs General'!$A$87,R$39,R$40))*'DNSP Inputs General'!$D93 -> 38.55781321 | S45: =IF('DNSP Inputs General'!$B93='DNSP Inputs General'!$A$86,S$38,IF('DNSP Inputs General'!$B93='DNSP Inputs General'!$A$87,S$39,S$40))*'DNSP Inputs General'!$D93 -> 41.55126813 | T45: =IF('DNSP Inputs General'!$B93='DNSP Inputs General'!$A$86,T$38,IF('DNSP Inputs General'!$B93='DNSP Inputs General'!$A$87,T$39,T$40))*'DNSP Inputs General'!$D93 -> 42.81924579 | V45: 2.131628207e-14 | W45: 7.105427358e-15 | X45: 1.421085472e-14 | Y45: 0 | Z45: 2.842170943e-14
A46: ='DNSP Inputs General'!A94 -> HP Sodium 400W | C46: ='DNSP Inputs General'!E94 -> 166.31 | D46: =IF('DNSP Inputs General'!$B94='DNSP Inputs General'!$A$86,D$38,IF('DNSP Inputs General'!$B94='DNSP Inputs General'!$A$87,D$39,D$40))*'DNSP Inputs General'!$D94 -> 170.4251015 | E46: =IF('DNSP Inputs General'!$B94='DNSP Inputs General'!$A$86,E$38,IF('DNSP Inputs General'!$B94='DNSP Inputs General'!$A$87,E$39,E$40))*'DNSP Inputs General'!$D94 -> 174.6514265 | F46: =IF('DNSP Inputs General'!$B94='DNSP Inputs General'!$A$86,F$38,IF('DNSP Inputs General'!$B94='DNSP Inputs General'!$A$87,F$39,F$40))*'DNSP Inputs General'!$D94 -> 182.1304873 | G46: =IF('DNSP Inputs General'!$B94='DNSP Inputs General'!$A$86,G$38,IF('DNSP Inputs General'!$B94='DNSP Inputs General'!$A$87,G$39,G$40))*'DNSP Inputs General'!$D94 -> 189.5936017 | H46: =IF('DNSP Inputs General'!$B94='DNSP Inputs General'!$A$86,H$38,IF('DNSP Inputs General'!$B94='DNSP Inputs General'!$A$87,H$39,H$40))*'DNSP Inputs General'!$D94 -> 195.3685023 | J46: =IF('DNSP Inputs General'!$B94='DNSP Inputs General'!$A$86,J$38,IF('DNSP Inputs General'!$B94='DNSP Inputs General'!$A$87,J$39,J$40))*'DNSP Inputs General'!$D94 -> 124.2225081 | K46: =IF('DNSP Inputs General'!$B94='DNSP Inputs General'!$A$86,K$38,IF('DNSP Inputs General'!$B94='DNSP Inputs General'!$A$87,K$39,K$40))*'DNSP Inputs General'!$D94 -> 127.1139967 | L46: =IF('DNSP Inputs General'!$B94='DNSP Inputs General'!$A$86,L$38,IF('DNSP Inputs General'!$B94='DNSP Inputs General'!$A$87,L$39,L$40))*'DNSP Inputs General'!$D94 -> 130.0592452 | M46: =IF('DNSP Inputs General'!$B94='DNSP Inputs General'!$A$86,M$38,IF('DNSP Inputs General'!$B94='DNSP Inputs General'!$A$87,M$39,M$40))*'DNSP Inputs General'!$D94 -> 133.4622287 | N46: =IF('DNSP Inputs General'!$B94='DNSP Inputs General'!$A$86,N$38,IF('DNSP Inputs General'!$B94='DNSP Inputs General'!$A$87,N$39,N$40))*'DNSP Inputs General'!$D94 -> 137.5257457 | P46: =IF('DNSP Inputs General'!$B94='DNSP Inputs General'!$A$86,P$38,IF('DNSP Inputs General'!$B94='DNSP Inputs General'!$A$87,P$39,P$40))*'DNSP Inputs General'!$D94 -> 46.20259342 | Q46: =IF('DNSP Inputs General'!$B94='DNSP Inputs General'!$A$86,Q$38,IF('DNSP Inputs General'!$B94='DNSP Inputs General'!$A$87,Q$39,Q$40))*'DNSP Inputs General'!$D94 -> 47.53742974 | R46: =IF('DNSP Inputs General'!$B94='DNSP Inputs General'!$A$86,R$38,IF('DNSP Inputs General'!$B94='DNSP Inputs General'!$A$87,R$39,R$40))*'DNSP Inputs General'!$D94 -> 52.07124219 | S46: =IF('DNSP Inputs General'!$B94='DNSP Inputs General'!$A$86,S$38,IF('DNSP Inputs General'!$B94='DNSP Inputs General'!$A$87,S$39,S$40))*'DNSP Inputs General'!$D94 -> 56.131373 | T46: =IF('DNSP Inputs General'!$B94='DNSP Inputs General'!$A$86,T$38,IF('DNSP Inputs General'!$B94='DNSP Inputs General'!$A$87,T$39,T$40))*'DNSP Inputs General'!$D94 -> 57.84275657 | V46: 7.105427358e-15 | W46: 0 | X46: 1.421085472e-14 | Y46: 4.97379915e-14 | Z46: 7.105427358e-15
A47: ='DNSP Inputs General'!A95 -> Metal Halide 70W | C47: ='DNSP Inputs General'!E95 -> 190.05 | D47: =IF('DNSP Inputs General'!$B95='DNSP Inputs General'!$A$86,D$38,IF('DNSP Inputs General'!$B95='DNSP Inputs General'!$A$87,D$39,D$40))*'DNSP Inputs General'!$D95 -> 219.282484 | E47: =IF('DNSP Inputs General'!$B95='DNSP Inputs General'!$A$86,E$38,IF('DNSP Inputs General'!$B95='DNSP Inputs General'!$A$87,E$39,E$40))*'DNSP Inputs General'!$D95 -> 224.9946633 | F47: =IF('DNSP Inputs General'!$B95='DNSP Inputs General'!$A$86,F$38,IF('DNSP Inputs General'!$B95='DNSP Inputs General'!$A$87,F$39,F$40))*'DNSP Inputs General'!$D95 -> 204.2526189 | G47: =IF('DNSP Inputs General'!$B95='DNSP Inputs General'!$A$86,G$38,IF('DNSP Inputs General'!$B95='DNSP Inputs General'!$A$87,G$39,G$40))*'DNSP Inputs General'!$D95 -> 213.2729633 | H47: =IF('DNSP Inputs General'!$B95='DNSP Inputs General'!$A$86,H$38,IF('DNSP Inputs General'!$B95='DNSP Inputs General'!$A$87,H$39,H$40))*'DNSP Inputs General'!$D95 -> 219.619397 | J47: =IF('DNSP Inputs General'!$B95='DNSP Inputs General'!$A$86,J$38,IF('DNSP Inputs General'!$B95='DNSP Inputs General'!$A$87,J$39,J$40))*'DNSP Inputs General'!$D95 -> 108.4920125 | K47: =IF('DNSP Inputs General'!$B95='DNSP Inputs General'!$A$86,K$38,IF('DNSP Inputs General'!$B95='DNSP Inputs General'!$A$87,K$39,K$40))*'DNSP Inputs General'!$D95 -> 110.9064186 | L47: =IF('DNSP Inputs General'!$B95='DNSP Inputs General'!$A$86,L$38,IF('DNSP Inputs General'!$B95='DNSP Inputs General'!$A$87,L$39,L$40))*'DNSP Inputs General'!$D95 -> 113.4727534 | M47: =IF('DNSP Inputs General'!$B95='DNSP Inputs General'!$A$86,M$38,IF('DNSP Inputs General'!$B95='DNSP Inputs General'!$A$87,M$39,M$40))*'DNSP Inputs General'!$D95 -> 116.3476407 | N47: =IF('DNSP Inputs General'!$B95='DNSP Inputs General'!$A$86,N$38,IF('DNSP Inputs General'!$B95='DNSP Inputs General'!$A$87,N$39,N$40))*'DNSP Inputs General'!$D95 -> 119.658161 | P47: =IF('DNSP Inputs General'!$B95='DNSP Inputs General'!$A$86,P$38,IF('DNSP Inputs General'!$B95='DNSP Inputs General'!$A$87,P$39,P$40))*'DNSP Inputs General'!$D95 -> 110.7904716 | Q47: =IF('DNSP Inputs General'!$B95='DNSP Inputs General'!$A$86,Q$38,IF('DNSP Inputs General'!$B95='DNSP Inputs General'!$A$87,Q$39,Q$40))*'DNSP Inputs General'!$D95 -> 114.0882447 | R47: =IF('DNSP Inputs General'!$B95='DNSP Inputs General'!$A$86,R$38,IF('DNSP Inputs General'!$B95='DNSP Inputs General'!$A$87,R$39,R$40))*'DNSP Inputs General'!$D95 -> 90.77986547 | S47: =IF('DNSP Inputs General'!$B95='DNSP Inputs General'!$A$86,S$38,IF('DNSP Inputs General'!$B95='DNSP Inputs General'!$A$87,S$39,S$40))*'DNSP Inputs General'!$D95 -> 96.9253226 | T47: =IF('DNSP Inputs General'!$B95='DNSP Inputs General'!$A$86,T$38,IF('DNSP Inputs General'!$B95='DNSP Inputs General'!$A$87,T$39,T$40))*'DNSP Inputs General'!$D95 -> 99.96123598 | V47: 1.421085472e-14 | W47: 1.421085472e-14 | X47: 2.842170943e-14 | Y47: 0 | Z47: 2.842170943e-14
A48: ='DNSP Inputs General'!A96 -> Metal Halide 100W | C48: ='DNSP Inputs General'!E96 -> 250.78 | D48: =IF('DNSP Inputs General'!$B96='DNSP Inputs General'!$A$86,D$38,IF('DNSP Inputs General'!$B96='DNSP Inputs General'!$A$87,D$39,D$40))*'DNSP Inputs General'!$D96 -> 256.557677 | E48: =IF('DNSP Inputs General'!$B96='DNSP Inputs General'!$A$86,E$38,IF('DNSP Inputs General'!$B96='DNSP Inputs General'!$A$87,E$39,E$40))*'DNSP Inputs General'!$D96 -> 262.6670659 | F48: =IF('DNSP Inputs General'!$B96='DNSP Inputs General'!$A$86,F$38,IF('DNSP Inputs General'!$B96='DNSP Inputs General'!$A$87,F$39,F$40))*'DNSP Inputs General'!$D96 -> 272.8798917 | G48: =IF('DNSP Inputs General'!$B96='DNSP Inputs General'!$A$86,G$38,IF('DNSP Inputs General'!$B96='DNSP Inputs General'!$A$87,G$39,G$40))*'DNSP Inputs General'!$D96 -> 283.9533097 | H48: =IF('DNSP Inputs General'!$B96='DNSP Inputs General'!$A$86,H$38,IF('DNSP Inputs General'!$B96='DNSP Inputs General'!$A$87,H$39,H$40))*'DNSP Inputs General'!$D96 -> 292.6182885 | J48: =IF('DNSP Inputs General'!$B96='DNSP Inputs General'!$A$86,J$38,IF('DNSP Inputs General'!$B96='DNSP Inputs General'!$A$87,J$39,J$40))*'DNSP Inputs General'!$D96 -> 187.9793369 | K48: =IF('DNSP Inputs General'!$B96='DNSP Inputs General'!$A$86,K$38,IF('DNSP Inputs General'!$B96='DNSP Inputs General'!$A$87,K$39,K$40))*'DNSP Inputs General'!$D96 -> 192.1049216 | L48: =IF('DNSP Inputs General'!$B96='DNSP Inputs General'!$A$86,L$38,IF('DNSP Inputs General'!$B96='DNSP Inputs General'!$A$87,L$39,L$40))*'DNSP Inputs General'!$D96 -> 196.555273 | M48: =IF('DNSP Inputs General'!$B96='DNSP Inputs General'!$A$86,M$38,IF('DNSP Inputs General'!$B96='DNSP Inputs General'!$A$87,M$39,M$40))*'DNSP Inputs General'!$D96 -> 201.7031916 | N48: =IF('DNSP Inputs General'!$B96='DNSP Inputs General'!$A$86,N$38,IF('DNSP Inputs General'!$B96='DNSP Inputs General'!$A$87,N$39,N$40))*'DNSP Inputs General'!$D96 -> 207.8582274 | P48: =IF('DNSP Inputs General'!$B96='DNSP Inputs General'!$A$86,P$38,IF('DNSP Inputs General'!$B96='DNSP Inputs General'!$A$87,P$39,P$40))*'DNSP Inputs General'!$D96 -> 68.57834006 | Q48: =IF('DNSP Inputs General'!$B96='DNSP Inputs General'!$A$86,Q$38,IF('DNSP Inputs General'!$B96='DNSP Inputs General'!$A$87,Q$39,Q$40))*'DNSP Inputs General'!$D96 -> 70.5621443 | R48: =IF('DNSP Inputs General'!$B96='DNSP Inputs General'!$A$86,R$38,IF('DNSP Inputs General'!$B96='DNSP Inputs General'!$A$87,R$39,R$40))*'DNSP Inputs General'!$D96 -> 76.32461863 | S48: =IF('DNSP Inputs General'!$B96='DNSP Inputs General'!$A$86,S$38,IF('DNSP Inputs General'!$B96='DNSP Inputs General'!$A$87,S$39,S$40))*'DNSP Inputs General'!$D96 -> 82.25011819 | T48: =IF('DNSP Inputs General'!$B96='DNSP Inputs General'!$A$86,T$38,IF('DNSP Inputs General'!$B96='DNSP Inputs General'!$A$87,T$39,T$40))*'DNSP Inputs General'!$D96 -> 84.76006114 | V48: 1.421085472e-14 | W48: 0 | X48: 2.842170943e-14 | Y48: 1.421085472e-14 | Z48: 4.263256415e-14
A49: ='DNSP Inputs General'!A97 -> Metal Halide 150W | C49: ='DNSP Inputs General'!E97 -> 284.91 | D49: =IF('DNSP Inputs General'!$B97='DNSP Inputs General'!$A$86,D$38,IF('DNSP Inputs General'!$B97='DNSP Inputs General'!$A$87,D$39,D$40))*'DNSP Inputs General'!$D97 -> 291.4726614 | E49: =IF('DNSP Inputs General'!$B97='DNSP Inputs General'!$A$86,E$38,IF('DNSP Inputs General'!$B97='DNSP Inputs General'!$A$87,E$39,E$40))*'DNSP Inputs General'!$D97 -> 298.4134783 | F49: =IF('DNSP Inputs General'!$B97='DNSP Inputs General'!$A$86,F$38,IF('DNSP Inputs General'!$B97='DNSP Inputs General'!$A$87,F$39,F$40))*'DNSP Inputs General'!$D97 -> 310.0161695 | G49: =IF('DNSP Inputs General'!$B97='DNSP Inputs General'!$A$86,G$38,IF('DNSP Inputs General'!$B97='DNSP Inputs General'!$A$87,G$39,G$40))*'DNSP Inputs General'!$D97 -> 322.5965712 | H49: =IF('DNSP Inputs General'!$B97='DNSP Inputs General'!$A$86,H$38,IF('DNSP Inputs General'!$B97='DNSP Inputs General'!$A$87,H$39,H$40))*'DNSP Inputs General'!$D97 -> 332.4407686 | J49: =IF('DNSP Inputs General'!$B97='DNSP Inputs General'!$A$86,J$38,IF('DNSP Inputs General'!$B97='DNSP Inputs General'!$A$87,J$39,J$40))*'DNSP Inputs General'!$D97 -> 213.5614817 | K49: =IF('DNSP Inputs General'!$B97='DNSP Inputs General'!$A$86,K$38,IF('DNSP Inputs General'!$B97='DNSP Inputs General'!$A$87,K$39,K$40))*'DNSP Inputs General'!$D97 -> 218.248518 | L49: =IF('DNSP Inputs General'!$B97='DNSP Inputs General'!$A$86,L$38,IF('DNSP Inputs General'!$B97='DNSP Inputs General'!$A$87,L$39,L$40))*'DNSP Inputs General'!$D97 -> 223.3045186 | M49: =IF('DNSP Inputs General'!$B97='DNSP Inputs General'!$A$86,M$38,IF('DNSP Inputs General'!$B97='DNSP Inputs General'!$A$87,M$39,M$40))*'DNSP Inputs General'!$D97 -> 229.1530183 | N49: =IF('DNSP Inputs General'!$B97='DNSP Inputs General'!$A$86,N$38,IF('DNSP Inputs General'!$B97='DNSP Inputs General'!$A$87,N$39,N$40))*'DNSP Inputs General'!$D97 -> 236.1456942 | P49: =IF('DNSP Inputs General'!$B97='DNSP Inputs General'!$A$86,P$38,IF('DNSP Inputs General'!$B97='DNSP Inputs General'!$A$87,P$39,P$40))*'DNSP Inputs General'!$D97 -> 77.91117978 | Q49: =IF('DNSP Inputs General'!$B97='DNSP Inputs General'!$A$86,Q$38,IF('DNSP Inputs General'!$B97='DNSP Inputs General'!$A$87,Q$39,Q$40))*'DNSP Inputs General'!$D97 -> 80.16496032 | R49: =IF('DNSP Inputs General'!$B97='DNSP Inputs General'!$A$86,R$38,IF('DNSP Inputs General'!$B97='DNSP Inputs General'!$A$87,R$39,R$40))*'DNSP Inputs General'!$D97 -> 86.71165091 | S49: =IF('DNSP Inputs General'!$B97='DNSP Inputs General'!$A$86,S$38,IF('DNSP Inputs General'!$B97='DNSP Inputs General'!$A$87,S$39,S$40))*'DNSP Inputs General'!$D97 -> 93.44355286 | T49: =IF('DNSP Inputs General'!$B97='DNSP Inputs General'!$A$86,T$38,IF('DNSP Inputs General'!$B97='DNSP Inputs General'!$A$87,T$39,T$40))*'DNSP Inputs General'!$D97 -> 96.29507445 | V49: 0 | W49: 1.421085472e-14 | X49: 4.263256415e-14 | Y49: 1.421085472e-14 | Z49: 7.105427358e-14
A50: ='DNSP Inputs General'!A98 -> HP Sodium 50W | C50: ='DNSP Inputs General'!E98 -> 53.84 | D50: =IF('DNSP Inputs General'!$B98='DNSP Inputs General'!$A$86,D$38,IF('DNSP Inputs General'!$B98='DNSP Inputs General'!$A$87,D$39,D$40))*'DNSP Inputs General'!$D98 -> 55.08104543 | E50: =IF('DNSP Inputs General'!$B98='DNSP Inputs General'!$A$86,E$38,IF('DNSP Inputs General'!$B98='DNSP Inputs General'!$A$87,E$39,E$40))*'DNSP Inputs General'!$D98 -> 56.39268627 | F50: =IF('DNSP Inputs General'!$B98='DNSP Inputs General'!$A$86,F$38,IF('DNSP Inputs General'!$B98='DNSP Inputs General'!$A$87,F$39,F$40))*'DNSP Inputs General'!$D98 -> 58.58530481 | G50: =IF('DNSP Inputs General'!$B98='DNSP Inputs General'!$A$86,G$38,IF('DNSP Inputs General'!$B98='DNSP Inputs General'!$A$87,G$39,G$40))*'DNSP Inputs General'!$D98 -> 60.9626862 | H50: =IF('DNSP Inputs General'!$B98='DNSP Inputs General'!$A$86,H$38,IF('DNSP Inputs General'!$B98='DNSP Inputs General'!$A$87,H$39,H$40))*'DNSP Inputs General'!$D98 -> 62.82299338 | J50: =IF('DNSP Inputs General'!$B98='DNSP Inputs General'!$A$86,J$38,IF('DNSP Inputs General'!$B98='DNSP Inputs General'!$A$87,J$39,J$40))*'DNSP Inputs General'!$D98 -> 40.35778044 | K50: =IF('DNSP Inputs General'!$B98='DNSP Inputs General'!$A$86,K$38,IF('DNSP Inputs General'!$B98='DNSP Inputs General'!$A$87,K$39,K$40))*'DNSP Inputs General'!$D98 -> 41.24351311 | L50: =IF('DNSP Inputs General'!$B98='DNSP Inputs General'!$A$86,L$38,IF('DNSP Inputs General'!$B98='DNSP Inputs General'!$A$87,L$39,L$40))*'DNSP Inputs General'!$D98 -> 42.19897081 | M50: =IF('DNSP Inputs General'!$B98='DNSP Inputs General'!$A$86,M$38,IF('DNSP Inputs General'!$B98='DNSP Inputs General'!$A$87,M$39,M$40))*'DNSP Inputs General'!$D98 -> 43.30419104 | N50: =IF('DNSP Inputs General'!$B98='DNSP Inputs General'!$A$86,N$38,IF('DNSP Inputs General'!$B98='DNSP Inputs General'!$A$87,N$39,N$40))*'DNSP Inputs General'!$D98 -> 44.62563194 | P50: =IF('DNSP Inputs General'!$B98='DNSP Inputs General'!$A$86,P$38,IF('DNSP Inputs General'!$B98='DNSP Inputs General'!$A$87,P$39,P$40))*'DNSP Inputs General'!$D98 -> 14.72326499 | Q50: =IF('DNSP Inputs General'!$B98='DNSP Inputs General'!$A$86,Q$38,IF('DNSP Inputs General'!$B98='DNSP Inputs General'!$A$87,Q$39,Q$40))*'DNSP Inputs General'!$D98 -> 15.14917316 | R50: =IF('DNSP Inputs General'!$B98='DNSP Inputs General'!$A$86,R$38,IF('DNSP Inputs General'!$B98='DNSP Inputs General'!$A$87,R$39,R$40))*'DNSP Inputs General'!$D98 -> 16.386334 | S50: =IF('DNSP Inputs General'!$B98='DNSP Inputs General'!$A$86,S$38,IF('DNSP Inputs General'!$B98='DNSP Inputs General'!$A$87,S$39,S$40))*'DNSP Inputs General'!$D98 -> 17.65849516 | T50: =IF('DNSP Inputs General'!$B98='DNSP Inputs General'!$A$86,T$38,IF('DNSP Inputs General'!$B98='DNSP Inputs General'!$A$87,T$39,T$40))*'DNSP Inputs General'!$D98 -> 18.19736144 | V50: 5.329070518e-15 | W50: 5.329070518e-15 | X50: 7.105427358e-15 | Y50: 3.552713679e-15 | Z50: 7.105427358e-15
A53: ='DNSP Inputs General'!A$112 -> Energy Efficient Lights
A54: ='DNSP Inputs General'!A113 -> T5 2X14W | C54: ='DNSP Inputs General'!E113 -> 40.6 | D54: ='Charges Summary'!K$89 -> 50.65241497 | E54: ='Charges Summary'!L$89 -> 52.4154343 | F54: ='Charges Summary'!M$89 -> 54.11711639 | G54: ='Charges Summary'!N$89 -> 55.87551811 | H54: ='Charges Summary'!O$89 -> 57.76882978 | J54: =SUM('Charges Summary'!K83,'Charges Summary'!K8) -> 34.15734059 | K54: =SUM('Charges Summary'!L83,'Charges Summary'!L8) -> 34.91362965 | L54: =SUM('Charges Summary'!M83,'Charges Summary'!M8) -> 35.72135681 | M54: =SUM('Charges Summary'!N83,'Charges Summary'!N8) -> 36.63581058 | N54: =SUM('Charges Summary'!O83,'Charges Summary'!O8) -> 37.70219844 | P54: =SUM('Charges Summary'!K85,'Charges Summary'!K11) -> 16.49507438 | Q54: =SUM('Charges Summary'!L85,'Charges Summary'!L11) -> 17.50180465 | R54: =SUM('Charges Summary'!M85,'Charges Summary'!M11) -> 18.39575958 | S54: =SUM('Charges Summary'!N85,'Charges Summary'!N11) -> 19.23970753 | T54: =SUM('Charges Summary'!O85,'Charges Summary'!O11) -> 20.06663134 | V54: =ABS(D54-J54-P54) -> 0 | W54: =ABS(E54-K54-Q54) -> 0 | X54: =ABS(F54-L54-R54) -> 0 | Y54: =ABS(G54-M54-S54) -> 0 | Z54: =ABS(H54-N54-T54) -> 3.552713679e-15
A55: ='DNSP Inputs General'!A114 -> T5 2X24W | C55: ='DNSP Inputs General'!E114 -> 47.91 | D55: ='Charges Summary'!K$105 -> 54.15995954 | E55: ='Charges Summary'!L$105 -> 56.01151531 | F55: ='Charges Summary'!M$105 -> 57.80484977 | G55: ='Charges Summary'!N$105 -> 59.6660067 | H55: ='Charges Summary'!O$105 -> 61.67958033 | J55: =SUM('Charges Summary'!K99,'Charges Summary'!K8) -> 37.51056955 | K55: =SUM('Charges Summary'!L99,'Charges Summary'!L8) -> 38.34096865 | L55: =SUM('Charges Summary'!M99,'Charges Summary'!M8) -> 39.22843644 | M55: =SUM('Charges Summary'!N99,'Charges Summary'!N8) -> 40.23461692 | N55: =SUM('Charges Summary'!O99,'Charges Summary'!O8) -> 41.41003289 | P55: =SUM('Charges Summary'!K101,'Charges Summary'!K11) -> 16.64938999 | Q55: =SUM('Charges Summary'!L101,'Charges Summary'!L11) -> 17.67054666 | R55: =SUM('Charges Summary'!M101,'Charges Summary'!M11) -> 18.57641333 | S55: =SUM('Charges Summary'!N101,'Charges Summary'!N11) -> 19.43138978 | T55: =SUM('Charges Summary'!O101,'Charges Summary'!O11) -> 20.26954745 | V55: 0 | W55: 3.552713679e-15 | X55: 3.552713679e-15 | Y55: 3.552713679e-15 | Z55: 0
A56: ='DNSP Inputs General'!A115 -> LED 18W | C56: ='DNSP Inputs General'!E115 -> 16.74 | D56: ='Charges Summary'!K$121 -> 28.89815211 | E56: ='Charges Summary'!L$121 -> 30.09309208 | F56: ='Charges Summary'!M$121 -> 31.21253343 | G56: ='Charges Summary'!N$121 -> 32.323845 | H56: ='Charges Summary'!O$121 -> 33.46498646 | J56: =SUM('Charges Summary'!K115,'Charges Summary'!K8) -> 13.61308726 | K56: =SUM('Charges Summary'!L115,'Charges Summary'!L8) -> 13.91441626 | L56: =SUM('Charges Summary'!M115,'Charges Summary'!M8) -> 14.23330423 | M56: =SUM('Charges Summary'!N115,'Charges Summary'!N8) -> 14.58714383 | N56: =SUM('Charges Summary'!O115,'Charges Summary'!O8) -> 14.98944768 | P56: =SUM('Charges Summary'!K117,'Charges Summary'!K11) -> 15.28506485 | Q56: =SUM('Charges Summary'!L117,'Charges Summary'!L11) -> 16.17867581 | R56: =SUM('Charges Summary'!M117,'Charges Summary'!M11) -> 16.9792292 | S56: =SUM('Charges Summary'!N117,'Charges Summary'!N11) -> 17.73670117 | T56: =SUM('Charges Summary'!O117,'Charges Summary'!O11) -> 18.47553878 | V56: 1.776356839e-15 | W56: 3.552713679e-15 | X56: 0 | Y56: 3.552713679e-15 | Z56: 3.552713679e-15
A57: ='DNSP Inputs General'!A116 -> LED 14W | C57: ='DNSP Inputs General'!E116 -> 16.74 | D57: ='Charges Summary'!K$137 -> 30.01334002 | E57: ='Charges Summary'!L$137 -> 31.23249932 | F57: ='Charges Summary'!M$137 -> 32.37832301 | G57: ='Charges Summary'!N$137 -> 33.52078361 | H57: ='Charges Summary'!O$137 -> 34.70001768 | J57: =SUM('Charges Summary'!K131,'Charges Summary'!K$8) -> 14.72827517 | K57: =SUM('Charges Summary'!L131,'Charges Summary'!L$8) -> 15.0538235 | L57: =SUM('Charges Summary'!M131,'Charges Summary'!M$8) -> 15.39909381 | M57: =SUM('Charges Summary'!N131,'Charges Summary'!N$8) -> 15.78408245 | N57: =SUM('Charges Summary'!O131,'Charges Summary'!O$8) -> 16.2244789 | P57: =SUM('Charges Summary'!K133,'Charges Summary'!K$11) -> 15.28506485 | Q57: =SUM('Charges Summary'!L133,'Charges Summary'!L$11) -> 16.17867581 | R57: =SUM('Charges Summary'!M133,'Charges Summary'!M$11) -> 16.9792292 | S57: =SUM('Charges Summary'!N133,'Charges Summary'!N$11) -> 17.73670117 | T57: =SUM('Charges Summary'!O133,'Charges Summary'!O$11) -> 18.47553878 | V57: =ABS(D57-J57-P57) -> 0 | W57: =ABS(E57-K57-Q57) -> 3.552713679e-15 | X57: =ABS(F57-L57-R57) -> 3.552713679e-15 | Y57: =ABS(G57-M57-S57) -> 3.552713679e-15 | Z57: =ABS(H57-N57-T57) -> 0
A58: ='DNSP Inputs General'!A117 -> LED 70W-125W (L1) | C58: ='DNSP Inputs General'!E117 -> 24.09 | D58: ='Charges Summary'!K$153 -> 41.48438632 | E58: ='Charges Summary'!L$153 -> 43.25968119 | F58: ='Charges Summary'!M$153 -> 44.9069302 | G58: ='Charges Summary'!N$153 -> 46.56122851 | H58: ='Charges Summary'!O$153 -> 48.3094616 | J58: =SUM('Charges Summary'!K147,'Charges Summary'!K$8) -> 21.88723976 | K58: =SUM('Charges Summary'!L147,'Charges Summary'!L$8) -> 22.36580312 | L58: =SUM('Charges Summary'!M147,'Charges Summary'!M$8) -> 22.87964591 | M58: =SUM('Charges Summary'!N147,'Charges Summary'!N$8) -> 23.4682999 | N58: =SUM('Charges Summary'!O147,'Charges Summary'!O$8) -> 24.16378472 | P58: =SUM('Charges Summary'!K149,'Charges Summary'!K$11) -> 19.59714656 | Q58: =SUM('Charges Summary'!L149,'Charges Summary'!L$11) -> 20.89387807 | R58: =SUM('Charges Summary'!M149,'Charges Summary'!M$11) -> 22.02728429 | S58: =SUM('Charges Summary'!N149,'Charges Summary'!N$11) -> 23.09292861 | T58: =SUM('Charges Summary'!O149,'Charges Summary'!O$11) -> 24.14567687 | V58: 3.552713679e-15 | W58: 0 | X58: 0 | Y58: 3.552713679e-15 | Z58: 0
A59: ='DNSP Inputs General'!A118 -> LED 155W-250W (L2) | C59: ='DNSP Inputs General'!E118 -> 24.89 | D59: ='Charges Summary'!K$169 -> 42.03160482 | E59: ='Charges Summary'!L$169 -> 43.85805711 | F59: ='Charges Summary'!M$169 -> 45.54754633 | G59: ='Charges Summary'!N$169 -> 47.2409528 | H59: ='Charges Summary'!O$169 -> 49.02902227 | J59: =SUM('Charges Summary'!K163,'Charges Summary'!K$8) -> 21.88723976 | K59: =SUM('Charges Summary'!L163,'Charges Summary'!L$8) -> 22.36580312 | L59: =SUM('Charges Summary'!M163,'Charges Summary'!M$8) -> 22.87964591 | M59: =SUM('Charges Summary'!N163,'Charges Summary'!N$8) -> 23.4682999 | N59: =SUM('Charges Summary'!O163,'Charges Summary'!O$8) -> 24.16378472 | P59: =SUM('Charges Summary'!K165,'Charges Summary'!K$11) -> 20.14436505 | Q59: =SUM('Charges Summary'!L165,'Charges Summary'!L$11) -> 21.49225399 | R59: =SUM('Charges Summary'!M165,'Charges Summary'!M$11) -> 22.66790042 | S59: =SUM('Charges Summary'!N165,'Charges Summary'!N$11) -> 23.7726529 | T59: =SUM('Charges Summary'!O165,'Charges Summary'!O$11) -> 24.86523754 | V59: 3.552713679e-15 | W59: 0 | X59: 3.552713679e-15 | Y59: 0 | Z59: 3.552713679e-15
A60: ='DNSP Inputs General'!A119 -> LED 275W-400W (L4) | C60: ='DNSP Inputs General'!E119 -> 26.37 | D60: ='Charges Summary'!K$185 -> 58.44125921 | E60: ='Charges Summary'!L$185 -> 60.97591154 | F60: ='Charges Summary'!M$185 -> 63.31598594 | G60: ='Charges Summary'!N$185 -> 65.6809021 | H60: ='Charges Summary'!O$185 -> 68.21832527 | J60: =SUM('Charges Summary'!K179,'Charges Summary'!K$8) -> 33.39644313 | K60: =SUM('Charges Summary'!L179,'Charges Summary'!L$8) -> 34.1250815 | L60: =SUM('Charges Summary'!M179,'Charges Summary'!M$8) -> 34.91123998 | M60: =SUM('Charges Summary'!N179,'Charges Summary'!N$8) -> 35.8211822 | N60: =SUM('Charges Summary'!O179,'Charges Summary'!O$8) -> 36.909278 | P60: =SUM('Charges Summary'!K181,'Charges Summary'!K$11) -> 25.04481609 | Q60: =SUM('Charges Summary'!L181,'Charges Summary'!L$11) -> 26.85083003 | R60: =SUM('Charges Summary'!M181,'Charges Summary'!M$11) -> 28.40474597 | S60: =SUM('Charges Summary'!N181,'Charges Summary'!N$11) -> 29.8597199 | T60: =SUM('Charges Summary'!O181,'Charges Summary'!O$11) -> 31.30904727 | V60: 7.105427358e-15 | W60: 0 | X60: 0 | Y60: 7.105427358e-15 | Z60: 1.065814104e-14
A61: ='DNSP Inputs General'!A120 -> Compact Fluorescent 32W | C61: ='DNSP Inputs General'!E120 -> 36.13 | D61: =IF('DNSP Inputs General'!$B120='DNSP Inputs General'!$A$113,D$54,D$55)*'DNSP Inputs General'!$D120 -> 44.55436529 | E61: =IF('DNSP Inputs General'!$B120='DNSP Inputs General'!$A$113,E$54,E$55)*'DNSP Inputs General'!$D120 -> 46.10513453 | F61: =IF('DNSP Inputs General'!$B120='DNSP Inputs General'!$A$113,F$54,F$55)*'DNSP Inputs General'!$D120 -> 47.60195094 | G61: =IF('DNSP Inputs General'!$B120='DNSP Inputs General'!$A$113,G$54,G$55)*'DNSP Inputs General'!$D120 -> 49.14865848 | H61: =IF('DNSP Inputs General'!$B120='DNSP Inputs General'!$A$113,H$54,H$55)*'DNSP Inputs General'!$D120 -> 50.81403416 | J61: =IF('DNSP Inputs General'!$B120='DNSP Inputs General'!$A$113,J$54,J$55)*'DNSP Inputs General'!$D120 -> 30.04513468 | K61: =IF('DNSP Inputs General'!$B120='DNSP Inputs General'!$A$113,K$54,K$55)*'DNSP Inputs General'!$D120 -> 30.71037403 | L61: =IF('DNSP Inputs General'!$B120='DNSP Inputs General'!$A$113,L$54,L$55)*'DNSP Inputs General'!$D120 -> 31.42085883 | M61: =IF('DNSP Inputs General'!$B120='DNSP Inputs General'!$A$113,M$54,M$55)*'DNSP Inputs General'!$D120 -> 32.22522141 | N61: =IF('DNSP Inputs General'!$B120='DNSP Inputs General'!$A$113,N$54,N$55)*'DNSP Inputs General'!$D120 -> 33.16322672 | P61: =IF('DNSP Inputs General'!$B120='DNSP Inputs General'!$A$113,P$54,P$55)*'DNSP Inputs General'!$D120 -> 14.5092306 | Q61: =IF('DNSP Inputs General'!$B120='DNSP Inputs General'!$A$113,Q$54,Q$55)*'DNSP Inputs General'!$D120 -> 15.39476051 | R61: =IF('DNSP Inputs General'!$B120='DNSP Inputs General'!$A$113,R$54,R$55)*'DNSP Inputs General'!$D120 -> 16.18109211 | S61: =IF('DNSP Inputs General'!$B120='DNSP Inputs General'!$A$113,S$54,S$55)*'DNSP Inputs General'!$D120 -> 16.92343707 | T61: =IF('DNSP Inputs General'!$B120='DNSP Inputs General'!$A$113,T$54,T$55)*'DNSP Inputs General'!$D120 -> 17.65080743 | V61: 1.776356839e-15 | W61: 1.776356839e-15 | X61: 3.552713679e-15 | Y61: 3.552713679e-15 | Z61: 0
